Workbook

Sheet AER NRs (hidden)
B1: AER NAMED RANGES
B3: DROP DOWN SELECTORS USED IN WORKBOOKS
B5: COVER SHEET | C5: dms_DataQuality_List | D5: dms_Confid_status_List
C6: -- select -- | D6: -- select --
C7: Actual | D7: Public
C8: Estimate | D8: Confidential
C9: Consolidated
C12: For all files either AER or business needs to be able to specify the type of submission | D12: For PTRM & RFM templates we must provide a choice in case they change their form of control - otherwise it is drawn from the business specific lookup table above.
C13: dms_SourceList | D13: dms_FormControl_Choices
C14: -- select -- | D14: Revenue cap
C15: After appeal | D15: Revenue yield
C16: Draft decision | D16: Tariff cap
C17: Final decision
C18: PTRM update 1
C19: PTRM update 2
C20: PTRM update 3
C21: PTRM update 4
C22: PTRM update 5
C23: PTRM update 6
C24: PTRM update 7
C25: Regulatory proposal
C26: Reporting
C27: Revised regulatory proposal
K30: This is used to create an image to insert on 6.3 STPIS sheet - not for dropdown lists. | N30: GAS
B31: CA & RESET RINS DNSP | C31: dms_DNSP_020301_SubstationType | D31: dms_DNSP_020301_ProjectType | E31: dms_DNSP_020301_ProjectTrigger | F31: dms_DNSP_020302_ProjectType | G31: dms_DNSP_020302_ProjectTrigger | H31: dms_STPIS_Exclusion_List | I31: dms_Reason_Interruption | J31: dms_Reason_Interruption_Detailed | K31: Reason for interruption | N31: dms_N0205_AssetType
C32: Subtransmission substation | D32: New substation establishment | E32: Demand growth | F32: New line on new route - single circuit | G32: Demand growth | H32: Weather | I32: Animal | J32: Animal impact | K32: Animal | L32: Animal impact | N32: Cast Iron
C33: Zone substation | D33: Substation upgrade - capacity | E33: Voltage issues | F33: New line on new route - dual circuit | G33: Voltage issues | H33: Equipment failure | I33: Asset failure | J33: Animal nesting/burrowing, etc and other | L33: Animal nesting/burrowing, etc and other | N33: PVC
C34: Switching station | D34: Substation upgrade - voltage | E34: Reactive power issue | F34: New line on new route - other | G34: Reactive power issue | H34: Operational error | I34: Other | J34: Other | L34: Other | N34: Polyamide
C35: Other | D35: Other | E35: Fault level issues | F35: Line rebuild over existing route - single circuit | G35: Fault level issues | H35: Vegetation | I35: Overloads | J35: LV | K35: Asset failure | L35: LV | N35: High density polyethylene (80)
E36: Safety | F36: Line rebuild over existing route - dual circuit | G36: Net market benefit | H36: Animals | I36: Planned | J36: Distribution substation | L36: Distribution substation | N36: High density polyethylene (100)
E37: Environment | F37: Reconductor - Single circuit | G37: Safety | H37: Third party impacts | I37: Network business | J37: HV | L37: HV | N37: High density polyethylene (250)
E38: Other | F38: Reconductor - Dual circuit | G38: Environment | H38: Transmission failure | I38: Third party | J38: Zone substation | L38: Zone substation | N38: High density polyethylene (575)
F39: Reconductor - Other | G39: Other | H39: Load shedding | I39: Unknown | J39: Subtransmission | L39: Subtransmission | N39: Medium density polyethylene
F40: Line upgrade - raising/retensoring | H40: Inter-distributor connection failure | I40: Vegetation | J40: insert description of 'other' | K40: Other | L40: insert description of 'other' | N40: Unprotected steel
F41: Line upgrade - voltage upgrade | H41: Other | I41: Weather | J41: Network error | K41: Overloads | N41: Protected steel
F42: Line upgrade - capacity | I42: 2 - STPIS Exclusion (3.3)(a) | J42: Switching and protection error | K42: Planned | N42: Other
F43: String spare circuit | I43: 3 - STPIS Exclusion (3.3)(a) | J43: Fire | K43: Network business | L43: Network error
F44: Other | I44: 4 - STPIS Exclusion (3.3)(a) | J44: Other | L44: Switching and protection error
I45: 5 - STPIS Exclusion (3.3)(a) | J45: Dig-in | K45: Third party | L45: Fire
I46: 6 - STPIS Exclusion (3.3)(a) | J46: Unauthorised access | L46: Other
I47: 7 - STPIS Exclusion (3.3)(a) | J47: Vehicle impact | L47: Dig-in
J48: Unknown | L48: Unauthorised access
J49: Blow-in/Fall-in - NSP responsibility | L49: Vehicle impact
J50: Grow-in - NSP responsibility | K50: Unknown | L50: Unknown
J51: Blow-in/Fall-in - Other responsible party | K51: Vegetation | L51: Blow-in/Fall-in - NSP responsibility
J52: Grow-in - Other responsible party | L52: Grow-in - NSP responsibility
L53: Blow-in/Fall-in - Other responsible party
L54: Grow-in - Other responsible party
K55: Weather
K56: 2 - STPIS Exclusion (3.3)(a)
K57: 3 - STPIS Exclusion (3.3)(a)
K58: 4 - STPIS Exclusion (3.3)(a)
K59: 5 - STPIS Exclusion (3.3)(a)
K60: 6 - STPIS Exclusion (3.3)(a)
K61: 7 - STPIS Exclusion (3.3)(a)
B64: CA & RESET RINS TNSP | C64: dms_TNSP_0203_SubstationType | D64: dms_TNSP_020301_ProjectType | E64: dms_TNSP_020301_ProjectTrigger | F64: dms_TNSP_020302_ProjectType | G64: dms_TNSP_0203_ProjectTrigger
C65: Terminal station | D65: New substation establishment | E65: Demand growth | F65: New line on new route - single circuit | G65: Demand growth
C66: Switching station | D66: Capacity upgrade | E66: Voltage issues | F66: New line on new route - dual circuit | G66: Voltage issues
C67: Transmission substation | D67: Voltage upgrade | E67: Reactive power issue | F67: New line on new route - other | G67: Reactive power issue
C68: Other | D68: Other | E68: Fault level issues | F68: Line rebuild over existing route - single circuit | G68: Fault level issues
E69: Net market benefit | F69: Line rebuild over existing route - dual circuit | G69: Net market benefit
E70: Safety | F70: Reconductor - Single circuit | G70: Safety
E71: Environment | F71: Reconductor - Dual circuit | G71: Environment
E72: Other | F72: Reconductor - Other | G72: Other
F73: Line upgrade - raising/retensoring
F74: Line upgrade - voltage upgrade
F75: Line upgrade - capacity
F76: String spare circuit
F77: Other
B81: NAMED RANGES USED IN ETL PROCESS
M82: GAS ARR & RESET
B83: CA & RESET RINS DNSP ONLY | C83: dms_020303_01_UOM | D83: dms_020501_01_UOM | E83: dms_020501_02_UOM | F83: dms_020501_03_UOM | G83: dms_020501_04_UOM | H83: dms_020701_01_UOM | I83: dms_020701_02_UOM | J83: dms_020701_01_Rows | K83: dms_040102_01_UOM | L83: dms_040102_04_UOM | M83: dms_S140101_UOM | N83: dms_S140201_UOM | O83: dms_E050201_UOM | P83: dms_E050202_UOM
C84: Circuit line length in km | D84: 0's | E84: 0's | F84: 0's | G84: 0's | H84: km | I84: km | J84: Route line length within zone | K84: 0's | L84: days | M84: number | N84: number per km | O84: per metre per connection | P84: metres per connection
C85: Circuit line length in km | D85: 0's | E85: 0's | F85: 0's | G85: 0's | H85: 0's | I85: 0's | J85: Number of maintenance spans | K85: 0's | L85: 0's | M85: number | N85: number | O85: per service per connection | P85: number per connection
C86: Circuit line length in km | D86: MVA added | E86: MVA added | F86: MVA added | G86: MVA added | H86: km | I86: km | J86: Total length of maintenance spans | K86: 0's | L86: $0s | M86: number | N86: number | O86: number per connection | P86: number per connection
C87: Circuit line length in km | D87: 0's | E87: 0's | F87: 0's | G87: 0's | H87: km | I87: km | J87: Length of vegetation corridors | K87: $0s | L87: 0's | M87: km
C88: Number | D88: total spend $0s | E88: total spend $0s | F88: total spend $0s | G88: total spend $0s | H88: 0's | I88: 0's | J88: Average number of trees per maintenance span
C89: Number | D89: net circuit km added | E89: net circuit km added | F89: net circuit km added | G89: net circuit km added | H89: years | I89: years | J89: Average frequency of cutting cycle
C90: Number | D90: total spend $0s | E90: total spend $0s | F90: total spend $0s | G90: total spend $0s
D91: net circuit km added | E91: net circuit km added | F91: net circuit km added | G91: net circuit km added
D92: total spend $0s | E92: total spend $0s | F92: total spend $0s | G92: total spend $0s
D93: 0's | F93: $0s
D94: 0's
D95: 0's
D96: $0s
B99: CA & RESET RINS TNSP ONLY | C99: dms_020701_01_UOM
C100: km
C101: 0's
C102: km
C103: 0's
C104: km
C105: metres
C106: years
B109: CA & RESET RINS DNSP & TNSP | C109: dms_020603_01_UOM
C110: 0's
C111: 0's
C112: 0's
C113: 0's
C114: (per cent)
B117: EB & RESET RINS DNSP ONLY | C117: dms_030601_01_UOM | D117: dms_030601_02_UOM | E117: dms_030701_01_UOM | F117: dms_030702_01_UOM | G117: dms_030703_01_UOM
C118: minutes/customer | D118: minutes/customer | E118: Customer / km | F118: % | G118: km
C119: minutes/customer | D119: minutes/customer | E119: MWh/customer | F119: Number of spans
C120: interruptions/customer | D120: interruptions/customer | E120: kVA / customer | F120: Number of spans
C121: interruptions/customer | D121: interruptions/customer | F121: Number of spans
F122: Number of spans
F123: Years
F124: Years
F125: Trees
F126: Trees
F127: Defects
F128: Defects
F129: Spans
F130: km
F131: Spans
C133: WHEN INSERTING COVER SHEET INTO A TNSP FILE - APPLY THESE NAMED RANGES
B134: EB & RESET RINS TNSP ONLY | C134: dms_030601_01_UOM | E134: dms_030701_01_UOM | F134: dms_030702_01_UOM
C135: % | E135: Number of spans | F135: km
C136: number | E136: Years | F136: %
C137: number | E137: Trees | F137: km
C138: % | E138: Defects | F138: number
C139: number | E139: Number of spans
C140: number | E140: km
C141: % | E141: km
C142: number | E142: Number of spans
C143: number
C144: %
C145: number
C146: %
C147: number
C148: %
C149: number
B151: EB & RESET RINS DNSP & TNSP | C151: dms_EB_RAB_PIT
C152: Beginning of year
C153: End of year
C154: End of year
C155: End of year
C156: End of year
C157: End of year
B159: ARR DNSP ONLY | C159: dms_030605_UOM | D159: dms_03060703_UOM | E159: dms_E020202_UOM | F159: Spare
C160: number | D160: number | E160: Length of mains replaced
C161: number | D161: number | E161: Number of services replaced
C162: number | D162: number
C163: number | D163: number
C164: number | D164: (per cent)
C165: number
C166: number
C167: number
C168: number
C169: number
C170: number
C171: number
C172: (per cent)
C173: (per cent)
B175: RFM | C175: dms_Beg | D175: dms_Mid | E175: dms_End
C176: Beginning of year | D176: Mid year | E176: End of Year
B178: PTRM | C178: dms_PTRM_RAB_PIT | D178: dms_PTRM_TAB_PIT | E178: DMS_Xfactor
C179: Beginning of year | D179: Beginning of year | E179: x factors
C180: End of year | D180: End of year
C181: End of year | D181: End of year
C182: End of year | D182: End of year
C183: End of year
B186: STPIS & MIC NAMED RANGES
B188: These "row descriptions" are the column headings in the various templates but become row descriptions in the ETL process
B190: Table 6.3 sustained interruptions - row descriptions | C190: dms_060301_CustNo_Affected_Row | D190: dms_060301_Avg_Duration_Sustained_Int_Row | E190: dms_060301_Effect_unplanned_SAIDI_Row | F190: dms_060301_Effect_unplanned_SAIFI_Row
C191: Number of customers affected by the interruption | D191: Average duration of sustained customer interruption | E191: Effect on unplanned SAIDI | F191: Effect on unplanned SAIFI
B194: Table 6.1 telephone answering - row descriptions and start date | C194: dms_060101_Rows | D194: dms_060102_Rows | E194: dms_060101_StartDateTxt
C195: Total number of calls (after removing excluded events) | D195: Number of calls answered within 30 seconds (after excluding excluded events) | E195: =dms_060701_StartDateTxt -> 1-Jul-2015
B198: Table 6.8.1 - row descriptions | C198: dms_060801_01_Rows | D198: dms_060801_02_Rows | E198: dms_060801_03_Rows | F198: dms_060801_04_Rows
C199: Number of interruptions | D199: Duration of interruptions | E199: Total unplanned minutes off supply | F199: Effect on unplanned MAIFI
B202: Table 7.9.4 - market impact component - row descriptions | C202: dms_070904_01_Rows | D202: without exclusions | E202: with exclusions
B205: These headings (Lists) are determined from the INDEX/MATCH function on the NSP selected on the Business & other details sheet
B207: Table 6.7.1 - daily performance data - unplanned - MAIFI -- row descriptions and header named range values | C207: dms_060701_Feeder_Header_Lvl4 | D207: =INDEX(dms_FeederName_1,MATCH(dms_TradingName,dms_TradingName_List)) -> CBD | E207: =INDEX(dms_FeederName_1,MATCH(dms_TradingName,dms_TradingName_List)) -> CBD | F207: =INDEX(dms_FeederName_2,MATCH(dms_TradingName,dms_TradingName_List)) -> Urban | G207: =INDEX(dms_FeederName_2,MATCH(dms_TradingName,dms_TradingName_List)) -> Urban | H207: =INDEX(dms_FeederName_3,MATCH(dms_TradingName,dms_TradingName_List)) -> Short rural | I207: =INDEX(dms_FeederName_3,MATCH(dms_TradingName,dms_TradingName_List)) -> Short rural | J207: =INDEX(dms_FeederName_4,MATCH(dms_TradingName,dms_TradingName_List)) -> Long rural | K207: =INDEX(dms_FeederName_4,MATCH(dms_TradingName,dms_TradingName_List)) -> Long rural | L207: =IF((INDEX(dms_FeederName_5,MATCH(dms_TradingName,dms_TradingName_List))=0),"Network",(INDEX(dms_FeederName_5,MATCH(dms_TradingName,dms_TradingName_List)))) -> Network | M207: =IF((INDEX(dms_FeederName_5,MATCH(dms_TradingName,dms_TradingName_List))=0),"Network",(INDEX(dms_FeederName_5,MATCH(dms_TradingName,dms_TradingName_List)))) -> Network | N207: Network | O207: Network
C209: dms_060701_Rows | D209: All events | E209: After removing excluded events | F209: All events | G209: After removing excluded events | H209: All events | I209: After removing excluded events | J209: All events | K209: After removing excluded events | L209: All events | M209: After removing excluded events | N209: All events | O209: After removing excluded events
D210: the number of column headings changes from 10 to 12 depending on the number of feeder categories for the NSP
C212: dms_0603_FeederList | D212: =INDEX(dms_FeederName_1,MATCH(dms_TradingName,dms_TradingName_List)) -> CBD | E212: =INDEX(dms_FeederName_2,MATCH(dms_TradingName,dms_TradingName_List)) -> Urban | F212: =INDEX(dms_FeederName_3,MATCH(dms_TradingName,dms_TradingName_List)) -> Short rural | G212: =INDEX(dms_FeederName_4,MATCH(dms_TradingName,dms_TradingName_List)) -> Long rural
B215: Use these to add to specific worksheets in existing files | C215: Use these to add to specific worksheets in existing files
B218: ARRs 6.7 STPIS daily performance | C218: dms_060101_Values | D218: dms_060102_Values | E218: dms_060701_Values
C219: dms_LeapYear
B222: ARR's 6.8 STPIS exclusions | C222: dms_060801_Event_Date | D222: dms_060801_OutageID | E222: dms_060801_FeederID | F222: dms_060801_FeederClass | G222: dms_060801_CauseID | H222: dms_060801_01_Values | I222: dms_060801_02_Values | J222: dms_060801_03_Values | K222: dms_060801_Excl_Cat | L222: dms_060801_04_Values
C223: dms_060801_StartCell
B226: CA 6.3 sustained interruptions | C226: dms_060301_Event_Date | D226: dms_060301_Event_Time | E226: dms_060301_AssetID | F226: dms_060301_FeederClass | G226: dms_060301_Reason | H226: dms_060301_DetailedReason | I226: dms_060301_CustNo_Affected_Values | J226: dms_060301_Avg_Duration_Sustained_Int_Values | K226: dms_060301_Effect_unplanned_SAIDI_Values | L226: dms_060301_Effect_unplanned_SAIFI_Values | M226: dms_060301_MED

Sheet AER lookups (hidden)
B1: AER LOOKUP TABLES
B3: Data in these columns used for data validation and database purposes.
B4: Date last modified: | C4: 2017-01-16 | D4: added (Albury and Victora) for AGN
C5: 2016-10-17 | D5: updated TransGrid's correct legal name, corrected TasNetworks (T) to June financial year
C6: 2017-02-01 | D6: inserted Power and Water, added NRs (dms_FeederCat_1 and dms_FeederCat_2)
C7: 2017-03-03 | D7: inserted AEMO as a business
C8: 2018-03-28 | D8: major changes to accommodate STPIS
C9: Template Version | D9: 5
Z11: FOR ELECTRICITY BUSINESSES ONLY
Z12: Feeder Types | AD12: TasNetworks (D) | AE12: Feeder Names
Z14: CBD | AA14: Urban | AB14: Short rural | AC14: long rural | AD14: EXTRA
B15: dms_TradingName_List | C15: dms_TradingNameFull_List | D15: dms_ABN_List | E15: dms_JurisdictionList | F15: dms_Sector_List | G15: dms_Segment_List | H15: dms_FormControl_List | I15: dms_RPT_List | J15: dms_RPTMonth_List | K15: dms_CRCPlength_List | L15: dms_FRCPlength_List | M15: dms_PRCPlength_List | N15: dms_663_List | O15: dms_DeterminationRef_List | P15: dms_Addr1_List | Q15: dms_Addr2_List | R15: dms_Suburb_List | S15: dms_State_List | T15: dms_PostCode_List | U15: dms_PAddr1_List | V15: dms_PAddr2_List | W15: dms_PSuburb_List | X15: dms_PState_List | Y15: dms_PPostCode_List | Z15: dms_CBD_flag | AA15: dms_Urban_flag | AB15: dms_ShortRural_flag | AC15: dms_LongRural_flag | AD15: dms_FeederType_5_flag | AE15: dms_FeederName_1 | AF15: dms_FeederName_2 | AG15: dms_FeederName_3 | AH15: dms_FeederName_4 | AI15: dms_FeederName_5 | AJ15: dms_Public_Lighting_List | AK15: Name
B16: AGN (Albury and Victoria) | C16: Australian Gas Networks Limited (reporting data for Albury and Victoria) | D16: 19078551685 | E16: Vic | F16: Gas | G16: Distribution | H16: Tariff cap | I16: Financial | J16: June | K16: 5 | L16: 5 | M16: 5 | N16: x | P16: Level 6 | Q16: 400 King William Street | R16: ADELAIDE | S16: SA | T16: 5000 | U16: PO Box 6468 | V16: Halifax Street | W16: ADELAIDE | X16: SA | Y16: 5000 | Z16: NO | AA16: NO | AB16: NO | AC16: NO | AD16: NO | AE16: CBD | AF16: Urban | AG16: Short rural | AH16: Long rural | AJ16: NO | AK16: =B16 -> AGN (Albury and Victoria)
B17: AGN (Albury) | C17: Australian Gas Networks Limited (reporting data for Albury) | D17: 19078551685 | E17: Vic | F17: Gas | G17: Distribution | H17: Tariff cap | I17: Financial | J17: June | K17: 5 | L17: 5 | M17: 5 | N17: x | P17: Level 6 | Q17: 400 King William Street | R17: ADELAIDE | S17: SA | T17: 5000 | U17: PO Box 6468 | V17: Halifax Street | W17: ADELAIDE | X17: SA | Y17: 5000 | Z17: NO | AA17: NO | AB17: NO | AC17: NO | AD17: NO | AE17: CBD | AF17: Urban | AG17: Short rural | AH17: Long rural | AJ17: NO | AK17: AGN (Albury)
B18: AGN (SA) | C18: Australian Gas Networks Limited (reporting data for SA) | D18: 19078551685 | E18: SA | F18: Gas | G18: Distribution | H18: Tariff cap | I18: Financial | J18: June | K18: 5 | L18: 5 | M18: 5 | N18: 5 | O18: distribution determination | P18: Level 6 | Q18: 400 King William Street | R18: ADELAIDE | S18: SA | T18: 5000 | U18: PO Box 6468 | V18: Halifax Street | W18: ADELAIDE | X18: SA | Y18: 5000 | Z18: NO | AA18: NO | AB18: NO | AC18: NO | AD18: NO | AE18: CBD | AF18: Urban | AG18: Short rural | AH18: Long rural | AJ18: NO | AK18: AGN (SA)
B19: AGN (Victoria) | C19: Australian Gas Networks Limited (reporting data for Victoria) | D19: 19078551685 | E19: Vic | F19: Gas | G19: Distribution | H19: Tariff cap | I19: Financial | J19: June | K19: 5 | L19: 5 | M19: 5 | N19: x | P19: Level 6 | Q19: 400 King William Street | R19: ADELAIDE | S19: SA | T19: 5000 | U19: PO Box 6468 | V19: Halifax Street | W19: ADELAIDE | X19: SA | Y19: 5000 | Z19: NO | AA19: NO | AB19: NO | AC19: NO | AD19: NO | AE19: CBD | AF19: Urban | AG19: Short rural | AH19: Long rural | AJ19: NO | AK19: AGN (Victoria)
B20: AusNet (Gas) | C20: AusNet Gas Services | D20: 086015036 | E20: Vic | F20: Gas | G20: Distribution | H20: Tariff cap | I20: Financial | J20: June | K20: 5 | L20: 5 | M20: 5 | N20: - | O20: - | P20: Level 19, HSBC Building | Q20: 580 George Street | R20: SYDNEY | S20: NSW | T20: 2000 | U20: PO Box R41 | W20: ROYAL EXCHANGE | X20: NSW | Y20: 1225 | Z20: NO | AA20: NO | AB20: NO | AC20: NO | AD20: NO | AE20: CBD | AF20: Urban | AG20: Short rural | AH20: Long rural | AJ20: NO | AK20: AusNet (Gas)
B21: Australian Distribution Co. (Gas) | C21: Australian Gas Distribution Co. | D21: 11222333444 | E21: NSW | F21: Gas | G21: Distribution | H21: Tariff cap | I21: Financial | J21: June | K21: 5 | L21: 5 | M21: 5 | N21: - | O21: - | P21: 123 Straight Street | R21: SYDNEY | S21: NSW | T21: 2000 | U21: PO Box 123 | W21: SYDNEY | X21: NSW | Y21: 2000 | Z21: NO | AA21: NO | AB21: NO | AC21: NO | AD21: NO | AE21: CBD | AF21: Urban | AG21: Short rural | AH21: Long rural | AJ21: NO | AK21: Australian Distribution Co. (Gas)
B22: Evoenergy Gas | C22: Icon Distribution Investments Limited (ABN 83 073 025 224) and Jemena Networks (ACT) Pty Ltd (ABN 24 008 552 663) | D22: 76670568688 | E22: ACT | F22: Gas | G22: Distribution | H22: Tariff cap | I22: Financial | J22: June | K22: 5 | L22: 5 | M22: 5 | N22: x | P22: 40 Bunda Street | R22: CANBERRA | S22: ACT | T22: 2600 | U22: GPO BOX 366 | W22: CANBERRA | X22: ACT | Y22: 2601 | Z22: NO | AA22: NO | AB22: NO | AC22: NO | AD22: NO | AE22: CBD | AF22: Urban | AG22: Short rural | AH22: Long rural | AJ22: NO | AK22: Evoenergy Gas
B23: JGN | C23: Jemena Gas Networks (NSW) Ltd | D23: 003 004 322 | E23: NSW | F23: Gas | G23: Distribution | H23: Tariff cap | I23: Financial | J23: June | K23: 5 | L23: 5 | M23: 5 | Z23: NO | AA23: NO | AB23: NO | AC23: NO | AD23: NO | AE23: CBD | AF23: Urban | AG23: Short rural | AH23: Long rural | AJ23: NO | AK23: JGN
B24: Multinet Gas | C24: Multinet Gas (DB No.1) Pty Ltd (ACN 086 026 986), Multinet Gas (DB No.2) Pty Ltd (ACN 086 230 122) | D24: 086026986 | E24: Vic | F24: Gas | G24: Distribution | H24: Tariff cap | I24: Financial | J24: June | K24: 5 | L24: 5 | M24: 5 | N24: x | P24: 43-45 Centreway | R24: MT WAVERLEY | S24: Vic | T24: 3149 | Z24: NO | AA24: NO | AB24: NO | AC24: NO | AD24: NO | AE24: CBD | AF24: Urban | AG24: Short rural | AH24: Long rural | AJ24: NO | AK24: Multinet Gas
B29: The Reg Year Ending (dms_RYE) must be set to the last year of the regulatory period. For forecast data is is usually (FRCP_y5) for actual it is a single year (CRY). For historical actual data the RYE will need to be set manually in the business details sheet by setting the dms_Multiyear_flag to 1 and putting the correct value in 'dms_Specified_FinalYear. See cells C67:C68
B30: dms_Model_List | C30: dms_Model_Name_Format1 | D30: dms_Worksheet_List | E30: dms_Model_Span_List
B31: ARR | C31: Annual Reporting | D31: =IF(dms_MultiYear_ResponseFlag="yes","NEW HISTORICAL ANNUAL REPORTING","ANNUAL REPORTING") -> ANNUAL REPORTING | E31: 1
B32: CA | C32: Category Analysis | D32: =IF(dms_MultiYear_ResponseFlag="yes","NEW HISTORICAL CATEGORY ANALYSIS","CATEGORY ANALYSIS") -> CATEGORY ANALYSIS | E32: 1
B33: CESS | C33: Capitlal Expenditure | D33: CAPITLAL EXPENDITURE SHARING SCHEMING | E33: 5
B34: CPI | C34: CPI | D34: CPI | E34: 5
B35: EB | C35: Economic Benchmarking | D35: =IF(dms_MultiYear_ResponseFlag="yes","NEW HISTORICAL ECONOMIC BENCHMARKING","ECONOMIC BENCHMARKING") -> ECONOMIC BENCHMARKING | E35: 1
B36: Pricing | C36: Pricing Proposal | D36: PRICING PROPOSAL | E36: 5
B37: PTRM | C37: Post Tax Revenue Model | D37: POST TAX REVENUE MODEL | E37: 5
B38: Reset | C38: Regulatory Reporting (Reset) | D38: REGULATORY REPORTING STATEMENT | E38: 5
B39: RFM | C39: Roll Forward Model | D39: ROLL FORWARD MODEL | E39: 5
B40: WACC | C40: Weighted Average Cost of Capital | D40: WEIGHTED AVERAGE COST OF CAPITAL | E40: 1
B44: Financial | C44: Calendar | E44: PREVIOUS | G44: CURRENT | I44: FORTHCOMING
B45: 1987-88 | C45: 1988 | D45: PRCP_y1 | E45: =INDEX(INDIRECT(dms_RPT),dms_PRCP_start_row) -> 2012-13 | F45: CRCP_y1 | G45: =INDEX(INDIRECT(dms_RPT),dms_CRCP_start_row) -> 2017-18 | H45: =FRCP_y1 -> 2022-23 | I45: =INDEX(INDIRECT(dms_RPT),dms_FRCP_start_row) -> 2022-23
B46: 1988-89 | C46: 1989 | D46: PRCP_y2 | E46: =INDEX(INDIRECT(dms_RPT),dms_PRCP_start_row+1) -> 2013-14 | F46: CRCP_y2 | G46: =INDEX(INDIRECT(dms_RPT),dms_CRCP_start_row+1) -> 2018-19 | H46: FRCP_y2 | I46: =INDEX(INDIRECT(dms_RPT),dms_FRCP_start_row+1) -> 2023-24
B47: 1989-90 | C47: 1990 | D47: PRCP_y3 | E47: =INDEX(INDIRECT(dms_RPT),dms_PRCP_start_row+2) -> 2014-15 | F47: CRCP_y3 | G47: =INDEX(INDIRECT(dms_RPT),dms_CRCP_start_row+2) -> 2019-20 | H47: FRCP_y3 | I47: =INDEX(INDIRECT(dms_RPT),dms_FRCP_start_row+2) -> 2024-25
B48: 1990-91 | C48: 1991 | D48: PRCP_y4 | E48: =INDEX(INDIRECT(dms_RPT),dms_PRCP_start_row+3) -> 2015-16 | F48: CRCP_y4 | G48: =INDEX(INDIRECT(dms_RPT),dms_CRCP_start_row+3) -> 2020-21 | H48: FRCP_y4 | I48: =INDEX(INDIRECT(dms_RPT),dms_FRCP_start_row+3) -> 2025-26
B49: 1991-92 | C49: 1992 | D49: PRCP_y5 | E49: =INDEX(INDIRECT(dms_RPT),dms_PRCP_start_row+4) -> 2016-17 | F49: CRCP_y5 | G49: =INDEX(INDIRECT(dms_RPT),dms_CRCP_start_row+4) -> 2021-22 | H49: FRCP_y5 | I49: =INDEX(INDIRECT(dms_RPT),dms_FRCP_start_row+4) -> 2026-27
B50: 1992-93 | C50: 1993 | D50: PRCP_y6 | E50: =INDEX(INDIRECT(dms_RPT),dms_PRCP_start_row+5) -> 2017-18 | F50: CRCP_y6 | G50: =INDEX(INDIRECT(dms_RPT),dms_CRCP_start_row+5) -> 2022-23 | H50: FRCP_y6 | I50: =INDEX(INDIRECT(dms_RPT),dms_FRCP_start_row+5) -> 2027-28
B51: 1993-94 | C51: 1994 | D51: PRCP_y7 | E51: =INDEX(INDIRECT(dms_RPT),dms_PRCP_start_row+6) -> 2018-19 | F51: CRCP_y7 | G51: =INDEX(INDIRECT(dms_RPT),dms_CRCP_start_row+6) -> 2023-24 | H51: FRCP_y7 | I51: =INDEX(INDIRECT(dms_RPT),dms_FRCP_start_row+6) -> 2028-29
B52: 1994-95 | C52: 1995 | D52: PRCP_y8 | E52: =INDEX(INDIRECT(dms_RPT),dms_PRCP_start_row+7) -> 2019-20 | F52: CRCP_y8 | G52: =INDEX(INDIRECT(dms_RPT),dms_CRCP_start_row+7) -> 2024-25 | H52: FRCP_y8 | I52: =INDEX(INDIRECT(dms_RPT),dms_FRCP_start_row+7) -> 2029-30
B53: 1995-96 | C53: 1996 | D53: PRCP_y9 | E53: =INDEX(INDIRECT(dms_RPT),dms_PRCP_start_row+8) -> 2020-21 | F53: CRCP_y9 | G53: =INDEX(INDIRECT(dms_RPT),dms_CRCP_start_row+8) -> 2025-26 | H53: FRCP_y9 | I53: =INDEX(INDIRECT(dms_RPT),dms_FRCP_start_row+8) -> 2030-31
B54: 1996-97 | C54: 1997 | D54: PRCP_y10 | E54: =INDEX(INDIRECT(dms_RPT),dms_PRCP_start_row+9) -> 2021-22 | F54: CRCP_y10 | G54: =INDEX(INDIRECT(dms_RPT),dms_CRCP_start_row+9) -> 2026-27 | H54: FRCP_y10 | I54: =INDEX(INDIRECT(dms_RPT),dms_FRCP_start_row+9) -> 2031-32
B55: 1997-98 | C55: 1998 | D55: PRCP_y11 | E55: =INDEX(INDIRECT(dms_RPT),dms_PRCP_start_row+10) -> 2022-23 | F55: CRCP_y11 | G55: =INDEX(INDIRECT(dms_RPT),dms_CRCP_start_row+10) -> 2027-28 | H55: FRCP_y11 | I55: =INDEX(INDIRECT(dms_RPT),dms_FRCP_start_row+10) -> 2032-33
B56: 1998-99 | C56: 1999 | D56: PRCP_y12 | E56: =INDEX(INDIRECT(dms_RPT),dms_PRCP_start_row+11) -> 2023-24 | F56: CRCP_y12 | G56: =INDEX(INDIRECT(dms_RPT),dms_CRCP_start_row+11) -> 2028-29 | H56: FRCP_y12 | I56: =INDEX(INDIRECT(dms_RPT),dms_FRCP_start_row+11) -> 2033-34
B57: 1999-00 | C57: 2000 | D57: PRCP_y13 | E57: =INDEX(INDIRECT(dms_RPT),dms_PRCP_start_row+12) -> 2024-25 | F57: CRCP_y13 | G57: =INDEX(INDIRECT(dms_RPT),dms_CRCP_start_row+12) -> 2029-30 | H57: FRCP_y13 | I57: =INDEX(INDIRECT(dms_RPT),dms_FRCP_start_row+12) -> 2034-35
B58: 2000-01 | C58: 2001 | D58: PRCP_y14 | E58: =INDEX(INDIRECT(dms_RPT),dms_PRCP_start_row+13) -> 2025-26 | F58: CRCP_y14 | G58: =INDEX(INDIRECT(dms_RPT),dms_CRCP_start_row+13) -> 2030-31 | H58: FRCP_y14 | I58: =INDEX(INDIRECT(dms_RPT),dms_FRCP_start_row+13) -> 2035-36
B59: 2001-02 | C59: 2002 | D59: PRCP_y15 | E59: =INDEX(INDIRECT(dms_RPT),dms_PRCP_start_row+14) -> 2026-27 | F59: CRCP_y15 | G59: =INDEX(INDIRECT(dms_RPT),dms_CRCP_start_row+14) -> 2031-32 | H59: FRCP_y15 | I59: =INDEX(INDIRECT(dms_RPT),dms_FRCP_start_row+14) -> 2036-37
B60: 2002-03 | C60: 2003 | D60: PRCP_y16 | E60: =INDEX(INDIRECT(dms_RPT),dms_PRCP_start_row+15) -> 2027-28 | F60: CRCP_y16 | G60: =INDEX(INDIRECT(dms_RPT),dms_CRCP_start_row+15) -> 2032-33 | H60: FRCP_y16 | I60: =INDEX(INDIRECT(dms_RPT),dms_FRCP_start_row+15) -> 
B61: 2003-04 | C61: 2004
B62: 2004-05 | C62: 2005
B63: 2005-06 | C63: 2006 | E63: CRY - FRY
B64: 2006-07 | C64: 2007 | D64: dms_y1 | E64: =IFERROR(INDEX(INDIRECT(dms_RPT),dms_CRY_start_row),0) -> 2020-21
B65: 2007-08 | C65: 2008 | D65: dms_y2 | E65: =IFERROR(INDEX(INDIRECT(dms_RPT),dms_CRY_start_row+1),0) -> 2021-22
B66: 2008-09 | C66: 2009 | D66: dms_y3 | E66: =IFERROR(INDEX(INDIRECT(dms_RPT),dms_CRY_start_row+2),0) -> 2022-23
B67: 2009-10 | C67: 2010 | D67: dms_y4 | E67: =IFERROR(INDEX(INDIRECT(dms_RPT),dms_CRY_start_row+3),0) -> 2023-24
B68: 2010-11 | C68: 2011 | D68: dms_y5 | E68: =IFERROR(INDEX(INDIRECT(dms_RPT),dms_CRY_start_row+4),0) -> 2024-25
B69: 2011-12 | C69: 2012 | D69: dms_y6 | E69: =IFERROR(INDEX(INDIRECT(dms_RPT),dms_CRY_start_row+5),0) -> 2025-26
B70: 2012-13 | C70: 2013 | D70: dms_y7 | E70: =IFERROR(INDEX(INDIRECT(dms_RPT),dms_CRY_start_row+6),0) -> 2026-27
B71: 2013-14 | C71: 2014 | D71: dms_y8 | E71: =IFERROR(INDEX(INDIRECT(dms_RPT),dms_CRY_start_row+7),0) -> 2027-28
B72: 2014-15 | C72: 2015 | D72: dms_y9 | E72: =IFERROR(INDEX(INDIRECT(dms_RPT),dms_CRY_start_row+8),0) -> 2028-29
B73: 2015-16 | C73: 2016 | D73: dms_y10 | E73: =IFERROR(INDEX(INDIRECT(dms_RPT),dms_CRY_start_row+9),0) -> 2029-30
B74: 2016-17 | C74: 2017 | D74: dms_y11 | E74: =IFERROR(INDEX(INDIRECT(dms_RPT),dms_CRY_start_row+10),0) -> 2030-31
B75: 2017-18 | C75: 2018 | D75: dms_y12 | E75: =IFERROR(INDEX(INDIRECT(dms_RPT),dms_CRY_start_row+11),0) -> 2031-32
B76: 2018-19 | C76: 2019 | D76: dms_y13 | E76: =IFERROR(INDEX(INDIRECT(dms_RPT),dms_CRY_start_row+12),0) -> 2032-33
B77: 2019-20 | C77: 2020 | D77: dms_y14 | E77: =IFERROR(INDEX(INDIRECT(dms_RPT),dms_CRY_start_row+13),0) -> 2033-34
B78: 2020-21 | C78: 2021 | D78: dms_y15 | E78: =IFERROR(INDEX(INDIRECT(dms_RPT),dms_CRY_start_row+14),0) -> 2034-35
B79: 2021-22 | C79: 2022 | D79: dms_y16 | E79: =IFERROR(INDEX(INDIRECT(dms_RPT),dms_CRY_start_row+15),0) -> 2035-36
B80: 2022-23 | C80: 2023
B81: 2023-24 | C81: 2024
B82: 2024-25 | C82: 2025
B83: 2025-26 | C83: 2026
B84: 2026-27 | C84: 2027
B85: 2027-28 | C85: 2028
B86: 2028-29 | C86: 2029
B87: 2029-30 | C87: 2030
B88: 2030-31 | C88: 2031
B89: 2031-32 | C89: 2032
B90: 2032-33 | C90: 2033
B91: 2033-34 | C91: 2034
B92: 2034-35 | C92: 2035
B93: 2035-36 | C93: 2036
B94: 2036-37 | C94: 2037

Sheet AER ETL (hidden)
B1: AER ETL INFORMATION
B3: USES NAMED RANGES FLAG | C3: yes | D3: dms_Defined_Names_Used
B5: IF THIS IS AN ABC RIN - make sure the the named range CRY is applied and the named range dms_dollar_nom_UOM is applied
B6: IF THIS IS A RESET RIN - make sure the named ranges CRY and dms_dollar_nom_UOM are NOT present in the workbook
B7: FOR ABC RINS THAT SPAN MULTIPLE YEARS - make sure MultiYear Flag is set and final year entered as required
B9: Full trading name | C9: =INDEX(dms_TradingNameFull_List,MATCH(dms_TradingName,dms_TradingName_List)) -> Australian Gas Distribution Co. | E9: dms_TradingNameFull
B10: Trading name | C10: =dms_TradingName -> Australian Distribution Co. (Gas)
A11: Selected here | B11: Model / RIN | C11: PTRM | D11: dms_Model
A12: Read from Business & other details | B12: Source | C12: =dms_Selected_Source -> Regulatory proposal | D12: dms_Source
B13: Data quality | C13: Consolidated | D13: For DB purposes this is always Consoldiated
B14: Data status | C14: Public | D14: For DB purposes this is always Public
B15: Amendment reason | C15: =dms_Amendment_Text -> . | F15: dms_AmendmentReason
B16: Submission date | C16: =dms_Typed_Submission_Date -> dd/mm/yy | D16: dms_SubmissionDate
A18: Redundant | B18: EBSS - First application of scheme in forthcoming period? | C18: No
A19: Pre-populated from lookup table | B19: Data ingestion data quality | C19: Consolidated | D19: dms_DataQuality | E19: Always Consolidated
B20: Sector | C20: =INDEX(dms_Sector_List,MATCH(dms_TradingName,dms_TradingName_List)) -> Gas | D20: dms_Sector | E20: =INDEX(dms_Sector_List,MATCH(dms_TradingName,dms_TradingName_List))
B21: Segment | C21: =INDEX(dms_Segment_List,MATCH(dms_TradingName,dms_TradingName_List)) -> Distribution | D21: dms_Segment | E21: =INDEX(dms_Segment_List,MATCH(dms_TradingName,dms_TradingName_List))
B22: Regulatory Year Ending | C22: =dms_RYE_result -> 2027 | D22: dms_RYE | E22: =IF(dms_MultiYear_Flag=1,LEFT(dms_Specified_FinalYear,2)&RIGHT(dms_Specified_FinalYear,2),INDEX(dms_RYE_Formula_Result,MATCH(dms_Model,dms_Model_List)))
B23: Reporting Period Type | C23: =INDEX(dms_RPT_List,MATCH(dms_TradingName,dms_TradingName_List)) -> Financial | D23: dms_RPT | E23: =INDEX(dms_RPT_List,MATCH(dms_TradingName,dms_TradingName_List))
B24: EB/CA Unit of Measure for Monetary Values | C24: $0s | D24: dms_dollar_nom_UOM | E24: If the cover sheet is attached to an ABC RIN apply the NAMED RANGE to the cell
B25: Security Classification | C25: Public | D25: dms_Classification | E25: Always Public
B26: Jurisdiction | C26: =INDEX(dms_JurisdictionList,MATCH(dms_TradingName,dms_TradingName_List)) -> NSW | D26: dms_Jurisdiction | E26: =INDEX(dms_JurisdictionList,MATCH(dms_TradingName,dms_TradingName_List))
A27: Relevant for PTRM, RFMs and Reset RINS | B27: $ REAL REFERENCES
B28: Does the named range CRY exist in this file? | C28: =IFERROR(CRY,"NO") -> NO
B29: CRY-1 (last full calendar year before CRY) | C29: =IFERROR(IF(dms_RPT="calendar",CRY-1,LEFT(CRY,4)),"CRY not present") -> CRY not present | D29: dms_Cal_Year_B4_CRY | E29: '=IF(dms_RPT="financial",VALUE(LEFT(dms_SingleYear_FinalYear_Result,4)),VALUE(LEFT(dms_SingleYear_FinalYear_Result,4)-1))
B30: Dollar $ real month | C30: =INDEX(dms_RPTMonth_List,MATCH(dms_TradingName,dms_TradingName_List)) -> June | D30: dms_RPTMonth | E30: =INDEX(dms_RPTMonth_List,MATCH(dms_TradingName,dms_TradingName_List))
B31: Dollar $ real (the last month before the FRCP_y1) | C31: =IF(dms_SingleYearModel="yes",CONCATENATE(dms_RPTMonth)&" "&VALUE((LEFT(dms_CRY_start_year,2)&RIGHT(dms_CRY_start_year,2))),CONCATENATE(dms_RPTMonth)&" "&dms_DollarReal_year) -> June 2022 | D31: dms_DollarReal | E31: =IF(SUM(dms_SingleYear_Model)>0,CONCATENATE(dms_RPTMonth)&" "&VALUE((LEFT(CRY,2))&RIGHT(CRY,2)),CONCATENATE(dms_RPTMonth)&" "&VALUE((LEFT(dms_RYE,2)&RIGHT(dms_RYE,2))))
B32: Dollar $ real previous year (PRCP_y5) | C32: =CONCATENATE(dms_RPTMonth)&" "&dms_Previous_DollarReal_year -> June 2017 | D32: dms_DollarReal_Prev | E32: =IF(SUM(dms_SingleYear_Model)>0,CONCATENATE(dms_RPTMonth)&" "&VALUE(((LEFT(CRY,2))&RIGHT(CRY,2))-1),CONCATENATE(dms_RPTMonth)&" "&VALUE(((LEFT(dms_CRCP_FirstYear_Result,2)&RIGHT(dms_CRCP_FirstYear_Result,2))))-1)
B33: PTRM/ RFMs
B34: Form of control | C34: =INDEX(dms_FormControl_List,MATCH(dms_TradingName,dms_TradingName_List)) -> Tariff cap | D34: dms_FormControl | E34: =INDEX(dms_FormControl_List,MATCH(dms_TradingName,dms_TradingName_List))
A35: All potential values for Regulatory Years or RYEs as calculated | B35: This block works out the various RYE's for ALL RIN types and MODELS
B36: dms_start_year | C36: =FRCP_y1 -> 2022-23 | D36: =FRCP_y1 | E36: FRCP_y1 from cover sheet
B37: dms_CRY_start_year | C37: =IFERROR(CRY,CRCP_y4) -> 2020-21 | D37: =IFERROR(CRY,CRCP_y4)
B38: dms_CRY_start_row | C38: =IFERROR(MATCH(dms_CRY_start_year,INDIRECT(dms_RPT),0),0) -> 34 | D38: =IFERROR(MATCH(dms_CRY_start_year,INDIRECT(dms_RPT),0),0)
B39: dms_FRCP_start_row | C39: =MATCH(dms_start_year,INDIRECT(dms_RPT),0) -> 36 | D39: =MATCH(dms_start_year,INDIRECT(dms_RPT),0) | E39: Uses FRCP_y1 as a start reference
B40: dms_CRCP_start_row | C40: =dms_FRCP_start_row-dms_CRCPlength_Num -> 31 | D40: =dms_FRCP_start_row-dms_CRCPlength_Num | E40: Uses the value in dms_CRCPlength_Num
B41: dms_PRCP_start_row | C41: =dms_FRCP_start_row-dms_CRCPlength_Num-dms_PRCPlength_Num -> 26 | D41: =dms_FRCP_start_row-dms_CRCPlength_Num-dms_PRCPlength_Num | E41: Uses the value in dms_CRCPlength_Num and dms_PRCPlength_Num
B42: dms_RYE_start_row | C42: =dms_FRCP_start_row+(dms_FRCPlength_Num-1) -> 40 | D42: =dms_FRCP_start_row+(dms_FRCPlength_Num-1) | E42: Uses the value in dms_FRCPlength_Num-1
B43: FRCP_start_year | C43: =INDEX(INDIRECT(dms_RPT),dms_FRCP_start_row) -> 2022-23 | D43: =INDEX(INDIRECT(dms_RPT),dms_FRCP_start_row) | E43: Converts the FRCP start row to display the year
B44: CRCP_start_year | C44: =INDEX(INDIRECT(dms_RPT),dms_CRCP_start_row) -> 2017-18 | D44: =INDEX(INDIRECT(dms_RPT),dms_CRCP_start_row) | E44: Converts the CRCP start row to display the year
B45: PRCP_start_year | C45: =INDEX(INDIRECT(dms_RPT),dms_PRCP_start_row) -> 2012-13 | D45: =INDEX(INDIRECT(dms_RPT),dms_PRCP_start_row) | E45: Converts the PRCP start row to display the year
B46: FRCP_final_year | C46: =INDEX(INDIRECT(dms_RPT),dms_FRCP_start_row+dms_FRCPlength_Num-1) -> 2026-27 | D46: =INDEX(INDIRECT(dms_RPT),dms_FRCP_start_row+dms_FRCPlength_Num-1) | E46: Finds the FRCP final year
B47: CRCP_final_year | C47: =INDEX(INDIRECT(dms_RPT),dms_CRCP_start_row+dms_CRCPlength_Num-1) -> 2021-22 | D47: =INDEX(INDIRECT(dms_RPT),dms_CRCP_start_row+dms_CRCPlength_Num-1) | E47: Finds the CRCP final year
B48: PRCP_final_year | C48: =INDEX(INDIRECT(dms_RPT),dms_PRCP_start_row+dms_FRCPlength_Num-1) -> 2016-17 | D48: =INDEX(INDIRECT(dms_RPT),dms_PRCP_start_row+dms_FRCPlength_Num-1) | E48: Finds the PRCP final year
B49: dms_Reset_final_year | C49: =INDEX(INDIRECT(dms_RPT),dms_RYE_start_row) -> 2026-27 | D49: =INDEX(INDIRECT(dms_RPT),dms_RYE_start_row) | E49: For Resets and PTRM/RFMs (same as FRCP_final_year)
B50: dms_SpecifiedYear_final_year | C50: =FRY ->  | D50: =FRY | E50: FRY from cover sheet
B51: dms_DollarReal_year | C51: =LEFT(CRCP_final_year,2)&RIGHT(CRCP_final_year,2) -> 2022 | D51: =LEFT(CRCP_final_year,2)&RIGHT(CRCP_final_year,2) | E51: Uses the value in CRCP_final_year
B52: dms_Previous_DollarReal_year | C52: =LEFT(PRCP_final_year,2)&RIGHT(PRCP_final_year,2) -> 2017 | D52: =LEFT(PRCP_final_year,2)&RIGHT(PRCP_final_year,2) | E52: Uses the value in PRCP_final_year
B53: dms_CRY_RYE | C53: =IFERROR(LEFT(CRY,2)&RIGHT(CRY,2),0) -> 0 | D53: =IFERROR(LEFT(CRY,2)&RIGHT(CRY,2),0) | E53: For ABC single year RINS
B54: dms_Reset_RYE | C54: =IF(dms_Model_Span>1,IF(dms_Model="RFM",(LEFT(dms_DollarReal_year,2)&RIGHT(dms_DollarReal_year,2)),(LEFT(dms_Reset_final_year,2)&RIGHT(dms_Reset_final_year,2))),0) -> 2027 | D54: =IF(dms_Model_Span>1,IF(dms_Model="RFM",(LEFT(dms_DollarReal_year,2)&RIGHT(dms_DollarReal_year,2)),(LEFT(dms_Reset_final_year,2)&RIGHT(dms_Reset_final_year,2))),0) | E54: If model span > 1 then uses dms_Reset_RYE otherwise it's a multi year ABC and uses dms_Specified_RYE
B55: dms_Specified_RYE | C55: =IF(dms_MultiYear_ResponseFlag="Yes",(LEFT(dms_Specified_FinalYear,2)&RIGHT(dms_Specified_FinalYear,2)),0) -> 0 | D55: =IF(dms_MultiYear_ResponseFlag="Yes",(LEFT(dms_Specified_FinalYear,2)&RIGHT(dms_Specified_FinalYear,2)),0) | E55: If multi year ABC - uses dms_Specified_FinalYear
B56: dms_Model_Span | C56: =INDEX(dms_Model_Span_List,MATCH(dms_Model,dms_Model_List)) -> 5 | D56: =INDEX(dms_Model_Span_List,MATCH(dms_Model,dms_Model_List)) | E56: A result of 5 is used to signify that it is more than 1 year span
B57: dms_RYE_result | C57: =IF(dms_MultiYear_ResponseFlag="yes",dms_Specified_RYE,(IF(dms_Model_Span>1,dms_Reset_RYE,dms_CRY_RYE))) -> 2027 | D57: =IF(dms_MultiYear_ResponseFlag="yes",dms_Specified_RYE,(IF(dms_Model_Span>1,dms_Reset_RYE,dms_CRY_RYE))) | E57: Nested IF - feeds into dms_RYE
B58: dms_Reset_Span | C58: =IF(dms_Reset_RYE>0,CONCATENATE(FRCP_y1," to ",FRCP_final_year),0) -> 2022-23 to 2026-27 | D58: =IF(dms_Reset_RYE>0,CONCATENATE(FRCP_y1," to ",FRCP_final_year),0) | E58: Reset span of years as text
B59: dms_SpecifiedYear_Span | C59: =IF(dms_Specified_RYE>0,CONCATENATE(CRY," to ",dms_Specified_FinalYear),0) -> 0 | D59: =IF(dms_Specified_RYE>0,CONCATENATE(CRY," to ",dms_Specified_FinalYear),0) | E59: Multi year ABC span of years as text
B60: dms_Header_Span | C60: =IF(dms_MultiYear_Flag=1,dms_SpecifiedYear_Span,IF(dms_Model_Span>1,dms_y1&" - "&FRCP_final_year,CRY)) -> 2020-21 - 2026-27 | D60: =IF(dms_MultiYear_Flag=1,dms_SpecifiedYear_Span,IF(dms_Model_Span>1,dms_Reset_Span,CRY)) | E60: NESTED IF - for Sheet Headers
B61: ABC RINS THAT SPAN MULTIPLE YEARS
B62: This is a multi year ABC RIN? | C62: No
C63: =IF(dms_MultiYear_ResponseFlag="No",0,1) -> 0 | D63: dms_MultiYear_Flag | E63: This is set from the answer provided above
C64: =IF(dms_MultiYear_Flag=1,FRY,"not a Multiple year submission") -> not a Multiple year submission | D64: dms_Specified_FinalYear | E64: The result here is returned to dms_CRCP_FinalYear_Result if response to Q in C73 is "yes" and dms_MultiYear_Flag is set to 1
B65: Start year for 5.2 in Multi year ABC RINS | C65: =IFERROR(IF(dms_MultiYear_Flag=1,FRY,CRY),"not an ABC") -> not an ABC | D65: dms_0502_Inst_Year | E65: =IF(dms_MultiYear_Flag=1,FRY,CRY) | G65: For single year RINS this is CRY - multi year RINS need to start a the end of the span of years (ie. FRY)
B66: WHAT IS THE RYE?
B67: Reg Period Lengths
B68: PRCP length in years | C68: =INDEX(dms_PRCPlength_List,MATCH(dms_TradingName,dms_TradingName_List)) -> 5 | D68: dms_PRCPlength_Num | E68: =INDEX(dms_PRCPlength_List,MATCH(dms_TradingName,dms_TradingName_List))
B69: CRCP length in years | C69: =INDEX(dms_CRCPlength_List,MATCH(dms_TradingName,dms_TradingName_List)) -> 5 | D69: dms_CRCPlength_Num | E69: =INDEX(dms_CRCPlength_List,MATCH(dms_TradingName,dms_TradingName_List))
B70: FRCP length in years | C70: =INDEX(dms_FRCPlength_List,MATCH(dms_TradingName,dms_TradingName_List)) -> 5 | D70: dms_FRCPlength_Num | E70: =INDEX(dms_FRCPlength_List,MATCH(dms_TradingName,dms_TradingName_List))
B71: Single year RIN?
B72: Single Year ABC RIN ? | C72: =IF(dms_Model="EB",1,0) -> 0 | D72: dms_EB
C73: =IF(dms_Model="CA",1,0) -> 0 | D73: dms_CA | E73: =dms_SingleYear_Model
C74: =IF(dms_Model="ARR",1,0) -> 0 | D74: dms_ARR
B75: Is this a single Year ABC RIN? | C75: =IF(SUM(dms_SingleYear_Model)=1,"yes","no") -> no | D75: dms_SingleYearModel | E75: =IF(SUM(dms_SingleYear_Model)=1,"yes","no")
B76: Single Year Final Year Result | C76: =IF(AND(dms_SingleYearModel="yes",dms_MultiYear_Flag=0),CRY,0) -> 0 | D76: dms_SingleYear_FinalYear_Result | E76: =IFERROR(IF(SUM(dms_SingleYear_Model)<>0,(INDIRECT(dms_SingleYear_FinalYear_Ref)),"not a single year RIN"),"CRY not present")
B77: Multi year RIN?
B79: Multi Year Reset/Model? | C79: =IF(dms_Model_Span>1,"yes","no") -> yes
B80: Final year result for Reset/Model | C80: =IF(dms_Model_Span>1,dms_Reset_final_year,0) -> 2026-27 | D80: dms_MultiYear_FinalYear_Result | E80: dms_CRCP_FinalYear_Result
B82: Multi Year ABC RIN? | C82: =IF(dms_MultiYear_Flag=1,"yes","no") -> no | D82: dms_MultiYear_ABC_RIN
B83: Final year result for ABC multi year | C83: =IF(dms_MultiYear_Flag=1,C50,0) -> 0
B85: EB RINS
B86: Calendar Year for table 3.6 data | C86: =IFERROR(IF(dms_Segment="Transmission",dms_Cal_Year_B4_CRY,CRY),"CRY not present") -> CRY not present | D86: dms_0306_Year | E86: =IF(dms_Segment="Transmission",dms_Cal_Year_B4_CRY,CRY)
B87: CA RINS
B88: Find how many rows in tables 6.3 sustained interruptions? | E88: dms_060301_MaxRows only returns a valid value when cover sheet is attached to a CA file
C89: =IF(dms_Model<>"CA","not a CA","Is a CA") -> not a CA | E89: =IF(dms_Model<>"CA","not a CA","Is a CA")
B90: dms_060301_Avg_Duration_Sustained_Int_Values present? | C90: =IFERROR(IF(INDEX(dms_060301_Avg_Duration_Sustained_Int_Values,1,1)<>"","yes","no"),"no") -> no | D90: dms_060301_checkvalue | E90: =IFERROR(IF(INDEX(dms_060301_Avg_Duration_Sustained_Int_Values,1,1)<>"","yes","no"),"no")
C91: =IF(AND(dms_Model="CA",(dms_060301_checkvalue="no")),"error - NR not present","no errors") -> no errors | E91: =IF(AND(dms_Model="CA",(dms_060301_checkvalue="no")),"error - NR not present","no errors")
B92: Table 6.3.1 - last row reference | C92: =IFERROR(IF(dms_Model="CA",LOOKUP(2,1/(dms_060301_Avg_Duration_Sustained_Int_Values<>""),(ROW(dms_060301_Avg_Duration_Sustained_Int_Values))),"not a CA"),"6.3 not present") -> not a CA | D92: dms_060301_LastRow | E92: =IFERROR(IF(dms_Model="CA",LOOKUP(2,1/(dms_060301_Avg_Duration_Sustained_Int_Values<>""),(ROW(dms_060301_Avg_Duration_Sustained_Int_Values))),"not a CA"),"6.3 not present")
B93: Table 6.3.1 - max number rows | C93: =IFERROR(IF(dms_Model="CA",(dms_060301_LastRow-15),"not a CA"),"error") -> not a CA | D93: dms_060301_MaxRows | E93: =IFERROR(IF(dms_Model="CA",(dms_060301_LastRow-15),"not a CA"),"error")
B94: Table 6.6.3 - Public lighting repair - no. business days | C94: =INDEX(dms_663_List,MATCH(dms_TradingName,dms_TradingName_List)) -> - | D94: dms_663 | E94: =INDEX(dms_663_List,MATCH(dms_TradingName,dms_TradingName_List))
B95: ARR or RESET RINS
B96: How many rows in tables 6.1 or 6.7? (leap year?) | C96: insert dms_LeapYear NR if required | E96: 'dms_LeapYear is used to determine dms_060701_Max_Rows BUT it is only found on worksheet 6.1 or 6.7 and the date value in the cell is used to determine whether it is a leap year
B97: Is dms_LeapYear named range present? | C97: =IFERROR(IF(dms_LeapYear,"yes"),"no") -> no
B98: Table 6.7.1 - includes a leap year? | C98: =IFERROR(IF(MONTH(DATE(YEAR(dms_LeapYear),2,29))=2,"is a leap year","not a leap year"), "dms_LeapYear not present") -> dms_LeapYear not present | D98: dms_LeapYear_Result | E98: =IFERROR(IF(MONTH(DATE(YEAR(dms_LeapYear),2,29))=2,"is a leap year","not a leap year"),"dms_LeapYear not present")
B99: MaxRows if Reset and leap year | C99: =IF(dms_LeapYear_Result="is a leap year",1827,1826) -> 1826 | D99: dms_060701_Reset_MaxRows | E99: =IF(dms_LeapYear_Result="is a leap year",1827,1826) | H99: number of days present in Reset RIN table
B100: MaxRows if ARR and leap year | C100: =IF(dms_LeapYear_Result="is a leap year",366,365) -> 365 | D100: dms_060701_ARR_MaxRows | E100: =IF(dms_LeapYear_Result="is a leap year",366,365) | H100: number of days present in ARR RIN table
B101: Table 6.7.1 - Max Rows (leap year/ non leap year) | C101: =IF(dms_Model="ARR",dms_060701_ARR_MaxRows,IF(dms_Model="Reset",dms_060701_Reset_MaxRows,"not a relevant RIN type")) -> not a relevant RIN type | D101: dms_060701_MaxRows | E101: =IF(dms_Model="ARR",dms_060701_ARR_MaxRows,IF(dms_Model="Reset",dms_060701_Reset_MaxRows,"not a relevant RIN type"))
B102: How many columns in 6.7? (4 or 5 feeder categories) | C102: =IF(dms_FifthFeeder_flag_NSP="NO","This NSP has only 4 feeder categories","This NSP has 5 feeder categories") -> This NSP has only 4 feeder categories
B103: Table 6.7.1 - Last column (# of feeder categories > 4) | C103: =IF(dms_FifthFeeder_flag_NSP="NO",10,12) -> 10 | D103: dms_060701_MaxCols | E103: =IF(dms_FifthFeeder_flag_NSP="NO",8,10)
B104: Table 6.7.1 - Number of offset rows | C104: =IF(dms_Model="ARR",15,9) -> 9 | D104: dms_060701_OffsetRows | E104: =IF(dms_Model="ARR",15,9)
B105: Start date for telephone answering in 6.1 or 6.7? | E105: Using 060101 as naming standard not 060701 for start dates
B106: Table 6.1.1 and 6.7.1 - Start Date as Text | C106: =IF(dms_SingleYearModel="yes",(CONCATENATE(IF(LEN(CRY)=4,"1-Jan-","1-Jul-"),LEFT(CRY,4))),(CONCATENATE(IF(LEN(PRCP_y4)=4,"1-Jan-","1-Jul-"),LEFT(PRCP_y4,4)))) -> 1-Jul-2015 | D106: dms_060101_StartDateTxt | E106: =IF(SUM(dms_SingleYear_Model)>1,(CONCATENATE(IF(LEN(CRY)=4,"1-Jan-","1-Jul-"),LEFT(CRY,4))),(CONCATENATE(IF(LEN(CRCP_y4)=4,"1-Jan-","1-Jul-"),LEFT(CRCP_y4,4))))
B107: Table 6.1.1 and 6.7.1 - Start Date as Date Value | C107: =DATEVALUE(dms_060701_StartDateTxt) -> 42186 | D107: dms_060101_StartDateVal | E107: =DATEVALUE(dms_060701_StartDateTxt)
B108: ARRs
B109: How many rows in table 6.8? | C109: insert dms_060801_StartCell NR if required | E109: dms_060801_StartCell is only found on worksheet 6.8 and is used to determine the starting date for the date range
B110: Is dms_060801_StartCell named range present? | C110: yes | E110: =IFERROR(IF((ROW(dms_060801_StartCell)-1)=1,"yes","yes"),"no")
B111: Table 6.8 - Number of offset rows | C111: 12 | D111: dms_0608_OffsetRows | E111: =IFERROR(IF(dms_Model="ARR",(ROW(dms_060801_StartCell)-1),"not an ARR"),"6.8 error")
B112: Table 6.8 - Last row | C112: 0 | D112: dms_0608_LastRow | E112: =IFERROR(IF(dms_060801_StartCell<>"",IF(dms_Model="ARR",(LOOKUP(2,1/(dms_060801_01_Values<>""),(ROW(dms_060801_01_Values)))),"not an ARR"),0),"0")
B113: Table 6.8 - MaxRows | C113: =IFERROR(IF(dms_Model="ARR",(MAX(0,dms_0608_LastRow-dms_0608_OffsetRows)),"not an ARR"),"0") -> not an ARR | D113: dms_060801_MaxRows | E113: =IFERROR(IF(dms_Model="ARR",(MAX(0,dms_0608_LastRow-dms_0608_OffsetRows)),"not an ARR"),"0")
B114: TNSP RESET RINS
B115: Table 7.9.4 only appears in TNSPs Reset RIN
B116: Table 7.9.4 - first year | C116: =LEFT(PRCP_y3,4) -> 2014 | D116: dms_070904_Start_Year | E116: =LEFT(PRCP_y3,4)
B118: MISC
B119: Distribution Determination Reference | C119: =INDEX(dms_DeterminationRef_List,MATCH(dms_TradingName,dms_TradingName_List)) -> - | D119: dms_DeterminationRef
B120: Public lighting NSP? | C120: =INDEX(dms_Public_Lighting_List,MATCH(dms_TradingName,dms_TradingName_List)) -> NO | D120: dms_Public_Lighting | E120: =INDEX(dms_Public_Lighting_List,MATCH(dms_TradingName,dms_TradingName_List))
B121: CBD Feeder for this business | C121: =INDEX(dms_CBD_flag,MATCH(dms_TradingName,dms_TradingName_List)) -> NO | D121: dms_CBD_flag_NSP
B122: Urban Feeder for this business | C122: =INDEX(dms_Urban_flag,MATCH(dms_TradingName,dms_TradingName_List)) -> NO | D122: dms_Urban_flag_NSP
B123: Short rural Feeder for this business | C123: =INDEX(dms_ShortRural_flag,MATCH(dms_TradingName,dms_TradingName_List)) -> NO | D123: dms_ShortRural_flag_NSP
B124: Long rural Feeder for this business | C124: =INDEX(dms_LongRural_flag,MATCH(dms_TradingName,dms_TradingName_List)) -> NO | D124: dms_LongRural_flag_NSP
B125: Fifth Feeder Category (eg. TasNetworks (D)) | C125: =INDEX(dms_FeederType_5_flag,MATCH(dms_TradingName,dms_TradingName_List)) -> NO | D125: dms_FifthFeeder_flag_NSP | E125: =INDEX(dms_FeederType_5_flag,MATCH(dms_TradingName,dms_TradingName_List))
B127: DISCARD FILES
B128: discard this record? | C128: NO | D128: dms_DISCARD | E128: If record is to be discarded from DB set this flag to YES
B130: SUBSET FILES
B131: Is this Submission File a Subset File | C131: NO | D131: dms_Partial
B134: REGULATORY YEARS FOR MULTI RYE SUBMISSIONS
B135: Multiple RYE flag | C135: NO | D135: dms_Multi_RYE_flag
C136: Manually specify RYE | D136: Named ranges to apply
C137: 2013 | D137: dms_RYE_01
C138: 2014 | D138: dms_RYE_02
C139: 2015 | D139: dms_RYE_03
C140: 2016 | D140: dms_RYE_04
C141: 2017 | D141: dms_RYE_05
C142: 2018 | D142: dms_RYE_06
C143: 2019 | D143: dms_RYE_07
C144: 2020 | D144: dms_RYE_08
C145: 2021 | D145: dms_RYE_09

Sheet Business & other details (hidden)
V1: =INDEX(dms_Worksheet_List,MATCH(dms_Model,dms_Model_List)) -> POST TAX REVENUE MODEL
V2: =INDEX(dms_TradingNameFull_List,MATCH(dms_TradingName,dms_TradingName_List)) -> Australian Gas Distribution Co.
V3: =dms_Header_Span -> 2020-21 - 2026-27
V4: BUSINESS & OTHER DETAILS
V6: INSTRUCTIONS
V7: Complete the following business details regulatory template before entering data or values in any other regulatory template. This regulatory template is linked to other cells within the spreadsheet and automatically generates column headings and conditional formatting to distinguish business specific input and non-input cells.
Q9: SUBMISSION PARTICULARS INPUT SHEET
V12: ENTITY DETAILS
V14: Business Name
V16: Short name | AL16: =dms_InputTradingName -> Australian Distribution Co. (Gas)
V17: ACN/ABN | AL17: =INDEX(dms_ABN_List,MATCH(dms_TradingName,dms_TradingName_List)) -> 11222333444
V21: Business Address | BQ21: Postal Address
V23: Address 1 | AL23: =INDEX(dms_Addr1_List,MATCH(dms_TradingName,dms_TradingName_List)) -> 123 Straight Street | BI23: Address 1 | BQ23: =INDEX(dms_PAddr1_List,MATCH(dms_TradingName,dms_TradingName_List)) -> PO Box 123
V24: Address 2 | AL24: =IF(ISBLANK(INDEX(dms_Addr2_List,MATCH(dms_TradingName,dms_TradingName_List))),"",(INDEX(dms_Addr2_List,MATCH(dms_TradingName,dms_TradingName_List)))) ->  | BI24: Address 2 | BQ24: =IF(ISBLANK(INDEX(dms_PAddr2_List,MATCH(dms_TradingName,dms_TradingName_List))),"",(INDEX(dms_PAddr2_List,MATCH(dms_TradingName,dms_TradingName_List)))) -> 
V25: Suburb | AL25: =INDEX(dms_Suburb_List,MATCH(dms_TradingName,dms_TradingName_List)) -> SYDNEY | BI25: Suburb | BQ25: =INDEX(dms_PSuburb_List,MATCH(dms_TradingName,dms_TradingName_List)) -> SYDNEY
V26: State | AL26: =INDEX(dms_State_List,MATCH(dms_TradingName,dms_TradingName_List)) -> NSW | AV26: Post code | BI26: State | BQ26: =INDEX(dms_PState_List,MATCH(dms_TradingName,dms_TradingName_List)) -> NSW | CA26: Post code
BA28: `
V30: Contact Names
V32: Name | AL32: -- enter name -- | BI32: Name | BQ32: -- enter name --
V33: Phone | AL33: -- enter phone number -- | BI33: Phone | BQ33: -- enter phone number --
V34: Email | AL34: -- enter email address -- | BI34: Email | BQ34: -- enter email address --
Q39: REGULATORY CONTROL PERIODS
Z42: Forthcoming period | AL42: 2022-23 | AU42: =FRCP_y2 -> 2023-24 | BD42: =FRCP_y3 -> 2024-25 | BM42: =FRCP_y4 -> 2025-26 | BV42: =FRCP_y5 -> 2026-27
AL43: =FRCP_y6 -> 2027-28 | AU43: =FRCP_y7 -> 2028-29 | BD43: =FRCP_y8 -> 2029-30 | BM43: =FRCP_y9 -> 2030-31 | BV43: =FRCP_y10 -> 2031-32
AL44: =FRCP_y11 -> 2032-33 | AU44: =FRCP_y12 -> 2033-34 | BD44: =FRCP_y13 -> 2034-35 | BM44: =FRCP_y14 -> 2035-36 | BV44: =FRCP_y15 -> 2036-37
X46: RESETS | Z46: Current period | AL46: =CRCP_y1 -> 2017-18 | AU46: =CRCP_y2 -> 2018-19 | BD46: =CRCP_y3 -> 2019-20 | BM46: =CRCP_y4 -> 2020-21 | BV46: =CRCP_y5 -> 2021-22
AL47: =CRCP_y6 -> 2022-23 | AU47: =CRCP_y7 -> 2023-24 | BD47: =CRCP_y8 -> 2024-25 | BM47: =CRCP_y9 -> 2025-26 | BV47: =CRCP_y10 -> 2026-27
AL48: =CRCP_y11 -> 2027-28 | AU48: =CRCP_y12 -> 2028-29 | BD48: =CRCP_y13 -> 2029-30 | BM48: =CRCP_y14 -> 2030-31 | BV48: =CRCP_y15 -> 2031-32
Z50: Previous period | AL50: =PRCP_y1 -> 2012-13 | AU50: =PRCP_y2 -> 2013-14 | BD50: =PRCP_y3 -> 2014-15 | BM50: =PRCP_y4 -> 2015-16 | BV50: =PRCP_y5 -> 2016-17
AL51: =PRCP_y6 -> 2017-18 | AU51: =PRCP_y7 -> 2018-19 | BD51: =PRCP_y8 -> 2019-20 | BM51: =PRCP_y9 -> 2020-21 | BV51: =PRCP_y10 -> 2021-22
Q54: SUBMISSION DETAILS
Z56: RIN type | AL56: =INDIRECT(dms_Model) -> Post Tax Revenue Model
Z58: Source | AL58: =dms_InputSource -> Regulatory proposal
X60: THIS FILE | Z60: Data Quality | AL60: Consolidated
Z62: Confidentiality Status | AL62: Public
Z64: Amended RIN Amendment Reason | AL64: .
Z68: Submission Date | AL68: dd/mm/yy | BD68: Please enter date this file submitted to AER

Sheet Intro
G2: Gas Distribution Service Provider
H3: Post-Tax Revenue Model
K4: Version: | L4: 2
K5: Date: | L5: December 2020
B8: Introduction | J8: Gas Distribution Model
C13: This model illustrates the basic elements of the AER's building block calculation and associated price and revenue constraints for gas distribution service providers.
C14: The model is intended to produce X factors that are applicable to the revenue cap, price cap and revenue yield methodologies for smoothing revenue.
C15: Building block revenues and cash flows are modelled in nominal terms unless specified otherwise.
C17: INSTRUCTIONS FOR USE
C18: The full PTRM handbook is available on the AER website at https://www.aer.gov.au/node/74037
C20: 1. Prior to the commencement of the access arrangement period
C22: 1a. Fill out input cells on the 'DMS Input' sheet. These input cells are highlighted blue.
C23: This provides information on the service provider submitting the PTRM and the context for the PTRM preparation.
C24: This information also controls the automatic import of the PTRM into the AER's Data Management System (DMS).
C26: 1b. Fill out input cells on the 'PTRM Input' sheet. These input cells are highlighted blue.
C27: This provides the data for the PTRM calculations.
C28: In general, input expenditure data should be valued in real dollar terms of the year indicated, as at the end of that year.
C29: Units and basis for entry are specified where required for each data table.
C30: Review any cautions (which are generated based on data entered) before continuing.
C32: 1c. Determine the forecast revenue (smoothed revenue) using the 'X factors' sheet
C33: A CPI-X reference tariff variation mechanism has been implemented in this financial model as required under Rules 92(1) and 97 for the purposes of revenue equalisation.
C34: This sheet provides for the calculation of X factors under three basic reference tariff variation mechanisms, namely a weighted average price cap, revenue cap and revenue yield.
C35: The X factor values may differ for each year of the access arrangement period but must be set such that the present values of forecast (smoothed) revenues is equal to the NPV of total (unsmoothed) revenue for that period.
C36: This sheet provides input cells for each X factor and contains macro buttons which should be used to goal seek an X factor value for a specific year to equate the preset values of smoothed and unsmoothed revenues.
C38: 2. Within the access arrangement period when updating the annual return on debt
C40: 2a. Update input cells on the 'DMS Input' sheet. These input cells are highlighted blue.
C41: Check that the contact details are still current and describe the new amendment.
C43: 2b. Update input cells on the 'PTRM Input' sheet. These input cells are highlighted blue.
C44: In general, the only row that should be changed is the Trailing Average Portfolio Return on Debt (row 379).
C45: The basis for updating the annual return on debt will be in accordance with the relevant access arrangement decision prior to the commencement of the period.
C47: 2c. Determine the forecast revenue (smoothed revenue) using the 'X factors' sheet
C48: Indicate the year of the annual debt update (cell F21) to ensure the correct content-sensitive cautions are displayed.
C49: Enter new X factors for this year (and potentially later years within the access arrangement period) in order to equate the NPVs of smoothed and unsmoothed revenues.
C50: The macro buttons should be used to goal seek the X factor for these specific years.
C51: Note that X factors for earlier years within the access arrangement period should not be changed.
C54: VERSION RECORD
C56: Version | D56: Date | F56: Description
C57: 1 | D57: April 2020 | F57: Initial model
C59: 2 | D59: April 2021 | F59: Applied inflation review final position for calculation of expected inflation.

Sheet DMS input
B2: =C16&" - DMS Input"&" - DNSP PTRM - version "&Intro!$L$4 -> Aus Gas - DMS Input - DNSP PTRM - version 2 | G2: Input cells are in blue
B6: This sheet requests information that allows the AER to automatically import the PTRM into our data management system (DMS).
B7: This sheet's metadata relates to the business and context for the PTRM (rather than the PTRM itself).
B8: Only change blue input cells. Some rows are hidden. To facilitate the automatic import, please do not delete or add rows on this sheet.
B9: This hidden data is automatically populated based on data entered on the PTRM input sheet.
B10: Throughout the rest of the workbook, defined name ranges are used to identify data that is imported into the DMS.
B12: Entity details
B14: Trading name | C14: Australian Distribution Co. (Gas)
B15: ACN / ABN | C15: =INDEX(dms_ABN_List,MATCH(dms_TradingName,dms_TradingName_List)) -> 11222333444
B16: Business short name | C16: Aus Gas
B19: Regulatory process details
B21: Forthcoming regulatory control period | C21: ='PTRM input'!G60 -> 2026-27 | D21: =IF(COUNTA($C21:C21)>='PTRM input'!$R$7,"",'PTRM input'!H60) -> 2027-28 | E21: =IF(COUNTA($C21:D21)>='PTRM input'!$R$7,"",'PTRM input'!I60) -> 2028-29 | F21: =IF(COUNTA($C21:E21)>='PTRM input'!$R$7,"",'PTRM input'!J60) -> 2029-30 | G21: =IF(COUNTA($C21:F21)>='PTRM input'!$R$7,"",'PTRM input'!K60) -> 2030-31 | H21: =IF(COUNTA($C21:G21)>='PTRM input'!$R$7,"",'PTRM input'!L60) -> 2031-32 | I21: =IF(COUNTA($C21:H21)>='PTRM input'!$R$7,"",'PTRM input'!M60) -> 2032-33 | J21: =IF(COUNTA($C21:I21)>='PTRM input'!$R$7,"",'PTRM input'!N60) -> 2033-34 | K21: =IF(COUNTA($C21:J21)>='PTRM input'!$R$7,"",'PTRM input'!O60) -> 2034-35 | L21: =IF(COUNTA($C21:K21)>='PTRM input'!$R$7,"",'PTRM input'!P60) -> 2035-36
B22: Year prior to the FRCP | C22: ='PTRM input'!F525 -> 2025-26
B24: Current regulatory control period
B27: Previous regulatory control period
B30: Sector | C30: Gas
B31: Segment | C31: Distribution
B32: Source | C32: Regulatory proposal
B33: Regulatory Year Ending | C33: =LEFT('X factors'!$F$21,2)&RIGHT('X factors'!$F$21,2) -> 2027
B34: Reporting Period Type | C34: =IF(LEN(C21)=4,"Calendar",IF(LEN(C21)=7,"Financial","Other")) -> Financial
B35: RIN or Model Type | C35: PTRM
B36: Security Classification | C36: Public
B37: Data quality (Actual, estimate, consolidated) | C37: Consolidated
B38: Model response - version no.
B39: Amended model submission - reason
B40: Model template - version no. | C40: 2
B41: $ real | C41: ='PTRM input'!F525 -> 2025-26
B42: Form of control | C42: Tariff cap

Sheet Key inputs & assumptions
B2: Key inputs and assumptions
B7: 1. Remaining years to gas network closure from 2026-27
C9: Remaining years | D9: 19
B11: 2. Asset lives
W12: Economic
C13: Economic or Technical | D13: Economic | W13: Technical
D15: Average remaining technical life | E15: Average remaining economic life | F15: Standard technical life | G15: Standard economic life | H15: Average tax remaining technical life | I15: Average tax remaining economic life | J15: Tax standard technical life | K15: Tax standard economic life
C16: HP Mains | D16: 55.2008772 | E16: =IF(D16>$D$9,$D$9,D16) -> 19 | F16: 50 | G16: =IF(F16>$D$9,$D$9,F16) -> 19 | H16: 34.25446547 | I16: =IF(H16>$D$9,$D$9,H16) -> 19 | J16: 20 | K16: =IF(J16>$D$9,$D$9,J16) -> 19
C17: HP Services | D17: 31.56359024 | E17: 19 | F17: 50 | G17: 19 | H17: 18.77845659 | I17: 18.77845659 | J17: 20 | K17: 19
C18: MP Mains | D18: 19.52750658 | E18: 19 | F18: 30 | G18: 19 | H18: 21.72438864 | I18: 19 | J18: 20 | K18: 19
C19: MP Services | D19: 30.70000724 | E19: 19 | F19: 30 | G19: 19 | H19: 18.46809752 | I19: 18.46809752 | J19: 20 | K19: 19
C20: TRS & DRS - Valves & Regulators | D20: 8.616778999 | E20: 8.616778999 | F20: 15 | G20: 15 | H20: 26.3392243 | I20: 19 | J20: 20 | K20: 19
C21: Contract meters | D21: 9.418531654 | E21: 9.418531654 | F21: 15 | G21: 15 | H21: 9.404433895 | I21: 9.404433895 | J21: 15 | K21: 15
C22: Tariff meters | D22: 8.854725927 | E22: 8.854725927 | F22: 15 | G22: 15 | H22: 9.610534248 | I22: 9.610534248 | J22: 15 | K22: 15
C23: Regulatory costs | D23: 5 | E23: 5 | F23: 5 | G23: 5 | H23: 0 | I23: 0 | J23: 5 | K23: 5
C24: IT System | D24: 2.949829007 | E24: 2.949829007 | F24: 5 | G24: 5 | H24: 2.915207183 | I24: 2.915207183 | J24: 5 | K24: 5
C25: Land and easement | D25: n/a | E25: n/a | F25: n/a | G25: n/a | H25: n/a | I25: n/a | J25: n/a | K25: n/a
C26: Non-system assets | D26: 0 | E26: =IF(D26>$D$9,$D$9,D26) -> 0 | F26: 5 | G26: =IF(F26>$D$9,$D$9,F26) -> 5 | H26: 0 | I26: =IF(H26>$D$9,$D$9,H26) -> 0 | J26: 5 | K26: =IF(J26>$D$9,$D$9,J26) -> 5
C27: Equity raising costs | D27: n/a | E27: n/a | F27: 50 | G27: =IF(F27>$D$9,$D$9-1,F27) -> 18 | H27: n/a | I27: n/a | J27: 50 | K27: =IF(J27>$D$9,$D$9-1,J27) -> 18
B29: 3. Depreciation method
W30: Straight-line
C31: Straight-line or sum-of-years-digits | D31: Sum-of-years-digits | W31: Sum-of-years-digits
B33: 4. Capex ($2025-26)
D35: GN26 | E35: GN26 | F35: GN26 | G35: GN26 | H35: GN26 | I35: GN31 | J35: GN31 | K35: GN31 | L35: GN31 | M35: GN31 | N35: GN36 | O35: GN36 | P35: GN36 | Q35: GN36 | R35: GN36 | S35: GN41 | T35: GN41 | U35: GN41 | V35: GN41
D36: 2026-27 | E36: 2027-28 | F36: 2028-29 | G36: 2029-30 | H36: 2030-31 | I36: 2031-32 | J36: 2032-33 | K36: 2033-34 | L36: 2034-35 | M36: 2035-36 | N36: 2036-37 | O36: 2037-38 | P36: 2038-39 | Q36: 2039-40 | R36: 2040-41 | S36: 2041-42 | T36: 2042-43 | U36: 2043-44 | V36: 2044-45
C37: HP Mains | D37: 0.3259306514 | E37: 0.3151551696 | F37: 0.3235146442 | G37: 0.3272622156 | H37: 0.3276402652 | I37: 0 | J37: 0 | K37: 0 | L37: 0 | M37: 0 | N37: 0 | O37: 0 | P37: 0 | Q37: 0 | R37: 0 | S37: 0 | T37: 0 | U37: 0 | V37: 0
C38: HP Services | D38: 0 | E38: 0 | F38: 0 | G38: 0 | H38: 0 | I38: 0 | J38: 0 | K38: 0 | L38: 0 | M38: 0 | N38: 0 | O38: 0 | P38: 0 | Q38: 0 | R38: 0 | S38: 0 | T38: 0 | U38: 0 | V38: 0
C39: MP Mains | D39: 0 | E39: 0 | F39: 0 | G39: 0 | H39: 0 | I39: 0.2754161249 | J39: 0.2712363044 | K39: 0.2333412538 | L39: 0.2333412536 | M39: 0 | N39: 0 | O39: 0 | P39: 0 | Q39: 0 | R39: 0 | S39: 0 | T39: 0 | U39: 0 | V39: 0
C40: MP Services | D40: 0.7789120439 | E40: 0.7565163867 | F40: 0.7753303262 | G40: 0.7843546745 | H40: 0.7862373998 | I40: 0.612293777 | J40: 0.6030013722 | K40: 0.5275794493 | L40: 0.5275794489 | M40: 0 | N40: 0 | O40: 0 | P40: 0 | Q40: 0 | R40: 0 | S40: 0 | T40: 0 | U40: 0 | V40: 0
C41: TRS & DRS - Valves & Regulators | D41: 1.431975366 | E41: 0.1235659039 | F41: 0.05984324063 | G41: 0.06043671648 | H41: 0.06108449164 | I41: 0.1042038002 | J41: 0.1026223634 | K41: 0.1043822196 | L41: 0.1043822195 | M41: 0.1043822195 | N41: 0.1043822195 | O41: 0.1043822195 | P41: 0.1043822195 | Q41: 0.1043822195 | R41: 0.1043822195 | S41: 0 | T41: 0 | U41: 0 | V41: 0
C42: Contract meters | D42: 0 | E42: 0 | F42: 0 | G42: 0 | H42: 0 | I42: 0 | J42: 0 | K42: 0 | L42: 0 | M42: 0 | N42: 0 | O42: 0 | P42: 0 | Q42: 0 | R42: 0 | S42: 0 | T42: 0 | U42: 0 | V42: 0
C43: Tariff meters | D43: 5.634410516 | E43: 6.006114007 | F43: 5.999030669 | G43: 6.551389386 | H43: 7.735013216 | I43: 4.836880727 | J43: 4.614061221 | K43: 4.653677383 | L43: 4.653677379 | M43: 4.653677379 | N43: 4.653677379 | O43: 4.653677379 | P43: 4.653677379 | Q43: 4.653677379 | R43: 4.653677379 | S43: 0 | T43: 0 | U43: 0 | V43: 0
C44: Regulatory costs | D44: 0 | E44: 0 | F44: 0 | G44: 0 | H44: 0 | I44: 0 | J44: 0 | K44: 0 | L44: 0 | M44: 0 | N44: 0 | O44: 0 | P44: 0 | Q44: 0 | R44: 0 | S44: 0 | T44: 0 | U44: 0 | V44: 0
C45: IT System | D45: 0 | E45: 0 | F45: 0 | G45: 0.1236717951 | H45: 0 | I45: 0 | J45: 0 | K45: 0 | L45: 0 | M45: 0 | N45: 0 | O45: 0 | P45: 0 | Q45: 0 | R45: 0 | S45: 0 | T45: 0 | U45: 0 | V45: 0
C46: Land and easement | D46: 0 | E46: 0 | F46: 0 | G46: 0 | H46: 0 | I46: 0 | J46: 0 | K46: 0 | L46: 0 | M46: 0 | N46: 0 | O46: 0 | P46: 0 | Q46: 0 | R46: 0 | S46: 0 | T46: 0 | U46: 0 | V46: 0
C47: Non-system assets | D47: 0 | E47: 0 | F47: 0 | G47: 0 | H47: 0 | I47: 0.171919068 | J47: 0.011310465 | K47: 0 | L47: 0 | M47: 0 | N47: 0 | O47: 0 | P47: 0 | Q47: 0 | R47: 0 | S47: 0 | T47: 0 | U47: 0 | V47: 0
C48: Total | D48: =SUM(D37:D47) -> 8.171228577 | E48: =SUM(E37:E47) -> 7.201351467 | F48: 7.15771888 | G48: 7.847114788 | H48: 8.909975372 | I48: 6.000713498 | J48: 5.602231726 | K48: 5.518980306 | L48: 5.518980301 | M48: 4.758059598 | N48: 4.758059598 | O48: 4.758059598 | P48: 4.758059598 | Q48: 4.758059598 | R48: 4.758059598 | S48: 0 | T48: 0 | U48: 0 | V48: 0
B50: 5. Opex ($2025-26)
D52: GN26 | E52: GN26 | F52: GN26 | G52: GN26 | H52: GN26 | I52: GN31 | J52: GN31 | K52: GN31 | L52: GN31 | M52: GN31 | N52: GN36 | O52: GN36 | P52: GN36 | Q52: GN36 | R52: GN36 | S52: GN41 | T52: GN41 | U52: GN41 | V52: GN41
D53: 2026-27 | E53: 2027-28 | F53: 2028-29 | G53: 2029-30 | H53: 2030-31 | I53: 2031-32 | J53: 2032-33 | K53: 2033-34 | L53: 2034-35 | M53: 2035-36 | N53: 2036-37 | O53: 2037-38 | P53: 2038-39 | Q53: 2039-40 | R53: 2040-41 | S53: 2041-42 | T53: 2042-43 | U53: 2043-44 | V53: 2044-45
C54: Controllable opex | D54: 22.64851845 | E54: 22.6434499 | F54: 22.63509968 | G54: 22.62498574 | H54: 22.61687294 | I54: =H54*(1+I69) -> 22.54597567 | J54: =I54*(1+J69) -> 22.44423863 | K54: =J54*(1+K69) -> 22.33474604 | L54: =K54*(1+L69) -> 22.21833243 | M54: =L54*(1+M69) -> 22.08997545 | N54: =M54*(1+N69) -> 21.95032127 | O54: 21.79688744 | P54: 21.6341898 | Q54: 21.45977437 | R54: 21.24874278 | S54: 17.17077323 | T54: 13.84193597 | U54: 11.12900726 | V54: 8.569745782
C55: UNFT | D55: =D79/1000000 -> 8.519213967 | E55: =E79/1000000 -> 8.443759389 | F55: 8.359444167 | G55: 8.273266254 | H55: 8.192191895 | I55: 8.106067345 | J55: 8.015280245 | K55: 7.936825974 | L55: 7.870548599 | M55: 7.813576006 | N55: 7.766234868 | O55: 7.727521413 | P55: 7.699134454 | Q55: 7.679780084 | R55: 7.664798721 | S55: 6.171252205 | T55: 4.960735036 | U55: 3.979496392 | V55: 3.159562758
C56: EIL | D56: 0.7178413229 | E56: 0.7171420131 | F56: 0.7171420131 | G56: 0.7171420131 | H56: 0.7171420131 | I56: =H56 -> 0.7171420131 | J56: 0.7171420131 | K56: 0.7171420131 | L56: 0.7171420131 | M56: 0.7171420131 | N56: =M56 -> 0.7171420131 | O56: =N56 -> 0.7171420131 | P56: 0.7171420131 | Q56: 0.7171420131 | R56: 0.7171420131 | S56: 0.7171420131 | T56: 0.7171420131 | U56: 0.7171420131 | V56: 0.7171420131
C57: UAG | D57: 2.345641586 | E57: 2.02920006 | F57: 1.886246858 | G57: 1.670562478 | H57: 1.490272806 | I57: =H57*(I91/H91) -> 1.381858956 | J57: 1.273687024 | K57: 1.173308658 | L57: 1.081656212 | M57: 0.9958974517 | N57: 0.9180412314 | O57: 0.8405388308 | P57: 0.7660491912 | Q57: 0.696769458 | R57: 0.6563510787 | S57: 0.5184088387 | T57: 0.3944400706 | U57: 0.2742445771 | V57: 0.05097941182
C58: Decommissioning costs | D58: 0 | E58: 0 | F58: 0 | G58: 0 | H58: 0 | I58: =H58 -> 0 | J58: 0 | K58: 0 | L58: 0 | M58: 0 | N58: =M58 -> 0 | O58: =N58 -> 0 | P58: 0 | Q58: 0 | R58: 0 | S58: 0 | T58: 0 | U58: 0 | V58: 0
C59: Total | D59: =SUM(D54:D58) -> 34.23121532 | E59: =SUM(E54:E58) -> 33.83355136 | F59: =SUM(F54:F58) -> 33.59793271 | G59: =SUM(G54:G58) -> 33.28595649 | H59: =SUM(H54:H58) -> 33.01647965 | I59: =SUM(I54:I58) -> 32.75104399 | J59: 32.45034791 | K59: 32.16202269 | L59: 31.88767925 | M59: 31.61659092 | N59: =SUM(N54:N58) -> 31.35173938 | O59: =SUM(O54:O58) -> 31.0820897 | P59: =SUM(P54:P58) -> 30.81651545 | Q59: =SUM(Q54:Q58) -> 30.55346593 | R59: =SUM(R54:R58) -> 30.28703459 | S59: =SUM(S54:S58) -> 24.57757629 | T59: =SUM(T54:T58) -> 19.91425309 | U59: =SUM(U54:U58) -> 16.09989024 | V59: =SUM(V54:V58) -> 12.49742996
C61: Annual trend
C62: Customer weight | D62: 0.1
C63: Mains weight | D63: =1-D62 -> 0.9
C64: Customer numbers % change | E64: =E90/D90-1 -> -0.06604679378 | F64: -0.07600746051 | G64: -0.08341556823 | H64: -0.08756681032 | I64: =I90/H90-1 -> -0.09892006779 | J64: -0.1126972602 | K64: -0.1163572703 | L64: -0.1196952019 | M64: -0.1253437548 | N64: =IF(M90=0,-1,N90/M90-1) -> -0.130793611 | O64: -0.1374734951 | P64: -0.1422156033 | Q64: -0.1481932705 | R64: -0.1659112156 | S64: -0.1867310352 | T64: -0.2062377422 | U64: =IF(T90=0,-1,U90/T90-1) -> -0.2275074468 | V64: =IF(U90=0,-1,V90/U90-1) -> -0.5672044185
C65: Mains length % change | E65: 0.001019522129 | F65: 0.0009753914852 | G65: 0.0009903018787 | H65: 0.000989322151 | I65: 0 | J65: 0 | K65: 0 | L65: 0 | M65: 0 | N65: 0 | O65: 0 | P65: 0 | Q65: 0 | R65: 0 | S65: -0.2 | T65: -0.2 | U65: -0.2 | V65: -0.2
C66: Output | I66: =I64*$D$62+I65*$D$63 -> -0.009892006779 | J66: -0.01126972602 | K66: -0.01163572703 | L66: -0.01196952019 | M66: -0.01253437548 | N66: -0.0130793611 | O66: -0.01374734951 | P66: -0.01422156033 | Q66: -0.01481932705 | R66: -0.01659112156 | S66: =S64*$D$62+S65*$D$63 -> -0.1986731035 | T66: -0.2006237742 | U66: -0.2027507447 | V66: -0.2367204419
C67: Real price | I67: 0.00675729998 | J67: =I67 -> 0.00675729998 | K67: =J67 -> 0.00675729998 | L67: 0.00675729998 | M67: 0.00675729998 | N67: 0.00675729998 | O67: 0.00675729998 | P67: 0.00675729998 | Q67: 0.00675729998 | R67: 0.00675729998 | S67: 0.00675729998 | T67: 0.00675729998 | U67: 0.00675729998 | V67: 0.00675729998
C68: Productivity | I68: 0 | J68: 0 | K68: 0 | L68: 0 | M68: 0 | N68: 0 | O68: 0 | P68: 0 | Q68: 0 | R68: 0 | S68: 0 | T68: 0 | U68: 0 | V68: 0
C69: Total | I69: =SUM(I66:I68) -> -0.003134706798 | J69: =SUM(J66:J68) -> -0.004512426036 | K69: -0.004878427048 | L69: -0.005212220207 | M69: -0.005777075499 | N69: -0.006322061115 | O69: -0.006990049533 | P69: -0.007464260348 | Q69: -0.008062027072 | R69: -0.00983382158 | S69: -0.1919158035 | T69: -0.1938664742 | U69: -0.1959934447 | V69: -0.2299631419
C71: UNFT
C72: Average service length (m) | D72: 9.793
C73: UNFT index (nominal) | E73: 0.03453250478 | F73: =E73 -> 0.03453250478 | G73: =F73 -> 0.03453250478 | H73: 0.03453250478 | I73: 0.03453250478 | J73: 0.03453250478 | K73: 0.03453250478 | L73: 0.03453250478 | M73: 0.03453250478 | N73: 0.03453250478 | O73: 0.03453250478 | P73: 0.03453250478 | Q73: 0.03453250478 | R73: 0.03453250478 | S73: 0.03453250478 | T73: 0.03453250478 | U73: 0.03453250478 | V73: 0.03453250478
C74: UNFT rate | D74: 1599 | E74: =D74*(1+E73) -> 1654.217475 | F74: =E74*(1+F73) -> 1711.341748 | G74: 1770.438665 | H74: 1831.576347 | I74: 1894.825266 | J74: 1960.258328 | K74: 2027.950958 | L74: 2097.981184 | M74: 2170.42973 | N74: 2245.380105 | O74: 2322.918704 | P74: 2403.134905 | Q74: 2486.121173 | R74: 2571.973164 | S74: 2660.78984 | T74: 2752.673578 | U74: 2847.730291 | V74: 2946.069551
C75: ACT mains length (km) | D75: 4238.957779 | E75: =D75 -> 4238.957779 | F75: =E75 -> 4238.957779 | G75: 4238.957779 | H75: 4238.957779 | I75: 4238.957779 | J75: 4238.957779 | K75: 4238.957779 | L75: 4238.957779 | M75: 4238.957779 | N75: 4238.957779 | O75: 4238.957779 | P75: 4238.957779 | Q75: 4238.957779 | R75: 4238.957779 | S75: =R75*(1+S65) -> 3391.166223 | T75: =S75*(1+T65) -> 2712.932979 | U75: =T75*(1+U65) -> 2170.346383 | V75: =U75*(1+V65) -> 1736.277106
C76: ACT service length (km) | D76: 1230.065653 | E76: 1139.536222 | F76: 1044.482734 | G76: 949.4129792 | H76: 858.676795 | I76: 765.9187948 | J76: 671.4375385 | K76: 585.6185811 | L76: 508.1808317 | M76: 437.2234058 | N76: 372.8010799 | O76: 314.1808 | P76: 262.2300582 | Q76: 216.0513446 | R76: 172.8354501 | S76: 133.372381 | T76: 98.25306835 | U76: 67.27319935 | V76: 26.50935378
C77: Total | D77: =D75+D76 -> 5469.023432 | E77: =E75+E76 -> 5378.494002 | F77: 5283.440513 | G77: 5188.370758 | H77: 5097.634574 | I77: =I75+I76 -> 5004.876574 | J77: 4910.395318 | K77: 4824.57636 | L77: 4747.138611 | M77: 4676.181185 | N77: 4611.758859 | O77: 4553.138579 | P77: 4501.187837 | Q77: 4455.009124 | R77: 4411.793229 | S77: 3524.538604 | T77: 2811.186047 | U77: 2237.619582 | V77: 1762.78646
C78: UNFT nominal | D78: =D74*D77 -> 8744968.468 | E78: =E74*E77 -> 8897198.767 | F78: 9041772.323 | G78: 9185692.199 | H78: 9336706.91 | I78: 9483366.584 | J78: 9625643.316 | K78: 9784004.253 | L78: 9959407.486 | M78: 10149322.67 | N78: 10355151.59 | O78: 10576570.77 | P78: 10816961.61 | Q78: 11075692.51 | R78: 11347013.79 | S78: 9378056.508 | T78: 7738277.553 | U78: 6372137.064 | V78: 5193291.515
C79: UNFT ($2025-26) | D79: =D78/'X factors'!G11 -> 8519213.967 | E79: =E78/'X factors'!H11 -> 8443759.389 | F79: =F78/'X factors'!I11 -> 8359444.167 | G79: =G78/'X factors'!J11 -> 8273266.254 | H79: =H78/'X factors'!K11 -> 8192191.895 | I79: =I78/'X factors'!L11 -> 8106067.345 | J79: =J78/'X factors'!M11 -> 8015280.245 | K79: =K78/'X factors'!N11 -> 7936825.974 | L79: =L78/'X factors'!O11 -> 7870548.599 | M79: =M78/'X factors'!P11 -> 7813576.006 | N79: =N78/'X factors'!Q11 -> 7766234.868 | O79: =O78/'X factors'!R11 -> 7727521.413 | P79: =P78/'X factors'!S11 -> 7699134.454 | Q79: =Q78/'X factors'!T11 -> 7679780.084 | R79: =R78/'X factors'!U11 -> 7664798.721 | S79: =S78/'X factors'!V11 -> 6171252.205 | T79: =T78/'X factors'!W11 -> 4960735.036 | U79: =U78/'X factors'!X11 -> 3979496.392 | V79: =V78/'X factors'!Y11 -> 3159562.758
B81: 6. Demand
C83: Demand scenario | D83: CIE Forecast | X83: CIE Forecast
C84: Forced cap on price increase | D84: No | X84: Alternative Forecast
C85: Max increase in real residential retail bill | D85: 0.5
C86: Average annual usage assumption (GJ) | D86: 27 | X86: Yes
X87: No
D88: GN26 | E88: GN26 | F88: GN26 | G88: GN26 | H88: GN26 | I88: GN31 | J88: GN31 | K88: GN31 | L88: GN31 | M88: GN31 | N88: GN36 | O88: GN36 | P88: GN36 | Q88: GN36 | R88: GN36 | S88: GN41 | T88: GN41 | U88: GN41 | V88: GN41
D89: 2026-27 | E89: 2027-28 | F89: 2028-29 | G89: 2029-30 | H89: 2030-31 | I89: 2031-32 | J89: 2032-33 | K89: 2033-34 | L89: 2034-35 | M89: 2035-36 | N89: 2036-37 | O89: 2037-38 | P89: 2038-39 | Q89: 2039-40 | R89: 2040-41 | S89: 2041-42 | T89: 2042-43 | U89: 2043-44 | V89: 2044-45 | X89: Nominal
C90: Customer numbers | D90: =Demand!I77 -> 143225.5751 | E90: =Demand!J77 -> 133765.985 | F90: =Demand!K77 -> 123598.7722 | G90: =Demand!L77 -> 113288.7104 | H90: =Demand!M77 -> 103368.3794 | I90: =Demand!N77 -> 93143.17229 | J90: =Demand!O77 -> 82646.19197 | K90: =Demand!P77 -> 73029.70667 | L90: =Demand!Q77 -> 64288.40119 | M90: =Demand!R77 -> 56230.25159 | N90: =Demand!S77 -> 48875.69394 | O90: =Demand!T77 -> 42156.58147 | P90: =Demand!U77 -> 36161.2578 | Q90: =Demand!V77 -> 30802.40274 | R90: =Demand!W77 -> 25691.93866 | S90: =Demand!X77 -> 20894.45636 | T90: =Demand!Y77 -> 16585.23085 | U90: =Demand!Z77 -> 12811.96733 | V90: =Demand!AA77 -> 5544.96285 | X90: Real
C91: Throughput | D91: =Demand!I78 -> 6272274.378 | E91: =Demand!J78 -> 5891237.244 | F91: =Demand!K78 -> 5505604.072 | G91: =Demand!L78 -> 5113843.66 | H91: =Demand!M78 -> 4744198.777 | I91: =Demand!N78 -> 4399069.446 | J91: =Demand!O78 -> 4054710.248 | K91: =Demand!P78 -> 3735161.426 | L91: =Demand!Q78 -> 3443391.074 | M91: =Demand!R78 -> 3170382.934 | N91: =Demand!S78 -> 2922532.082 | O91: =Demand!T78 -> 2675807.594 | P91: =Demand!U78 -> 2438674.061 | Q91: =Demand!V78 -> 2218125.968 | R91: =Demand!W78 -> 2089456.354 | S91: =Demand!X78 -> 1650325.073 | T91: =Demand!Y78 -> 1255677.546 | U91: =Demand!Z78 -> 873042.0239 | V91: =Demand!AA78 -> 162290.06
X92: 7
X93: 27
D94: 2025-26 | X94: 160
C95: Customer numbers | D95: =Demand!H77 -> 149503.9657
C96: Throughput | D96: =Demand!H78 -> 6552733.274
B99: 7. WACC
D101: GN26 | E101: GN31 | F101: GN36 | G101: GN41
C102: Risk-free rate | D102: 0.04320082462 | E102: 0.02749666667 | F102: 0.02562966667 | G102: 0.02562966667
C103: MRP | D103: 0.062 | E103: 0.062 | F103: 0.062 | G103: 0.062
C104: Equity beta | D104: 0.6 | E104: 0.6 | F104: 0.6 | G104: 0.6
C105: Return on equity | D105: =D102+D103*D104 -> 0.08040082462 | E105: =E102+E103*E104 -> 0.06469666667 | F105: 0.06282966667 | G105: 0.06282966667
C106: Return on debt (average) | D106: =AVERAGE(D114:H114) -> 0.05028324184 | E106: 0.05069136549 | F106: 0.04527873457 | G106: 0.04470063344
C107: Gearing | D107: 0.6 | E107: 0.6 | F107: 0.6 | G107: 0.6
C108: WACC | D108: =D105*(1-D107)+D106*D107 -> 0.06233027495 | E108: =E105*(1-E107)+E106*E107 -> 0.05629348596 | F108: 0.05229910741 | G108: 0.05195224673
C109: Gamma | D109: 0.57 | E109: 0.57 | F109: 0.57 | G109: 0.57
C110: Corporate tax rate | D110: 0.3 | E110: 0.3 | F110: 0.3 | G110: 0.3
D112: GN26 | E112: GN26 | F112: GN26 | G112: GN26 | H112: GN26 | I112: GN31 | J112: GN31 | K112: GN31 | L112: GN31 | M112: GN31 | N112: GN36 | O112: GN36 | P112: GN36 | Q112: GN36 | R112: GN36 | S112: GN41 | T112: GN41 | U112: GN41 | V112: GN41
D113: 2026-27 | E113: 2027-28 | F113: 2028-29 | G113: 2029-30 | H113: 2030-31 | I113: 2031-32 | J113: 2032-33 | K113: 2033-34 | L113: 2034-35 | M113: 2035-36 | N113: 2036-37 | O113: 2037-38 | P113: 2038-39 | Q113: 2039-40 | R113: 2040-41 | S113: 2041-42 | T113: 2042-43 | U113: 2043-44 | V113: 2044-45
C114: Trailing average cost of debt | D114: 0.04772284106 | E114: 0.04861584626 | F114: 0.05005740784 | G114: 0.05112788281 | H114: 0.05389223122 | I114: 0.05235958889 | J114: 0.05334446991 | K114: 0.05112523769 | L114: 0.04903639189 | M114: 0.04759113907 | N114: 0.04643493682 | O114: 0.04556778513 | P114: 0.04498968401 | Q114: 0.04470063344 | R114: 0.04470063344 | S114: 0.04470063344 | T114: 0.04470063344 | U114: 0.04470063344 | V114: 0.04470063344
B116: 8. Pricing for 2025-26
D119: Standing Charge ($ per customer per year) | E119: Throughput rate Block 1 ($/GJ) | F119: Throughput rate Block 2 ($/GJ) | G119: Throughput rate Block 3 ($/GJ) | H119: Throughput rate Block 4 ($/GJ) | I119: Capacity rate Block 1 ($/GJ/CD pa) | J119: Capacity rate Block 2 ($/GJ/CD pa) | K119: Capacity rate Block 3 ($/GJ/CD pa) | N119: Standing Charge ($ per customer per year) | O119: Throughput rate Block 1 ($/GJ) | P119: Throughput rate Block 2 ($/GJ) | Q119: Throughput rate Block 3 ($/GJ) | R119: Throughput rate Block 4 ($/GJ) | S119: Capacity rate Block 1 ($/GJ/CD pa) | T119: Capacity rate Block 2 ($/GJ/CD pa) | U119: Capacity rate Block 3 ($/GJ/CD pa)
D120: 2024-25 | E120: 2024-25 | F120: 2024-25 | G120: 2024-25 | H120: 2024-25 | I120: 2024-25 | J120: 2024-25 | K120: 2024-25 | N120: 2025-26 | O120: 2025-26 | P120: 2025-26 | Q120: 2025-26 | R120: 2025-26 | S120: 2025-26 | T120: 2025-26 | U120: 2025-26
C121: Residential & Small Business Network Tariffs | M121: Residential & Small Business Network Tariffs
C122: VI - Volume Individually Metered | D122: 80.765 | E122: 15.776 | F122: 8.214 | G122: 7.46 | H122: 7.182 | M122: VI - Volume Individually Metered | N122: 91.6 | O122: 17.892 | P122: 8.413 | Q122: 7.641 | R122: 7.356
C123: VB - Boundary metered with gas heating and cooking | D123: 924.112 | E123: 13.857 | F123: 8.067 | G123: 7.398 | M123: VB - Boundary metered with gas heating and cooking | N123: 999.153 | O123: 14.982 | P123: 8.722 | Q123: 7.999
C124: Large Business Network Tariffs | M124: Large Business Network Tariffs
C125: DBC - Large capacity | I125: 378.929 | J125: 361.213 | K125: 337.206 | M125: DBC - Large capacity | S125: 409.699 | T125: 390.545 | U125: 364.588
C126: DBT - Large throughput | E126: 4.851 | M126: DBT - Large throughput | O126: 5.245
C127: Closed Tariff - 15+ Connections | D127: 2334 | M127: Closed Tariff - 15+ Connections | N127: 2391
C128: Large Business Metering Tariffs | M128: Large Business Metering Tariffs
C129: Metering - Single Meter | M129: Metering - Single Meter
C130: MHQ < 16 GJ/hr | D130: 9716 | M130: MHQ < 16 GJ/hr | N130: 9952
C131: 16 to < 50 GJ/hr | D131: 13358 | M131: 16 to < 50 GJ/hr | N131: 13682
C132: 50 to < 100 GJ/hr | D132: 20443 | M132: 50 to < 100 GJ/hr | N132: 20939
C133: 100 to < 1000 GJ/hr | D133: 26433 | M133: 100 to < 1000 GJ/hr | N133: 27074
C134: Metering Double Meter | M134: Metering Double Meter
C135: MHQ < 16 GJ/hr | D135: 19431 | M135: MHQ < 16 GJ/hr | N135: 19902
C136: 16 to < 50 GJ/hr | D136: 26716 | M136: 16 to < 50 GJ/hr | N136: 27364
C137: 50 to < 100 GJ/hr | D137: 40886 | M137: 50 to < 100 GJ/hr | N137: 41877
C138: 100 to < 1000 GJ/hr | D138: 52865 | M138: 100 to < 1000 GJ/hr | N138: 54147

Sheet Demand
B2: Demand Scenarios
B4: CIE Forecast
C7: Tariff Quantities | D7: Customer numbers | AC7: Volumes - Throughput rate Block 1 ($/GJ) | BB7: Volumes - Throughput rate Block 2 ($/GJ) | CA7: Volumes - Throughput rate Block 3 ($/GJ) | CZ7: Volumes - Throughput rate Block 4 ($/GJ) | DY7: Volumes - Capacity rate Block 1 ($/GJ/CD pa) | EX7: Volumes - Capacity rate Block 2 ($/GJ/CD pa) | FW7: Volumes - Capacity rate Block 3 ($/GJ/CD pa)
C8: Year | D8: 2021-22 | E8: 2022-23 | F8: 2023-24 | G8: 2024-25 | H8: 2025-26 | I8: 2026-27 | J8: 2027-28 | K8: 2028-29 | L8: 2029-30 | M8: 2030-31 | N8: 2031-32 | O8: 2032-33 | P8: 2033-34 | Q8: 2034-35 | R8: 2035-36 | S8: 2036-37 | T8: 2037-38 | U8: 2038-39 | V8: 2039-40 | W8: 2040-41 | X8: 2041-42 | Y8: 2042-43 | Z8: 2043-44 | AA8: 2044-45 | AC8: 2021-22 | AD8: 2022-23 | AE8: 2023-24 | AF8: 2024-25 | AG8: 2025-26 | AH8: 2026-27 | AI8: 2027-28 | AJ8: 2028-29 | AK8: 2029-30 | AL8: 2030-31 | AM8: 2031-32 | AN8: 2032-33 | AO8: 2033-34 | AP8: 2034-35 | AQ8: 2035-36 | AR8: 2036-37 | AS8: 2037-38 | AT8: 2038-39 | AU8: 2039-40 | AV8: 2040-41 | AW8: 2041-42 | AX8: 2042-43 | AY8: 2043-44 | AZ8: 2044-45 | BB8: 2021-22 | BC8: 2022-23 | BD8: 2023-24 | BE8: 2024-25 | BF8: 2025-26 | BG8: 2026-27 | BH8: 2027-28 | BI8: 2028-29 | BJ8: 2029-30 | BK8: 2030-31 | BL8: 2031-32 | BM8: 2032-33 | BN8: 2033-34 | BO8: 2034-35 | BP8: 2035-36 | BQ8: 2036-37 | BR8: 2037-38 | BS8: 2038-39 | BT8: 2039-40 | BU8: 2040-41 | BV8: 2041-42 | BW8: 2042-43 | BX8: 2043-44 | BY8: 2044-45 | CA8: 2045-46 | CB8: 2022-23 | CC8: 2023-24 | CD8: 2024-25 | CE8: 2025-26 | CF8: 2026-27 | CG8: 2027-28 | CH8: 2028-29 | CI8: 2029-30 | CJ8: 2030-31 | CK8: 2031-32 | CL8: 2032-33 | CM8: 2033-34 | CN8: 2034-35 | CO8: 2035-36 | CP8: 2036-37 | CQ8: 2037-38 | CR8: 2038-39 | CS8: 2039-40 | CT8: 2040-41 | CU8: 2041-42 | CV8: 2042-43 | CW8: 2043-44 | CX8: 2044-45 | CZ8: 2021-22 | DA8: 2022-23 | DB8: 2023-24 | DC8: 2024-25 | DD8: 2025-26 | DE8: 2026-27 | DF8: 2027-28 | DG8: 2028-29 | DH8: 2029-30 | DI8: 2030-31 | DJ8: 2031-32 | DK8: 2032-33 | DL8: 2033-34 | DM8: 2034-35 | DN8: 2035-36 | DO8: 2036-37 | DP8: 2037-38 | DQ8: 2038-39 | DR8: 2039-40 | DS8: 2040-41 | DT8: 2041-42 | DU8: 2042-43 | DV8: 2043-44 | DW8: 2044-45 | DY8: 2021-22 | DZ8: 2022-23 | EA8: 2023-24 | EB8: 2024-25 | EC8: 2025-26 | ED8: 2026-27 | EE8: 2027-28 | EF8: 2028-29 | EG8: 2029-30 | EH8: 2030-31 | EI8: 2031-32 | EJ8: 2032-33 | EK8: 2033-34 | EL8: 2034-35 | EM8: 2035-36 | EN8: 2036-37 | EO8: 2037-38 | EP8: 2038-39 | EQ8: 2039-40 | ER8: 2040-41 | ES8: 2041-42 | ET8: 2042-43 | EU8: 2043-44 | EV8: 2044-45 | EX8: 2021-22 | EY8: 2022-23 | EZ8: 2023-24 | FA8: 2024-25 | FB8: 2025-26 | FC8: 2026-27 | FD8: 2027-28 | FE8: 2028-29 | FF8: 2029-30 | FG8: 2030-31 | FH8: 2031-32 | FI8: 2032-33 | FJ8: 2033-34 | FK8: 2034-35 | FL8: 2035-36 | FM8: 2036-37 | FN8: 2037-38 | FO8: 2038-39 | FP8: 2039-40 | FQ8: 2040-41 | FR8: 2041-42 | FS8: 2042-43 | FT8: 2043-44 | FU8: 2044-45 | FW8: 2021-22 | FX8: 2022-23 | FY8: 2023-24 | FZ8: 2024-25 | GA8: 2025-26 | GB8: 2026-27 | GC8: 2027-28 | GD8: 2028-29 | GE8: 2029-30 | GF8: 2030-31 | GG8: 2031-32 | GH8: 2032-33 | GI8: 2033-34 | GJ8: 2034-35 | GK8: 2035-36 | GL8: 2036-37 | GM8: 2037-38 | GN8: 2038-39 | GO8: 2039-40 | GP8: 2040-41 | GQ8: 2041-42 | GR8: 2042-43 | GS8: 2043-44 | GT8: 2044-45
C9: Residential & Small Business Network Tariffs
C10: VI - Volume Individually Metered | D10: 156313.5 | E10: 155120.5 | F10: 153965.5 | G10: 152334.15 | H10: 149444.6173 | I10: 143167.2736 | J10: 133709.8587 | K10: 123543.8519 | L10: 113237.024 | M10: 103318.8373 | N10: 93094.87962 | O10: 82599.07792 | P10: 72983.63966 | Q10: 64243.31096 | R10: 56186.05153 | S10: 48832.30643 | T10: 42113.93355 | U10: 36119.25233 | V10: 30760.98199 | W10: 25662.33885 | X10: 20865.31837 | Y10: 16556.50459 | Z10: 12783.58296 | AA10: 5526.483789 | AB10: 0 | AC10: 1711967.382 | AD10: 1675393.593 | AE10: 1491281.708 | AF10: 1440897.777 | AG10: 1408779.173 | AH10: 1331647.663 | AI10: 1228261.952 | AJ10: 1119746.227 | AK10: 1010240.526 | AL10: 904752.7242 | AM10: 809167.7083 | AN10: 712438.2869 | AO10: 624072.3458 | AP10: 545324.5913 | AQ10: 472833.5345 | AR10: 409258.5797 | AS10: 351068.3119 | AT10: 298789.5007 | AU10: 252504.7501 | AV10: 213198.4956 | AW10: 170160.6869 | AX10: 131024.0143 | AY10: 94393.69882 | AZ10: 0 | BA10: 0 | BB10: 3513800.61 | BC10: 3268344.248 | BD10: 2624166.785 | BE10: 2449710.355 | BF10: 2609496.519 | BG10: 2470427.897 | BH10: 2281945.901 | BI10: 2085704.024 | BJ10: 1889555.444 | BK10: 1702063.935 | BL10: 1535744.206 | BM10: 1369800.672 | BN10: 1218768.411 | BO10: 1084456.405 | BP10: 961325.9363 | BQ10: 852913.7366 | BR10: 751677.6158 | BS10: 659635.4423 | BT10: 577869.0609 | BU10: 523790.7929 | BV10: 411753.4002 | BW10: 311107.5734 | BX10: 215306.341 | BY10: 0 | CA10: 588489.3426 | CB10: 608109.4209 | CC10: 539080.5065 | CD10: 530576.7236 | CE10: 539731.8971 | CF10: 531708.0185 | CG10: 516837.6944 | CH10: 501287.5913 | CI10: 485547.1364 | CJ10: 470062.2337 | CK10: 456360.2224 | CL10: 442935.9534 | CM10: 430171.8159 | CN10: 418146.5727 | CO10: 406634.2417 | CP10: 396345.7983 | CQ10: 382331.2237 | CR10: 366444.9842 | CS10: 350782.2487 | CT10: 364863.7194 | CU10: 281706.4641 | CV10: 207558.8668 | CW10: 134602.7751 | CX10: 0 | CZ10: 904849.0671 | DA10: 991559.4526 | DB10: 853100.4357 | DC10: 830174.9475 | DD10: 915135.9914 | DE10: 904068.088 | DF10: 882385.0563 | DG10: 859738.0598 | DH10: 836762.5239 | DI10: 813795.7609 | DJ10: 794240.3351 | DK10: 775669.9329 | DL10: 757516.0448 | DM10: 739778.0813 | DN10: 722440.0273 | DO10: 705678.0728 | DP10: 681044.4883 | DQ10: 652391.8371 | DR10: 623590.0941 | DS10: 647296.7845 | DT10: 492866.7076 | DU10: 356186.4699 | DV10: 222539.2995 | DW10: 0 | DY10: 0 | DZ10: 0 | EA10: 0 | EB10: 0 | EC10: 0 | ED10: 0 | EE10: 0 | EF10: 0 | EG10: 0 | EH10: 0 | EI10: 0 | EJ10: 0 | EK10: 0 | EL10: 0 | EM10: 0 | EN10: 0 | EO10: 0 | EP10: 0 | EQ10: 0 | ER10: 0 | ES10: 0 | ET10: 0 | EU10: 0 | EV10: 0 | EX10: 0 | EY10: 0 | EZ10: 0 | FA10: 0 | FB10: 0 | FC10: 0 | FD10: 0 | FE10: 0 | FF10: 0 | FG10: 0 | FH10: 0 | FI10: 0 | FJ10: 0 | FK10: 0 | FL10: 0 | FM10: 0 | FN10: 0 | FO10: 0 | FP10: 0 | FQ10: 0 | FR10: 0 | FS10: 0 | FT10: 0 | FU10: 0 | FW10: 0 | FX10: 0 | FY10: 0 | FZ10: 0 | GA10: 0 | GB10: 0 | GC10: 0 | GD10: 0 | GE10: 0 | GF10: 0 | GG10: 0 | GH10: 0 | GI10: 0 | GJ10: 0 | GK10: 0 | GL10: 0 | GM10: 0 | GN10: 0 | GO10: 0 | GP10: 0 | GQ10: 0 | GR10: 0 | GS10: 0 | GT10: 0
C11: VB - Boundary metered with gas heating and cooking | D11: 6 | E11: 13 | F11: 17 | G11: 17 | H11: 16.23057815 | I11: 15.18365609 | J11: 14.03514768 | K11: 12.82914748 | L11: 11.64842695 | M11: 10.53071175 | N11: 9.281311536 | O11: 8.102698292 | P11: 7.055656523 | Q11: 6.078874591 | R11: 5.188707986 | S11: 4.376163402 | T11: 3.636566243 | U11: 2.994123172 | V11: 2.409399238 | W11: 1.881215062 | X11: 1.419400121 | Y11: 1.007670126 | Z11: 0.6657794035 | AA11: 0 | AB11: 0 | AC11: 2365.919969 | AD11: 5108.873375 | AE11: 7259.718356 | AF11: 7188.126321 | AG11: 6997.216603 | AH11: 6539.920028 | AI11: 6037.813425 | AJ11: 5510.474944 | AK11: 4994.927621 | AL11: 4507.578507 | AM11: 3970.240024 | AN11: 3464.148279 | AO11: 3014.854363 | AP11: 2596.001956 | AQ11: 2214.66322 | AR11: 1865.038682 | AS11: 1547.192101 | AT11: 1271.669068 | AU11: 1021.525233 | AV11: 796.1183008 | AW11: 600.0202926 | AX11: 425.5388783 | AY11: 280.8798917 | AZ11: 0 | BA11: 0 | BB11: 8993.366523 | BC11: 20192.80883 | BD11: 23846.57307 | BE11: 22706.21574 | BF11: 24076.02319 | BG11: 22413.34467 | BH11: 20598.51035 | BI11: 18702.95595 | BJ11: 16861.64745 | BK11: 15131.4802 | BL11: 13280.05647 | BM11: 11550.10971 | BN11: 10020.11829 | BO11: 8600.446072 | BP11: 7314.147287 | BQ11: 6129.85833 | BR11: 5058.212102 | BS11: 4135.288666 | BT11: 3303.992732 | BU11: 2560.738966 | BV11: 1921.881963 | BW11: 1357.685206 | BX11: 892.6986602 | BY11: 0 | CA11: 0 | CB11: 0 | CC11: 0 | CD11: 0 | CE11: 0 | CF11: 0 | CG11: 0 | CH11: 0 | CI11: 0 | CJ11: 0 | CK11: 0 | CL11: 0 | CM11: 0 | CN11: 0 | CO11: 0 | CP11: 0 | CQ11: 0 | CR11: 0 | CS11: 0 | CT11: 0 | CU11: 0 | CV11: 0 | CW11: 0 | CX11: 0 | CZ11: 0 | DA11: 0 | DB11: 0 | DC11: 0 | DD11: 0 | DE11: 0 | DF11: 0 | DG11: 0 | DH11: 0 | DI11: 0 | DJ11: 0 | DK11: 0 | DL11: 0 | DM11: 0 | DN11: 0 | DO11: 0 | DP11: 0 | DQ11: 0 | DR11: 0 | DS11: 0 | DT11: 0 | DU11: 0 | DV11: 0 | DW11: 0 | DY11: 0 | DZ11: 0 | EA11: 0 | EB11: 0 | EC11: 0 | ED11: 0 | EE11: 0 | EF11: 0 | EG11: 0 | EH11: 0 | EI11: 0 | EJ11: 0 | EK11: 0 | EL11: 0 | EM11: 0 | EN11: 0 | EO11: 0 | EP11: 0 | EQ11: 0 | ER11: 0 | ES11: 0 | ET11: 0 | EU11: 0 | EV11: 0 | EX11: 0 | EY11: 0 | EZ11: 0 | FA11: 0 | FB11: 0 | FC11: 0 | FD11: 0 | FE11: 0 | FF11: 0 | FG11: 0 | FH11: 0 | FI11: 0 | FJ11: 0 | FK11: 0 | FL11: 0 | FM11: 0 | FN11: 0 | FO11: 0 | FP11: 0 | FQ11: 0 | FR11: 0 | FS11: 0 | FT11: 0 | FU11: 0 | FW11: 0 | FX11: 0 | FY11: 0 | FZ11: 0 | GA11: 0 | GB11: 0 | GC11: 0 | GD11: 0 | GE11: 0 | GF11: 0 | GG11: 0 | GH11: 0 | GI11: 0 | GJ11: 0 | GK11: 0 | GL11: 0 | GM11: 0 | GN11: 0 | GO11: 0 | GP11: 0 | GQ11: 0 | GR11: 0 | GS11: 0 | GT11: 0
C12: Large Business Network Tariffs | AB12: 0 | AC12: 0 | AD12: 0 | AE12: 0 | AF12: 0 | AG12: 0 | AH12: 0 | AI12: 0 | AJ12: 0 | AK12: 0 | AL12: 0 | AM12: 0 | AN12: 0 | AO12: 0 | AP12: 0 | AQ12: 0 | AR12: 0 | AS12: 0 | AT12: 0 | AU12: 0 | AV12: 0 | AW12: 0 | AX12: 0 | AY12: 0 | AZ12: 0 | BA12: 0 | BB12: 0 | BC12: 0 | BD12: 0 | BE12: 0 | BF12: 0 | BG12: 0 | BH12: 0 | BI12: 0 | BJ12: 0 | BK12: 0 | BL12: 0 | BM12: 0 | BN12: 0 | BO12: 0 | BP12: 0 | BQ12: 0 | BR12: 0 | BS12: 0 | BT12: 0 | BU12: 0 | BV12: 0 | BW12: 0 | BX12: 0 | BY12: 0 | CA12: 0 | CB12: 0 | CC12: 0 | CD12: 0 | CE12: 0 | CF12: 0 | CG12: 0 | CH12: 0 | CI12: 0 | CJ12: 0 | CK12: 0 | CL12: 0 | CM12: 0 | CN12: 0 | CO12: 0 | CP12: 0 | CQ12: 0 | CR12: 0 | CS12: 0 | CT12: 0 | CU12: 0 | CV12: 0 | CW12: 0 | CX12: 0 | CZ12: 0 | DA12: 0 | DB12: 0 | DC12: 0 | DD12: 0 | DE12: 0 | DF12: 0 | DG12: 0 | DH12: 0 | DI12: 0 | DJ12: 0 | DK12: 0 | DL12: 0 | DM12: 0 | DN12: 0 | DO12: 0 | DP12: 0 | DQ12: 0 | DR12: 0 | DS12: 0 | DT12: 0 | DU12: 0 | DV12: 0 | DW12: 0 | DY12: 0 | DZ12: 0 | EA12: 0 | EB12: 0 | EC12: 0 | ED12: 0 | EE12: 0 | EF12: 0 | EG12: 0 | EH12: 0 | EI12: 0 | EJ12: 0 | EK12: 0 | EL12: 0 | EM12: 0 | EN12: 0 | EO12: 0 | EP12: 0 | EQ12: 0 | ER12: 0 | ES12: 0 | ET12: 0 | EU12: 0 | EV12: 0 | EX12: 0 | EY12: 0 | EZ12: 0 | FA12: 0 | FB12: 0 | FC12: 0 | FD12: 0 | FE12: 0 | FF12: 0 | FG12: 0 | FH12: 0 | FI12: 0 | FJ12: 0 | FK12: 0 | FL12: 0 | FM12: 0 | FN12: 0 | FO12: 0 | FP12: 0 | FQ12: 0 | FR12: 0 | FS12: 0 | FT12: 0 | FU12: 0 | FW12: 0 | FX12: 0 | FY12: 0 | FZ12: 0 | GA12: 0 | GB12: 0 | GC12: 0 | GD12: 0 | GE12: 0 | GF12: 0 | GG12: 0 | GH12: 0 | GI12: 0 | GJ12: 0 | GK12: 0 | GL12: 0 | GM12: 0 | GN12: 0 | GO12: 0 | GP12: 0 | GQ12: 0 | GR12: 0 | GS12: 0 | GT12: 0
C13: DBC - Large capacity | D13: CIC | E13: CIC | F13: CIC | G13: CIC | H13: CIC | I13: CIC | J13: CIC | K13: CIC | L13: CIC | M13: CIC | N13: CIC | O13: CIC | P13: CIC | Q13: CIC | R13: CIC | S13: CIC | T13: CIC | U13: CIC | V13: CIC | W13: CIC | X13: CIC | Y13: CIC | Z13: CIC | AA13: CIC | AB13: 0 | AC13: CIC | AD13: CIC | AE13: CIC | AF13: CIC | AG13: CIC | AH13: CIC | AI13: CIC | AJ13: CIC | AK13: CIC | AL13: CIC | AM13: CIC | AN13: CIC | AO13: CIC | AP13: CIC | AQ13: CIC | AR13: CIC | AS13: CIC | AT13: CIC | AU13: CIC | AV13: CIC | AW13: CIC | AX13: CIC | AY13: CIC | AZ13: CIC | BA13: 0 | BB13: CIC | BC13: CIC | BD13: CIC | BE13: CIC | BF13: CIC | BG13: CIC | BH13: CIC | BI13: CIC | BJ13: CIC | BK13: CIC | BL13: CIC | BM13: CIC | BN13: CIC | BO13: CIC | BP13: CIC | BQ13: CIC | BR13: CIC | BS13: CIC | BT13: CIC | BU13: CIC | BV13: CIC | BW13: CIC | BX13: CIC | BY13: CIC | CA13: CIC | CB13: CIC | CC13: CIC | CD13: CIC | CE13: CIC | CF13: CIC | CG13: CIC | CH13: CIC | CI13: CIC | CJ13: CIC | CK13: CIC | CL13: CIC | CM13: CIC | CN13: CIC | CO13: CIC | CP13: CIC | CQ13: CIC | CR13: CIC | CS13: CIC | CT13: CIC | CU13: CIC | CV13: CIC | CW13: CIC | CX13: CIC | CZ13: CIC | DA13: CIC | DB13: CIC | DC13: CIC | DD13: CIC | DE13: CIC | DF13: CIC | DG13: CIC | DH13: CIC | DI13: CIC | DJ13: CIC | DK13: CIC | DL13: CIC | DM13: CIC | DN13: CIC | DO13: CIC | DP13: CIC | DQ13: CIC | DR13: CIC | DS13: CIC | DT13: CIC | DU13: CIC | DV13: CIC | DW13: CIC | DY13: CIC | DZ13: CIC | EA13: CIC | EB13: CIC | EC13: CIC | ED13: CIC | EE13: CIC | EF13: CIC | EG13: CIC | EH13: CIC | EI13: CIC | EJ13: CIC | EK13: CIC | EL13: CIC | EM13: CIC | EN13: CIC | EO13: CIC | EP13: CIC | EQ13: CIC | ER13: CIC | ES13: CIC | ET13: CIC | EU13: CIC | EV13: CIC | EX13: CIC | EY13: CIC | EZ13: CIC | FA13: CIC | FB13: CIC | FC13: CIC | FD13: CIC | FE13: CIC | FF13: CIC | FG13: CIC | FH13: CIC | FI13: CIC | FJ13: CIC | FK13: CIC | FL13: CIC | FM13: CIC | FN13: CIC | FO13: CIC | FP13: CIC | FQ13: CIC | FR13: CIC | FS13: CIC | FT13: CIC | FU13: CIC | FW13: CIC | FX13: CIC | FY13: CIC | FZ13: CIC | GA13: CIC | GB13: CIC | GC13: CIC | GD13: CIC | GE13: CIC | GF13: CIC | GG13: CIC | GH13: CIC | GI13: CIC | GJ13: CIC | GK13: CIC | GL13: CIC | GM13: CIC | GN13: CIC | GO13: CIC | GP13: CIC | GQ13: CIC | GR13: CIC | GS13: CIC | GT13: CIC
C14: DBT - Large throughput | D14: CIC | E14: CIC | F14: CIC | G14: CIC | H14: CIC | I14: CIC | J14: CIC | K14: CIC | L14: CIC | M14: CIC | N14: CIC | O14: CIC | P14: CIC | Q14: CIC | R14: CIC | S14: CIC | T14: CIC | U14: CIC | V14: CIC | W14: CIC | X14: CIC | Y14: CIC | Z14: CIC | AA14: CIC | AB14: 0 | AC14: CIC | AD14: CIC | AE14: CIC | AF14: CIC | AG14: CIC | AH14: CIC | AI14: CIC | AJ14: CIC | AK14: CIC | AL14: CIC | AM14: CIC | AN14: CIC | AO14: CIC | AP14: CIC | AQ14: CIC | AR14: CIC | AS14: CIC | AT14: CIC | AU14: CIC | AV14: CIC | AW14: CIC | AX14: CIC | AY14: CIC | AZ14: CIC | BA14: 0 | BB14: CIC | BC14: CIC | BD14: CIC | BE14: CIC | BF14: CIC | BG14: CIC | BH14: CIC | BI14: CIC | BJ14: CIC | BK14: CIC | BL14: CIC | BM14: CIC | BN14: CIC | BO14: CIC | BP14: CIC | BQ14: CIC | BR14: CIC | BS14: CIC | BT14: CIC | BU14: CIC | BV14: CIC | BW14: CIC | BX14: CIC | BY14: CIC | CA14: CIC | CB14: CIC | CC14: CIC | CD14: CIC | CE14: CIC | CF14: CIC | CG14: CIC | CH14: CIC | CI14: CIC | CJ14: CIC | CK14: CIC | CL14: CIC | CM14: CIC | CN14: CIC | CO14: CIC | CP14: CIC | CQ14: CIC | CR14: CIC | CS14: CIC | CT14: CIC | CU14: CIC | CV14: CIC | CW14: CIC | CX14: CIC | CZ14: CIC | DA14: CIC | DB14: CIC | DC14: CIC | DD14: CIC | DE14: CIC | DF14: CIC | DG14: CIC | DH14: CIC | DI14: CIC | DJ14: CIC | DK14: CIC | DL14: CIC | DM14: CIC | DN14: CIC | DO14: CIC | DP14: CIC | DQ14: CIC | DR14: CIC | DS14: CIC | DT14: CIC | DU14: CIC | DV14: CIC | DW14: CIC | DY14: CIC | DZ14: CIC | EA14: CIC | EB14: CIC | EC14: CIC | ED14: CIC | EE14: CIC | EF14: CIC | EG14: CIC | EH14: CIC | EI14: CIC | EJ14: CIC | EK14: CIC | EL14: CIC | EM14: CIC | EN14: CIC | EO14: CIC | EP14: CIC | EQ14: CIC | ER14: CIC | ES14: CIC | ET14: CIC | EU14: CIC | EV14: CIC | EX14: CIC | EY14: CIC | EZ14: CIC | FA14: CIC | FB14: CIC | FC14: CIC | FD14: CIC | FE14: CIC | FF14: CIC | FG14: CIC | FH14: CIC | FI14: CIC | FJ14: CIC | FK14: CIC | FL14: CIC | FM14: CIC | FN14: CIC | FO14: CIC | FP14: CIC | FQ14: CIC | FR14: CIC | FS14: CIC | FT14: CIC | FU14: CIC | FW14: CIC | FX14: CIC | FY14: CIC | FZ14: CIC | GA14: CIC | GB14: CIC | GC14: CIC | GD14: CIC | GE14: CIC | GF14: CIC | GG14: CIC | GH14: CIC | GI14: CIC | GJ14: CIC | GK14: CIC | GL14: CIC | GM14: CIC | GN14: CIC | GO14: CIC | GP14: CIC | GQ14: CIC | GR14: CIC | GS14: CIC | GT14: CIC
C15: Closed Tariff - 15+ Connections | D15: CIC | E15: CIC | F15: CIC | G15: CIC | H15: CIC | I15: CIC | J15: CIC | K15: CIC | L15: CIC | M15: CIC | N15: CIC | O15: CIC | P15: CIC | Q15: CIC | R15: CIC | S15: CIC | T15: CIC | U15: CIC | V15: CIC | W15: CIC | X15: CIC | Y15: CIC | Z15: CIC | AA15: CIC | AB15: 0 | AC15: CIC | AD15: CIC | AE15: CIC | AF15: CIC | AG15: CIC | AH15: CIC | AI15: CIC | AJ15: CIC | AK15: CIC | AL15: CIC | AM15: CIC | AN15: CIC | AO15: CIC | AP15: CIC | AQ15: CIC | AR15: CIC | AS15: CIC | AT15: CIC | AU15: CIC | AV15: CIC | AW15: CIC | AX15: CIC | AY15: CIC | AZ15: CIC | BA15: 0 | BB15: CIC | BC15: CIC | BD15: CIC | BE15: CIC | BF15: CIC | BG15: CIC | BH15: CIC | BI15: CIC | BJ15: CIC | BK15: CIC | BL15: CIC | BM15: CIC | BN15: CIC | BO15: CIC | BP15: CIC | BQ15: CIC | BR15: CIC | BS15: CIC | BT15: CIC | BU15: CIC | BV15: CIC | BW15: CIC | BX15: CIC | BY15: CIC | CA15: CIC | CB15: CIC | CC15: CIC | CD15: CIC | CE15: CIC | CF15: CIC | CG15: CIC | CH15: CIC | CI15: CIC | CJ15: CIC | CK15: CIC | CL15: CIC | CM15: CIC | CN15: CIC | CO15: CIC | CP15: CIC | CQ15: CIC | CR15: CIC | CS15: CIC | CT15: CIC | CU15: CIC | CV15: CIC | CW15: CIC | CX15: CIC | CZ15: CIC | DA15: CIC | DB15: CIC | DC15: CIC | DD15: CIC | DE15: CIC | DF15: CIC | DG15: CIC | DH15: CIC | DI15: CIC | DJ15: CIC | DK15: CIC | DL15: CIC | DM15: CIC | DN15: CIC | DO15: CIC | DP15: CIC | DQ15: CIC | DR15: CIC | DS15: CIC | DT15: CIC | DU15: CIC | DV15: CIC | DW15: CIC | DY15: CIC | DZ15: CIC | EA15: CIC | EB15: CIC | EC15: CIC | ED15: CIC | EE15: CIC | EF15: CIC | EG15: CIC | EH15: CIC | EI15: CIC | EJ15: CIC | EK15: CIC | EL15: CIC | EM15: CIC | EN15: CIC | EO15: CIC | EP15: CIC | EQ15: CIC | ER15: CIC | ES15: CIC | ET15: CIC | EU15: CIC | EV15: CIC | EX15: CIC | EY15: CIC | EZ15: CIC | FA15: CIC | FB15: CIC | FC15: CIC | FD15: CIC | FE15: CIC | FF15: CIC | FG15: CIC | FH15: CIC | FI15: CIC | FJ15: CIC | FK15: CIC | FL15: CIC | FM15: CIC | FN15: CIC | FO15: CIC | FP15: CIC | FQ15: CIC | FR15: CIC | FS15: CIC | FT15: CIC | FU15: CIC | FW15: CIC | FX15: CIC | FY15: CIC | FZ15: CIC | GA15: CIC | GB15: CIC | GC15: CIC | GD15: CIC | GE15: CIC | GF15: CIC | GG15: CIC | GH15: CIC | GI15: CIC | GJ15: CIC | GK15: CIC | GL15: CIC | GM15: CIC | GN15: CIC | GO15: CIC | GP15: CIC | GQ15: CIC | GR15: CIC | GS15: CIC | GT15: CIC
C16: Large Business Metering Tariffs | D16: 0 | E16: 0 | F16: 0 | G16: 0 | H16: 0 | I16: 0 | J16: 0 | K16: 0 | L16: 0 | M16: 0 | N16: 0 | O16: 0 | P16: 0 | Q16: 0 | R16: 0 | S16: 0 | T16: 0 | U16: 0 | V16: 0 | W16: 0 | X16: 0 | Y16: 0 | Z16: 0 | AA16: 0 | AB16: 0 | AC16: 0 | AD16: 0 | AE16: 0 | AF16: 0 | AG16: 0 | AH16: 0 | AI16: 0 | AJ16: 0 | AK16: 0 | AL16: 0 | AM16: 0 | AN16: 0 | AO16: 0 | AP16: 0 | AQ16: 0 | AR16: 0 | AS16: 0 | AT16: 0 | AU16: 0 | AV16: 0 | AW16: 0 | AX16: 0 | AY16: 0 | AZ16: 0 | BA16: 0 | BB16: 0 | BC16: 0 | BD16: 0 | BE16: 0 | BF16: 0 | BG16: 0 | BH16: 0 | BI16: 0 | BJ16: 0 | BK16: 0 | BL16: 0 | BM16: 0 | BN16: 0 | BO16: 0 | BP16: 0 | BQ16: 0 | BR16: 0 | BS16: 0 | BT16: 0 | BU16: 0 | BV16: 0 | BW16: 0 | BX16: 0 | BY16: 0 | CA16: 0 | CB16: 0 | CC16: 0 | CD16: 0 | CE16: 0 | CF16: 0 | CG16: 0 | CH16: 0 | CI16: 0 | CJ16: 0 | CK16: 0 | CL16: 0 | CM16: 0 | CN16: 0 | CO16: 0 | CP16: 0 | CQ16: 0 | CR16: 0 | CS16: 0 | CT16: 0 | CU16: 0 | CV16: 0 | CW16: 0 | CX16: 0 | CZ16: 0 | DA16: 0 | DB16: 0 | DC16: 0 | DD16: 0 | DE16: 0 | DF16: 0 | DG16: 0 | DH16: 0 | DI16: 0 | DJ16: 0 | DK16: 0 | DL16: 0 | DM16: 0 | DN16: 0 | DO16: 0 | DP16: 0 | DQ16: 0 | DR16: 0 | DS16: 0 | DT16: 0 | DU16: 0 | DV16: 0 | DW16: 0 | DY16: 0 | DZ16: 0 | EA16: 0 | EB16: 0 | EC16: 0 | ED16: 0 | EE16: 0 | EF16: 0 | EG16: 0 | EH16: 0 | EI16: 0 | EJ16: 0 | EK16: 0 | EL16: 0 | EM16: 0 | EN16: 0 | EO16: 0 | EP16: 0 | EQ16: 0 | ER16: 0 | ES16: 0 | ET16: 0 | EU16: 0 | EV16: 0 | EX16: 0 | EY16: 0 | EZ16: 0 | FA16: 0 | FB16: 0 | FC16: 0 | FD16: 0 | FE16: 0 | FF16: 0 | FG16: 0 | FH16: 0 | FI16: 0 | FJ16: 0 | FK16: 0 | FL16: 0 | FM16: 0 | FN16: 0 | FO16: 0 | FP16: 0 | FQ16: 0 | FR16: 0 | FS16: 0 | FT16: 0 | FU16: 0 | FW16: 0 | FX16: 0 | FY16: 0 | FZ16: 0 | GA16: 0 | GB16: 0 | GC16: 0 | GD16: 0 | GE16: 0 | GF16: 0 | GG16: 0 | GH16: 0 | GI16: 0 | GJ16: 0 | GK16: 0 | GL16: 0 | GM16: 0 | GN16: 0 | GO16: 0 | GP16: 0 | GQ16: 0 | GR16: 0 | GS16: 0 | GT16: 0
C17: Metering - Single Meter | D17: 0 | E17: 0 | F17: 0 | G17: 0 | H17: 0 | I17: 0 | J17: 0 | K17: 0 | L17: 0 | M17: 0 | N17: 0 | O17: 0 | P17: 0 | Q17: 0 | R17: 0 | S17: 0 | T17: 0 | U17: 0 | V17: 0 | W17: 0 | X17: 0 | Y17: 0 | Z17: 0 | AA17: 0 | AB17: 0 | AC17: 0 | AD17: 0 | AE17: 0 | AF17: 0 | AG17: 0 | AH17: 0 | AI17: 0 | AJ17: 0 | AK17: 0 | AL17: 0 | AM17: 0 | AN17: 0 | AO17: 0 | AP17: 0 | AQ17: 0 | AR17: 0 | AS17: 0 | AT17: 0 | AU17: 0 | AV17: 0 | AW17: 0 | AX17: 0 | AY17: 0 | AZ17: 0 | BA17: 0 | BB17: 0 | BC17: 0 | BD17: 0 | BE17: 0 | BF17: 0 | BG17: 0 | BH17: 0 | BI17: 0 | BJ17: 0 | BK17: 0 | BL17: 0 | BM17: 0 | BN17: 0 | BO17: 0 | BP17: 0 | BQ17: 0 | BR17: 0 | BS17: 0 | BT17: 0 | BU17: 0 | BV17: 0 | BW17: 0 | BX17: 0 | BY17: 0 | CA17: 0 | CB17: 0 | CC17: 0 | CD17: 0 | CE17: 0 | CF17: 0 | CG17: 0 | CH17: 0 | CI17: 0 | CJ17: 0 | CK17: 0 | CL17: 0 | CM17: 0 | CN17: 0 | CO17: 0 | CP17: 0 | CQ17: 0 | CR17: 0 | CS17: 0 | CT17: 0 | CU17: 0 | CV17: 0 | CW17: 0 | CX17: 0 | CZ17: 0 | DA17: 0 | DB17: 0 | DC17: 0 | DD17: 0 | DE17: 0 | DF17: 0 | DG17: 0 | DH17: 0 | DI17: 0 | DJ17: 0 | DK17: 0 | DL17: 0 | DM17: 0 | DN17: 0 | DO17: 0 | DP17: 0 | DQ17: 0 | DR17: 0 | DS17: 0 | DT17: 0 | DU17: 0 | DV17: 0 | DW17: 0 | DY17: 0 | DZ17: 0 | EA17: 0 | EB17: 0 | EC17: 0 | ED17: 0 | EE17: 0 | EF17: 0 | EG17: 0 | EH17: 0 | EI17: 0 | EJ17: 0 | EK17: 0 | EL17: 0 | EM17: 0 | EN17: 0 | EO17: 0 | EP17: 0 | EQ17: 0 | ER17: 0 | ES17: 0 | ET17: 0 | EU17: 0 | EV17: 0 | EX17: 0 | EY17: 0 | EZ17: 0 | FA17: 0 | FB17: 0 | FC17: 0 | FD17: 0 | FE17: 0 | FF17: 0 | FG17: 0 | FH17: 0 | FI17: 0 | FJ17: 0 | FK17: 0 | FL17: 0 | FM17: 0 | FN17: 0 | FO17: 0 | FP17: 0 | FQ17: 0 | FR17: 0 | FS17: 0 | FT17: 0 | FU17: 0 | FW17: 0 | FX17: 0 | FY17: 0 | FZ17: 0 | GA17: 0 | GB17: 0 | GC17: 0 | GD17: 0 | GE17: 0 | GF17: 0 | GG17: 0 | GH17: 0 | GI17: 0 | GJ17: 0 | GK17: 0 | GL17: 0 | GM17: 0 | GN17: 0 | GO17: 0 | GP17: 0 | GQ17: 0 | GR17: 0 | GS17: 0 | GT17: 0
C18: MHQ < 16 GJ/hr | D18: 24.79069767 | E18: 25.0507805 | F18: 25.99544263 | G18: 25.99544263 | H18: 25.99544263 | I18: 25.99544263 | J18: 25.37650352 | K18: 25.37650352 | L18: 24.1386253 | M18: 23.51968619 | N18: 23.51968619 | O18: 23.51968619 | P18: 23.51968619 | Q18: 23.51968619 | R18: 23.51968619 | S18: 23.51968619 | T18: 23.51968619 | U18: 23.51968619 | V18: 23.51968619 | W18: 16.71135598 | X18: 16.71135598 | Y18: 16.71135598 | Z18: 16.71135598 | AA18: 11.14090399 | AB18: 0 | AC18: 0 | AD18: 0 | AE18: 0 | AF18: 0 | AG18: 0 | AH18: 0 | AI18: 0 | AJ18: 0 | AK18: 0 | AL18: 0 | AM18: 0 | AN18: 0 | AO18: 0 | AP18: 0 | AQ18: 0 | AR18: 0 | AS18: 0 | AT18: 0 | AU18: 0 | AV18: 0 | AW18: 0 | AX18: 0 | AY18: 0 | AZ18: 0 | BA18: 0 | BB18: 0 | BC18: 0 | BD18: 0 | BE18: 0 | BF18: 0 | BG18: 0 | BH18: 0 | BI18: 0 | BJ18: 0 | BK18: 0 | BL18: 0 | BM18: 0 | BN18: 0 | BO18: 0 | BP18: 0 | BQ18: 0 | BR18: 0 | BS18: 0 | BT18: 0 | BU18: 0 | BV18: 0 | BW18: 0 | BX18: 0 | BY18: 0 | CA18: 0 | CB18: 0 | CC18: 0 | CD18: 0 | CE18: 0 | CF18: 0 | CG18: 0 | CH18: 0 | CI18: 0 | CJ18: 0 | CK18: 0 | CL18: 0 | CM18: 0 | CN18: 0 | CO18: 0 | CP18: 0 | CQ18: 0 | CR18: 0 | CS18: 0 | CT18: 0 | CU18: 0 | CV18: 0 | CW18: 0 | CX18: 0 | CZ18: 0 | DA18: 0 | DB18: 0 | DC18: 0 | DD18: 0 | DE18: 0 | DF18: 0 | DG18: 0 | DH18: 0 | DI18: 0 | DJ18: 0 | DK18: 0 | DL18: 0 | DM18: 0 | DN18: 0 | DO18: 0 | DP18: 0 | DQ18: 0 | DR18: 0 | DS18: 0 | DT18: 0 | DU18: 0 | DV18: 0 | DW18: 0 | DY18: 0 | DZ18: 0 | EA18: 0 | EB18: 0 | EC18: 0 | ED18: 0 | EE18: 0 | EF18: 0 | EG18: 0 | EH18: 0 | EI18: 0 | EJ18: 0 | EK18: 0 | EL18: 0 | EM18: 0 | EN18: 0 | EO18: 0 | EP18: 0 | EQ18: 0 | ER18: 0 | ES18: 0 | ET18: 0 | EU18: 0 | EV18: 0 | EX18: 0 | EY18: 0 | EZ18: 0 | FA18: 0 | FB18: 0 | FC18: 0 | FD18: 0 | FE18: 0 | FF18: 0 | FG18: 0 | FH18: 0 | FI18: 0 | FJ18: 0 | FK18: 0 | FL18: 0 | FM18: 0 | FN18: 0 | FO18: 0 | FP18: 0 | FQ18: 0 | FR18: 0 | FS18: 0 | FT18: 0 | FU18: 0 | FW18: 0 | FX18: 0 | FY18: 0 | FZ18: 0 | GA18: 0 | GB18: 0 | GC18: 0 | GD18: 0 | GE18: 0 | GF18: 0 | GG18: 0 | GH18: 0 | GI18: 0 | GJ18: 0 | GK18: 0 | GL18: 0 | GM18: 0 | GN18: 0 | GO18: 0 | GP18: 0 | GQ18: 0 | GR18: 0 | GS18: 0 | GT18: 0
C19: 16 to < 50 GJ/hr | D19: 11.44186047 | E19: 11.56189869 | F19: 12.03287671 | G19: 12.03287671 | H19: 12.03287671 | I19: 12.03287671 | J19: 11.74637965 | K19: 11.74637965 | L19: 11.17338552 | M19: 10.88688845 | N19: 10.88688845 | O19: 10.88688845 | P19: 10.88688845 | Q19: 10.88688845 | R19: 10.88688845 | S19: 10.88688845 | T19: 10.88688845 | U19: 10.88688845 | V19: 10.88688845 | W19: 7.735420744 | X19: 7.735420744 | Y19: 7.735420744 | Z19: 7.735420744 | AA19: 5.156947162 | AB19: 0 | AC19: 0 | AD19: 0 | AE19: 0 | AF19: 0 | AG19: 0 | AH19: 0 | AI19: 0 | AJ19: 0 | AK19: 0 | AL19: 0 | AM19: 0 | AN19: 0 | AO19: 0 | AP19: 0 | AQ19: 0 | AR19: 0 | AS19: 0 | AT19: 0 | AU19: 0 | AV19: 0 | AW19: 0 | AX19: 0 | AY19: 0 | AZ19: 0 | BA19: 0 | BB19: 0 | BC19: 0 | BD19: 0 | BE19: 0 | BF19: 0 | BG19: 0 | BH19: 0 | BI19: 0 | BJ19: 0 | BK19: 0 | BL19: 0 | BM19: 0 | BN19: 0 | BO19: 0 | BP19: 0 | BQ19: 0 | BR19: 0 | BS19: 0 | BT19: 0 | BU19: 0 | BV19: 0 | BW19: 0 | BX19: 0 | BY19: 0 | CA19: 0 | CB19: 0 | CC19: 0 | CD19: 0 | CE19: 0 | CF19: 0 | CG19: 0 | CH19: 0 | CI19: 0 | CJ19: 0 | CK19: 0 | CL19: 0 | CM19: 0 | CN19: 0 | CO19: 0 | CP19: 0 | CQ19: 0 | CR19: 0 | CS19: 0 | CT19: 0 | CU19: 0 | CV19: 0 | CW19: 0 | CX19: 0 | CZ19: 0 | DA19: 0 | DB19: 0 | DC19: 0 | DD19: 0 | DE19: 0 | DF19: 0 | DG19: 0 | DH19: 0 | DI19: 0 | DJ19: 0 | DK19: 0 | DL19: 0 | DM19: 0 | DN19: 0 | DO19: 0 | DP19: 0 | DQ19: 0 | DR19: 0 | DS19: 0 | DT19: 0 | DU19: 0 | DV19: 0 | DW19: 0 | DY19: 0 | DZ19: 0 | EA19: 0 | EB19: 0 | EC19: 0 | ED19: 0 | EE19: 0 | EF19: 0 | EG19: 0 | EH19: 0 | EI19: 0 | EJ19: 0 | EK19: 0 | EL19: 0 | EM19: 0 | EN19: 0 | EO19: 0 | EP19: 0 | EQ19: 0 | ER19: 0 | ES19: 0 | ET19: 0 | EU19: 0 | EV19: 0 | EX19: 0 | EY19: 0 | EZ19: 0 | FA19: 0 | FB19: 0 | FC19: 0 | FD19: 0 | FE19: 0 | FF19: 0 | FG19: 0 | FH19: 0 | FI19: 0 | FJ19: 0 | FK19: 0 | FL19: 0 | FM19: 0 | FN19: 0 | FO19: 0 | FP19: 0 | FQ19: 0 | FR19: 0 | FS19: 0 | FT19: 0 | FU19: 0 | FW19: 0 | FX19: 0 | FY19: 0 | FZ19: 0 | GA19: 0 | GB19: 0 | GC19: 0 | GD19: 0 | GE19: 0 | GF19: 0 | GG19: 0 | GH19: 0 | GI19: 0 | GJ19: 0 | GK19: 0 | GL19: 0 | GM19: 0 | GN19: 0 | GO19: 0 | GP19: 0 | GQ19: 0 | GR19: 0 | GS19: 0 | GT19: 0
C20: 50 to < 100 GJ/hr | D20: CIC | E20: CIC | F20: CIC | G20: CIC | H20: CIC | I20: CIC | J20: CIC | K20: CIC | L20: CIC | M20: CIC | N20: CIC | O20: CIC | P20: CIC | Q20: CIC | R20: CIC | S20: CIC | T20: CIC | U20: CIC | V20: CIC | W20: CIC | X20: CIC | Y20: CIC | Z20: CIC | AA20: CIC | AB20: 0 | AC20: CIC | AD20: CIC | AE20: CIC | AF20: CIC | AG20: CIC | AH20: CIC | AI20: CIC | AJ20: CIC | AK20: CIC | AL20: CIC | AM20: CIC | AN20: CIC | AO20: CIC | AP20: CIC | AQ20: CIC | AR20: CIC | AS20: CIC | AT20: CIC | AU20: CIC | AV20: CIC | AW20: CIC | AX20: CIC | AY20: CIC | AZ20: CIC | BA20: 0 | BB20: CIC | BC20: CIC | BD20: CIC | BE20: CIC | BF20: CIC | BG20: CIC | BH20: CIC | BI20: CIC | BJ20: CIC | BK20: CIC | BL20: CIC | BM20: CIC | BN20: CIC | BO20: CIC | BP20: CIC | BQ20: CIC | BR20: CIC | BS20: CIC | BT20: CIC | BU20: CIC | BV20: CIC | BW20: CIC | BX20: CIC | BY20: CIC | CA20: CIC | CB20: CIC | CC20: CIC | CD20: CIC | CE20: CIC | CF20: CIC | CG20: CIC | CH20: CIC | CI20: CIC | CJ20: CIC | CK20: CIC | CL20: CIC | CM20: CIC | CN20: CIC | CO20: CIC | CP20: CIC | CQ20: CIC | CR20: CIC | CS20: CIC | CT20: CIC | CU20: CIC | CV20: CIC | CW20: CIC | CX20: CIC | CZ20: CIC | DA20: CIC | DB20: CIC | DC20: CIC | DD20: CIC | DE20: CIC | DF20: CIC | DG20: CIC | DH20: CIC | DI20: CIC | DJ20: CIC | DK20: CIC | DL20: CIC | DM20: CIC | DN20: CIC | DO20: CIC | DP20: CIC | DQ20: CIC | DR20: CIC | DS20: CIC | DT20: CIC | DU20: CIC | DV20: CIC | DW20: CIC | DY20: CIC | DZ20: CIC | EA20: CIC | EB20: CIC | EC20: CIC | ED20: CIC | EE20: CIC | EF20: CIC | EG20: CIC | EH20: CIC | EI20: CIC | EJ20: CIC | EK20: CIC | EL20: CIC | EM20: CIC | EN20: CIC | EO20: CIC | EP20: CIC | EQ20: CIC | ER20: CIC | ES20: CIC | ET20: CIC | EU20: CIC | EV20: CIC | EX20: CIC | EY20: CIC | EZ20: CIC | FA20: CIC | FB20: CIC | FC20: CIC | FD20: CIC | FE20: CIC | FF20: CIC | FG20: CIC | FH20: CIC | FI20: CIC | FJ20: CIC | FK20: CIC | FL20: CIC | FM20: CIC | FN20: CIC | FO20: CIC | FP20: CIC | FQ20: CIC | FR20: CIC | FS20: CIC | FT20: CIC | FU20: CIC | FW20: CIC | FX20: CIC | FY20: CIC | FZ20: CIC | GA20: CIC | GB20: CIC | GC20: CIC | GD20: CIC | GE20: CIC | GF20: CIC | GG20: CIC | GH20: CIC | GI20: CIC | GJ20: CIC | GK20: CIC | GL20: CIC | GM20: CIC | GN20: CIC | GO20: CIC | GP20: CIC | GQ20: CIC | GR20: CIC | GS20: CIC | GT20: CIC
C21: 100 to < 1000 GJ/hr | D21: 0 | E21: 0 | F21: 0 | G21: 0 | H21: 0 | I21: 0 | J21: 0 | K21: 0 | L21: 0 | M21: 0 | N21: 0 | O21: 0 | P21: 0 | Q21: 0 | R21: 0 | S21: 0 | T21: 0 | U21: 0 | V21: 0 | W21: 0 | X21: 0 | Y21: 0 | Z21: 0 | AA21: 0 | AB21: 0 | AC21: 0 | AD21: 0 | AE21: 0 | AF21: 0 | AG21: 0 | AH21: 0 | AI21: 0 | AJ21: 0 | AK21: 0 | AL21: 0 | AM21: 0 | AN21: 0 | AO21: 0 | AP21: 0 | AQ21: 0 | AR21: 0 | AS21: 0 | AT21: 0 | AU21: 0 | AV21: 0 | AW21: 0 | AX21: 0 | AY21: 0 | AZ21: 0 | BA21: 0 | BB21: 0 | BC21: 0 | BD21: 0 | BE21: 0 | BF21: 0 | BG21: 0 | BH21: 0 | BI21: 0 | BJ21: 0 | BK21: 0 | BL21: 0 | BM21: 0 | BN21: 0 | BO21: 0 | BP21: 0 | BQ21: 0 | BR21: 0 | BS21: 0 | BT21: 0 | BU21: 0 | BV21: 0 | BW21: 0 | BX21: 0 | BY21: 0 | CA21: 0 | CB21: 0 | CC21: 0 | CD21: 0 | CE21: 0 | CF21: 0 | CG21: 0 | CH21: 0 | CI21: 0 | CJ21: 0 | CK21: 0 | CL21: 0 | CM21: 0 | CN21: 0 | CO21: 0 | CP21: 0 | CQ21: 0 | CR21: 0 | CS21: 0 | CT21: 0 | CU21: 0 | CV21: 0 | CW21: 0 | CX21: 0 | CZ21: 0 | DA21: 0 | DB21: 0 | DC21: 0 | DD21: 0 | DE21: 0 | DF21: 0 | DG21: 0 | DH21: 0 | DI21: 0 | DJ21: 0 | DK21: 0 | DL21: 0 | DM21: 0 | DN21: 0 | DO21: 0 | DP21: 0 | DQ21: 0 | DR21: 0 | DS21: 0 | DT21: 0 | DU21: 0 | DV21: 0 | DW21: 0 | DY21: 0 | DZ21: 0 | EA21: 0 | EB21: 0 | EC21: 0 | ED21: 0 | EE21: 0 | EF21: 0 | EG21: 0 | EH21: 0 | EI21: 0 | EJ21: 0 | EK21: 0 | EL21: 0 | EM21: 0 | EN21: 0 | EO21: 0 | EP21: 0 | EQ21: 0 | ER21: 0 | ES21: 0 | ET21: 0 | EU21: 0 | EV21: 0 | EX21: 0 | EY21: 0 | EZ21: 0 | FA21: 0 | FB21: 0 | FC21: 0 | FD21: 0 | FE21: 0 | FF21: 0 | FG21: 0 | FH21: 0 | FI21: 0 | FJ21: 0 | FK21: 0 | FL21: 0 | FM21: 0 | FN21: 0 | FO21: 0 | FP21: 0 | FQ21: 0 | FR21: 0 | FS21: 0 | FT21: 0 | FU21: 0 | FW21: 0 | FX21: 0 | FY21: 0 | FZ21: 0 | GA21: 0 | GB21: 0 | GC21: 0 | GD21: 0 | GE21: 0 | GF21: 0 | GG21: 0 | GH21: 0 | GI21: 0 | GJ21: 0 | GK21: 0 | GL21: 0 | GM21: 0 | GN21: 0 | GO21: 0 | GP21: 0 | GQ21: 0 | GR21: 0 | GS21: 0 | GT21: 0
C22: Metering Double Meter | D22: 0 | E22: 0 | F22: 0 | G22: 0 | H22: 0 | I22: 0 | J22: 0 | K22: 0 | L22: 0 | M22: 0 | N22: 0 | O22: 0 | P22: 0 | Q22: 0 | R22: 0 | S22: 0 | T22: 0 | U22: 0 | V22: 0 | W22: 0 | X22: 0 | Y22: 0 | Z22: 0 | AA22: 0 | AB22: 0 | AC22: 0 | AD22: 0 | AE22: 0 | AF22: 0 | AG22: 0 | AH22: 0 | AI22: 0 | AJ22: 0 | AK22: 0 | AL22: 0 | AM22: 0 | AN22: 0 | AO22: 0 | AP22: 0 | AQ22: 0 | AR22: 0 | AS22: 0 | AT22: 0 | AU22: 0 | AV22: 0 | AW22: 0 | AX22: 0 | AY22: 0 | AZ22: 0 | BA22: 0 | BB22: 0 | BC22: 0 | BD22: 0 | BE22: 0 | BF22: 0 | BG22: 0 | BH22: 0 | BI22: 0 | BJ22: 0 | BK22: 0 | BL22: 0 | BM22: 0 | BN22: 0 | BO22: 0 | BP22: 0 | BQ22: 0 | BR22: 0 | BS22: 0 | BT22: 0 | BU22: 0 | BV22: 0 | BW22: 0 | BX22: 0 | BY22: 0 | CA22: 0 | CB22: 0 | CC22: 0 | CD22: 0 | CE22: 0 | CF22: 0 | CG22: 0 | CH22: 0 | CI22: 0 | CJ22: 0 | CK22: 0 | CL22: 0 | CM22: 0 | CN22: 0 | CO22: 0 | CP22: 0 | CQ22: 0 | CR22: 0 | CS22: 0 | CT22: 0 | CU22: 0 | CV22: 0 | CW22: 0 | CX22: 0 | CZ22: 0 | DA22: 0 | DB22: 0 | DC22: 0 | DD22: 0 | DE22: 0 | DF22: 0 | DG22: 0 | DH22: 0 | DI22: 0 | DJ22: 0 | DK22: 0 | DL22: 0 | DM22: 0 | DN22: 0 | DO22: 0 | DP22: 0 | DQ22: 0 | DR22: 0 | DS22: 0 | DT22: 0 | DU22: 0 | DV22: 0 | DW22: 0 | DY22: 0 | DZ22: 0 | EA22: 0 | EB22: 0 | EC22: 0 | ED22: 0 | EE22: 0 | EF22: 0 | EG22: 0 | EH22: 0 | EI22: 0 | EJ22: 0 | EK22: 0 | EL22: 0 | EM22: 0 | EN22: 0 | EO22: 0 | EP22: 0 | EQ22: 0 | ER22: 0 | ES22: 0 | ET22: 0 | EU22: 0 | EV22: 0 | EX22: 0 | EY22: 0 | EZ22: 0 | FA22: 0 | FB22: 0 | FC22: 0 | FD22: 0 | FE22: 0 | FF22: 0 | FG22: 0 | FH22: 0 | FI22: 0 | FJ22: 0 | FK22: 0 | FL22: 0 | FM22: 0 | FN22: 0 | FO22: 0 | FP22: 0 | FQ22: 0 | FR22: 0 | FS22: 0 | FT22: 0 | FU22: 0 | FW22: 0 | FX22: 0 | FY22: 0 | FZ22: 0 | GA22: 0 | GB22: 0 | GC22: 0 | GD22: 0 | GE22: 0 | GF22: 0 | GG22: 0 | GH22: 0 | GI22: 0 | GJ22: 0 | GK22: 0 | GL22: 0 | GM22: 0 | GN22: 0 | GO22: 0 | GP22: 0 | GQ22: 0 | GR22: 0 | GS22: 0 | GT22: 0
C23: MHQ < 16 GJ/hr | D23: 0 | E23: 0 | F23: 0 | G23: 0 | H23: 0 | I23: 0 | J23: 0 | K23: 0 | L23: 0 | M23: 0 | N23: 0 | O23: 0 | P23: 0 | Q23: 0 | R23: 0 | S23: 0 | T23: 0 | U23: 0 | V23: 0 | W23: 0 | X23: 0 | Y23: 0 | Z23: 0 | AA23: 0 | AB23: 0 | AC23: 0 | AD23: 0 | AE23: 0 | AF23: 0 | AG23: 0 | AH23: 0 | AI23: 0 | AJ23: 0 | AK23: 0 | AL23: 0 | AM23: 0 | AN23: 0 | AO23: 0 | AP23: 0 | AQ23: 0 | AR23: 0 | AS23: 0 | AT23: 0 | AU23: 0 | AV23: 0 | AW23: 0 | AX23: 0 | AY23: 0 | AZ23: 0 | BA23: 0 | BB23: 0 | BC23: 0 | BD23: 0 | BE23: 0 | BF23: 0 | BG23: 0 | BH23: 0 | BI23: 0 | BJ23: 0 | BK23: 0 | BL23: 0 | BM23: 0 | BN23: 0 | BO23: 0 | BP23: 0 | BQ23: 0 | BR23: 0 | BS23: 0 | BT23: 0 | BU23: 0 | BV23: 0 | BW23: 0 | BX23: 0 | BY23: 0 | CA23: 0 | CB23: 0 | CC23: 0 | CD23: 0 | CE23: 0 | CF23: 0 | CG23: 0 | CH23: 0 | CI23: 0 | CJ23: 0 | CK23: 0 | CL23: 0 | CM23: 0 | CN23: 0 | CO23: 0 | CP23: 0 | CQ23: 0 | CR23: 0 | CS23: 0 | CT23: 0 | CU23: 0 | CV23: 0 | CW23: 0 | CX23: 0 | CZ23: 0 | DA23: 0 | DB23: 0 | DC23: 0 | DD23: 0 | DE23: 0 | DF23: 0 | DG23: 0 | DH23: 0 | DI23: 0 | DJ23: 0 | DK23: 0 | DL23: 0 | DM23: 0 | DN23: 0 | DO23: 0 | DP23: 0 | DQ23: 0 | DR23: 0 | DS23: 0 | DT23: 0 | DU23: 0 | DV23: 0 | DW23: 0 | DY23: 0 | DZ23: 0 | EA23: 0 | EB23: 0 | EC23: 0 | ED23: 0 | EE23: 0 | EF23: 0 | EG23: 0 | EH23: 0 | EI23: 0 | EJ23: 0 | EK23: 0 | EL23: 0 | EM23: 0 | EN23: 0 | EO23: 0 | EP23: 0 | EQ23: 0 | ER23: 0 | ES23: 0 | ET23: 0 | EU23: 0 | EV23: 0 | EX23: 0 | EY23: 0 | EZ23: 0 | FA23: 0 | FB23: 0 | FC23: 0 | FD23: 0 | FE23: 0 | FF23: 0 | FG23: 0 | FH23: 0 | FI23: 0 | FJ23: 0 | FK23: 0 | FL23: 0 | FM23: 0 | FN23: 0 | FO23: 0 | FP23: 0 | FQ23: 0 | FR23: 0 | FS23: 0 | FT23: 0 | FU23: 0 | FW23: 0 | FX23: 0 | FY23: 0 | FZ23: 0 | GA23: 0 | GB23: 0 | GC23: 0 | GD23: 0 | GE23: 0 | GF23: 0 | GG23: 0 | GH23: 0 | GI23: 0 | GJ23: 0 | GK23: 0 | GL23: 0 | GM23: 0 | GN23: 0 | GO23: 0 | GP23: 0 | GQ23: 0 | GR23: 0 | GS23: 0 | GT23: 0
C24: 16 to < 50 GJ/hr | D24: CIC | E24: CIC | F24: CIC | G24: CIC | H24: CIC | I24: CIC | J24: CIC | K24: CIC | L24: CIC | M24: CIC | N24: CIC | O24: CIC | P24: CIC | Q24: CIC | R24: CIC | S24: CIC | T24: CIC | U24: CIC | V24: CIC | W24: CIC | X24: CIC | Y24: CIC | Z24: CIC | AA24: CIC | AB24: 0 | AC24: CIC | AD24: CIC | AE24: CIC | AF24: CIC | AG24: CIC | AH24: CIC | AI24: CIC | AJ24: CIC | AK24: CIC | AL24: CIC | AM24: CIC | AN24: CIC | AO24: CIC | AP24: CIC | AQ24: CIC | AR24: CIC | AS24: CIC | AT24: CIC | AU24: CIC | AV24: CIC | AW24: CIC | AX24: CIC | AY24: CIC | AZ24: CIC | BA24: 0 | BB24: CIC | BC24: CIC | BD24: CIC | BE24: CIC | BF24: CIC | BG24: CIC | BH24: CIC | BI24: CIC | BJ24: CIC | BK24: CIC | BL24: CIC | BM24: CIC | BN24: CIC | BO24: CIC | BP24: CIC | BQ24: CIC | BR24: CIC | BS24: CIC | BT24: CIC | BU24: CIC | BV24: CIC | BW24: CIC | BX24: CIC | BY24: CIC | CA24: CIC | CB24: CIC | CC24: CIC | CD24: CIC | CE24: CIC | CF24: CIC | CG24: CIC | CH24: CIC | CI24: CIC | CJ24: CIC | CK24: CIC | CL24: CIC | CM24: CIC | CN24: CIC | CO24: CIC | CP24: CIC | CQ24: CIC | CR24: CIC | CS24: CIC | CT24: CIC | CU24: CIC | CV24: CIC | CW24: CIC | CX24: CIC | CZ24: CIC | DA24: CIC | DB24: CIC | DC24: CIC | DD24: CIC | DE24: CIC | DF24: CIC | DG24: CIC | DH24: CIC | DI24: CIC | DJ24: CIC | DK24: CIC | DL24: CIC | DM24: CIC | DN24: CIC | DO24: CIC | DP24: CIC | DQ24: CIC | DR24: CIC | DS24: CIC | DT24: CIC | DU24: CIC | DV24: CIC | DW24: CIC | DY24: CIC | DZ24: CIC | EA24: CIC | EB24: CIC | EC24: CIC | ED24: CIC | EE24: CIC | EF24: CIC | EG24: CIC | EH24: CIC | EI24: CIC | EJ24: CIC | EK24: CIC | EL24: CIC | EM24: CIC | EN24: CIC | EO24: CIC | EP24: CIC | EQ24: CIC | ER24: CIC | ES24: CIC | ET24: CIC | EU24: CIC | EV24: CIC | EX24: CIC | EY24: CIC | EZ24: CIC | FA24: CIC | FB24: CIC | FC24: CIC | FD24: CIC | FE24: CIC | FF24: CIC | FG24: CIC | FH24: CIC | FI24: CIC | FJ24: CIC | FK24: CIC | FL24: CIC | FM24: CIC | FN24: CIC | FO24: CIC | FP24: CIC | FQ24: CIC | FR24: CIC | FS24: CIC | FT24: CIC | FU24: CIC | FW24: CIC | FX24: CIC | FY24: CIC | FZ24: CIC | GA24: CIC | GB24: CIC | GC24: CIC | GD24: CIC | GE24: CIC | GF24: CIC | GG24: CIC | GH24: CIC | GI24: CIC | GJ24: CIC | GK24: CIC | GL24: CIC | GM24: CIC | GN24: CIC | GO24: CIC | GP24: CIC | GQ24: CIC | GR24: CIC | GS24: CIC | GT24: CIC
C25: 50 to < 100 GJ/hr | D25: 0 | E25: 0 | F25: 0 | G25: 0 | H25: 0 | I25: 0 | J25: 0 | K25: 0 | L25: 0 | M25: 0 | N25: 0 | O25: 0 | P25: 0 | Q25: 0 | R25: 0 | S25: 0 | T25: 0 | U25: 0 | V25: 0 | W25: 0 | X25: 0 | Y25: 0 | Z25: 0 | AA25: 0 | AB25: 0 | AC25: 0 | AD25: 0 | AE25: 0 | AF25: 0 | AG25: 0 | AH25: 0 | AI25: 0 | AJ25: 0 | AK25: 0 | AL25: 0 | AM25: 0 | AN25: 0 | AO25: 0 | AP25: 0 | AQ25: 0 | AR25: 0 | AS25: 0 | AT25: 0 | AU25: 0 | AV25: 0 | AW25: 0 | AX25: 0 | AY25: 0 | AZ25: 0 | BA25: 0 | BB25: 0 | BC25: 0 | BD25: 0 | BE25: 0 | BF25: 0 | BG25: 0 | BH25: 0 | BI25: 0 | BJ25: 0 | BK25: 0 | BL25: 0 | BM25: 0 | BN25: 0 | BO25: 0 | BP25: 0 | BQ25: 0 | BR25: 0 | BS25: 0 | BT25: 0 | BU25: 0 | BV25: 0 | BW25: 0 | BX25: 0 | BY25: 0 | CA25: 0 | CB25: 0 | CC25: 0 | CD25: 0 | CE25: 0 | CF25: 0 | CG25: 0 | CH25: 0 | CI25: 0 | CJ25: 0 | CK25: 0 | CL25: 0 | CM25: 0 | CN25: 0 | CO25: 0 | CP25: 0 | CQ25: 0 | CR25: 0 | CS25: 0 | CT25: 0 | CU25: 0 | CV25: 0 | CW25: 0 | CX25: 0 | CZ25: 0 | DA25: 0 | DB25: 0 | DC25: 0 | DD25: 0 | DE25: 0 | DF25: 0 | DG25: 0 | DH25: 0 | DI25: 0 | DJ25: 0 | DK25: 0 | DL25: 0 | DM25: 0 | DN25: 0 | DO25: 0 | DP25: 0 | DQ25: 0 | DR25: 0 | DS25: 0 | DT25: 0 | DU25: 0 | DV25: 0 | DW25: 0 | DY25: 0 | DZ25: 0 | EA25: 0 | EB25: 0 | EC25: 0 | ED25: 0 | EE25: 0 | EF25: 0 | EG25: 0 | EH25: 0 | EI25: 0 | EJ25: 0 | EK25: 0 | EL25: 0 | EM25: 0 | EN25: 0 | EO25: 0 | EP25: 0 | EQ25: 0 | ER25: 0 | ES25: 0 | ET25: 0 | EU25: 0 | EV25: 0 | EX25: 0 | EY25: 0 | EZ25: 0 | FA25: 0 | FB25: 0 | FC25: 0 | FD25: 0 | FE25: 0 | FF25: 0 | FG25: 0 | FH25: 0 | FI25: 0 | FJ25: 0 | FK25: 0 | FL25: 0 | FM25: 0 | FN25: 0 | FO25: 0 | FP25: 0 | FQ25: 0 | FR25: 0 | FS25: 0 | FT25: 0 | FU25: 0 | FW25: 0 | FX25: 0 | FY25: 0 | FZ25: 0 | GA25: 0 | GB25: 0 | GC25: 0 | GD25: 0 | GE25: 0 | GF25: 0 | GG25: 0 | GH25: 0 | GI25: 0 | GJ25: 0 | GK25: 0 | GL25: 0 | GM25: 0 | GN25: 0 | GO25: 0 | GP25: 0 | GQ25: 0 | GR25: 0 | GS25: 0 | GT25: 0
C26: 100 to < 1000 GJ/hr | D26: 0 | E26: 0 | F26: 0 | G26: 0 | H26: 0 | I26: 0 | J26: 0 | K26: 0 | L26: 0 | M26: 0 | N26: 0 | O26: 0 | P26: 0 | Q26: 0 | R26: 0 | S26: 0 | T26: 0 | U26: 0 | V26: 0 | W26: 0 | X26: 0 | Y26: 0 | Z26: 0 | AA26: 0 | AB26: 0 | AC26: 0 | AD26: 0 | AE26: 0 | AF26: 0 | AG26: 0 | AH26: 0 | AI26: 0 | AJ26: 0 | AK26: 0 | AL26: 0 | AM26: 0 | AN26: 0 | AO26: 0 | AP26: 0 | AQ26: 0 | AR26: 0 | AS26: 0 | AT26: 0 | AU26: 0 | AV26: 0 | AW26: 0 | AX26: 0 | AY26: 0 | AZ26: 0 | BA26: 0 | BB26: 0 | BC26: 0 | BD26: 0 | BE26: 0 | BF26: 0 | BG26: 0 | BH26: 0 | BI26: 0 | BJ26: 0 | BK26: 0 | BL26: 0 | BM26: 0 | BN26: 0 | BO26: 0 | BP26: 0 | BQ26: 0 | BR26: 0 | BS26: 0 | BT26: 0 | BU26: 0 | BV26: 0 | BW26: 0 | BX26: 0 | BY26: 0 | CA26: 0 | CB26: 0 | CC26: 0 | CD26: 0 | CE26: 0 | CF26: 0 | CG26: 0 | CH26: 0 | CI26: 0 | CJ26: 0 | CK26: 0 | CL26: 0 | CM26: 0 | CN26: 0 | CO26: 0 | CP26: 0 | CQ26: 0 | CR26: 0 | CS26: 0 | CT26: 0 | CU26: 0 | CV26: 0 | CW26: 0 | CX26: 0 | CZ26: 0 | DA26: 0 | DB26: 0 | DC26: 0 | DD26: 0 | DE26: 0 | DF26: 0 | DG26: 0 | DH26: 0 | DI26: 0 | DJ26: 0 | DK26: 0 | DL26: 0 | DM26: 0 | DN26: 0 | DO26: 0 | DP26: 0 | DQ26: 0 | DR26: 0 | DS26: 0 | DT26: 0 | DU26: 0 | DV26: 0 | DW26: 0 | DY26: 0 | DZ26: 0 | EA26: 0 | EB26: 0 | EC26: 0 | ED26: 0 | EE26: 0 | EF26: 0 | EG26: 0 | EH26: 0 | EI26: 0 | EJ26: 0 | EK26: 0 | EL26: 0 | EM26: 0 | EN26: 0 | EO26: 0 | EP26: 0 | EQ26: 0 | ER26: 0 | ES26: 0 | ET26: 0 | EU26: 0 | EV26: 0 | EX26: 0 | EY26: 0 | EZ26: 0 | FA26: 0 | FB26: 0 | FC26: 0 | FD26: 0 | FE26: 0 | FF26: 0 | FG26: 0 | FH26: 0 | FI26: 0 | FJ26: 0 | FK26: 0 | FL26: 0 | FM26: 0 | FN26: 0 | FO26: 0 | FP26: 0 | FQ26: 0 | FR26: 0 | FS26: 0 | FT26: 0 | FU26: 0 | FW26: 0 | FX26: 0 | FY26: 0 | FZ26: 0 | GA26: 0 | GB26: 0 | GC26: 0 | GD26: 0 | GE26: 0 | GF26: 0 | GG26: 0 | GH26: 0 | GI26: 0 | GJ26: 0 | GK26: 0 | GL26: 0 | GM26: 0 | GN26: 0 | GO26: 0 | GP26: 0 | GQ26: 0 | GR26: 0 | GS26: 0 | GT26: 0
C27: Total | D27: 156360.5 | E27: 155174.9301 | F27: 154025.6178 | G27: 152394.2678 | H27: 149503.9657 | I27: 143225.5751 | J27: 133765.985 | K27: 123598.7722 | L27: 113288.7104 | M27: 103368.3794 | N27: 93143.17229 | O27: 82646.19197 | P27: 73029.70667 | Q27: 64288.40119 | R27: 56230.25159 | S27: 48875.69394 | T27: 42156.58147 | U27: 36161.2578 | V27: 30802.40274 | W27: 25691.93866 | X27: 20894.45636 | Y27: 16585.23085 | Z27: 12811.96733 | AA27: 5544.96285 | AC27: 1749406.234 | AD27: 1707500.16 | AE27: 1527717.704 | AF27: 1477262.182 | AG27: 1444952.667 | AH27: 1367363.861 | AI27: 1263528.071 | AJ27: 1154473.639 | AK27: 1044419.984 | AL27: 938423.481 | AM27: 842305.9096 | AN27: 745073.3474 | AO27: 656262.2536 | AP27: 577098.6793 | AQ27: 504232.6833 | AR27: 440284.2957 | AS27: 381738.7219 | AT27: 329139.8303 | AU27: 282546.6869 | AV27: 237127.8791 | AW27: 188025.3783 | AX27: 142985.6887 | AY27: 100467.0144 | AZ27: 0 | BB27: 3522793.977 | BC27: 3288537.056 | BD27: 2648013.358 | BE27: 2472416.571 | BF27: 2633572.542 | BG27: 2492841.242 | BH27: 2302544.411 | BI27: 2104406.98 | BJ27: 1906417.091 | BK27: 1717195.415 | BL27: 1549024.262 | BM27: 1381350.782 | BN27: 1228788.529 | BO27: 1093056.851 | BP27: 968640.0836 | BQ27: 859043.5949 | BR27: 756735.8279 | BS27: 663770.731 | BT27: 581173.0537 | BU27: 526351.5319 | BV27: 413675.2822 | BW27: 312465.2586 | BX27: 216199.0396 | BY27: 0 | CA27: 588489.3426 | CB27: 608109.4209 | CC27: 539080.5065 | CD27: 530576.7236 | CE27: 539731.8971 | CF27: 531708.0185 | CG27: 516837.6944 | CH27: 501287.5913 | CI27: 485547.1364 | CJ27: 470062.2337 | CK27: 456360.2224 | CL27: 442935.9534 | CM27: 430171.8159 | CN27: 418146.5727 | CO27: 406634.2417 | CP27: 396345.7983 | CQ27: 382331.2237 | CR27: 366444.9842 | CS27: 350782.2487 | CT27: 364863.7194 | CU27: 281706.4641 | CV27: 207558.8668 | CW27: 134602.7751 | CX27: 0 | CZ27: 904849.0671 | DA27: 991559.4526 | DB27: 853100.4357 | DC27: 830174.9475 | DD27: 915135.9914 | DE27: 904068.088 | DF27: 882385.0563 | DG27: 859738.0598 | DH27: 836762.5239 | DI27: 813795.7609 | DJ27: 794240.3351 | DK27: 775669.9329 | DL27: 757516.0448 | DM27: 739778.0813 | DN27: 722440.0273 | DO27: 705678.0728 | DP27: 681044.4883 | DQ27: 652391.8371 | DR27: 623590.0941 | DS27: 647296.7845 | DT27: 492866.7076 | DU27: 356186.4699 | DV27: 222539.2995 | DW27: 0 | DY27: 2023.349 | DZ27: 2030.021 | EA27: 2039.343 | EB27: 1986.096137 | EC27: 1980.404761 | ED27: 1963.83151 | EE27: 1890.324723 | EF27: 1855.253812 | EG27: 1767.783354 | EH27: 1677.509259 | EI27: 1668.014759 | EJ27: 1650.477579 | EK27: 1625.987559 | EL27: 1594.989231 | EM27: 1547.551265 | EN27: 1492.595785 | EO27: 1420.59103 | EP27: 1307.337267 | EQ27: 1130.62029 | ER27: 926.2731107 | ES27: 842.5165047 | ET27: 729.6583237 | EU27: 596.8386617 | EV27: 447.3759663 | EX27: 2425.31 | EY27: 2333.101 | EZ27: 2259.127 | FA27: 2086.284104 | FB27: 1992.691065 | FC27: 1896.608108 | FD27: 1814.596355 | FE27: 1696.021566 | FF27: 1579.568396 | FG27: 1528.830924 | FH27: 1436.171948 | FI27: 1350.940562 | FJ27: 1250.948483 | FK27: 1140.131719 | FL27: 1020.994398 | FM27: 878.1599188 | FN27: 743.4267689 | FO27: 643.361332 | FP27: 607.7196917 | FQ27: 505.2997428 | FR27: 415.1490999 | FS27: 361.977805 | FT27: 329.7159688 | FU27: 314.6467704 | FW27: 2353.875 | FX27: 2408.039 | FY27: 2001.234 | FZ27: 1770.093628 | GA27: 1646.353679 | GB27: 1536.625777 | GC27: 1442.163327 | GD27: 1384.885933 | GE27: 1344.553224 | GF27: 1305.477504 | GG27: 1133.980108 | GH27: 963.9633653 | GI27: 816.9518338 | GJ27: 688.2541394 | GK27: 585.8042245 | GL27: 512.6358767 | GM27: 448.7908394 | GN27: 392.7932853 | GO27: 336.8108653 | GP27: 285.4437479 | GQ27: 255.2861481 | GR27: 229.3339629 | GS27: 204.3500515 | GT27: 180.7756094
C28: Total throughput | D28: 7929965.154 | E28: 7818984.288 | F28: 6662275.323 | G28: 6372916.779 | H28: 6552733.274 | I28: 6272274.378 | J28: 5891237.244 | K28: 5505604.072 | L28: 5113843.66 | M28: 4744198.777 | N28: 4399069.446 | O28: 4054710.248 | P28: 3735161.426 | Q28: 3443391.074 | R28: 3170382.934 | S28: 2922532.082 | T28: 2675807.594 | U28: 2438674.061 | V28: 2218125.968 | W28: 2089456.354 | X28: 1650325.073 | Y28: 1255677.546 | Z28: 873042.0239 | AA28: 162290.06
B29: Alternative Forecast
C32: Tariff Quantities | D32: =D7 -> Customer numbers | E32: 0 | F32: 0 | G32: 0 | H32: 0 | I32: 0 | J32: 0 | K32: 0 | L32: 0 | M32: 0 | N32: 0 | O32: 0 | P32: 0 | Q32: 0 | R32: 0 | S32: 0 | T32: 0 | U32: 0 | V32: 0 | W32: 0 | X32: 0 | Y32: 0 | Z32: 0 | AA32: 0 | AC32: =AC7 -> Volumes - Throughput rate Block 1 ($/GJ) | AD32: 0 | AE32: 0 | AF32: 0 | AG32: 0 | AH32: 0 | AI32: 0 | AJ32: 0 | AK32: 0 | AL32: 0 | AM32: 0 | AN32: 0 | AO32: 0 | AP32: 0 | AQ32: 0 | AR32: 0 | AS32: 0 | AT32: 0 | AU32: 0 | AV32: 0 | AW32: 0 | AX32: 0 | AY32: 0 | AZ32: 0 | BB32: =BB7 -> Volumes - Throughput rate Block 2 ($/GJ) | BC32: 0 | BD32: 0 | BE32: 0 | BF32: 0 | BG32: 0 | BH32: 0 | BI32: 0 | BJ32: 0 | BK32: 0 | BL32: 0 | BM32: 0 | BN32: 0 | BO32: 0 | BP32: 0 | BQ32: 0 | BR32: 0 | BS32: 0 | BT32: 0 | BU32: 0 | BV32: 0 | BW32: 0 | BX32: 0 | BY32: 0 | CA32: =CA7 -> Volumes - Throughput rate Block 3 ($/GJ) | CZ32: =CZ7 -> Volumes - Throughput rate Block 4 ($/GJ) | DA32: 0 | DB32: 0 | DC32: 0 | DD32: 0 | DE32: 0 | DF32: 0 | DG32: 0 | DH32: 0 | DI32: 0 | DJ32: 0 | DK32: 0 | DL32: 0 | DM32: 0 | DN32: 0 | DO32: 0 | DP32: 0 | DQ32: 0 | DR32: 0 | DS32: 0 | DT32: 0 | DU32: 0 | DV32: 0 | DW32: 0 | DY32: =DY7 -> Volumes - Capacity rate Block 1 ($/GJ/CD pa) | EX32: =EX7 -> Volumes - Capacity rate Block 2 ($/GJ/CD pa) | FW32: =FW7 -> Volumes - Capacity rate Block 3 ($/GJ/CD pa)
C33: Year | D33: 2021-22 | E33: 2022-23 | F33: 2023-24 | G33: 2024-25 | H33: 2025-26 | I33: 2026-27 | J33: 2027-28 | K33: 2028-29 | L33: 2029-30 | M33: 2030-31 | N33: 2031-32 | O33: 2032-33 | P33: 2033-34 | Q33: 2034-35 | R33: 2035-36 | S33: 2036-37 | T33: 2037-38 | U33: 2038-39 | V33: 2039-40 | W33: 2040-41 | X33: 2041-42 | Y33: 2042-43 | Z33: 2043-44 | AA33: 2044-45 | AC33: 2021-22 | AD33: 2022-23 | AE33: 2023-24 | AF33: 2024-25 | AG33: 2025-26 | AH33: 2026-27 | AI33: 2027-28 | AJ33: 2028-29 | AK33: 2029-30 | AL33: 2030-31 | AM33: 2031-32 | AN33: 2032-33 | AO33: 2033-34 | AP33: 2034-35 | AQ33: 2035-36 | AR33: 2036-37 | AS33: 2037-38 | AT33: 2038-39 | AU33: 2039-40 | AV33: 2040-41 | AW33: 2041-42 | AX33: 2042-43 | AY33: 2043-44 | AZ33: 2044-45 | BB33: 2021-22 | BC33: 2022-23 | BD33: 2023-24 | BE33: 2024-25 | BF33: 2025-26 | BG33: 2026-27 | BH33: 2027-28 | BI33: 2028-29 | BJ33: 2029-30 | BK33: 2030-31 | BL33: 2031-32 | BM33: 2032-33 | BN33: 2033-34 | BO33: 2034-35 | BP33: 2035-36 | BQ33: 2036-37 | BR33: 2037-38 | BS33: 2038-39 | BT33: 2039-40 | BU33: 2040-41 | BV33: 2041-42 | BW33: 2042-43 | BX33: 2043-44 | BY33: 2044-45 | CA33: 2021-22 | CB33: 2022-23 | CC33: 2023-24 | CD33: 2024-25 | CE33: 2025-26 | CF33: 2026-27 | CG33: 2027-28 | CH33: 2028-29 | CI33: 2029-30 | CJ33: 2030-31 | CK33: 2031-32 | CL33: 2032-33 | CM33: 2033-34 | CN33: 2034-35 | CO33: 2035-36 | CP33: 2036-37 | CQ33: 2037-38 | CR33: 2038-39 | CS33: 2039-40 | CT33: 2040-41 | CU33: 2041-42 | CV33: 2042-43 | CW33: 2043-44 | CX33: 2044-45 | CZ33: 2021-22 | DA33: 2022-23 | DB33: 2023-24 | DC33: 2024-25 | DD33: 2025-26 | DE33: 2026-27 | DF33: 2027-28 | DG33: 2028-29 | DH33: 2029-30 | DI33: 2030-31 | DJ33: 2031-32 | DK33: 2032-33 | DL33: 2033-34 | DM33: 2034-35 | DN33: 2035-36 | DO33: 2036-37 | DP33: 2037-38 | DQ33: 2038-39 | DR33: 2039-40 | DS33: 2040-41 | DT33: 2041-42 | DU33: 2042-43 | DV33: 2043-44 | DW33: 2044-45 | DY33: 2021-22 | DZ33: 2022-23 | EA33: 2023-24 | EB33: 2024-25 | EC33: 2025-26 | ED33: 2026-27 | EE33: 2027-28 | EF33: 2028-29 | EG33: 2029-30 | EH33: 2030-31 | EI33: 2031-32 | EJ33: 2032-33 | EK33: 2033-34 | EL33: 2034-35 | EM33: 2035-36 | EN33: 2036-37 | EO33: 2037-38 | EP33: 2038-39 | EQ33: 2039-40 | ER33: 2040-41 | ES33: 2041-42 | ET33: 2042-43 | EU33: 2043-44 | EV33: 2044-45 | EX33: 2021-22 | EY33: 2022-23 | EZ33: 2023-24 | FA33: 2024-25 | FB33: 2025-26 | FC33: 2026-27 | FD33: 2027-28 | FE33: 2028-29 | FF33: 2029-30 | FG33: 2030-31 | FH33: 2031-32 | FI33: 2032-33 | FJ33: 2033-34 | FK33: 2034-35 | FL33: 2035-36 | FM33: 2036-37 | FN33: 2037-38 | FO33: 2038-39 | FP33: 2039-40 | FQ33: 2040-41 | FR33: 2041-42 | FS33: 2042-43 | FT33: 2043-44 | FU33: 2044-45 | FW33: 2021-22 | FX33: 2022-23 | FY33: 2023-24 | FZ33: 2024-25 | GA33: 2025-26 | GB33: 2026-27 | GC33: 2027-28 | GD33: 2028-29 | GE33: 2029-30 | GF33: 2030-31 | GG33: 2031-32 | GH33: 2032-33 | GI33: 2033-34 | GJ33: 2034-35 | GK33: 2035-36 | GL33: 2036-37 | GM33: 2037-38 | GN33: 2038-39 | GO33: 2039-40 | GP33: 2040-41 | GQ33: 2041-42 | GR33: 2042-43 | GS33: 2043-44 | GT33: 2044-45
C34: Residential & Small Business Network Tariffs
C35: VI - Volume Individually Metered | D35: 156235.5 | E35: 155056 | F35: 153909 | G35: 151689.5687 | H35: 148008.664 | I35: 141174.4956 | J35: 124308.4611 | K35: 107253.0316 | L35: 90279.70623 | M35: 82590.90783 | N35: 73837.96539 | O35: 64879.49119 | P35: 56221.44339 | Q35: 47869.97202 | R35: 39916.83785 | S35: 32340.53529 | T35: 25535.36927 | U35: 19391.36322 | V35: 13845.73506 | W35: 9532.193136 | X35: 7526.70688 | Y35: 5379.72844 | Z35: 3146.017877 | AA35: 0 | AB35: 0 | AC35: 1711967.382 | AD35: 1675393.593 | AE35: 1491281.708 | AF35: 1433234.084 | AG35: 1389046.734 | AH35: 1305901.963 | AI35: 1155020.272 | AJ35: 1004138.581 | AK35: 853256.8902 | AL35: 789262.6235 | AM35: 725268.3567 | AN35: 661274.0899 | AO35: 597279.8232 | AP35: 533285.5564 | AQ35: 469291.2896 | AR35: 405297.0229 | AS35: 341302.7561 | AT35: 277308.4893 | AU35: 213314.2226 | AV35: 170651.378 | AW35: 127988.5335 | AX35: 85325.68902 | AY35: 42662.84451 | AZ35: 0 | BA35: 0 | BB35: 3513800.61 | BC35: 3268344.248 | BD35: 2624166.785 | BE35: 2441311.283 | BF35: 2577031.051 | BG35: 2422416.578 | BH35: 2142534.688 | BI35: 1862652.799 | BJ35: 1582770.909 | BK35: 1464063.091 | BL35: 1345355.273 | BM35: 1226647.454 | BN35: 1107939.636 | BO35: 989231.818 | BP35: 870523.9999 | BQ35: 751816.1817 | BR35: 633108.3635 | BS35: 514400.5454 | BT35: 395692.7272 | BU35: 316554.1818 | BV35: 237415.6363 | BW35: 158277.0909 | BX35: 79138.54544 | BY35: 0 | BZ35: 0 | CA35: 588489.3426 | CB35: 608109.4209 | CC35: 539080.5065 | CD35: 529760.3528 | CE35: 533745.1312 | CF35: 520811.3928 | CG35: 460637.7306 | CH35: 400464.0684 | CI35: 340290.4062 | CJ35: 314768.6258 | CK35: 289246.8453 | CL35: 263725.0648 | CM35: 238203.2844 | CN35: 212681.5039 | CO35: 187159.7234 | CP35: 161637.943 | CQ35: 136116.1625 | CR35: 110594.382 | CS35: 85072.60156 | CT35: 68058.08125 | CU35: 51043.56093 | CV35: 34029.04062 | CW35: 17014.52031 | CX35: 0 | CZ35: 904849.0671 | DA35: 991559.4526 | DB35: 853100.4357 | DC35: 829048.1185 | DD35: 904845.6111 | DE35: 884859.9068 | DF35: 782624.6987 | DG35: 680389.4907 | DH35: 578154.2826 | DI35: 534792.7114 | DJ35: 491431.1402 | DK35: 448069.569 | DL35: 404707.9978 | DM35: 361346.4266 | DN35: 317984.8554 | DO35: 274623.2842 | DP35: 231261.713 | DQ35: 187900.1418 | DR35: 144538.5706 | DS35: 115630.8565 | DT35: 86723.14239 | DU35: 57815.42826 | DV35: 28907.71413 | DW35: 0 | DY35: 0 | DZ35: 0 | EA35: 0 | EB35: 0 | EC35: 0 | ED35: 0 | EE35: 0 | EF35: 0 | EG35: 0 | EH35: 0 | EI35: 0 | EJ35: 0 | EK35: 0 | EL35: 0 | EM35: 0 | EN35: 0 | EO35: 0 | EP35: 0 | EQ35: 0 | ER35: 0 | ES35: 0 | ET35: 0 | EU35: 0 | EV35: 0 | EX35: 0 | EY35: 0 | EZ35: 0 | FA35: 0 | FB35: 0 | FC35: 0 | FD35: 0 | FE35: 0 | FF35: 0 | FG35: 0 | FH35: 0 | FI35: 0 | FJ35: 0 | FK35: 0 | FL35: 0 | FM35: 0 | FN35: 0 | FO35: 0 | FP35: 0 | FQ35: 0 | FR35: 0 | FS35: 0 | FT35: 0 | FU35: 0 | FW35: 0 | FX35: 0 | FY35: 0 | FZ35: 0 | GA35: 0 | GB35: 0 | GC35: 0 | GD35: 0 | GE35: 0 | GF35: 0 | GG35: 0 | GH35: 0 | GI35: 0 | GJ35: 0 | GK35: 0 | GL35: 0 | GM35: 0 | GN35: 0 | GO35: 0 | GP35: 0 | GQ35: 0 | GR35: 0 | GS35: 0 | GT35: 0
C36: VB - Boundary metered with gas heating and cooking | D36: 6 | E36: 13 | F36: 17 | G36: 16.66514417 | H36: 16.1858367 | I36: 15.05661449 | J36: 15.13086921 | K36: 15.21726796 | L36: 10.00309782 | M36: 9.311581752 | N36: 8.585471186 | O36: 7.851101146 | P36: 7.112143917 | Q36: 6.36899967 | R36: 5.620907804 | S36: 4.880235999 | T36: 4.134052973 | U36: 3.378991611 | V36: 2.614967214 | W36: 2.105054044 | X36: 1.58562336 | Y36: 1.061301662 | Z36: 0.5327326228 | AA36: 0 | AB36: 0 | AC36: 2365.919969 | AD36: 5108.873375 | AE36: 7259.718356 | AF36: 7046.53891 | AG36: 6977.927971 | AH36: 6484.974463 | AI36: 6484.974463 | AJ36: 6484.974463 | AK36: 4237.185717 | AL36: 3919.396788 | AM36: 3601.607859 | AN36: 3283.81893 | AO36: 2966.030002 | AP36: 2648.241073 | AQ36: 2330.452144 | AR36: 2012.663215 | AS36: 1694.874287 | AT36: 1377.085358 | AU36: 1059.296429 | AV36: 847.4371433 | AW36: 635.5778575 | AX36: 423.7185717 | AY36: 211.8592858 | AZ36: 0 | BA36: 0 | BB36: 8993.366523 | BC36: 20192.80883 | BD36: 23846.57307 | BE36: 22258.96229 | BF36: 24009.65487 | BG36: 22223.67961 | BH36: 22223.67961 | BI36: 22223.67961 | BJ36: 14520.62122 | BK36: 13431.57463 | BL36: 12342.52804 | BM36: 11253.48144 | BN36: 10164.43485 | BO36: 9075.388262 | BP36: 7986.341671 | BQ36: 6897.295079 | BR36: 5808.248488 | BS36: 4719.201896 | BT36: 3630.155305 | BU36: 2904.124244 | BV36: 2178.093183 | BW36: 1452.062122 | BX36: 726.031061 | BY36: 0 | BZ36: 0 | CA36: 0 | CB36: 0 | CC36: 0 | CD36: 0 | CE36: 0 | CF36: 0 | CG36: 0 | CH36: 0 | CI36: 0 | CJ36: 0 | CK36: 0 | CL36: 0 | CM36: 0 | CN36: 0 | CO36: 0 | CP36: 0 | CQ36: 0 | CR36: 0 | CS36: 0 | CT36: 0 | CU36: 0 | CV36: 0 | CW36: 0 | CX36: 0 | CZ36: 0 | DA36: 0 | DB36: 0 | DC36: 0 | DD36: 0 | DE36: 0 | DF36: 0 | DG36: 0 | DH36: 0 | DI36: 0 | DJ36: 0 | DK36: 0 | DL36: 0 | DM36: 0 | DN36: 0 | DO36: 0 | DP36: 0 | DQ36: 0 | DR36: 0 | DS36: 0 | DT36: 0 | DU36: 0 | DV36: 0 | DW36: 0 | DY36: 0 | DZ36: 0 | EA36: 0 | EB36: 0 | EC36: 0 | ED36: 0 | EE36: 0 | EF36: 0 | EG36: 0 | EH36: 0 | EI36: 0 | EJ36: 0 | EK36: 0 | EL36: 0 | EM36: 0 | EN36: 0 | EO36: 0 | EP36: 0 | EQ36: 0 | ER36: 0 | ES36: 0 | ET36: 0 | EU36: 0 | EV36: 0 | EX36: 0 | EY36: 0 | EZ36: 0 | FA36: 0 | FB36: 0 | FC36: 0 | FD36: 0 | FE36: 0 | FF36: 0 | FG36: 0 | FH36: 0 | FI36: 0 | FJ36: 0 | FK36: 0 | FL36: 0 | FM36: 0 | FN36: 0 | FO36: 0 | FP36: 0 | FQ36: 0 | FR36: 0 | FS36: 0 | FT36: 0 | FU36: 0 | FW36: 0 | FX36: 0 | FY36: 0 | FZ36: 0 | GA36: 0 | GB36: 0 | GC36: 0 | GD36: 0 | GE36: 0 | GF36: 0 | GG36: 0 | GH36: 0 | GI36: 0 | GJ36: 0 | GK36: 0 | GL36: 0 | GM36: 0 | GN36: 0 | GO36: 0 | GP36: 0 | GQ36: 0 | GR36: 0 | GS36: 0 | GT36: 0
C37: Large Business Network Tariffs | D37: 0 | E37: 0 | F37: 0 | G37: 0 | H37: 0 | I37: 0 | J37: 0 | K37: 0 | L37: 0 | M37: 0 | N37: 0 | O37: 0 | P37: 0 | Q37: 0 | R37: 0 | S37: 0 | T37: 0 | U37: 0 | V37: 0 | W37: 0 | X37: 0 | Y37: 0 | Z37: 0 | AA37: 0 | AB37: 0 | AC37: 0 | AD37: 0 | AE37: 0 | AF37: 0 | AG37: 0 | AH37: 0 | AI37: 0 | AJ37: 0 | AK37: 0 | AL37: 0 | AM37: 0 | AN37: 0 | AO37: 0 | AP37: 0 | AQ37: 0 | AR37: 0 | AS37: 0 | AT37: 0 | AU37: 0 | AV37: 0 | AW37: 0 | AX37: 0 | AY37: 0 | AZ37: 0 | BA37: 0 | BB37: 0 | BC37: 0 | BD37: 0 | BE37: 0 | BF37: 0 | BG37: 0 | BH37: 0 | BI37: 0 | BJ37: 0 | BK37: 0 | BL37: 0 | BM37: 0 | BN37: 0 | BO37: 0 | BP37: 0 | BQ37: 0 | BR37: 0 | BS37: 0 | BT37: 0 | BU37: 0 | BV37: 0 | BW37: 0 | BX37: 0 | BY37: 0 | BZ37: 0 | CA37: 0 | CB37: 0 | CC37: 0 | CD37: 0 | CE37: 0 | CF37: 0 | CG37: 0 | CH37: 0 | CI37: 0 | CJ37: 0 | CK37: 0 | CL37: 0 | CM37: 0 | CN37: 0 | CO37: 0 | CP37: 0 | CQ37: 0 | CR37: 0 | CS37: 0 | CT37: 0 | CU37: 0 | CV37: 0 | CW37: 0 | CX37: 0 | CZ37: 0 | DA37: 0 | DB37: 0 | DC37: 0 | DD37: 0 | DE37: 0 | DF37: 0 | DG37: 0 | DH37: 0 | DI37: 0 | DJ37: 0 | DK37: 0 | DL37: 0 | DM37: 0 | DN37: 0 | DO37: 0 | DP37: 0 | DQ37: 0 | DR37: 0 | DS37: 0 | DT37: 0 | DU37: 0 | DV37: 0 | DW37: 0 | DY37: 0 | DZ37: 0 | EA37: 0 | EB37: 0 | EC37: 0 | ED37: 0 | EE37: 0 | EF37: 0 | EG37: 0 | EH37: 0 | EI37: 0 | EJ37: 0 | EK37: 0 | EL37: 0 | EM37: 0 | EN37: 0 | EO37: 0 | EP37: 0 | EQ37: 0 | ER37: 0 | ES37: 0 | ET37: 0 | EU37: 0 | EV37: 0 | EX37: 0 | EY37: 0 | EZ37: 0 | FA37: 0 | FB37: 0 | FC37: 0 | FD37: 0 | FE37: 0 | FF37: 0 | FG37: 0 | FH37: 0 | FI37: 0 | FJ37: 0 | FK37: 0 | FL37: 0 | FM37: 0 | FN37: 0 | FO37: 0 | FP37: 0 | FQ37: 0 | FR37: 0 | FS37: 0 | FT37: 0 | FU37: 0 | FW37: 0 | FX37: 0 | FY37: 0 | FZ37: 0 | GA37: 0 | GB37: 0 | GC37: 0 | GD37: 0 | GE37: 0 | GF37: 0 | GG37: 0 | GH37: 0 | GI37: 0 | GJ37: 0 | GK37: 0 | GL37: 0 | GM37: 0 | GN37: 0 | GO37: 0 | GP37: 0 | GQ37: 0 | GR37: 0 | GS37: 0 | GT37: 0
C38: DBC - Large capacity | D38: CIC | E38: CIC | F38: CIC | G38: CIC | H38: CIC | I38: CIC | J38: CIC | K38: CIC | L38: CIC | M38: CIC | N38: CIC | O38: CIC | P38: CIC | Q38: CIC | R38: CIC | S38: CIC | T38: CIC | U38: CIC | V38: CIC | W38: CIC | X38: CIC | Y38: CIC | Z38: CIC | AA38: CIC | AB38: 0 | AC38: CIC | AD38: CIC | AE38: CIC | AF38: CIC | AG38: CIC | AH38: CIC | AI38: CIC | AJ38: CIC | AK38: CIC | AL38: CIC | AM38: CIC | AN38: CIC | AO38: CIC | AP38: CIC | AQ38: CIC | AR38: CIC | AS38: CIC | AT38: CIC | AU38: CIC | AV38: CIC | AW38: CIC | AX38: CIC | AY38: CIC | AZ38: CIC | BA38: 0 | BB38: CIC | BC38: CIC | BD38: CIC | BE38: CIC | BF38: CIC | BG38: CIC | BH38: CIC | BI38: CIC | BJ38: CIC | BK38: CIC | BL38: CIC | BM38: CIC | BN38: CIC | BO38: CIC | BP38: CIC | BQ38: CIC | BR38: CIC | BS38: CIC | BT38: CIC | BU38: CIC | BV38: CIC | BW38: CIC | BX38: CIC | BY38: CIC | CA38: CIC | CB38: CIC | CC38: CIC | CD38: CIC | CE38: CIC | CF38: CIC | CG38: CIC | CH38: CIC | CI38: CIC | CJ38: CIC | CK38: CIC | CL38: CIC | CM38: CIC | CN38: CIC | CO38: CIC | CP38: CIC | CQ38: CIC | CR38: CIC | CS38: CIC | CT38: CIC | CU38: CIC | CV38: CIC | CW38: CIC | CX38: CIC | CZ38: CIC | DA38: CIC | DB38: CIC | DC38: CIC | DD38: CIC | DE38: CIC | DF38: CIC | DG38: CIC | DH38: CIC | DI38: CIC | DJ38: CIC | DK38: CIC | DL38: CIC | DM38: CIC | DN38: CIC | DO38: CIC | DP38: CIC | DQ38: CIC | DR38: CIC | DS38: CIC | DT38: CIC | DU38: CIC | DV38: CIC | DW38: CIC | DY38: CIC | DZ38: CIC | EA38: CIC | EB38: CIC | EC38: CIC | ED38: CIC | EE38: CIC | EF38: CIC | EG38: CIC | EH38: CIC | EI38: CIC | EJ38: CIC | EK38: CIC | EL38: CIC | EM38: CIC | EN38: CIC | EO38: CIC | EP38: CIC | EQ38: CIC | ER38: CIC | ES38: CIC | ET38: CIC | EU38: CIC | EV38: CIC | EX38: CIC | EY38: CIC | EZ38: CIC | FA38: CIC | FB38: CIC | FC38: CIC | FD38: CIC | FE38: CIC | FF38: CIC | FG38: CIC | FH38: CIC | FI38: CIC | FJ38: CIC | FK38: CIC | FL38: CIC | FM38: CIC | FN38: CIC | FO38: CIC | FP38: CIC | FQ38: CIC | FR38: CIC | FS38: CIC | FT38: CIC | FU38: CIC | FW38: CIC | FX38: CIC | FY38: CIC | FZ38: CIC | GA38: CIC | GB38: CIC | GC38: CIC | GD38: CIC | GE38: CIC | GF38: CIC | GG38: CIC | GH38: CIC | GI38: CIC | GJ38: CIC | GK38: CIC | GL38: CIC | GM38: CIC | GN38: CIC | GO38: CIC | GP38: CIC | GQ38: CIC | GR38: CIC | GS38: CIC | GT38: CIC
C39: DBT - Large throughput | D39: CIC | E39: CIC | F39: CIC | G39: CIC | H39: CIC | I39: CIC | J39: CIC | K39: CIC | L39: CIC | M39: CIC | N39: CIC | O39: CIC | P39: CIC | Q39: CIC | R39: CIC | S39: CIC | T39: CIC | U39: CIC | V39: CIC | W39: CIC | X39: CIC | Y39: CIC | Z39: CIC | AA39: CIC | AB39: 0 | AC39: CIC | AD39: CIC | AE39: CIC | AF39: CIC | AG39: CIC | AH39: CIC | AI39: CIC | AJ39: CIC | AK39: CIC | AL39: CIC | AM39: CIC | AN39: CIC | AO39: CIC | AP39: CIC | AQ39: CIC | AR39: CIC | AS39: CIC | AT39: CIC | AU39: CIC | AV39: CIC | AW39: CIC | AX39: CIC | AY39: CIC | AZ39: CIC | BA39: 0 | BB39: CIC | BC39: CIC | BD39: CIC | BE39: CIC | BF39: CIC | BG39: CIC | BH39: CIC | BI39: CIC | BJ39: CIC | BK39: CIC | BL39: CIC | BM39: CIC | BN39: CIC | BO39: CIC | BP39: CIC | BQ39: CIC | BR39: CIC | BS39: CIC | BT39: CIC | BU39: CIC | BV39: CIC | BW39: CIC | BX39: CIC | BY39: CIC | CA39: CIC | CB39: CIC | CC39: CIC | CD39: CIC | CE39: CIC | CF39: CIC | CG39: CIC | CH39: CIC | CI39: CIC | CJ39: CIC | CK39: CIC | CL39: CIC | CM39: CIC | CN39: CIC | CO39: CIC | CP39: CIC | CQ39: CIC | CR39: CIC | CS39: CIC | CT39: CIC | CU39: CIC | CV39: CIC | CW39: CIC | CX39: CIC | CZ39: CIC | DA39: CIC | DB39: CIC | DC39: CIC | DD39: CIC | DE39: CIC | DF39: CIC | DG39: CIC | DH39: CIC | DI39: CIC | DJ39: CIC | DK39: CIC | DL39: CIC | DM39: CIC | DN39: CIC | DO39: CIC | DP39: CIC | DQ39: CIC | DR39: CIC | DS39: CIC | DT39: CIC | DU39: CIC | DV39: CIC | DW39: CIC | DY39: CIC | DZ39: CIC | EA39: CIC | EB39: CIC | EC39: CIC | ED39: CIC | EE39: CIC | EF39: CIC | EG39: CIC | EH39: CIC | EI39: CIC | EJ39: CIC | EK39: CIC | EL39: CIC | EM39: CIC | EN39: CIC | EO39: CIC | EP39: CIC | EQ39: CIC | ER39: CIC | ES39: CIC | ET39: CIC | EU39: CIC | EV39: CIC | EX39: CIC | EY39: CIC | EZ39: CIC | FA39: CIC | FB39: CIC | FC39: CIC | FD39: CIC | FE39: CIC | FF39: CIC | FG39: CIC | FH39: CIC | FI39: CIC | FJ39: CIC | FK39: CIC | FL39: CIC | FM39: CIC | FN39: CIC | FO39: CIC | FP39: CIC | FQ39: CIC | FR39: CIC | FS39: CIC | FT39: CIC | FU39: CIC | FW39: CIC | FX39: CIC | FY39: CIC | FZ39: CIC | GA39: CIC | GB39: CIC | GC39: CIC | GD39: CIC | GE39: CIC | GF39: CIC | GG39: CIC | GH39: CIC | GI39: CIC | GJ39: CIC | GK39: CIC | GL39: CIC | GM39: CIC | GN39: CIC | GO39: CIC | GP39: CIC | GQ39: CIC | GR39: CIC | GS39: CIC | GT39: CIC
C40: Closed Tariff - 15+ Connections | D40: CIC | E40: CIC | F40: CIC | G40: CIC | H40: CIC | I40: CIC | J40: CIC | K40: CIC | L40: CIC | M40: CIC | N40: CIC | O40: CIC | P40: CIC | Q40: CIC | R40: CIC | S40: CIC | T40: CIC | U40: CIC | V40: CIC | W40: CIC | X40: CIC | Y40: CIC | Z40: CIC | AA40: CIC | AB40: 0 | AC40: CIC | AD40: CIC | AE40: CIC | AF40: CIC | AG40: CIC | AH40: CIC | AI40: CIC | AJ40: CIC | AK40: CIC | AL40: CIC | AM40: CIC | AN40: CIC | AO40: CIC | AP40: CIC | AQ40: CIC | AR40: CIC | AS40: CIC | AT40: CIC | AU40: CIC | AV40: CIC | AW40: CIC | AX40: CIC | AY40: CIC | AZ40: CIC | BA40: 0 | BB40: CIC | BC40: CIC | BD40: CIC | BE40: CIC | BF40: CIC | BG40: CIC | BH40: CIC | BI40: CIC | BJ40: CIC | BK40: CIC | BL40: CIC | BM40: CIC | BN40: CIC | BO40: CIC | BP40: CIC | BQ40: CIC | BR40: CIC | BS40: CIC | BT40: CIC | BU40: CIC | BV40: CIC | BW40: CIC | BX40: CIC | BY40: CIC | CA40: CIC | CB40: CIC | CC40: CIC | CD40: CIC | CE40: CIC | CF40: CIC | CG40: CIC | CH40: CIC | CI40: CIC | CJ40: CIC | CK40: CIC | CL40: CIC | CM40: CIC | CN40: CIC | CO40: CIC | CP40: CIC | CQ40: CIC | CR40: CIC | CS40: CIC | CT40: CIC | CU40: CIC | CV40: CIC | CW40: CIC | CX40: CIC | CZ40: CIC | DA40: CIC | DB40: CIC | DC40: CIC | DD40: CIC | DE40: CIC | DF40: CIC | DG40: CIC | DH40: CIC | DI40: CIC | DJ40: CIC | DK40: CIC | DL40: CIC | DM40: CIC | DN40: CIC | DO40: CIC | DP40: CIC | DQ40: CIC | DR40: CIC | DS40: CIC | DT40: CIC | DU40: CIC | DV40: CIC | DW40: CIC | DY40: CIC | DZ40: CIC | EA40: CIC | EB40: CIC | EC40: CIC | ED40: CIC | EE40: CIC | EF40: CIC | EG40: CIC | EH40: CIC | EI40: CIC | EJ40: CIC | EK40: CIC | EL40: CIC | EM40: CIC | EN40: CIC | EO40: CIC | EP40: CIC | EQ40: CIC | ER40: CIC | ES40: CIC | ET40: CIC | EU40: CIC | EV40: CIC | EX40: CIC | EY40: CIC | EZ40: CIC | FA40: CIC | FB40: CIC | FC40: CIC | FD40: CIC | FE40: CIC | FF40: CIC | FG40: CIC | FH40: CIC | FI40: CIC | FJ40: CIC | FK40: CIC | FL40: CIC | FM40: CIC | FN40: CIC | FO40: CIC | FP40: CIC | FQ40: CIC | FR40: CIC | FS40: CIC | FT40: CIC | FU40: CIC | FW40: CIC | FX40: CIC | FY40: CIC | FZ40: CIC | GA40: CIC | GB40: CIC | GC40: CIC | GD40: CIC | GE40: CIC | GF40: CIC | GG40: CIC | GH40: CIC | GI40: CIC | GJ40: CIC | GK40: CIC | GL40: CIC | GM40: CIC | GN40: CIC | GO40: CIC | GP40: CIC | GQ40: CIC | GR40: CIC | GS40: CIC | GT40: CIC
C41: Large Business Metering Tariffs | D41: 0 | E41: 0 | F41: 0 | G41: 0 | H41: 0 | I41: 0 | J41: 0 | K41: 0 | L41: 0 | M41: 0 | N41: 0 | O41: 0 | P41: 0 | Q41: 0 | R41: 0 | S41: 0 | T41: 0 | U41: 0 | V41: 0 | W41: 0 | X41: 0 | Y41: 0 | Z41: 0 | AA41: 0 | AB41: 0 | AC41: 0 | AD41: 0 | AE41: 0 | AF41: 0 | AG41: 0 | AH41: 0 | AI41: 0 | AJ41: 0 | AK41: 0 | AL41: 0 | AM41: 0 | AN41: 0 | AO41: 0 | AP41: 0 | AQ41: 0 | AR41: 0 | AS41: 0 | AT41: 0 | AU41: 0 | AV41: 0 | AW41: 0 | AX41: 0 | AY41: 0 | AZ41: 0 | BA41: 0 | BB41: 0 | BC41: 0 | BD41: 0 | BE41: 0 | BF41: 0 | BG41: 0 | BH41: 0 | BI41: 0 | BJ41: 0 | BK41: 0 | BL41: 0 | BM41: 0 | BN41: 0 | BO41: 0 | BP41: 0 | BQ41: 0 | BR41: 0 | BS41: 0 | BT41: 0 | BU41: 0 | BV41: 0 | BW41: 0 | BX41: 0 | BY41: 0 | BZ41: 0 | CA41: 0 | CB41: 0 | CC41: 0 | CD41: 0 | CE41: 0 | CF41: 0 | CG41: 0 | CH41: 0 | CI41: 0 | CJ41: 0 | CK41: 0 | CL41: 0 | CM41: 0 | CN41: 0 | CO41: 0 | CP41: 0 | CQ41: 0 | CR41: 0 | CS41: 0 | CT41: 0 | CU41: 0 | CV41: 0 | CW41: 0 | CX41: 0 | CZ41: 0 | DA41: 0 | DB41: 0 | DC41: 0 | DD41: 0 | DE41: 0 | DF41: 0 | DG41: 0 | DH41: 0 | DI41: 0 | DJ41: 0 | DK41: 0 | DL41: 0 | DM41: 0 | DN41: 0 | DO41: 0 | DP41: 0 | DQ41: 0 | DR41: 0 | DS41: 0 | DT41: 0 | DU41: 0 | DV41: 0 | DW41: 0 | DY41: 0 | DZ41: 0 | EA41: 0 | EB41: 0 | EC41: 0 | ED41: 0 | EE41: 0 | EF41: 0 | EG41: 0 | EH41: 0 | EI41: 0 | EJ41: 0 | EK41: 0 | EL41: 0 | EM41: 0 | EN41: 0 | EO41: 0 | EP41: 0 | EQ41: 0 | ER41: 0 | ES41: 0 | ET41: 0 | EU41: 0 | EV41: 0 | EX41: 0 | EY41: 0 | EZ41: 0 | FA41: 0 | FB41: 0 | FC41: 0 | FD41: 0 | FE41: 0 | FF41: 0 | FG41: 0 | FH41: 0 | FI41: 0 | FJ41: 0 | FK41: 0 | FL41: 0 | FM41: 0 | FN41: 0 | FO41: 0 | FP41: 0 | FQ41: 0 | FR41: 0 | FS41: 0 | FT41: 0 | FU41: 0 | FW41: 0 | FX41: 0 | FY41: 0 | FZ41: 0 | GA41: 0 | GB41: 0 | GC41: 0 | GD41: 0 | GE41: 0 | GF41: 0 | GG41: 0 | GH41: 0 | GI41: 0 | GJ41: 0 | GK41: 0 | GL41: 0 | GM41: 0 | GN41: 0 | GO41: 0 | GP41: 0 | GQ41: 0 | GR41: 0 | GS41: 0 | GT41: 0
C42: Metering - Single Meter | D42: 0 | E42: 0 | F42: 0 | G42: 0 | H42: 0 | I42: 0 | J42: 0 | K42: 0 | L42: 0 | M42: 0 | N42: 0 | O42: 0 | P42: 0 | Q42: 0 | R42: 0 | S42: 0 | T42: 0 | U42: 0 | V42: 0 | W42: 0 | X42: 0 | Y42: 0 | Z42: 0 | AA42: 0 | AB42: 0 | AC42: 0 | AD42: 0 | AE42: 0 | AF42: 0 | AG42: 0 | AH42: 0 | AI42: 0 | AJ42: 0 | AK42: 0 | AL42: 0 | AM42: 0 | AN42: 0 | AO42: 0 | AP42: 0 | AQ42: 0 | AR42: 0 | AS42: 0 | AT42: 0 | AU42: 0 | AV42: 0 | AW42: 0 | AX42: 0 | AY42: 0 | AZ42: 0 | BA42: 0 | BB42: 0 | BC42: 0 | BD42: 0 | BE42: 0 | BF42: 0 | BG42: 0 | BH42: 0 | BI42: 0 | BJ42: 0 | BK42: 0 | BL42: 0 | BM42: 0 | BN42: 0 | BO42: 0 | BP42: 0 | BQ42: 0 | BR42: 0 | BS42: 0 | BT42: 0 | BU42: 0 | BV42: 0 | BW42: 0 | BX42: 0 | BY42: 0 | BZ42: 0 | CA42: 0 | CB42: 0 | CC42: 0 | CD42: 0 | CE42: 0 | CF42: 0 | CG42: 0 | CH42: 0 | CI42: 0 | CJ42: 0 | CK42: 0 | CL42: 0 | CM42: 0 | CN42: 0 | CO42: 0 | CP42: 0 | CQ42: 0 | CR42: 0 | CS42: 0 | CT42: 0 | CU42: 0 | CV42: 0 | CW42: 0 | CX42: 0 | CZ42: 0 | DA42: 0 | DB42: 0 | DC42: 0 | DD42: 0 | DE42: 0 | DF42: 0 | DG42: 0 | DH42: 0 | DI42: 0 | DJ42: 0 | DK42: 0 | DL42: 0 | DM42: 0 | DN42: 0 | DO42: 0 | DP42: 0 | DQ42: 0 | DR42: 0 | DS42: 0 | DT42: 0 | DU42: 0 | DV42: 0 | DW42: 0 | DY42: 0 | DZ42: 0 | EA42: 0 | EB42: 0 | EC42: 0 | ED42: 0 | EE42: 0 | EF42: 0 | EG42: 0 | EH42: 0 | EI42: 0 | EJ42: 0 | EK42: 0 | EL42: 0 | EM42: 0 | EN42: 0 | EO42: 0 | EP42: 0 | EQ42: 0 | ER42: 0 | ES42: 0 | ET42: 0 | EU42: 0 | EV42: 0 | EX42: 0 | EY42: 0 | EZ42: 0 | FA42: 0 | FB42: 0 | FC42: 0 | FD42: 0 | FE42: 0 | FF42: 0 | FG42: 0 | FH42: 0 | FI42: 0 | FJ42: 0 | FK42: 0 | FL42: 0 | FM42: 0 | FN42: 0 | FO42: 0 | FP42: 0 | FQ42: 0 | FR42: 0 | FS42: 0 | FT42: 0 | FU42: 0 | FW42: 0 | FX42: 0 | FY42: 0 | FZ42: 0 | GA42: 0 | GB42: 0 | GC42: 0 | GD42: 0 | GE42: 0 | GF42: 0 | GG42: 0 | GH42: 0 | GI42: 0 | GJ42: 0 | GK42: 0 | GL42: 0 | GM42: 0 | GN42: 0 | GO42: 0 | GP42: 0 | GQ42: 0 | GR42: 0 | GS42: 0 | GT42: 0
C43: MHQ < 16 GJ/hr | D43: 24.79069767 | E43: 25.0507805 | F43: 25.99544263 | G43: 25.99544263 | H43: 25.99544263 | I43: 25.99544263 | J43: 23.56430636 | K43: 21.4004435 | L43: 18.26627376 | M43: 17.09853812 | N43: 16.66914532 | O43: 16.18088604 | P43: 15.62008779 | Q43: 14.97264004 | R43: 14.2162014 | S43: 13.34089722 | T43: 12.29904233 | U43: 11.03473074 | V43: 9.473936239 | W43: 6.605526295 | X43: 5.718213544 | Y43: 4.460217286 | Z43: 2.682800914 | AA43: 0 | AB43: 0 | AC43: 0 | AD43: 0 | AE43: 0 | AF43: 0 | AG43: 0 | AH43: 0 | AI43: 0 | AJ43: 0 | AK43: 0 | AL43: 0 | AM43: 0 | AN43: 0 | AO43: 0 | AP43: 0 | AQ43: 0 | AR43: 0 | AS43: 0 | AT43: 0 | AU43: 0 | AV43: 0 | AW43: 0 | AX43: 0 | AY43: 0 | AZ43: 0 | BA43: 0 | BB43: 0 | BC43: 0 | BD43: 0 | BE43: 0 | BF43: 0 | BG43: 0 | BH43: 0 | BI43: 0 | BJ43: 0 | BK43: 0 | BL43: 0 | BM43: 0 | BN43: 0 | BO43: 0 | BP43: 0 | BQ43: 0 | BR43: 0 | BS43: 0 | BT43: 0 | BU43: 0 | BV43: 0 | BW43: 0 | BX43: 0 | BY43: 0 | BZ43: 0 | CA43: 0 | CB43: 0 | CC43: 0 | CD43: 0 | CE43: 0 | CF43: 0 | CG43: 0 | CH43: 0 | CI43: 0 | CJ43: 0 | CK43: 0 | CL43: 0 | CM43: 0 | CN43: 0 | CO43: 0 | CP43: 0 | CQ43: 0 | CR43: 0 | CS43: 0 | CT43: 0 | CU43: 0 | CV43: 0 | CW43: 0 | CX43: 0 | CZ43: 0 | DA43: 0 | DB43: 0 | DC43: 0 | DD43: 0 | DE43: 0 | DF43: 0 | DG43: 0 | DH43: 0 | DI43: 0 | DJ43: 0 | DK43: 0 | DL43: 0 | DM43: 0 | DN43: 0 | DO43: 0 | DP43: 0 | DQ43: 0 | DR43: 0 | DS43: 0 | DT43: 0 | DU43: 0 | DV43: 0 | DW43: 0 | DY43: 0 | DZ43: 0 | EA43: 0 | EB43: 0 | EC43: 0 | ED43: 0 | EE43: 0 | EF43: 0 | EG43: 0 | EH43: 0 | EI43: 0 | EJ43: 0 | EK43: 0 | EL43: 0 | EM43: 0 | EN43: 0 | EO43: 0 | EP43: 0 | EQ43: 0 | ER43: 0 | ES43: 0 | ET43: 0 | EU43: 0 | EV43: 0 | EX43: 0 | EY43: 0 | EZ43: 0 | FA43: 0 | FB43: 0 | FC43: 0 | FD43: 0 | FE43: 0 | FF43: 0 | FG43: 0 | FH43: 0 | FI43: 0 | FJ43: 0 | FK43: 0 | FL43: 0 | FM43: 0 | FN43: 0 | FO43: 0 | FP43: 0 | FQ43: 0 | FR43: 0 | FS43: 0 | FT43: 0 | FU43: 0 | FW43: 0 | FX43: 0 | FY43: 0 | FZ43: 0 | GA43: 0 | GB43: 0 | GC43: 0 | GD43: 0 | GE43: 0 | GF43: 0 | GG43: 0 | GH43: 0 | GI43: 0 | GJ43: 0 | GK43: 0 | GL43: 0 | GM43: 0 | GN43: 0 | GO43: 0 | GP43: 0 | GQ43: 0 | GR43: 0 | GS43: 0 | GT43: 0
C44: 16 to < 50 GJ/hr | D44: 11.44186047 | E44: 11.56189869 | F44: 12.03287671 | G44: 12.03287671 | H44: 12.03287671 | I44: 12.03287671 | J44: 10.90754242 | K44: 9.905924737 | L44: 8.455167443 | M44: 7.914641195 | N44: 7.715882101 | O44: 7.489874651 | P44: 7.230290065 | Q44: 6.930596807 | R44: 6.580453397 | S44: 6.175289019 | T44: 5.693030971 | U44: 5.107801259 | V44: 4.38533432 | W44: 3.057593004 | X44: 2.646870052 | Y44: 2.064563603 | Z44: 1.24182585 | AA44: 0 | AB44: 0 | AC44: 0 | AD44: 0 | AE44: 0 | AF44: 0 | AG44: 0 | AH44: 0 | AI44: 0 | AJ44: 0 | AK44: 0 | AL44: 0 | AM44: 0 | AN44: 0 | AO44: 0 | AP44: 0 | AQ44: 0 | AR44: 0 | AS44: 0 | AT44: 0 | AU44: 0 | AV44: 0 | AW44: 0 | AX44: 0 | AY44: 0 | AZ44: 0 | BA44: 0 | BB44: 0 | BC44: 0 | BD44: 0 | BE44: 0 | BF44: 0 | BG44: 0 | BH44: 0 | BI44: 0 | BJ44: 0 | BK44: 0 | BL44: 0 | BM44: 0 | BN44: 0 | BO44: 0 | BP44: 0 | BQ44: 0 | BR44: 0 | BS44: 0 | BT44: 0 | BU44: 0 | BV44: 0 | BW44: 0 | BX44: 0 | BY44: 0 | BZ44: 0 | CA44: 0 | CB44: 0 | CC44: 0 | CD44: 0 | CE44: 0 | CF44: 0 | CG44: 0 | CH44: 0 | CI44: 0 | CJ44: 0 | CK44: 0 | CL44: 0 | CM44: 0 | CN44: 0 | CO44: 0 | CP44: 0 | CQ44: 0 | CR44: 0 | CS44: 0 | CT44: 0 | CU44: 0 | CV44: 0 | CW44: 0 | CX44: 0 | CZ44: 0 | DA44: 0 | DB44: 0 | DC44: 0 | DD44: 0 | DE44: 0 | DF44: 0 | DG44: 0 | DH44: 0 | DI44: 0 | DJ44: 0 | DK44: 0 | DL44: 0 | DM44: 0 | DN44: 0 | DO44: 0 | DP44: 0 | DQ44: 0 | DR44: 0 | DS44: 0 | DT44: 0 | DU44: 0 | DV44: 0 | DW44: 0 | DY44: 0 | DZ44: 0 | EA44: 0 | EB44: 0 | EC44: 0 | ED44: 0 | EE44: 0 | EF44: 0 | EG44: 0 | EH44: 0 | EI44: 0 | EJ44: 0 | EK44: 0 | EL44: 0 | EM44: 0 | EN44: 0 | EO44: 0 | EP44: 0 | EQ44: 0 | ER44: 0 | ES44: 0 | ET44: 0 | EU44: 0 | EV44: 0 | EX44: 0 | EY44: 0 | EZ44: 0 | FA44: 0 | FB44: 0 | FC44: 0 | FD44: 0 | FE44: 0 | FF44: 0 | FG44: 0 | FH44: 0 | FI44: 0 | FJ44: 0 | FK44: 0 | FL44: 0 | FM44: 0 | FN44: 0 | FO44: 0 | FP44: 0 | FQ44: 0 | FR44: 0 | FS44: 0 | FT44: 0 | FU44: 0 | FW44: 0 | FX44: 0 | FY44: 0 | FZ44: 0 | GA44: 0 | GB44: 0 | GC44: 0 | GD44: 0 | GE44: 0 | GF44: 0 | GG44: 0 | GH44: 0 | GI44: 0 | GJ44: 0 | GK44: 0 | GL44: 0 | GM44: 0 | GN44: 0 | GO44: 0 | GP44: 0 | GQ44: 0 | GR44: 0 | GS44: 0 | GT44: 0
C45: 50 to < 100 GJ/hr | D45: CIC | E45: CIC | F45: CIC | G45: CIC | H45: CIC | I45: CIC | J45: CIC | K45: CIC | L45: CIC | M45: CIC | N45: CIC | O45: CIC | P45: CIC | Q45: CIC | R45: CIC | S45: CIC | T45: CIC | U45: CIC | V45: CIC | W45: CIC | X45: CIC | Y45: CIC | Z45: CIC | AA45: CIC | AB45: 0 | AC45: CIC | AD45: CIC | AE45: CIC | AF45: CIC | AG45: CIC | AH45: CIC | AI45: CIC | AJ45: CIC | AK45: CIC | AL45: CIC | AM45: CIC | AN45: CIC | AO45: CIC | AP45: CIC | AQ45: CIC | AR45: CIC | AS45: CIC | AT45: CIC | AU45: CIC | AV45: CIC | AW45: CIC | AX45: CIC | AY45: CIC | AZ45: CIC | BA45: 0 | BB45: CIC | BC45: CIC | BD45: CIC | BE45: CIC | BF45: CIC | BG45: CIC | BH45: CIC | BI45: CIC | BJ45: CIC | BK45: CIC | BL45: CIC | BM45: CIC | BN45: CIC | BO45: CIC | BP45: CIC | BQ45: CIC | BR45: CIC | BS45: CIC | BT45: CIC | BU45: CIC | BV45: CIC | BW45: CIC | BX45: CIC | BY45: CIC | CA45: CIC | CB45: CIC | CC45: CIC | CD45: CIC | CE45: CIC | CF45: CIC | CG45: CIC | CH45: CIC | CI45: CIC | CJ45: CIC | CK45: CIC | CL45: CIC | CM45: CIC | CN45: CIC | CO45: CIC | CP45: CIC | CQ45: CIC | CR45: CIC | CS45: CIC | CT45: CIC | CU45: CIC | CV45: CIC | CW45: CIC | CX45: CIC | CZ45: CIC | DA45: CIC | DB45: CIC | DC45: CIC | DD45: CIC | DE45: CIC | DF45: CIC | DG45: CIC | DH45: CIC | DI45: CIC | DJ45: CIC | DK45: CIC | DL45: CIC | DM45: CIC | DN45: CIC | DO45: CIC | DP45: CIC | DQ45: CIC | DR45: CIC | DS45: CIC | DT45: CIC | DU45: CIC | DV45: CIC | DW45: CIC | DY45: CIC | DZ45: CIC | EA45: CIC | EB45: CIC | EC45: CIC | ED45: CIC | EE45: CIC | EF45: CIC | EG45: CIC | EH45: CIC | EI45: CIC | EJ45: CIC | EK45: CIC | EL45: CIC | EM45: CIC | EN45: CIC | EO45: CIC | EP45: CIC | EQ45: CIC | ER45: CIC | ES45: CIC | ET45: CIC | EU45: CIC | EV45: CIC | EX45: CIC | EY45: CIC | EZ45: CIC | FA45: CIC | FB45: CIC | FC45: CIC | FD45: CIC | FE45: CIC | FF45: CIC | FG45: CIC | FH45: CIC | FI45: CIC | FJ45: CIC | FK45: CIC | FL45: CIC | FM45: CIC | FN45: CIC | FO45: CIC | FP45: CIC | FQ45: CIC | FR45: CIC | FS45: CIC | FT45: CIC | FU45: CIC | FW45: CIC | FX45: CIC | FY45: CIC | FZ45: CIC | GA45: CIC | GB45: CIC | GC45: CIC | GD45: CIC | GE45: CIC | GF45: CIC | GG45: CIC | GH45: CIC | GI45: CIC | GJ45: CIC | GK45: CIC | GL45: CIC | GM45: CIC | GN45: CIC | GO45: CIC | GP45: CIC | GQ45: CIC | GR45: CIC | GS45: CIC | GT45: CIC
C46: 100 to < 1000 GJ/hr | D46: 0 | E46: 0 | F46: 0 | G46: 0 | H46: 0 | I46: 0 | J46: 0 | K46: 0 | L46: 0 | M46: 0 | N46: 0 | O46: 0 | P46: 0 | Q46: 0 | R46: 0 | S46: 0 | T46: 0 | U46: 0 | V46: 0 | W46: 0 | X46: 0 | Y46: 0 | Z46: 0 | AA46: 0 | AB46: 0 | AC46: 0 | AD46: 0 | AE46: 0 | AF46: 0 | AG46: 0 | AH46: 0 | AI46: 0 | AJ46: 0 | AK46: 0 | AL46: 0 | AM46: 0 | AN46: 0 | AO46: 0 | AP46: 0 | AQ46: 0 | AR46: 0 | AS46: 0 | AT46: 0 | AU46: 0 | AV46: 0 | AW46: 0 | AX46: 0 | AY46: 0 | AZ46: 0 | BA46: 0 | BB46: 0 | BC46: 0 | BD46: 0 | BE46: 0 | BF46: 0 | BG46: 0 | BH46: 0 | BI46: 0 | BJ46: 0 | BK46: 0 | BL46: 0 | BM46: 0 | BN46: 0 | BO46: 0 | BP46: 0 | BQ46: 0 | BR46: 0 | BS46: 0 | BT46: 0 | BU46: 0 | BV46: 0 | BW46: 0 | BX46: 0 | BY46: 0 | BZ46: 0 | CA46: 0 | CB46: 0 | CC46: 0 | CD46: 0 | CE46: 0 | CF46: 0 | CG46: 0 | CH46: 0 | CI46: 0 | CJ46: 0 | CK46: 0 | CL46: 0 | CM46: 0 | CN46: 0 | CO46: 0 | CP46: 0 | CQ46: 0 | CR46: 0 | CS46: 0 | CT46: 0 | CU46: 0 | CV46: 0 | CW46: 0 | CX46: 0 | CZ46: 0 | DA46: 0 | DB46: 0 | DC46: 0 | DD46: 0 | DE46: 0 | DF46: 0 | DG46: 0 | DH46: 0 | DI46: 0 | DJ46: 0 | DK46: 0 | DL46: 0 | DM46: 0 | DN46: 0 | DO46: 0 | DP46: 0 | DQ46: 0 | DR46: 0 | DS46: 0 | DT46: 0 | DU46: 0 | DV46: 0 | DW46: 0 | DY46: 0 | DZ46: 0 | EA46: 0 | EB46: 0 | EC46: 0 | ED46: 0 | EE46: 0 | EF46: 0 | EG46: 0 | EH46: 0 | EI46: 0 | EJ46: 0 | EK46: 0 | EL46: 0 | EM46: 0 | EN46: 0 | EO46: 0 | EP46: 0 | EQ46: 0 | ER46: 0 | ES46: 0 | ET46: 0 | EU46: 0 | EV46: 0 | EX46: 0 | EY46: 0 | EZ46: 0 | FA46: 0 | FB46: 0 | FC46: 0 | FD46: 0 | FE46: 0 | FF46: 0 | FG46: 0 | FH46: 0 | FI46: 0 | FJ46: 0 | FK46: 0 | FL46: 0 | FM46: 0 | FN46: 0 | FO46: 0 | FP46: 0 | FQ46: 0 | FR46: 0 | FS46: 0 | FT46: 0 | FU46: 0 | FW46: 0 | FX46: 0 | FY46: 0 | FZ46: 0 | GA46: 0 | GB46: 0 | GC46: 0 | GD46: 0 | GE46: 0 | GF46: 0 | GG46: 0 | GH46: 0 | GI46: 0 | GJ46: 0 | GK46: 0 | GL46: 0 | GM46: 0 | GN46: 0 | GO46: 0 | GP46: 0 | GQ46: 0 | GR46: 0 | GS46: 0 | GT46: 0
C47: Metering Double Meter | D47: 0 | E47: 0 | F47: 0 | G47: 0 | H47: 0 | I47: 0 | J47: 0 | K47: 0 | L47: 0 | M47: 0 | N47: 0 | O47: 0 | P47: 0 | Q47: 0 | R47: 0 | S47: 0 | T47: 0 | U47: 0 | V47: 0 | W47: 0 | X47: 0 | Y47: 0 | Z47: 0 | AA47: 0 | AB47: 0 | AC47: 0 | AD47: 0 | AE47: 0 | AF47: 0 | AG47: 0 | AH47: 0 | AI47: 0 | AJ47: 0 | AK47: 0 | AL47: 0 | AM47: 0 | AN47: 0 | AO47: 0 | AP47: 0 | AQ47: 0 | AR47: 0 | AS47: 0 | AT47: 0 | AU47: 0 | AV47: 0 | AW47: 0 | AX47: 0 | AY47: 0 | AZ47: 0 | BA47: 0 | BB47: 0 | BC47: 0 | BD47: 0 | BE47: 0 | BF47: 0 | BG47: 0 | BH47: 0 | BI47: 0 | BJ47: 0 | BK47: 0 | BL47: 0 | BM47: 0 | BN47: 0 | BO47: 0 | BP47: 0 | BQ47: 0 | BR47: 0 | BS47: 0 | BT47: 0 | BU47: 0 | BV47: 0 | BW47: 0 | BX47: 0 | BY47: 0 | BZ47: 0 | CA47: 0 | CB47: 0 | CC47: 0 | CD47: 0 | CE47: 0 | CF47: 0 | CG47: 0 | CH47: 0 | CI47: 0 | CJ47: 0 | CK47: 0 | CL47: 0 | CM47: 0 | CN47: 0 | CO47: 0 | CP47: 0 | CQ47: 0 | CR47: 0 | CS47: 0 | CT47: 0 | CU47: 0 | CV47: 0 | CW47: 0 | CX47: 0 | CZ47: 0 | DA47: 0 | DB47: 0 | DC47: 0 | DD47: 0 | DE47: 0 | DF47: 0 | DG47: 0 | DH47: 0 | DI47: 0 | DJ47: 0 | DK47: 0 | DL47: 0 | DM47: 0 | DN47: 0 | DO47: 0 | DP47: 0 | DQ47: 0 | DR47: 0 | DS47: 0 | DT47: 0 | DU47: 0 | DV47: 0 | DW47: 0 | DY47: 0 | DZ47: 0 | EA47: 0 | EB47: 0 | EC47: 0 | ED47: 0 | EE47: 0 | EF47: 0 | EG47: 0 | EH47: 0 | EI47: 0 | EJ47: 0 | EK47: 0 | EL47: 0 | EM47: 0 | EN47: 0 | EO47: 0 | EP47: 0 | EQ47: 0 | ER47: 0 | ES47: 0 | ET47: 0 | EU47: 0 | EV47: 0 | EX47: 0 | EY47: 0 | EZ47: 0 | FA47: 0 | FB47: 0 | FC47: 0 | FD47: 0 | FE47: 0 | FF47: 0 | FG47: 0 | FH47: 0 | FI47: 0 | FJ47: 0 | FK47: 0 | FL47: 0 | FM47: 0 | FN47: 0 | FO47: 0 | FP47: 0 | FQ47: 0 | FR47: 0 | FS47: 0 | FT47: 0 | FU47: 0 | FW47: 0 | FX47: 0 | FY47: 0 | FZ47: 0 | GA47: 0 | GB47: 0 | GC47: 0 | GD47: 0 | GE47: 0 | GF47: 0 | GG47: 0 | GH47: 0 | GI47: 0 | GJ47: 0 | GK47: 0 | GL47: 0 | GM47: 0 | GN47: 0 | GO47: 0 | GP47: 0 | GQ47: 0 | GR47: 0 | GS47: 0 | GT47: 0
C48: MHQ < 16 GJ/hr | D48: 0 | E48: 0 | F48: 0 | G48: 0 | H48: 0 | I48: 0 | J48: 0 | K48: 0 | L48: 0 | M48: 0 | N48: 0 | O48: 0 | P48: 0 | Q48: 0 | R48: 0 | S48: 0 | T48: 0 | U48: 0 | V48: 0 | W48: 0 | X48: 0 | Y48: 0 | Z48: 0 | AA48: 0 | AB48: 0 | AC48: 0 | AD48: 0 | AE48: 0 | AF48: 0 | AG48: 0 | AH48: 0 | AI48: 0 | AJ48: 0 | AK48: 0 | AL48: 0 | AM48: 0 | AN48: 0 | AO48: 0 | AP48: 0 | AQ48: 0 | AR48: 0 | AS48: 0 | AT48: 0 | AU48: 0 | AV48: 0 | AW48: 0 | AX48: 0 | AY48: 0 | AZ48: 0 | BA48: 0 | BB48: 0 | BC48: 0 | BD48: 0 | BE48: 0 | BF48: 0 | BG48: 0 | BH48: 0 | BI48: 0 | BJ48: 0 | BK48: 0 | BL48: 0 | BM48: 0 | BN48: 0 | BO48: 0 | BP48: 0 | BQ48: 0 | BR48: 0 | BS48: 0 | BT48: 0 | BU48: 0 | BV48: 0 | BW48: 0 | BX48: 0 | BY48: 0 | BZ48: 0 | CA48: 0 | CB48: 0 | CC48: 0 | CD48: 0 | CE48: 0 | CF48: 0 | CG48: 0 | CH48: 0 | CI48: 0 | CJ48: 0 | CK48: 0 | CL48: 0 | CM48: 0 | CN48: 0 | CO48: 0 | CP48: 0 | CQ48: 0 | CR48: 0 | CS48: 0 | CT48: 0 | CU48: 0 | CV48: 0 | CW48: 0 | CX48: 0 | CZ48: 0 | DA48: 0 | DB48: 0 | DC48: 0 | DD48: 0 | DE48: 0 | DF48: 0 | DG48: 0 | DH48: 0 | DI48: 0 | DJ48: 0 | DK48: 0 | DL48: 0 | DM48: 0 | DN48: 0 | DO48: 0 | DP48: 0 | DQ48: 0 | DR48: 0 | DS48: 0 | DT48: 0 | DU48: 0 | DV48: 0 | DW48: 0 | DY48: 0 | DZ48: 0 | EA48: 0 | EB48: 0 | EC48: 0 | ED48: 0 | EE48: 0 | EF48: 0 | EG48: 0 | EH48: 0 | EI48: 0 | EJ48: 0 | EK48: 0 | EL48: 0 | EM48: 0 | EN48: 0 | EO48: 0 | EP48: 0 | EQ48: 0 | ER48: 0 | ES48: 0 | ET48: 0 | EU48: 0 | EV48: 0 | EX48: 0 | EY48: 0 | EZ48: 0 | FA48: 0 | FB48: 0 | FC48: 0 | FD48: 0 | FE48: 0 | FF48: 0 | FG48: 0 | FH48: 0 | FI48: 0 | FJ48: 0 | FK48: 0 | FL48: 0 | FM48: 0 | FN48: 0 | FO48: 0 | FP48: 0 | FQ48: 0 | FR48: 0 | FS48: 0 | FT48: 0 | FU48: 0 | FW48: 0 | FX48: 0 | FY48: 0 | FZ48: 0 | GA48: 0 | GB48: 0 | GC48: 0 | GD48: 0 | GE48: 0 | GF48: 0 | GG48: 0 | GH48: 0 | GI48: 0 | GJ48: 0 | GK48: 0 | GL48: 0 | GM48: 0 | GN48: 0 | GO48: 0 | GP48: 0 | GQ48: 0 | GR48: 0 | GS48: 0 | GT48: 0
C49: 16 to < 50 GJ/hr | D49: CIC | E49: CIC | F49: CIC | G49: CIC | H49: CIC | I49: CIC | J49: CIC | K49: CIC | L49: CIC | M49: CIC | N49: CIC | O49: CIC | P49: CIC | Q49: CIC | R49: CIC | S49: CIC | T49: CIC | U49: CIC | V49: CIC | W49: CIC | X49: CIC | Y49: CIC | Z49: CIC | AA49: CIC | AB49: 0 | AC49: CIC | AD49: CIC | AE49: CIC | AF49: CIC | AG49: CIC | AH49: CIC | AI49: CIC | AJ49: CIC | AK49: CIC | AL49: CIC | AM49: CIC | AN49: CIC | AO49: CIC | AP49: CIC | AQ49: CIC | AR49: CIC | AS49: CIC | AT49: CIC | AU49: CIC | AV49: CIC | AW49: CIC | AX49: CIC | AY49: CIC | AZ49: CIC | BA49: 0 | BB49: CIC | BC49: CIC | BD49: CIC | BE49: CIC | BF49: CIC | BG49: CIC | BH49: CIC | BI49: CIC | BJ49: CIC | BK49: CIC | BL49: CIC | BM49: CIC | BN49: CIC | BO49: CIC | BP49: CIC | BQ49: CIC | BR49: CIC | BS49: CIC | BT49: CIC | BU49: CIC | BV49: CIC | BW49: CIC | BX49: CIC | BY49: CIC | CA49: CIC | CB49: CIC | CC49: CIC | CD49: CIC | CE49: CIC | CF49: CIC | CG49: CIC | CH49: CIC | CI49: CIC | CJ49: CIC | CK49: CIC | CL49: CIC | CM49: CIC | CN49: CIC | CO49: CIC | CP49: CIC | CQ49: CIC | CR49: CIC | CS49: CIC | CT49: CIC | CU49: CIC | CV49: CIC | CW49: CIC | CX49: CIC | CZ49: CIC | DA49: CIC | DB49: CIC | DC49: CIC | DD49: CIC | DE49: CIC | DF49: CIC | DG49: CIC | DH49: CIC | DI49: CIC | DJ49: CIC | DK49: CIC | DL49: CIC | DM49: CIC | DN49: CIC | DO49: CIC | DP49: CIC | DQ49: CIC | DR49: CIC | DS49: CIC | DT49: CIC | DU49: CIC | DV49: CIC | DW49: CIC | DY49: CIC | DZ49: CIC | EA49: CIC | EB49: CIC | EC49: CIC | ED49: CIC | EE49: CIC | EF49: CIC | EG49: CIC | EH49: CIC | EI49: CIC | EJ49: CIC | EK49: CIC | EL49: CIC | EM49: CIC | EN49: CIC | EO49: CIC | EP49: CIC | EQ49: CIC | ER49: CIC | ES49: CIC | ET49: CIC | EU49: CIC | EV49: CIC | EX49: CIC | EY49: CIC | EZ49: CIC | FA49: CIC | FB49: CIC | FC49: CIC | FD49: CIC | FE49: CIC | FF49: CIC | FG49: CIC | FH49: CIC | FI49: CIC | FJ49: CIC | FK49: CIC | FL49: CIC | FM49: CIC | FN49: CIC | FO49: CIC | FP49: CIC | FQ49: CIC | FR49: CIC | FS49: CIC | FT49: CIC | FU49: CIC | FW49: CIC | FX49: CIC | FY49: CIC | FZ49: CIC | GA49: CIC | GB49: CIC | GC49: CIC | GD49: CIC | GE49: CIC | GF49: CIC | GG49: CIC | GH49: CIC | GI49: CIC | GJ49: CIC | GK49: CIC | GL49: CIC | GM49: CIC | GN49: CIC | GO49: CIC | GP49: CIC | GQ49: CIC | GR49: CIC | GS49: CIC | GT49: CIC
C50: 50 to < 100 GJ/hr | D50: 0 | E50: 0 | F50: 0 | G50: 0 | H50: 0 | I50: 0 | J50: 0 | K50: 0 | L50: 0 | M50: 0 | N50: 0 | O50: 0 | P50: 0 | Q50: 0 | R50: 0 | S50: 0 | T50: 0 | U50: 0 | V50: 0 | W50: 0 | X50: 0 | Y50: 0 | Z50: 0 | AA50: 0 | AB50: 0 | AC50: 0 | AD50: 0 | AE50: 0 | AF50: 0 | AG50: 0 | AH50: 0 | AI50: 0 | AJ50: 0 | AK50: 0 | AL50: 0 | AM50: 0 | AN50: 0 | AO50: 0 | AP50: 0 | AQ50: 0 | AR50: 0 | AS50: 0 | AT50: 0 | AU50: 0 | AV50: 0 | AW50: 0 | AX50: 0 | AY50: 0 | AZ50: 0 | BA50: 0 | BB50: 0 | BC50: 0 | BD50: 0 | BE50: 0 | BF50: 0 | BG50: 0 | BH50: 0 | BI50: 0 | BJ50: 0 | BK50: 0 | BL50: 0 | BM50: 0 | BN50: 0 | BO50: 0 | BP50: 0 | BQ50: 0 | BR50: 0 | BS50: 0 | BT50: 0 | BU50: 0 | BV50: 0 | BW50: 0 | BX50: 0 | BY50: 0 | BZ50: 0 | CA50: 0 | CB50: 0 | CC50: 0 | CD50: 0 | CE50: 0 | CF50: 0 | CG50: 0 | CH50: 0 | CI50: 0 | CJ50: 0 | CK50: 0 | CL50: 0 | CM50: 0 | CN50: 0 | CO50: 0 | CP50: 0 | CQ50: 0 | CR50: 0 | CS50: 0 | CT50: 0 | CU50: 0 | CV50: 0 | CW50: 0 | CX50: 0 | CZ50: 0 | DA50: 0 | DB50: 0 | DC50: 0 | DD50: 0 | DE50: 0 | DF50: 0 | DG50: 0 | DH50: 0 | DI50: 0 | DJ50: 0 | DK50: 0 | DL50: 0 | DM50: 0 | DN50: 0 | DO50: 0 | DP50: 0 | DQ50: 0 | DR50: 0 | DS50: 0 | DT50: 0 | DU50: 0 | DV50: 0 | DW50: 0 | DY50: 0 | DZ50: 0 | EA50: 0 | EB50: 0 | EC50: 0 | ED50: 0 | EE50: 0 | EF50: 0 | EG50: 0 | EH50: 0 | EI50: 0 | EJ50: 0 | EK50: 0 | EL50: 0 | EM50: 0 | EN50: 0 | EO50: 0 | EP50: 0 | EQ50: 0 | ER50: 0 | ES50: 0 | ET50: 0 | EU50: 0 | EV50: 0 | EX50: 0 | EY50: 0 | EZ50: 0 | FA50: 0 | FB50: 0 | FC50: 0 | FD50: 0 | FE50: 0 | FF50: 0 | FG50: 0 | FH50: 0 | FI50: 0 | FJ50: 0 | FK50: 0 | FL50: 0 | FM50: 0 | FN50: 0 | FO50: 0 | FP50: 0 | FQ50: 0 | FR50: 0 | FS50: 0 | FT50: 0 | FU50: 0 | FW50: 0 | FX50: 0 | FY50: 0 | FZ50: 0 | GA50: 0 | GB50: 0 | GC50: 0 | GD50: 0 | GE50: 0 | GF50: 0 | GG50: 0 | GH50: 0 | GI50: 0 | GJ50: 0 | GK50: 0 | GL50: 0 | GM50: 0 | GN50: 0 | GO50: 0 | GP50: 0 | GQ50: 0 | GR50: 0 | GS50: 0 | GT50: 0
C51: 100 to < 1000 GJ/hr | D51: 0 | E51: 0 | F51: 0 | G51: 0 | H51: 0 | I51: 0 | J51: 0 | K51: 0 | L51: 0 | M51: 0 | N51: 0 | O51: 0 | P51: 0 | Q51: 0 | R51: 0 | S51: 0 | T51: 0 | U51: 0 | V51: 0 | W51: 0 | X51: 0 | Y51: 0 | Z51: 0 | AA51: 0 | AB51: 0 | AC51: 0 | AD51: 0 | AE51: 0 | AF51: 0 | AG51: 0 | AH51: 0 | AI51: 0 | AJ51: 0 | AK51: 0 | AL51: 0 | AM51: 0 | AN51: 0 | AO51: 0 | AP51: 0 | AQ51: 0 | AR51: 0 | AS51: 0 | AT51: 0 | AU51: 0 | AV51: 0 | AW51: 0 | AX51: 0 | AY51: 0 | AZ51: 0 | BA51: 0 | BB51: 0 | BC51: 0 | BD51: 0 | BE51: 0 | BF51: 0 | BG51: 0 | BH51: 0 | BI51: 0 | BJ51: 0 | BK51: 0 | BL51: 0 | BM51: 0 | BN51: 0 | BO51: 0 | BP51: 0 | BQ51: 0 | BR51: 0 | BS51: 0 | BT51: 0 | BU51: 0 | BV51: 0 | BW51: 0 | BX51: 0 | BY51: 0 | BZ51: 0 | CA51: 0 | CB51: 0 | CC51: 0 | CD51: 0 | CE51: 0 | CF51: 0 | CG51: 0 | CH51: 0 | CI51: 0 | CJ51: 0 | CK51: 0 | CL51: 0 | CM51: 0 | CN51: 0 | CO51: 0 | CP51: 0 | CQ51: 0 | CR51: 0 | CS51: 0 | CT51: 0 | CU51: 0 | CV51: 0 | CW51: 0 | CX51: 0 | CZ51: 0 | DA51: 0 | DB51: 0 | DC51: 0 | DD51: 0 | DE51: 0 | DF51: 0 | DG51: 0 | DH51: 0 | DI51: 0 | DJ51: 0 | DK51: 0 | DL51: 0 | DM51: 0 | DN51: 0 | DO51: 0 | DP51: 0 | DQ51: 0 | DR51: 0 | DS51: 0 | DT51: 0 | DU51: 0 | DV51: 0 | DW51: 0 | DY51: 0 | DZ51: 0 | EA51: 0 | EB51: 0 | EC51: 0 | ED51: 0 | EE51: 0 | EF51: 0 | EG51: 0 | EH51: 0 | EI51: 0 | EJ51: 0 | EK51: 0 | EL51: 0 | EM51: 0 | EN51: 0 | EO51: 0 | EP51: 0 | EQ51: 0 | ER51: 0 | ES51: 0 | ET51: 0 | EU51: 0 | EV51: 0 | EX51: 0 | EY51: 0 | EZ51: 0 | FA51: 0 | FB51: 0 | FC51: 0 | FD51: 0 | FE51: 0 | FF51: 0 | FG51: 0 | FH51: 0 | FI51: 0 | FJ51: 0 | FK51: 0 | FL51: 0 | FM51: 0 | FN51: 0 | FO51: 0 | FP51: 0 | FQ51: 0 | FR51: 0 | FS51: 0 | FT51: 0 | FU51: 0 | FW51: 0 | FX51: 0 | FY51: 0 | FZ51: 0 | GA51: 0 | GB51: 0 | GC51: 0 | GD51: 0 | GE51: 0 | GF51: 0 | GG51: 0 | GH51: 0 | GI51: 0 | GJ51: 0 | GK51: 0 | GL51: 0 | GM51: 0 | GN51: 0 | GO51: 0 | GP51: 0 | GQ51: 0 | GR51: 0 | GS51: 0 | GT51: 0
C52: Total | D52: 156282.5 | E52: 155110.4301 | F52: 153969.1178 | G52: 151749.3517 | H52: 148067.9677 | I52: 141232.67 | J52: 124362.6774 | K52: 107303.7451 | L52: 90320.00701 | M52: 82628.58021 | N52: 73874.19944 | O52: 64914.18101 | P52: 56254.46407 | Q52: 47901.17566 | R52: 39946.03872 | S52: 32367.54364 | T52: 25559.90335 | U52: 19413.04517 | V52: 13864.06414 | W52: 9545.254565 | X52: 7537.777121 | Y52: 5388.187761 | Z52: 3151.000485 | AA52: 0 | AC52: 1714333.302 | AD52: 1680502.467 | AE52: 1498541.426 | AF52: 1440280.623 | AG52: 1396024.662 | AH52: 1312386.937 | AI52: 1161505.246 | AJ52: 1010623.555 | AK52: 857494.0759 | AL52: 793182.0202 | AM52: 728869.9645 | AN52: 664557.9088 | AO52: 600245.8532 | AP52: 535933.7975 | AQ52: 471621.7418 | AR52: 407309.6861 | AS52: 342997.6304 | AT52: 278685.5747 | AU52: 214373.519 | AV52: 171498.8152 | AW52: 128624.1114 | AX52: 85749.40759 | AY52: 42874.7038 | AZ52: 0 | BB52: 3522793.977 | BC52: 3288537.056 | BD52: 2648013.358 | BE52: 2463570.245 | BF52: 2601040.706 | BG52: 2444640.258 | BH52: 2164758.368 | BI52: 1884876.478 | BJ52: 1597291.53 | BK52: 1477494.665 | BL52: 1357697.801 | BM52: 1237900.936 | BN52: 1118104.071 | BO52: 998307.2063 | BP52: 878510.3415 | BQ52: 758713.4768 | BR52: 638916.612 | BS52: 519119.7473 | BT52: 399322.8825 | BU52: 319458.306 | BV52: 239593.7295 | BW52: 159729.153 | BX52: 79864.5765 | BY52: 0 | CA52: 588489.3426 | CB52: 608109.4209 | CC52: 539080.5065 | CD52: 529760.3528 | CE52: 533745.1312 | CF52: 520811.3928 | CG52: 460637.7306 | CH52: 400464.0684 | CI52: 340290.4062 | CJ52: 314768.6258 | CK52: 289246.8453 | CL52: 263725.0648 | CM52: 238203.2844 | CN52: 212681.5039 | CO52: 187159.7234 | CP52: 161637.943 | CQ52: 136116.1625 | CR52: 110594.382 | CS52: 85072.60156 | CT52: 68058.08125 | CU52: 51043.56093 | CV52: 34029.04062 | CW52: 17014.52031 | CX52: 0 | CZ52: 904849.0671 | DA52: 991559.4526 | DB52: 853100.4357 | DC52: 829048.1185 | DD52: 904845.6111 | DE52: 884859.9068 | DF52: 782624.6987 | DG52: 680389.4907 | DH52: 578154.2826 | DI52: 534792.7114 | DJ52: 491431.1402 | DK52: 448069.569 | DL52: 404707.9978 | DM52: 361346.4266 | DN52: 317984.8554 | DO52: 274623.2842 | DP52: 231261.713 | DQ52: 187900.1418 | DR52: 144538.5706 | DS52: 115630.8565 | DT52: 86723.14239 | DU52: 57815.42826 | DV52: 28907.71413 | DW52: 0 | DY52: 2023.349 | DZ52: 2030.021 | EA52: 2039.343 | EB52: 2036.096137 | EC52: 2030.404761 | ED52: 2013.83151 | EE52: 1786.301457 | EF52: 1558.771403 | EG52: 1331.24135 | EH52: 1231.44987 | EI52: 1131.658389 | EJ52: 1031.866909 | EK52: 932.0754286 | EL52: 832.2839482 | EM52: 732.4924679 | EN52: 632.7009875 | EO52: 532.9095072 | EP52: 433.1180268 | EQ52: 333.3265465 | ER52: 266.6612372 | ES52: 199.9959279 | ET52: 133.3306186 | EU52: 66.66530929 | EV52: 0 | EX52: 2425.31 | EY52: 2333.101 | EZ52: 2259.127 | FA52: 2186.284104 | FB52: 2092.691065 | FC52: 1996.608108 | FD52: 1771.024018 | FE52: 1545.439928 | FF52: 1319.855837 | FG52: 1220.917829 | FH52: 1121.97982 | FI52: 1023.041812 | FJ52: 924.1038037 | FK52: 825.1657953 | FL52: 726.2277869 | FM52: 627.2897786 | FN52: 528.3517702 | FO52: 429.4137618 | FP52: 330.4757534 | FQ52: 264.3806027 | FR52: 198.285452 | FS52: 132.1903014 | FT52: 66.09515068 | FU52: 0 | FW52: 2353.875 | FX52: 2408.039 | FY52: 2001.234 | FZ52: 1877.181628 | GA52: 1753.441679 | GB52: 1643.713777 | GC52: 1458.00098 | GD52: 1272.288182 | GE52: 1086.575385 | GF52: 1005.124364 | GG52: 923.6733442 | GH52: 842.222324 | GI52: 760.7713037 | GJ52: 679.3202835 | GK52: 597.8692632 | GL52: 516.418243 | GM52: 434.9672227 | GN52: 353.5162025 | GO52: 272.0651822 | GP52: 217.6521458 | GQ52: 163.2391093 | GR52: 108.8260729 | GS52: 54.41303644 | GT52: 0
C53: Total throughput | D53: 7929965.154 | E53: 7818984.288 | F53: 6662275.323 | G53: 6354321.972 | H53: 6484172.564 | I53: 6168167.94 | J53: 5455893.88 | K53: 4747325.186 | L53: 4030189.054 | M53: 3724825.525 | N53: 3423027.82 | O53: 3121201.499 | P53: 2819346.076 | Q53: 2517460.92 | R53: 2215545.206 | S53: 1913597.83 | T53: 1611617.282 | U53: 1309601.446 | V53: 1007547.263 | W53: 805979.2628 | X53: 604225.9747 | Y53: 402586.0557 | Z53: 201129.6043 | AA53: 0
B54: Chosen
C57: Tariff Quantities | D57: =D32 -> Customer numbers | E57: 0 | F57: 0 | G57: 0 | H57: 0 | I57: 0 | J57: 0 | K57: 0 | L57: 0 | M57: 0 | N57: 0 | O57: 0 | P57: 0 | Q57: 0 | R57: 0 | S57: 0 | T57: 0 | U57: 0 | V57: 0 | W57: 0 | X57: 0 | Y57: 0 | Z57: 0 | AA57: 0 | AC57: =#REF! ->  | AD57: 0 | AE57: 0 | AF57: 0 | AG57: 0 | AH57: 0 | AI57: 0 | AJ57: 0 | AK57: 0 | AL57: 0 | AM57: 0 | AN57: 0 | AO57: 0 | AP57: 0 | AQ57: 0 | AR57: 0 | AS57: 0 | AT57: 0 | AU57: 0 | AV57: 0 | AW57: 0 | AX57: 0 | AY57: 0 | AZ57: 0 | BB57: =#REF! ->  | BC57: 0 | BD57: 0 | BE57: 0 | BF57: 0 | BG57: 0 | BH57: 0 | BI57: 0 | BJ57: 0 | BK57: 0 | BL57: 0 | BM57: 0 | BN57: 0 | BO57: 0 | BP57: 0 | BQ57: 0 | BR57: 0 | BS57: 0 | BT57: 0 | BU57: 0 | BV57: 0 | BW57: 0 | BX57: 0 | BY57: 0 | CA57: =CA32 -> Volumes - Throughput rate Block 3 ($/GJ) | CZ57: =CZ32 -> Volumes - Throughput rate Block 4 ($/GJ) | DA57: 0 | DB57: 0 | DC57: 0 | DD57: 0 | DE57: 0 | DF57: 0 | DG57: 0 | DH57: 0 | DI57: 0 | DJ57: 0 | DK57: 0 | DL57: 0 | DM57: 0 | DN57: 0 | DO57: 0 | DP57: 0 | DQ57: 0 | DR57: 0 | DS57: 0 | DT57: 0 | DU57: 0 | DV57: 0 | DW57: 0 | DY57: =DY32 -> Volumes - Capacity rate Block 1 ($/GJ/CD pa) | EX57: =EX32 -> Volumes - Capacity rate Block 2 ($/GJ/CD pa) | FW57: =FW32 -> Volumes - Capacity rate Block 3 ($/GJ/CD pa)
C58: Year | D58: 2021-22 | E58: 2022-23 | F58: 2023-24 | G58: 2024-25 | H58: 2025-26 | I58: 2026-27 | J58: 2027-28 | K58: 2028-29 | L58: 2029-30 | M58: 2030-31 | N58: 2031-32 | O58: 2032-33 | P58: 2033-34 | Q58: 2034-35 | R58: 2035-36 | S58: 2036-37 | T58: 2037-38 | U58: 2038-39 | V58: 2039-40 | W58: 2040-41 | X58: 2041-42 | Y58: 2042-43 | Z58: 2043-44 | AA58: 2044-45 | AC58: 2021-22 | AD58: 2022-23 | AE58: 2023-24 | AF58: 2024-25 | AG58: 2025-26 | AH58: 2026-27 | AI58: 2027-28 | AJ58: 2028-29 | AK58: 2029-30 | AL58: 2030-31 | AM58: 2031-32 | AN58: 2032-33 | AO58: 2033-34 | AP58: 2034-35 | AQ58: 2035-36 | AR58: 2036-37 | AS58: 2037-38 | AT58: 2038-39 | AU58: 2039-40 | AV58: 2040-41 | AW58: 2041-42 | AX58: 2042-43 | AY58: 2043-44 | AZ58: 2044-45 | BB58: 2021-22 | BC58: 2022-23 | BD58: 2023-24 | BE58: 2024-25 | BF58: 2025-26 | BG58: 2026-27 | BH58: 2027-28 | BI58: 2028-29 | BJ58: 2029-30 | BK58: 2030-31 | BL58: 2031-32 | BM58: 2032-33 | BN58: 2033-34 | BO58: 2034-35 | BP58: 2035-36 | BQ58: 2036-37 | BR58: 2037-38 | BS58: 2038-39 | BT58: 2039-40 | BU58: 2040-41 | BV58: 2041-42 | BW58: 2042-43 | BX58: 2043-44 | BY58: 2044-45 | CA58: 2021-22 | CB58: 2022-23 | CC58: 2023-24 | CD58: 2024-25 | CE58: 2025-26 | CF58: 2026-27 | CG58: 2027-28 | CH58: 2028-29 | CI58: 2029-30 | CJ58: 2030-31 | CK58: 2031-32 | CL58: 2032-33 | CM58: 2033-34 | CN58: 2034-35 | CO58: 2035-36 | CP58: 2036-37 | CQ58: 2037-38 | CR58: 2038-39 | CS58: 2039-40 | CT58: 2040-41 | CU58: 2041-42 | CV58: 2042-43 | CW58: 2043-44 | CX58: 2044-45 | CZ58: 2021-22 | DA58: 2022-23 | DB58: 2023-24 | DC58: 2024-25 | DD58: 2025-26 | DE58: 2026-27 | DF58: 2027-28 | DG58: 2028-29 | DH58: 2029-30 | DI58: 2030-31 | DJ58: 2031-32 | DK58: 2032-33 | DL58: 2033-34 | DM58: 2034-35 | DN58: 2035-36 | DO58: 2036-37 | DP58: 2037-38 | DQ58: 2038-39 | DR58: 2039-40 | DS58: 2040-41 | DT58: 2041-42 | DU58: 2042-43 | DV58: 2043-44 | DW58: 2044-45 | DY58: 2021-22 | DZ58: 2022-23 | EA58: 2023-24 | EB58: 2024-25 | EC58: 2025-26 | ED58: 2026-27 | EE58: 2027-28 | EF58: 2028-29 | EG58: 2029-30 | EH58: 2030-31 | EI58: 2031-32 | EJ58: 2032-33 | EK58: 2033-34 | EL58: 2034-35 | EM58: 2035-36 | EN58: 2036-37 | EO58: 2037-38 | EP58: 2038-39 | EQ58: 2039-40 | ER58: 2040-41 | ES58: 2041-42 | ET58: 2042-43 | EU58: 2043-44 | EV58: 2044-45 | EX58: 2021-22 | EY58: 2022-23 | EZ58: 2023-24 | FA58: 2024-25 | FB58: 2025-26 | FC58: 2026-27 | FD58: 2027-28 | FE58: 2028-29 | FF58: 2029-30 | FG58: 2030-31 | FH58: 2031-32 | FI58: 2032-33 | FJ58: 2033-34 | FK58: 2034-35 | FL58: 2035-36 | FM58: 2036-37 | FN58: 2037-38 | FO58: 2038-39 | FP58: 2039-40 | FQ58: 2040-41 | FR58: 2041-42 | FS58: 2042-43 | FT58: 2043-44 | FU58: 2044-45 | FW58: 2021-22 | FX58: 2022-23 | FY58: 2023-24 | FZ58: 2024-25 | GA58: 2025-26 | GB58: 2026-27 | GC58: 2027-28 | GD58: 2028-29 | GE58: 2029-30 | GF58: 2030-31 | GG58: 2031-32 | GH58: 2032-33 | GI58: 2033-34 | GJ58: 2034-35 | GK58: 2035-36 | GL58: 2036-37 | GM58: 2037-38 | GN58: 2038-39 | GO58: 2039-40 | GP58: 2040-41 | GQ58: 2041-42 | GR58: 2042-43 | GS58: 2043-44 | GT58: 2044-45
C59: Residential & Small Business Network Tariffs
C60: VI - Volume Individually Metered | D60: =IF('Key inputs & assumptions'!$D$83='Key inputs & assumptions'!$X$84,D35,IF('Key inputs & assumptions'!$D$83='Key inputs & assumptions'!$X$83,D10)) -> 156313.5 | E60: =IF('Key inputs & assumptions'!$D$83='Key inputs & assumptions'!$X$84,E35,IF('Key inputs & assumptions'!$D$83='Key inputs & assumptions'!$X$83,E10)) -> 155120.5 | F60: =IF('Key inputs & assumptions'!$D$83='Key inputs & assumptions'!$X$84,F35,IF('Key inputs & assumptions'!$D$83='Key inputs & assumptions'!$X$83,F10)) -> 153965.5 | G60: =IF('Key inputs & assumptions'!$D$83='Key inputs & assumptions'!$X$84,G35,IF('Key inputs & assumptions'!$D$83='Key inputs & assumptions'!$X$83,G10)) -> 152334.15 | H60: =IF('Key inputs & assumptions'!$D$83='Key inputs & assumptions'!$X$84,H35,IF('Key inputs & assumptions'!$D$83='Key inputs & assumptions'!$X$83,H10)) -> 149444.6173 | I60: =IF('Key inputs & assumptions'!$D$83='Key inputs & assumptions'!$X$84,I35,IF('Key inputs & assumptions'!$D$83='Key inputs & assumptions'!$X$83,I10)) -> 143167.2736 | J60: =IF('Key inputs & assumptions'!$D$83='Key inputs & assumptions'!$X$84,J35,IF('Key inputs & assumptions'!$D$83='Key inputs & assumptions'!$X$83,J10)) -> 133709.8587 | K60: =IF('Key inputs & assumptions'!$D$83='Key inputs & assumptions'!$X$84,K35,IF('Key inputs & assumptions'!$D$83='Key inputs & assumptions'!$X$83,K10)) -> 123543.8519 | L60: =IF('Key inputs & assumptions'!$D$83='Key inputs & assumptions'!$X$84,L35,IF('Key inputs & assumptions'!$D$83='Key inputs & assumptions'!$X$83,L10)) -> 113237.024 | M60: =IF('Key inputs & assumptions'!$D$83='Key inputs & assumptions'!$X$84,M35,IF('Key inputs & assumptions'!$D$83='Key inputs & assumptions'!$X$83,M10)) -> 103318.8373 | N60: =IF('Key inputs & assumptions'!$D$83='Key inputs & assumptions'!$X$84,N35,IF('Key inputs & assumptions'!$D$83='Key inputs & assumptions'!$X$83,N10)) -> 93094.87962 | O60: =IF('Key inputs & assumptions'!$D$83='Key inputs & assumptions'!$X$84,O35,IF('Key inputs & assumptions'!$D$83='Key inputs & assumptions'!$X$83,O10)) -> 82599.07792 | P60: =IF('Key inputs & assumptions'!$D$83='Key inputs & assumptions'!$X$84,P35,IF('Key inputs & assumptions'!$D$83='Key inputs & assumptions'!$X$83,P10)) -> 72983.63966 | Q60: =IF('Key inputs & assumptions'!$D$83='Key inputs & assumptions'!$X$84,Q35,IF('Key inputs & assumptions'!$D$83='Key inputs & assumptions'!$X$83,Q10)) -> 64243.31096 | R60: =IF('Key inputs & assumptions'!$D$83='Key inputs & assumptions'!$X$84,R35,IF('Key inputs & assumptions'!$D$83='Key inputs & assumptions'!$X$83,R10)) -> 56186.05153 | S60: =IF('Key inputs & assumptions'!$D$83='Key inputs & assumptions'!$X$84,S35,IF('Key inputs & assumptions'!$D$83='Key inputs & assumptions'!$X$83,S10)) -> 48832.30643 | T60: =IF('Key inputs & assumptions'!$D$83='Key inputs & assumptions'!$X$84,T35,IF('Key inputs & assumptions'!$D$83='Key inputs & assumptions'!$X$83,T10)) -> 42113.93355 | U60: =IF('Key inputs & assumptions'!$D$83='Key inputs & assumptions'!$X$84,U35,IF('Key inputs & assumptions'!$D$83='Key inputs & assumptions'!$X$83,U10)) -> 36119.25233 | V60: =IF('Key inputs & assumptions'!$D$83='Key inputs & assumptions'!$X$84,V35,IF('Key inputs & assumptions'!$D$83='Key inputs & assumptions'!$X$83,V10)) -> 30760.98199 | W60: =IF('Key inputs & assumptions'!$D$83='Key inputs & assumptions'!$X$84,W35,IF('Key inputs & assumptions'!$D$83='Key inputs & assumptions'!$X$83,W10)) -> 25662.33885 | X60: =IF('Key inputs & assumptions'!$D$83='Key inputs & assumptions'!$X$84,X35,IF('Key inputs & assumptions'!$D$83='Key inputs & assumptions'!$X$83,X10)) -> 20865.31837 | Y60: =IF('Key inputs & assumptions'!$D$83='Key inputs & assumptions'!$X$84,Y35,IF('Key inputs & assumptions'!$D$83='Key inputs & assumptions'!$X$83,Y10)) -> 16556.50459 | Z60: =IF('Key inputs & assumptions'!$D$83='Key inputs & assumptions'!$X$84,Z35,IF('Key inputs & assumptions'!$D$83='Key inputs & assumptions'!$X$83,Z10)) -> 12783.58296 | AA60: =IF('Key inputs & assumptions'!$D$83='Key inputs & assumptions'!$X$84,AA35,IF('Key inputs & assumptions'!$D$83='Key inputs & assumptions'!$X$83,AA10)) -> 5526.483789 | AB60: =IF('Key inputs & assumptions'!$D$83='Key inputs & assumptions'!$X$84,AB35,IF('Key inputs & assumptions'!$D$83='Key inputs & assumptions'!$X$83,AB10)) -> 0 | AC60: =IF('Key inputs & assumptions'!$D$83='Key inputs & assumptions'!$X$84,AC35,IF('Key inputs & assumptions'!$D$83='Key inputs & assumptions'!$X$83,AC10)) -> 1711967.382 | AD60: =IF('Key inputs & assumptions'!$D$83='Key inputs & assumptions'!$X$84,AD35,IF('Key inputs & assumptions'!$D$83='Key inputs & assumptions'!$X$83,AD10)) -> 1675393.593 | AE60: =IF('Key inputs & assumptions'!$D$83='Key inputs & assumptions'!$X$84,AE35,IF('Key inputs & assumptions'!$D$83='Key inputs & assumptions'!$X$83,AE10)) -> 1491281.708 | AF60: =IF('Key inputs & assumptions'!$D$83='Key inputs & assumptions'!$X$84,AF35,IF('Key inputs & assumptions'!$D$83='Key inputs & assumptions'!$X$83,AF10)) -> 1440897.777 | AG60: =IF('Key inputs & assumptions'!$D$83='Key inputs & assumptions'!$X$84,AG35,IF('Key inputs & assumptions'!$D$83='Key inputs & assumptions'!$X$83,AG10)) -> 1408779.173 | AH60: =IF('Key inputs & assumptions'!$D$83='Key inputs & assumptions'!$X$84,AH35,IF('Key inputs & assumptions'!$D$83='Key inputs & assumptions'!$X$83,AH10)) -> 1331647.663 | AI60: =IF('Key inputs & assumptions'!$D$83='Key inputs & assumptions'!$X$84,AI35,IF('Key inputs & assumptions'!$D$83='Key inputs & assumptions'!$X$83,AI10)) -> 1228261.952 | AJ60: =IF('Key inputs & assumptions'!$D$83='Key inputs & assumptions'!$X$84,AJ35,IF('Key inputs & assumptions'!$D$83='Key inputs & assumptions'!$X$83,AJ10)) -> 1119746.227 | AK60: =IF('Key inputs & assumptions'!$D$83='Key inputs & assumptions'!$X$84,AK35,IF('Key inputs & assumptions'!$D$83='Key inputs & assumptions'!$X$83,AK10)) -> 1010240.526 | AL60: =IF('Key inputs & assumptions'!$D$83='Key inputs & assumptions'!$X$84,AL35,IF('Key inputs & assumptions'!$D$83='Key inputs & assumptions'!$X$83,AL10)) -> 904752.7242 | AM60: =IF('Key inputs & assumptions'!$D$83='Key inputs & assumptions'!$X$84,AM35,IF('Key inputs & assumptions'!$D$83='Key inputs & assumptions'!$X$83,AM10)) -> 809167.7083 | AN60: =IF('Key inputs & assumptions'!$D$83='Key inputs & assumptions'!$X$84,AN35,IF('Key inputs & assumptions'!$D$83='Key inputs & assumptions'!$X$83,AN10)) -> 712438.2869 | AO60: =IF('Key inputs & assumptions'!$D$83='Key inputs & assumptions'!$X$84,AO35,IF('Key inputs & assumptions'!$D$83='Key inputs & assumptions'!$X$83,AO10)) -> 624072.3458 | AP60: =IF('Key inputs & assumptions'!$D$83='Key inputs & assumptions'!$X$84,AP35,IF('Key inputs & assumptions'!$D$83='Key inputs & assumptions'!$X$83,AP10)) -> 545324.5913 | AQ60: =IF('Key inputs & assumptions'!$D$83='Key inputs & assumptions'!$X$84,AQ35,IF('Key inputs & assumptions'!$D$83='Key inputs & assumptions'!$X$83,AQ10)) -> 472833.5345 | AR60: =IF('Key inputs & assumptions'!$D$83='Key inputs & assumptions'!$X$84,AR35,IF('Key inputs & assumptions'!$D$83='Key inputs & assumptions'!$X$83,AR10)) -> 409258.5797 | AS60: =IF('Key inputs & assumptions'!$D$83='Key inputs & assumptions'!$X$84,AS35,IF('Key inputs & assumptions'!$D$83='Key inputs & assumptions'!$X$83,AS10)) -> 351068.3119 | AT60: =IF('Key inputs & assumptions'!$D$83='Key inputs & assumptions'!$X$84,AT35,IF('Key inputs & assumptions'!$D$83='Key inputs & assumptions'!$X$83,AT10)) -> 298789.5007 | AU60: =IF('Key inputs & assumptions'!$D$83='Key inputs & assumptions'!$X$84,AU35,IF('Key inputs & assumptions'!$D$83='Key inputs & assumptions'!$X$83,AU10)) -> 252504.7501 | AV60: =IF('Key inputs & assumptions'!$D$83='Key inputs & assumptions'!$X$84,AV35,IF('Key inputs & assumptions'!$D$83='Key inputs & assumptions'!$X$83,AV10)) -> 213198.4956 | AW60: =IF('Key inputs & assumptions'!$D$83='Key inputs & assumptions'!$X$84,AW35,IF('Key inputs & assumptions'!$D$83='Key inputs & assumptions'!$X$83,AW10)) -> 170160.6869 | AX60: =IF('Key inputs & assumptions'!$D$83='Key inputs & assumptions'!$X$84,AX35,IF('Key inputs & assumptions'!$D$83='Key inputs & assumptions'!$X$83,AX10)) -> 131024.0143 | AY60: =IF('Key inputs & assumptions'!$D$83='Key inputs & assumptions'!$X$84,AY35,IF('Key inputs & assumptions'!$D$83='Key inputs & assumptions'!$X$83,AY10)) -> 94393.69882 | AZ60: =IF('Key inputs & assumptions'!$D$83='Key inputs & assumptions'!$X$84,AZ35,IF('Key inputs & assumptions'!$D$83='Key inputs & assumptions'!$X$83,AZ10)) -> 0 | BA60: =IF('Key inputs & assumptions'!$D$83='Key inputs & assumptions'!$X$84,BA35,IF('Key inputs & assumptions'!$D$83='Key inputs & assumptions'!$X$83,BA10)) -> 0 | BB60: =IF('Key inputs & assumptions'!$D$83='Key inputs & assumptions'!$X$84,BB35,IF('Key inputs & assumptions'!$D$83='Key inputs & assumptions'!$X$83,BB10)) -> 3513800.61 | BC60: =IF('Key inputs & assumptions'!$D$83='Key inputs & assumptions'!$X$84,BC35,IF('Key inputs & assumptions'!$D$83='Key inputs & assumptions'!$X$83,BC10)) -> 3268344.248 | BD60: =IF('Key inputs & assumptions'!$D$83='Key inputs & assumptions'!$X$84,BD35,IF('Key inputs & assumptions'!$D$83='Key inputs & assumptions'!$X$83,BD10)) -> 2624166.785 | BE60: =IF('Key inputs & assumptions'!$D$83='Key inputs & assumptions'!$X$84,BE35,IF('Key inputs & assumptions'!$D$83='Key inputs & assumptions'!$X$83,BE10)) -> 2449710.355 | BF60: =IF('Key inputs & assumptions'!$D$83='Key inputs & assumptions'!$X$84,BF35,IF('Key inputs & assumptions'!$D$83='Key inputs & assumptions'!$X$83,BF10)) -> 2609496.519 | BG60: =IF('Key inputs & assumptions'!$D$83='Key inputs & assumptions'!$X$84,BG35,IF('Key inputs & assumptions'!$D$83='Key inputs & assumptions'!$X$83,BG10)) -> 2470427.897 | BH60: =IF('Key inputs & assumptions'!$D$83='Key inputs & assumptions'!$X$84,BH35,IF('Key inputs & assumptions'!$D$83='Key inputs & assumptions'!$X$83,BH10)) -> 2281945.901 | BI60: =IF('Key inputs & assumptions'!$D$83='Key inputs & assumptions'!$X$84,BI35,IF('Key inputs & assumptions'!$D$83='Key inputs & assumptions'!$X$83,BI10)) -> 2085704.024 | BJ60: =IF('Key inputs & assumptions'!$D$83='Key inputs & assumptions'!$X$84,BJ35,IF('Key inputs & assumptions'!$D$83='Key inputs & assumptions'!$X$83,BJ10)) -> 1889555.444 | BK60: =IF('Key inputs & assumptions'!$D$83='Key inputs & assumptions'!$X$84,BK35,IF('Key inputs & assumptions'!$D$83='Key inputs & assumptions'!$X$83,BK10)) -> 1702063.935 | BL60: =IF('Key inputs & assumptions'!$D$83='Key inputs & assumptions'!$X$84,BL35,IF('Key inputs & assumptions'!$D$83='Key inputs & assumptions'!$X$83,BL10)) -> 1535744.206 | BM60: =IF('Key inputs & assumptions'!$D$83='Key inputs & assumptions'!$X$84,BM35,IF('Key inputs & assumptions'!$D$83='Key inputs & assumptions'!$X$83,BM10)) -> 1369800.672 | BN60: =IF('Key inputs & assumptions'!$D$83='Key inputs & assumptions'!$X$84,BN35,IF('Key inputs & assumptions'!$D$83='Key inputs & assumptions'!$X$83,BN10)) -> 1218768.411 | BO60: =IF('Key inputs & assumptions'!$D$83='Key inputs & assumptions'!$X$84,BO35,IF('Key inputs & assumptions'!$D$83='Key inputs & assumptions'!$X$83,BO10)) -> 1084456.405 | BP60: =IF('Key inputs & assumptions'!$D$83='Key inputs & assumptions'!$X$84,BP35,IF('Key inputs & assumptions'!$D$83='Key inputs & assumptions'!$X$83,BP10)) -> 961325.9363 | BQ60: =IF('Key inputs & assumptions'!$D$83='Key inputs & assumptions'!$X$84,BQ35,IF('Key inputs & assumptions'!$D$83='Key inputs & assumptions'!$X$83,BQ10)) -> 852913.7366 | BR60: =IF('Key inputs & assumptions'!$D$83='Key inputs & assumptions'!$X$84,BR35,IF('Key inputs & assumptions'!$D$83='Key inputs & assumptions'!$X$83,BR10)) -> 751677.6158 | BS60: =IF('Key inputs & assumptions'!$D$83='Key inputs & assumptions'!$X$84,BS35,IF('Key inputs & assumptions'!$D$83='Key inputs & assumptions'!$X$83,BS10)) -> 659635.4423 | BT60: =IF('Key inputs & assumptions'!$D$83='Key inputs & assumptions'!$X$84,BT35,IF('Key inputs & assumptions'!$D$83='Key inputs & assumptions'!$X$83,BT10)) -> 577869.0609 | BU60: =IF('Key inputs & assumptions'!$D$83='Key inputs & assumptions'!$X$84,BU35,IF('Key inputs & assumptions'!$D$83='Key inputs & assumptions'!$X$83,BU10)) -> 523790.7929 | BV60: =IF('Key inputs & assumptions'!$D$83='Key inputs & assumptions'!$X$84,BV35,IF('Key inputs & assumptions'!$D$83='Key inputs & assumptions'!$X$83,BV10)) -> 411753.4002 | BW60: =IF('Key inputs & assumptions'!$D$83='Key inputs & assumptions'!$X$84,BW35,IF('Key inputs & assumptions'!$D$83='Key inputs & assumptions'!$X$83,BW10)) -> 311107.5734 | BX60: =IF('Key inputs & assumptions'!$D$83='Key inputs & assumptions'!$X$84,BX35,IF('Key inputs & assumptions'!$D$83='Key inputs & assumptions'!$X$83,BX10)) -> 215306.341 | BY60: =IF('Key inputs & assumptions'!$D$83='Key inputs & assumptions'!$X$84,BY35,IF('Key inputs & assumptions'!$D$83='Key inputs & assumptions'!$X$83,BY10)) -> 0 | BZ60: =IF('Key inputs & assumptions'!$D$83='Key inputs & assumptions'!$X$84,BZ35,IF('Key inputs & assumptions'!$D$83='Key inputs & assumptions'!$X$83,BZ10)) -> 0 | CA60: =IF('Key inputs & assumptions'!$D$83='Key inputs & assumptions'!$X$84,CA35,IF('Key inputs & assumptions'!$D$83='Key inputs & assumptions'!$X$83,CA10)) -> 588489.3426 | CB60: =IF('Key inputs & assumptions'!$D$83='Key inputs & assumptions'!$X$84,CB35,IF('Key inputs & assumptions'!$D$83='Key inputs & assumptions'!$X$83,CB10)) -> 608109.4209 | CC60: =IF('Key inputs & assumptions'!$D$83='Key inputs & assumptions'!$X$84,CC35,IF('Key inputs & assumptions'!$D$83='Key inputs & assumptions'!$X$83,CC10)) -> 539080.5065 | CD60: =IF('Key inputs & assumptions'!$D$83='Key inputs & assumptions'!$X$84,CD35,IF('Key inputs & assumptions'!$D$83='Key inputs & assumptions'!$X$83,CD10)) -> 530576.7236 | CE60: =IF('Key inputs & assumptions'!$D$83='Key inputs & assumptions'!$X$84,CE35,IF('Key inputs & assumptions'!$D$83='Key inputs & assumptions'!$X$83,CE10)) -> 539731.8971 | CF60: =IF('Key inputs & assumptions'!$D$83='Key inputs & assumptions'!$X$84,CF35,IF('Key inputs & assumptions'!$D$83='Key inputs & assumptions'!$X$83,CF10)) -> 531708.0185 | CG60: =IF('Key inputs & assumptions'!$D$83='Key inputs & assumptions'!$X$84,CG35,IF('Key inputs & assumptions'!$D$83='Key inputs & assumptions'!$X$83,CG10)) -> 516837.6944 | CH60: =IF('Key inputs & assumptions'!$D$83='Key inputs & assumptions'!$X$84,CH35,IF('Key inputs & assumptions'!$D$83='Key inputs & assumptions'!$X$83,CH10)) -> 501287.5913 | CI60: =IF('Key inputs & assumptions'!$D$83='Key inputs & assumptions'!$X$84,CI35,IF('Key inputs & assumptions'!$D$83='Key inputs & assumptions'!$X$83,CI10)) -> 485547.1364 | CJ60: =IF('Key inputs & assumptions'!$D$83='Key inputs & assumptions'!$X$84,CJ35,IF('Key inputs & assumptions'!$D$83='Key inputs & assumptions'!$X$83,CJ10)) -> 470062.2337 | CK60: =IF('Key inputs & assumptions'!$D$83='Key inputs & assumptions'!$X$84,CK35,IF('Key inputs & assumptions'!$D$83='Key inputs & assumptions'!$X$83,CK10)) -> 456360.2224 | CL60: =IF('Key inputs & assumptions'!$D$83='Key inputs & assumptions'!$X$84,CL35,IF('Key inputs & assumptions'!$D$83='Key inputs & assumptions'!$X$83,CL10)) -> 442935.9534 | CM60: =IF('Key inputs & assumptions'!$D$83='Key inputs & assumptions'!$X$84,CM35,IF('Key inputs & assumptions'!$D$83='Key inputs & assumptions'!$X$83,CM10)) -> 430171.8159 | CN60: =IF('Key inputs & assumptions'!$D$83='Key inputs & assumptions'!$X$84,CN35,IF('Key inputs & assumptions'!$D$83='Key inputs & assumptions'!$X$83,CN10)) -> 418146.5727 | CO60: =IF('Key inputs & assumptions'!$D$83='Key inputs & assumptions'!$X$84,CO35,IF('Key inputs & assumptions'!$D$83='Key inputs & assumptions'!$X$83,CO10)) -> 406634.2417 | CP60: =IF('Key inputs & assumptions'!$D$83='Key inputs & assumptions'!$X$84,CP35,IF('Key inputs & assumptions'!$D$83='Key inputs & assumptions'!$X$83,CP10)) -> 396345.7983 | CQ60: =IF('Key inputs & assumptions'!$D$83='Key inputs & assumptions'!$X$84,CQ35,IF('Key inputs & assumptions'!$D$83='Key inputs & assumptions'!$X$83,CQ10)) -> 382331.2237 | CR60: =IF('Key inputs & assumptions'!$D$83='Key inputs & assumptions'!$X$84,CR35,IF('Key inputs & assumptions'!$D$83='Key inputs & assumptions'!$X$83,CR10)) -> 366444.9842 | CS60: =IF('Key inputs & assumptions'!$D$83='Key inputs & assumptions'!$X$84,CS35,IF('Key inputs & assumptions'!$D$83='Key inputs & assumptions'!$X$83,CS10)) -> 350782.2487 | CT60: =IF('Key inputs & assumptions'!$D$83='Key inputs & assumptions'!$X$84,CT35,IF('Key inputs & assumptions'!$D$83='Key inputs & assumptions'!$X$83,CT10)) -> 364863.7194 | CU60: =IF('Key inputs & assumptions'!$D$83='Key inputs & assumptions'!$X$84,CU35,IF('Key inputs & assumptions'!$D$83='Key inputs & assumptions'!$X$83,CU10)) -> 281706.4641 | CV60: =IF('Key inputs & assumptions'!$D$83='Key inputs & assumptions'!$X$84,CV35,IF('Key inputs & assumptions'!$D$83='Key inputs & assumptions'!$X$83,CV10)) -> 207558.8668 | CW60: =IF('Key inputs & assumptions'!$D$83='Key inputs & assumptions'!$X$84,CW35,IF('Key inputs & assumptions'!$D$83='Key inputs & assumptions'!$X$83,CW10)) -> 134602.7751 | CX60: =IF('Key inputs & assumptions'!$D$83='Key inputs & assumptions'!$X$84,CX35,IF('Key inputs & assumptions'!$D$83='Key inputs & assumptions'!$X$83,CX10)) -> 0 | CZ60: =IF('Key inputs & assumptions'!$D$83='Key inputs & assumptions'!$X$84,CZ35,IF('Key inputs & assumptions'!$D$83='Key inputs & assumptions'!$X$83,CZ10)) -> 904849.0671 | DA60: =IF('Key inputs & assumptions'!$D$83='Key inputs & assumptions'!$X$84,DA35,IF('Key inputs & assumptions'!$D$83='Key inputs & assumptions'!$X$83,DA10)) -> 991559.4526 | DB60: =IF('Key inputs & assumptions'!$D$83='Key inputs & assumptions'!$X$84,DB35,IF('Key inputs & assumptions'!$D$83='Key inputs & assumptions'!$X$83,DB10)) -> 853100.4357 | DC60: =IF('Key inputs & assumptions'!$D$83='Key inputs & assumptions'!$X$84,DC35,IF('Key inputs & assumptions'!$D$83='Key inputs & assumptions'!$X$83,DC10)) -> 830174.9475 | DD60: =IF('Key inputs & assumptions'!$D$83='Key inputs & assumptions'!$X$84,DD35,IF('Key inputs & assumptions'!$D$83='Key inputs & assumptions'!$X$83,DD10)) -> 915135.9914 | DE60: =IF('Key inputs & assumptions'!$D$83='Key inputs & assumptions'!$X$84,DE35,IF('Key inputs & assumptions'!$D$83='Key inputs & assumptions'!$X$83,DE10)) -> 904068.088 | DF60: =IF('Key inputs & assumptions'!$D$83='Key inputs & assumptions'!$X$84,DF35,IF('Key inputs & assumptions'!$D$83='Key inputs & assumptions'!$X$83,DF10)) -> 882385.0563 | DG60: =IF('Key inputs & assumptions'!$D$83='Key inputs & assumptions'!$X$84,DG35,IF('Key inputs & assumptions'!$D$83='Key inputs & assumptions'!$X$83,DG10)) -> 859738.0598 | DH60: =IF('Key inputs & assumptions'!$D$83='Key inputs & assumptions'!$X$84,DH35,IF('Key inputs & assumptions'!$D$83='Key inputs & assumptions'!$X$83,DH10)) -> 836762.5239 | DI60: =IF('Key inputs & assumptions'!$D$83='Key inputs & assumptions'!$X$84,DI35,IF('Key inputs & assumptions'!$D$83='Key inputs & assumptions'!$X$83,DI10)) -> 813795.7609 | DJ60: =IF('Key inputs & assumptions'!$D$83='Key inputs & assumptions'!$X$84,DJ35,IF('Key inputs & assumptions'!$D$83='Key inputs & assumptions'!$X$83,DJ10)) -> 794240.3351 | DK60: =IF('Key inputs & assumptions'!$D$83='Key inputs & assumptions'!$X$84,DK35,IF('Key inputs & assumptions'!$D$83='Key inputs & assumptions'!$X$83,DK10)) -> 775669.9329 | DL60: =IF('Key inputs & assumptions'!$D$83='Key inputs & assumptions'!$X$84,DL35,IF('Key inputs & assumptions'!$D$83='Key inputs & assumptions'!$X$83,DL10)) -> 757516.0448 | DM60: =IF('Key inputs & assumptions'!$D$83='Key inputs & assumptions'!$X$84,DM35,IF('Key inputs & assumptions'!$D$83='Key inputs & assumptions'!$X$83,DM10)) -> 739778.0813 | DN60: =IF('Key inputs & assumptions'!$D$83='Key inputs & assumptions'!$X$84,DN35,IF('Key inputs & assumptions'!$D$83='Key inputs & assumptions'!$X$83,DN10)) -> 722440.0273 | DO60: =IF('Key inputs & assumptions'!$D$83='Key inputs & assumptions'!$X$84,DO35,IF('Key inputs & assumptions'!$D$83='Key inputs & assumptions'!$X$83,DO10)) -> 705678.0728 | DP60: =IF('Key inputs & assumptions'!$D$83='Key inputs & assumptions'!$X$84,DP35,IF('Key inputs & assumptions'!$D$83='Key inputs & assumptions'!$X$83,DP10)) -> 681044.4883 | DQ60: =IF('Key inputs & assumptions'!$D$83='Key inputs & assumptions'!$X$84,DQ35,IF('Key inputs & assumptions'!$D$83='Key inputs & assumptions'!$X$83,DQ10)) -> 652391.8371 | DR60: =IF('Key inputs & assumptions'!$D$83='Key inputs & assumptions'!$X$84,DR35,IF('Key inputs & assumptions'!$D$83='Key inputs & assumptions'!$X$83,DR10)) -> 623590.0941 | DS60: =IF('Key inputs & assumptions'!$D$83='Key inputs & assumptions'!$X$84,DS35,IF('Key inputs & assumptions'!$D$83='Key inputs & assumptions'!$X$83,DS10)) -> 647296.7845 | DT60: =IF('Key inputs & assumptions'!$D$83='Key inputs & assumptions'!$X$84,DT35,IF('Key inputs & assumptions'!$D$83='Key inputs & assumptions'!$X$83,DT10)) -> 492866.7076 | DU60: =IF('Key inputs & assumptions'!$D$83='Key inputs & assumptions'!$X$84,DU35,IF('Key inputs & assumptions'!$D$83='Key inputs & assumptions'!$X$83,DU10)) -> 356186.4699 | DV60: =IF('Key inputs & assumptions'!$D$83='Key inputs & assumptions'!$X$84,DV35,IF('Key inputs & assumptions'!$D$83='Key inputs & assumptions'!$X$83,DV10)) -> 222539.2995 | DW60: =IF('Key inputs & assumptions'!$D$83='Key inputs & assumptions'!$X$84,DW35,IF('Key inputs & assumptions'!$D$83='Key inputs & assumptions'!$X$83,DW10)) -> 0 | DY60: =IF('Key inputs & assumptions'!$D$83='Key inputs & assumptions'!$X$84,DY35,IF('Key inputs & assumptions'!$D$83='Key inputs & assumptions'!$X$83,DY10)) -> 0 | DZ60: =IF('Key inputs & assumptions'!$D$83='Key inputs & assumptions'!$X$84,DZ35,IF('Key inputs & assumptions'!$D$83='Key inputs & assumptions'!$X$83,DZ10)) -> 0 | EA60: =IF('Key inputs & assumptions'!$D$83='Key inputs & assumptions'!$X$84,EA35,IF('Key inputs & assumptions'!$D$83='Key inputs & assumptions'!$X$83,EA10)) -> 0 | EB60: =IF('Key inputs & assumptions'!$D$83='Key inputs & assumptions'!$X$84,EB35,IF('Key inputs & assumptions'!$D$83='Key inputs & assumptions'!$X$83,EB10)) -> 0 | EC60: =IF('Key inputs & assumptions'!$D$83='Key inputs & assumptions'!$X$84,EC35,IF('Key inputs & assumptions'!$D$83='Key inputs & assumptions'!$X$83,EC10)) -> 0 | ED60: =IF('Key inputs & assumptions'!$D$83='Key inputs & assumptions'!$X$84,ED35,IF('Key inputs & assumptions'!$D$83='Key inputs & assumptions'!$X$83,ED10)) -> 0 | EE60: =IF('Key inputs & assumptions'!$D$83='Key inputs & assumptions'!$X$84,EE35,IF('Key inputs & assumptions'!$D$83='Key inputs & assumptions'!$X$83,EE10)) -> 0 | EF60: =IF('Key inputs & assumptions'!$D$83='Key inputs & assumptions'!$X$84,EF35,IF('Key inputs & assumptions'!$D$83='Key inputs & assumptions'!$X$83,EF10)) -> 0 | EG60: =IF('Key inputs & assumptions'!$D$83='Key inputs & assumptions'!$X$84,EG35,IF('Key inputs & assumptions'!$D$83='Key inputs & assumptions'!$X$83,EG10)) -> 0 | EH60: =IF('Key inputs & assumptions'!$D$83='Key inputs & assumptions'!$X$84,EH35,IF('Key inputs & assumptions'!$D$83='Key inputs & assumptions'!$X$83,EH10)) -> 0 | EI60: =IF('Key inputs & assumptions'!$D$83='Key inputs & assumptions'!$X$84,EI35,IF('Key inputs & assumptions'!$D$83='Key inputs & assumptions'!$X$83,EI10)) -> 0 | EJ60: =IF('Key inputs & assumptions'!$D$83='Key inputs & assumptions'!$X$84,EJ35,IF('Key inputs & assumptions'!$D$83='Key inputs & assumptions'!$X$83,EJ10)) -> 0 | EK60: =IF('Key inputs & assumptions'!$D$83='Key inputs & assumptions'!$X$84,EK35,IF('Key inputs & assumptions'!$D$83='Key inputs & assumptions'!$X$83,EK10)) -> 0 | EL60: =IF('Key inputs & assumptions'!$D$83='Key inputs & assumptions'!$X$84,EL35,IF('Key inputs & assumptions'!$D$83='Key inputs & assumptions'!$X$83,EL10)) -> 0 | EM60: =IF('Key inputs & assumptions'!$D$83='Key inputs & assumptions'!$X$84,EM35,IF('Key inputs & assumptions'!$D$83='Key inputs & assumptions'!$X$83,EM10)) -> 0 | EN60: =IF('Key inputs & assumptions'!$D$83='Key inputs & assumptions'!$X$84,EN35,IF('Key inputs & assumptions'!$D$83='Key inputs & assumptions'!$X$83,EN10)) -> 0 | EO60: =IF('Key inputs & assumptions'!$D$83='Key inputs & assumptions'!$X$84,EO35,IF('Key inputs & assumptions'!$D$83='Key inputs & assumptions'!$X$83,EO10)) -> 0 | EP60: =IF('Key inputs & assumptions'!$D$83='Key inputs & assumptions'!$X$84,EP35,IF('Key inputs & assumptions'!$D$83='Key inputs & assumptions'!$X$83,EP10)) -> 0 | EQ60: =IF('Key inputs & assumptions'!$D$83='Key inputs & assumptions'!$X$84,EQ35,IF('Key inputs & assumptions'!$D$83='Key inputs & assumptions'!$X$83,EQ10)) -> 0 | ER60: =IF('Key inputs & assumptions'!$D$83='Key inputs & assumptions'!$X$84,ER35,IF('Key inputs & assumptions'!$D$83='Key inputs & assumptions'!$X$83,ER10)) -> 0 | ES60: =IF('Key inputs & assumptions'!$D$83='Key inputs & assumptions'!$X$84,ES35,IF('Key inputs & assumptions'!$D$83='Key inputs & assumptions'!$X$83,ES10)) -> 0 | ET60: =IF('Key inputs & assumptions'!$D$83='Key inputs & assumptions'!$X$84,ET35,IF('Key inputs & assumptions'!$D$83='Key inputs & assumptions'!$X$83,ET10)) -> 0 | EU60: =IF('Key inputs & assumptions'!$D$83='Key inputs & assumptions'!$X$84,EU35,IF('Key inputs & assumptions'!$D$83='Key inputs & assumptions'!$X$83,EU10)) -> 0 | EV60: =IF('Key inputs & assumptions'!$D$83='Key inputs & assumptions'!$X$84,EV35,IF('Key inputs & assumptions'!$D$83='Key inputs & assumptions'!$X$83,EV10)) -> 0 | EX60: =IF('Key inputs & assumptions'!$D$83='Key inputs & assumptions'!$X$84,EX35,IF('Key inputs & assumptions'!$D$83='Key inputs & assumptions'!$X$83,EX10)) -> 0 | EY60: =IF('Key inputs & assumptions'!$D$83='Key inputs & assumptions'!$X$84,EY35,IF('Key inputs & assumptions'!$D$83='Key inputs & assumptions'!$X$83,EY10)) -> 0 | EZ60: =IF('Key inputs & assumptions'!$D$83='Key inputs & assumptions'!$X$84,EZ35,IF('Key inputs & assumptions'!$D$83='Key inputs & assumptions'!$X$83,EZ10)) -> 0 | FA60: =IF('Key inputs & assumptions'!$D$83='Key inputs & assumptions'!$X$84,FA35,IF('Key inputs & assumptions'!$D$83='Key inputs & assumptions'!$X$83,FA10)) -> 0 | FB60: =IF('Key inputs & assumptions'!$D$83='Key inputs & assumptions'!$X$84,FB35,IF('Key inputs & assumptions'!$D$83='Key inputs & assumptions'!$X$83,FB10)) -> 0 | FC60: =IF('Key inputs & assumptions'!$D$83='Key inputs & assumptions'!$X$84,FC35,IF('Key inputs & assumptions'!$D$83='Key inputs & assumptions'!$X$83,FC10)) -> 0 | FD60: =IF('Key inputs & assumptions'!$D$83='Key inputs & assumptions'!$X$84,FD35,IF('Key inputs & assumptions'!$D$83='Key inputs & assumptions'!$X$83,FD10)) -> 0 | FE60: =IF('Key inputs & assumptions'!$D$83='Key inputs & assumptions'!$X$84,FE35,IF('Key inputs & assumptions'!$D$83='Key inputs & assumptions'!$X$83,FE10)) -> 0 | FF60: =IF('Key inputs & assumptions'!$D$83='Key inputs & assumptions'!$X$84,FF35,IF('Key inputs & assumptions'!$D$83='Key inputs & assumptions'!$X$83,FF10)) -> 0 | FG60: =IF('Key inputs & assumptions'!$D$83='Key inputs & assumptions'!$X$84,FG35,IF('Key inputs & assumptions'!$D$83='Key inputs & assumptions'!$X$83,FG10)) -> 0 | FH60: =IF('Key inputs & assumptions'!$D$83='Key inputs & assumptions'!$X$84,FH35,IF('Key inputs & assumptions'!$D$83='Key inputs & assumptions'!$X$83,FH10)) -> 0 | FI60: =IF('Key inputs & assumptions'!$D$83='Key inputs & assumptions'!$X$84,FI35,IF('Key inputs & assumptions'!$D$83='Key inputs & assumptions'!$X$83,FI10)) -> 0 | FJ60: =IF('Key inputs & assumptions'!$D$83='Key inputs & assumptions'!$X$84,FJ35,IF('Key inputs & assumptions'!$D$83='Key inputs & assumptions'!$X$83,FJ10)) -> 0 | FK60: =IF('Key inputs & assumptions'!$D$83='Key inputs & assumptions'!$X$84,FK35,IF('Key inputs & assumptions'!$D$83='Key inputs & assumptions'!$X$83,FK10)) -> 0 | FL60: =IF('Key inputs & assumptions'!$D$83='Key inputs & assumptions'!$X$84,FL35,IF('Key inputs & assumptions'!$D$83='Key inputs & assumptions'!$X$83,FL10)) -> 0 | FM60: =IF('Key inputs & assumptions'!$D$83='Key inputs & assumptions'!$X$84,FM35,IF('Key inputs & assumptions'!$D$83='Key inputs & assumptions'!$X$83,FM10)) -> 0 | FN60: =IF('Key inputs & assumptions'!$D$83='Key inputs & assumptions'!$X$84,FN35,IF('Key inputs & assumptions'!$D$83='Key inputs & assumptions'!$X$83,FN10)) -> 0 | FO60: =IF('Key inputs & assumptions'!$D$83='Key inputs & assumptions'!$X$84,FO35,IF('Key inputs & assumptions'!$D$83='Key inputs & assumptions'!$X$83,FO10)) -> 0 | FP60: =IF('Key inputs & assumptions'!$D$83='Key inputs & assumptions'!$X$84,FP35,IF('Key inputs & assumptions'!$D$83='Key inputs & assumptions'!$X$83,FP10)) -> 0 | FQ60: =IF('Key inputs & assumptions'!$D$83='Key inputs & assumptions'!$X$84,FQ35,IF('Key inputs & assumptions'!$D$83='Key inputs & assumptions'!$X$83,FQ10)) -> 0 | FR60: =IF('Key inputs & assumptions'!$D$83='Key inputs & assumptions'!$X$84,FR35,IF('Key inputs & assumptions'!$D$83='Key inputs & assumptions'!$X$83,FR10)) -> 0 | FS60: =IF('Key inputs & assumptions'!$D$83='Key inputs & assumptions'!$X$84,FS35,IF('Key inputs & assumptions'!$D$83='Key inputs & assumptions'!$X$83,FS10)) -> 0 | FT60: =IF('Key inputs & assumptions'!$D$83='Key inputs & assumptions'!$X$84,FT35,IF('Key inputs & assumptions'!$D$83='Key inputs & assumptions'!$X$83,FT10)) -> 0 | FU60: =IF('Key inputs & assumptions'!$D$83='Key inputs & assumptions'!$X$84,FU35,IF('Key inputs & assumptions'!$D$83='Key inputs & assumptions'!$X$83,FU10)) -> 0 | FW60: =IF('Key inputs & assumptions'!$D$83='Key inputs & assumptions'!$X$84,FW35,IF('Key inputs & assumptions'!$D$83='Key inputs & assumptions'!$X$83,FW10)) -> 0 | FX60: =IF('Key inputs & assumptions'!$D$83='Key inputs & assumptions'!$X$84,FX35,IF('Key inputs & assumptions'!$D$83='Key inputs & assumptions'!$X$83,FX10)) -> 0 | FY60: =IF('Key inputs & assumptions'!$D$83='Key inputs & assumptions'!$X$84,FY35,IF('Key inputs & assumptions'!$D$83='Key inputs & assumptions'!$X$83,FY10)) -> 0 | FZ60: =IF('Key inputs & assumptions'!$D$83='Key inputs & assumptions'!$X$84,FZ35,IF('Key inputs & assumptions'!$D$83='Key inputs & assumptions'!$X$83,FZ10)) -> 0 | GA60: =IF('Key inputs & assumptions'!$D$83='Key inputs & assumptions'!$X$84,GA35,IF('Key inputs & assumptions'!$D$83='Key inputs & assumptions'!$X$83,GA10)) -> 0 | GB60: =IF('Key inputs & assumptions'!$D$83='Key inputs & assumptions'!$X$84,GB35,IF('Key inputs & assumptions'!$D$83='Key inputs & assumptions'!$X$83,GB10)) -> 0 | GC60: =IF('Key inputs & assumptions'!$D$83='Key inputs & assumptions'!$X$84,GC35,IF('Key inputs & assumptions'!$D$83='Key inputs & assumptions'!$X$83,GC10)) -> 0 | GD60: =IF('Key inputs & assumptions'!$D$83='Key inputs & assumptions'!$X$84,GD35,IF('Key inputs & assumptions'!$D$83='Key inputs & assumptions'!$X$83,GD10)) -> 0 | GE60: =IF('Key inputs & assumptions'!$D$83='Key inputs & assumptions'!$X$84,GE35,IF('Key inputs & assumptions'!$D$83='Key inputs & assumptions'!$X$83,GE10)) -> 0 | GF60: =IF('Key inputs & assumptions'!$D$83='Key inputs & assumptions'!$X$84,GF35,IF('Key inputs & assumptions'!$D$83='Key inputs & assumptions'!$X$83,GF10)) -> 0 | GG60: =IF('Key inputs & assumptions'!$D$83='Key inputs & assumptions'!$X$84,GG35,IF('Key inputs & assumptions'!$D$83='Key inputs & assumptions'!$X$83,GG10)) -> 0 | GH60: =IF('Key inputs & assumptions'!$D$83='Key inputs & assumptions'!$X$84,GH35,IF('Key inputs & assumptions'!$D$83='Key inputs & assumptions'!$X$83,GH10)) -> 0 | GI60: =IF('Key inputs & assumptions'!$D$83='Key inputs & assumptions'!$X$84,GI35,IF('Key inputs & assumptions'!$D$83='Key inputs & assumptions'!$X$83,GI10)) -> 0 | GJ60: =IF('Key inputs & assumptions'!$D$83='Key inputs & assumptions'!$X$84,GJ35,IF('Key inputs & assumptions'!$D$83='Key inputs & assumptions'!$X$83,GJ10)) -> 0 | GK60: =IF('Key inputs & assumptions'!$D$83='Key inputs & assumptions'!$X$84,GK35,IF('Key inputs & assumptions'!$D$83='Key inputs & assumptions'!$X$83,GK10)) -> 0 | GL60: =IF('Key inputs & assumptions'!$D$83='Key inputs & assumptions'!$X$84,GL35,IF('Key inputs & assumptions'!$D$83='Key inputs & assumptions'!$X$83,GL10)) -> 0 | GM60: =IF('Key inputs & assumptions'!$D$83='Key inputs & assumptions'!$X$84,GM35,IF('Key inputs & assumptions'!$D$83='Key inputs & assumptions'!$X$83,GM10)) -> 0 | GN60: =IF('Key inputs & assumptions'!$D$83='Key inputs & assumptions'!$X$84,GN35,IF('Key inputs & assumptions'!$D$83='Key inputs & assumptions'!$X$83,GN10)) -> 0 | GO60: =IF('Key inputs & assumptions'!$D$83='Key inputs & assumptions'!$X$84,GO35,IF('Key inputs & assumptions'!$D$83='Key inputs & assumptions'!$X$83,GO10)) -> 0 | GP60: =IF('Key inputs & assumptions'!$D$83='Key inputs & assumptions'!$X$84,GP35,IF('Key inputs & assumptions'!$D$83='Key inputs & assumptions'!$X$83,GP10)) -> 0 | GQ60: =IF('Key inputs & assumptions'!$D$83='Key inputs & assumptions'!$X$84,GQ35,IF('Key inputs & assumptions'!$D$83='Key inputs & assumptions'!$X$83,GQ10)) -> 0 | GR60: =IF('Key inputs & assumptions'!$D$83='Key inputs & assumptions'!$X$84,GR35,IF('Key inputs & assumptions'!$D$83='Key inputs & assumptions'!$X$83,GR10)) -> 0 | GS60: =IF('Key inputs & assumptions'!$D$83='Key inputs & assumptions'!$X$84,GS35,IF('Key inputs & assumptions'!$D$83='Key inputs & assumptions'!$X$83,GS10)) -> 0 | GT60: =IF('Key inputs & assumptions'!$D$83='Key inputs & assumptions'!$X$84,GT35,IF('Key inputs & assumptions'!$D$83='Key inputs & assumptions'!$X$83,GT10)) -> 0
C61: VB - Boundary metered with gas heating and cooking | D61: =IF('Key inputs & assumptions'!$D$83='Key inputs & assumptions'!$X$84,D36,IF('Key inputs & assumptions'!$D$83='Key inputs & assumptions'!$X$83,D11)) -> 6 | E61: =IF('Key inputs & assumptions'!$D$83='Key inputs & assumptions'!$X$84,E36,IF('Key inputs & assumptions'!$D$83='Key inputs & assumptions'!$X$83,E11)) -> 13 | F61: =IF('Key inputs & assumptions'!$D$83='Key inputs & assumptions'!$X$84,F36,IF('Key inputs & assumptions'!$D$83='Key inputs & assumptions'!$X$83,F11)) -> 17 | G61: =IF('Key inputs & assumptions'!$D$83='Key inputs & assumptions'!$X$84,G36,IF('Key inputs & assumptions'!$D$83='Key inputs & assumptions'!$X$83,G11)) -> 17 | H61: =IF('Key inputs & assumptions'!$D$83='Key inputs & assumptions'!$X$84,H36,IF('Key inputs & assumptions'!$D$83='Key inputs & assumptions'!$X$83,H11)) -> 16.23057815 | I61: =IF('Key inputs & assumptions'!$D$83='Key inputs & assumptions'!$X$84,I36,IF('Key inputs & assumptions'!$D$83='Key inputs & assumptions'!$X$83,I11)) -> 15.18365609 | J61: =IF('Key inputs & assumptions'!$D$83='Key inputs & assumptions'!$X$84,J36,IF('Key inputs & assumptions'!$D$83='Key inputs & assumptions'!$X$83,J11)) -> 14.03514768 | K61: =IF('Key inputs & assumptions'!$D$83='Key inputs & assumptions'!$X$84,K36,IF('Key inputs & assumptions'!$D$83='Key inputs & assumptions'!$X$83,K11)) -> 12.82914748 | L61: =IF('Key inputs & assumptions'!$D$83='Key inputs & assumptions'!$X$84,L36,IF('Key inputs & assumptions'!$D$83='Key inputs & assumptions'!$X$83,L11)) -> 11.64842695 | M61: =IF('Key inputs & assumptions'!$D$83='Key inputs & assumptions'!$X$84,M36,IF('Key inputs & assumptions'!$D$83='Key inputs & assumptions'!$X$83,M11)) -> 10.53071175 | N61: =IF('Key inputs & assumptions'!$D$83='Key inputs & assumptions'!$X$84,N36,IF('Key inputs & assumptions'!$D$83='Key inputs & assumptions'!$X$83,N11)) -> 9.281311536 | O61: =IF('Key inputs & assumptions'!$D$83='Key inputs & assumptions'!$X$84,O36,IF('Key inputs & assumptions'!$D$83='Key inputs & assumptions'!$X$83,O11)) -> 8.102698292 | P61: =IF('Key inputs & assumptions'!$D$83='Key inputs & assumptions'!$X$84,P36,IF('Key inputs & assumptions'!$D$83='Key inputs & assumptions'!$X$83,P11)) -> 7.055656523 | Q61: =IF('Key inputs & assumptions'!$D$83='Key inputs & assumptions'!$X$84,Q36,IF('Key inputs & assumptions'!$D$83='Key inputs & assumptions'!$X$83,Q11)) -> 6.078874591 | R61: =IF('Key inputs & assumptions'!$D$83='Key inputs & assumptions'!$X$84,R36,IF('Key inputs & assumptions'!$D$83='Key inputs & assumptions'!$X$83,R11)) -> 5.188707986 | S61: =IF('Key inputs & assumptions'!$D$83='Key inputs & assumptions'!$X$84,S36,IF('Key inputs & assumptions'!$D$83='Key inputs & assumptions'!$X$83,S11)) -> 4.376163402 | T61: =IF('Key inputs & assumptions'!$D$83='Key inputs & assumptions'!$X$84,T36,IF('Key inputs & assumptions'!$D$83='Key inputs & assumptions'!$X$83,T11)) -> 3.636566243 | U61: =IF('Key inputs & assumptions'!$D$83='Key inputs & assumptions'!$X$84,U36,IF('Key inputs & assumptions'!$D$83='Key inputs & assumptions'!$X$83,U11)) -> 2.994123172 | V61: =IF('Key inputs & assumptions'!$D$83='Key inputs & assumptions'!$X$84,V36,IF('Key inputs & assumptions'!$D$83='Key inputs & assumptions'!$X$83,V11)) -> 2.409399238 | W61: =IF('Key inputs & assumptions'!$D$83='Key inputs & assumptions'!$X$84,W36,IF('Key inputs & assumptions'!$D$83='Key inputs & assumptions'!$X$83,W11)) -> 1.881215062 | X61: =IF('Key inputs & assumptions'!$D$83='Key inputs & assumptions'!$X$84,X36,IF('Key inputs & assumptions'!$D$83='Key inputs & assumptions'!$X$83,X11)) -> 1.419400121 | Y61: =IF('Key inputs & assumptions'!$D$83='Key inputs & assumptions'!$X$84,Y36,IF('Key inputs & assumptions'!$D$83='Key inputs & assumptions'!$X$83,Y11)) -> 1.007670126 | Z61: =IF('Key inputs & assumptions'!$D$83='Key inputs & assumptions'!$X$84,Z36,IF('Key inputs & assumptions'!$D$83='Key inputs & assumptions'!$X$83,Z11)) -> 0.6657794035 | AA61: =IF('Key inputs & assumptions'!$D$83='Key inputs & assumptions'!$X$84,AA36,IF('Key inputs & assumptions'!$D$83='Key inputs & assumptions'!$X$83,AA11)) -> 0 | AB61: =IF('Key inputs & assumptions'!$D$83='Key inputs & assumptions'!$X$84,AB36,IF('Key inputs & assumptions'!$D$83='Key inputs & assumptions'!$X$83,AB11)) -> 0 | AC61: =IF('Key inputs & assumptions'!$D$83='Key inputs & assumptions'!$X$84,AC36,IF('Key inputs & assumptions'!$D$83='Key inputs & assumptions'!$X$83,AC11)) -> 2365.919969 | AD61: =IF('Key inputs & assumptions'!$D$83='Key inputs & assumptions'!$X$84,AD36,IF('Key inputs & assumptions'!$D$83='Key inputs & assumptions'!$X$83,AD11)) -> 5108.873375 | AE61: =IF('Key inputs & assumptions'!$D$83='Key inputs & assumptions'!$X$84,AE36,IF('Key inputs & assumptions'!$D$83='Key inputs & assumptions'!$X$83,AE11)) -> 7259.718356 | AF61: =IF('Key inputs & assumptions'!$D$83='Key inputs & assumptions'!$X$84,AF36,IF('Key inputs & assumptions'!$D$83='Key inputs & assumptions'!$X$83,AF11)) -> 7188.126321 | AG61: =IF('Key inputs & assumptions'!$D$83='Key inputs & assumptions'!$X$84,AG36,IF('Key inputs & assumptions'!$D$83='Key inputs & assumptions'!$X$83,AG11)) -> 6997.216603 | AH61: =IF('Key inputs & assumptions'!$D$83='Key inputs & assumptions'!$X$84,AH36,IF('Key inputs & assumptions'!$D$83='Key inputs & assumptions'!$X$83,AH11)) -> 6539.920028 | AI61: =IF('Key inputs & assumptions'!$D$83='Key inputs & assumptions'!$X$84,AI36,IF('Key inputs & assumptions'!$D$83='Key inputs & assumptions'!$X$83,AI11)) -> 6037.813425 | AJ61: =IF('Key inputs & assumptions'!$D$83='Key inputs & assumptions'!$X$84,AJ36,IF('Key inputs & assumptions'!$D$83='Key inputs & assumptions'!$X$83,AJ11)) -> 5510.474944 | AK61: =IF('Key inputs & assumptions'!$D$83='Key inputs & assumptions'!$X$84,AK36,IF('Key inputs & assumptions'!$D$83='Key inputs & assumptions'!$X$83,AK11)) -> 4994.927621 | AL61: =IF('Key inputs & assumptions'!$D$83='Key inputs & assumptions'!$X$84,AL36,IF('Key inputs & assumptions'!$D$83='Key inputs & assumptions'!$X$83,AL11)) -> 4507.578507 | AM61: =IF('Key inputs & assumptions'!$D$83='Key inputs & assumptions'!$X$84,AM36,IF('Key inputs & assumptions'!$D$83='Key inputs & assumptions'!$X$83,AM11)) -> 3970.240024 | AN61: =IF('Key inputs & assumptions'!$D$83='Key inputs & assumptions'!$X$84,AN36,IF('Key inputs & assumptions'!$D$83='Key inputs & assumptions'!$X$83,AN11)) -> 3464.148279 | AO61: =IF('Key inputs & assumptions'!$D$83='Key inputs & assumptions'!$X$84,AO36,IF('Key inputs & assumptions'!$D$83='Key inputs & assumptions'!$X$83,AO11)) -> 3014.854363 | AP61: =IF('Key inputs & assumptions'!$D$83='Key inputs & assumptions'!$X$84,AP36,IF('Key inputs & assumptions'!$D$83='Key inputs & assumptions'!$X$83,AP11)) -> 2596.001956 | AQ61: =IF('Key inputs & assumptions'!$D$83='Key inputs & assumptions'!$X$84,AQ36,IF('Key inputs & assumptions'!$D$83='Key inputs & assumptions'!$X$83,AQ11)) -> 2214.66322 | AR61: =IF('Key inputs & assumptions'!$D$83='Key inputs & assumptions'!$X$84,AR36,IF('Key inputs & assumptions'!$D$83='Key inputs & assumptions'!$X$83,AR11)) -> 1865.038682 | AS61: =IF('Key inputs & assumptions'!$D$83='Key inputs & assumptions'!$X$84,AS36,IF('Key inputs & assumptions'!$D$83='Key inputs & assumptions'!$X$83,AS11)) -> 1547.192101 | AT61: =IF('Key inputs & assumptions'!$D$83='Key inputs & assumptions'!$X$84,AT36,IF('Key inputs & assumptions'!$D$83='Key inputs & assumptions'!$X$83,AT11)) -> 1271.669068 | AU61: =IF('Key inputs & assumptions'!$D$83='Key inputs & assumptions'!$X$84,AU36,IF('Key inputs & assumptions'!$D$83='Key inputs & assumptions'!$X$83,AU11)) -> 1021.525233 | AV61: =IF('Key inputs & assumptions'!$D$83='Key inputs & assumptions'!$X$84,AV36,IF('Key inputs & assumptions'!$D$83='Key inputs & assumptions'!$X$83,AV11)) -> 796.1183008 | AW61: =IF('Key inputs & assumptions'!$D$83='Key inputs & assumptions'!$X$84,AW36,IF('Key inputs & assumptions'!$D$83='Key inputs & assumptions'!$X$83,AW11)) -> 600.0202926 | AX61: =IF('Key inputs & assumptions'!$D$83='Key inputs & assumptions'!$X$84,AX36,IF('Key inputs & assumptions'!$D$83='Key inputs & assumptions'!$X$83,AX11)) -> 425.5388783 | AY61: =IF('Key inputs & assumptions'!$D$83='Key inputs & assumptions'!$X$84,AY36,IF('Key inputs & assumptions'!$D$83='Key inputs & assumptions'!$X$83,AY11)) -> 280.8798917 | AZ61: =IF('Key inputs & assumptions'!$D$83='Key inputs & assumptions'!$X$84,AZ36,IF('Key inputs & assumptions'!$D$83='Key inputs & assumptions'!$X$83,AZ11)) -> 0 | BA61: =IF('Key inputs & assumptions'!$D$83='Key inputs & assumptions'!$X$84,BA36,IF('Key inputs & assumptions'!$D$83='Key inputs & assumptions'!$X$83,BA11)) -> 0 | BB61: =IF('Key inputs & assumptions'!$D$83='Key inputs & assumptions'!$X$84,BB36,IF('Key inputs & assumptions'!$D$83='Key inputs & assumptions'!$X$83,BB11)) -> 8993.366523 | BC61: =IF('Key inputs & assumptions'!$D$83='Key inputs & assumptions'!$X$84,BC36,IF('Key inputs & assumptions'!$D$83='Key inputs & assumptions'!$X$83,BC11)) -> 20192.80883 | BD61: =IF('Key inputs & assumptions'!$D$83='Key inputs & assumptions'!$X$84,BD36,IF('Key inputs & assumptions'!$D$83='Key inputs & assumptions'!$X$83,BD11)) -> 23846.57307 | BE61: =IF('Key inputs & assumptions'!$D$83='Key inputs & assumptions'!$X$84,BE36,IF('Key inputs & assumptions'!$D$83='Key inputs & assumptions'!$X$83,BE11)) -> 22706.21574 | BF61: =IF('Key inputs & assumptions'!$D$83='Key inputs & assumptions'!$X$84,BF36,IF('Key inputs & assumptions'!$D$83='Key inputs & assumptions'!$X$83,BF11)) -> 24076.02319 | BG61: =IF('Key inputs & assumptions'!$D$83='Key inputs & assumptions'!$X$84,BG36,IF('Key inputs & assumptions'!$D$83='Key inputs & assumptions'!$X$83,BG11)) -> 22413.34467 | BH61: =IF('Key inputs & assumptions'!$D$83='Key inputs & assumptions'!$X$84,BH36,IF('Key inputs & assumptions'!$D$83='Key inputs & assumptions'!$X$83,BH11)) -> 20598.51035 | BI61: =IF('Key inputs & assumptions'!$D$83='Key inputs & assumptions'!$X$84,BI36,IF('Key inputs & assumptions'!$D$83='Key inputs & assumptions'!$X$83,BI11)) -> 18702.95595 | BJ61: =IF('Key inputs & assumptions'!$D$83='Key inputs & assumptions'!$X$84,BJ36,IF('Key inputs & assumptions'!$D$83='Key inputs & assumptions'!$X$83,BJ11)) -> 16861.64745 | BK61: =IF('Key inputs & assumptions'!$D$83='Key inputs & assumptions'!$X$84,BK36,IF('Key inputs & assumptions'!$D$83='Key inputs & assumptions'!$X$83,BK11)) -> 15131.4802 | BL61: =IF('Key inputs & assumptions'!$D$83='Key inputs & assumptions'!$X$84,BL36,IF('Key inputs & assumptions'!$D$83='Key inputs & assumptions'!$X$83,BL11)) -> 13280.05647 | BM61: =IF('Key inputs & assumptions'!$D$83='Key inputs & assumptions'!$X$84,BM36,IF('Key inputs & assumptions'!$D$83='Key inputs & assumptions'!$X$83,BM11)) -> 11550.10971 | BN61: =IF('Key inputs & assumptions'!$D$83='Key inputs & assumptions'!$X$84,BN36,IF('Key inputs & assumptions'!$D$83='Key inputs & assumptions'!$X$83,BN11)) -> 10020.11829 | BO61: =IF('Key inputs & assumptions'!$D$83='Key inputs & assumptions'!$X$84,BO36,IF('Key inputs & assumptions'!$D$83='Key inputs & assumptions'!$X$83,BO11)) -> 8600.446072 | BP61: =IF('Key inputs & assumptions'!$D$83='Key inputs & assumptions'!$X$84,BP36,IF('Key inputs & assumptions'!$D$83='Key inputs & assumptions'!$X$83,BP11)) -> 7314.147287 | BQ61: =IF('Key inputs & assumptions'!$D$83='Key inputs & assumptions'!$X$84,BQ36,IF('Key inputs & assumptions'!$D$83='Key inputs & assumptions'!$X$83,BQ11)) -> 6129.85833 | BR61: =IF('Key inputs & assumptions'!$D$83='Key inputs & assumptions'!$X$84,BR36,IF('Key inputs & assumptions'!$D$83='Key inputs & assumptions'!$X$83,BR11)) -> 5058.212102 | BS61: =IF('Key inputs & assumptions'!$D$83='Key inputs & assumptions'!$X$84,BS36,IF('Key inputs & assumptions'!$D$83='Key inputs & assumptions'!$X$83,BS11)) -> 4135.288666 | BT61: =IF('Key inputs & assumptions'!$D$83='Key inputs & assumptions'!$X$84,BT36,IF('Key inputs & assumptions'!$D$83='Key inputs & assumptions'!$X$83,BT11)) -> 3303.992732 | BU61: =IF('Key inputs & assumptions'!$D$83='Key inputs & assumptions'!$X$84,BU36,IF('Key inputs & assumptions'!$D$83='Key inputs & assumptions'!$X$83,BU11)) -> 2560.738966 | BV61: =IF('Key inputs & assumptions'!$D$83='Key inputs & assumptions'!$X$84,BV36,IF('Key inputs & assumptions'!$D$83='Key inputs & assumptions'!$X$83,BV11)) -> 1921.881963 | BW61: =IF('Key inputs & assumptions'!$D$83='Key inputs & assumptions'!$X$84,BW36,IF('Key inputs & assumptions'!$D$83='Key inputs & assumptions'!$X$83,BW11)) -> 1357.685206 | BX61: =IF('Key inputs & assumptions'!$D$83='Key inputs & assumptions'!$X$84,BX36,IF('Key inputs & assumptions'!$D$83='Key inputs & assumptions'!$X$83,BX11)) -> 892.6986602 | BY61: =IF('Key inputs & assumptions'!$D$83='Key inputs & assumptions'!$X$84,BY36,IF('Key inputs & assumptions'!$D$83='Key inputs & assumptions'!$X$83,BY11)) -> 0 | BZ61: =IF('Key inputs & assumptions'!$D$83='Key inputs & assumptions'!$X$84,BZ36,IF('Key inputs & assumptions'!$D$83='Key inputs & assumptions'!$X$83,BZ11)) -> 0 | CA61: =IF('Key inputs & assumptions'!$D$83='Key inputs & assumptions'!$X$84,CA36,IF('Key inputs & assumptions'!$D$83='Key inputs & assumptions'!$X$83,CA11)) -> 0 | CB61: =IF('Key inputs & assumptions'!$D$83='Key inputs & assumptions'!$X$84,CB36,IF('Key inputs & assumptions'!$D$83='Key inputs & assumptions'!$X$83,CB11)) -> 0 | CC61: =IF('Key inputs & assumptions'!$D$83='Key inputs & assumptions'!$X$84,CC36,IF('Key inputs & assumptions'!$D$83='Key inputs & assumptions'!$X$83,CC11)) -> 0 | CD61: =IF('Key inputs & assumptions'!$D$83='Key inputs & assumptions'!$X$84,CD36,IF('Key inputs & assumptions'!$D$83='Key inputs & assumptions'!$X$83,CD11)) -> 0 | CE61: =IF('Key inputs & assumptions'!$D$83='Key inputs & assumptions'!$X$84,CE36,IF('Key inputs & assumptions'!$D$83='Key inputs & assumptions'!$X$83,CE11)) -> 0 | CF61: =IF('Key inputs & assumptions'!$D$83='Key inputs & assumptions'!$X$84,CF36,IF('Key inputs & assumptions'!$D$83='Key inputs & assumptions'!$X$83,CF11)) -> 0 | CG61: =IF('Key inputs & assumptions'!$D$83='Key inputs & assumptions'!$X$84,CG36,IF('Key inputs & assumptions'!$D$83='Key inputs & assumptions'!$X$83,CG11)) -> 0 | CH61: =IF('Key inputs & assumptions'!$D$83='Key inputs & assumptions'!$X$84,CH36,IF('Key inputs & assumptions'!$D$83='Key inputs & assumptions'!$X$83,CH11)) -> 0 | CI61: =IF('Key inputs & assumptions'!$D$83='Key inputs & assumptions'!$X$84,CI36,IF('Key inputs & assumptions'!$D$83='Key inputs & assumptions'!$X$83,CI11)) -> 0 | CJ61: =IF('Key inputs & assumptions'!$D$83='Key inputs & assumptions'!$X$84,CJ36,IF('Key inputs & assumptions'!$D$83='Key inputs & assumptions'!$X$83,CJ11)) -> 0 | CK61: =IF('Key inputs & assumptions'!$D$83='Key inputs & assumptions'!$X$84,CK36,IF('Key inputs & assumptions'!$D$83='Key inputs & assumptions'!$X$83,CK11)) -> 0 | CL61: =IF('Key inputs & assumptions'!$D$83='Key inputs & assumptions'!$X$84,CL36,IF('Key inputs & assumptions'!$D$83='Key inputs & assumptions'!$X$83,CL11)) -> 0 | CM61: =IF('Key inputs & assumptions'!$D$83='Key inputs & assumptions'!$X$84,CM36,IF('Key inputs & assumptions'!$D$83='Key inputs & assumptions'!$X$83,CM11)) -> 0 | CN61: =IF('Key inputs & assumptions'!$D$83='Key inputs & assumptions'!$X$84,CN36,IF('Key inputs & assumptions'!$D$83='Key inputs & assumptions'!$X$83,CN11)) -> 0 | CO61: =IF('Key inputs & assumptions'!$D$83='Key inputs & assumptions'!$X$84,CO36,IF('Key inputs & assumptions'!$D$83='Key inputs & assumptions'!$X$83,CO11)) -> 0 | CP61: =IF('Key inputs & assumptions'!$D$83='Key inputs & assumptions'!$X$84,CP36,IF('Key inputs & assumptions'!$D$83='Key inputs & assumptions'!$X$83,CP11)) -> 0 | CQ61: =IF('Key inputs & assumptions'!$D$83='Key inputs & assumptions'!$X$84,CQ36,IF('Key inputs & assumptions'!$D$83='Key inputs & assumptions'!$X$83,CQ11)) -> 0 | CR61: =IF('Key inputs & assumptions'!$D$83='Key inputs & assumptions'!$X$84,CR36,IF('Key inputs & assumptions'!$D$83='Key inputs & assumptions'!$X$83,CR11)) -> 0 | CS61: =IF('Key inputs & assumptions'!$D$83='Key inputs & assumptions'!$X$84,CS36,IF('Key inputs & assumptions'!$D$83='Key inputs & assumptions'!$X$83,CS11)) -> 0 | CT61: =IF('Key inputs & assumptions'!$D$83='Key inputs & assumptions'!$X$84,CT36,IF('Key inputs & assumptions'!$D$83='Key inputs & assumptions'!$X$83,CT11)) -> 0 | CU61: =IF('Key inputs & assumptions'!$D$83='Key inputs & assumptions'!$X$84,CU36,IF('Key inputs & assumptions'!$D$83='Key inputs & assumptions'!$X$83,CU11)) -> 0 | CV61: =IF('Key inputs & assumptions'!$D$83='Key inputs & assumptions'!$X$84,CV36,IF('Key inputs & assumptions'!$D$83='Key inputs & assumptions'!$X$83,CV11)) -> 0 | CW61: =IF('Key inputs & assumptions'!$D$83='Key inputs & assumptions'!$X$84,CW36,IF('Key inputs & assumptions'!$D$83='Key inputs & assumptions'!$X$83,CW11)) -> 0 | CX61: =IF('Key inputs & assumptions'!$D$83='Key inputs & assumptions'!$X$84,CX36,IF('Key inputs & assumptions'!$D$83='Key inputs & assumptions'!$X$83,CX11)) -> 0 | CZ61: =IF('Key inputs & assumptions'!$D$83='Key inputs & assumptions'!$X$84,CZ36,IF('Key inputs & assumptions'!$D$83='Key inputs & assumptions'!$X$83,CZ11)) -> 0 | DA61: =IF('Key inputs & assumptions'!$D$83='Key inputs & assumptions'!$X$84,DA36,IF('Key inputs & assumptions'!$D$83='Key inputs & assumptions'!$X$83,DA11)) -> 0 | DB61: =IF('Key inputs & assumptions'!$D$83='Key inputs & assumptions'!$X$84,DB36,IF('Key inputs & assumptions'!$D$83='Key inputs & assumptions'!$X$83,DB11)) -> 0 | DC61: =IF('Key inputs & assumptions'!$D$83='Key inputs & assumptions'!$X$84,DC36,IF('Key inputs & assumptions'!$D$83='Key inputs & assumptions'!$X$83,DC11)) -> 0 | DD61: =IF('Key inputs & assumptions'!$D$83='Key inputs & assumptions'!$X$84,DD36,IF('Key inputs & assumptions'!$D$83='Key inputs & assumptions'!$X$83,DD11)) -> 0 | DE61: =IF('Key inputs & assumptions'!$D$83='Key inputs & assumptions'!$X$84,DE36,IF('Key inputs & assumptions'!$D$83='Key inputs & assumptions'!$X$83,DE11)) -> 0 | DF61: =IF('Key inputs & assumptions'!$D$83='Key inputs & assumptions'!$X$84,DF36,IF('Key inputs & assumptions'!$D$83='Key inputs & assumptions'!$X$83,DF11)) -> 0 | DG61: =IF('Key inputs & assumptions'!$D$83='Key inputs & assumptions'!$X$84,DG36,IF('Key inputs & assumptions'!$D$83='Key inputs & assumptions'!$X$83,DG11)) -> 0 | DH61: =IF('Key inputs & assumptions'!$D$83='Key inputs & assumptions'!$X$84,DH36,IF('Key inputs & assumptions'!$D$83='Key inputs & assumptions'!$X$83,DH11)) -> 0 | DI61: =IF('Key inputs & assumptions'!$D$83='Key inputs & assumptions'!$X$84,DI36,IF('Key inputs & assumptions'!$D$83='Key inputs & assumptions'!$X$83,DI11)) -> 0 | DJ61: =IF('Key inputs & assumptions'!$D$83='Key inputs & assumptions'!$X$84,DJ36,IF('Key inputs & assumptions'!$D$83='Key inputs & assumptions'!$X$83,DJ11)) -> 0 | DK61: =IF('Key inputs & assumptions'!$D$83='Key inputs & assumptions'!$X$84,DK36,IF('Key inputs & assumptions'!$D$83='Key inputs & assumptions'!$X$83,DK11)) -> 0 | DL61: =IF('Key inputs & assumptions'!$D$83='Key inputs & assumptions'!$X$84,DL36,IF('Key inputs & assumptions'!$D$83='Key inputs & assumptions'!$X$83,DL11)) -> 0 | DM61: =IF('Key inputs & assumptions'!$D$83='Key inputs & assumptions'!$X$84,DM36,IF('Key inputs & assumptions'!$D$83='Key inputs & assumptions'!$X$83,DM11)) -> 0 | DN61: =IF('Key inputs & assumptions'!$D$83='Key inputs & assumptions'!$X$84,DN36,IF('Key inputs & assumptions'!$D$83='Key inputs & assumptions'!$X$83,DN11)) -> 0 | DO61: =IF('Key inputs & assumptions'!$D$83='Key inputs & assumptions'!$X$84,DO36,IF('Key inputs & assumptions'!$D$83='Key inputs & assumptions'!$X$83,DO11)) -> 0 | DP61: =IF('Key inputs & assumptions'!$D$83='Key inputs & assumptions'!$X$84,DP36,IF('Key inputs & assumptions'!$D$83='Key inputs & assumptions'!$X$83,DP11)) -> 0 | DQ61: =IF('Key inputs & assumptions'!$D$83='Key inputs & assumptions'!$X$84,DQ36,IF('Key inputs & assumptions'!$D$83='Key inputs & assumptions'!$X$83,DQ11)) -> 0 | DR61: =IF('Key inputs & assumptions'!$D$83='Key inputs & assumptions'!$X$84,DR36,IF('Key inputs & assumptions'!$D$83='Key inputs & assumptions'!$X$83,DR11)) -> 0 | DS61: =IF('Key inputs & assumptions'!$D$83='Key inputs & assumptions'!$X$84,DS36,IF('Key inputs & assumptions'!$D$83='Key inputs & assumptions'!$X$83,DS11)) -> 0 | DT61: =IF('Key inputs & assumptions'!$D$83='Key inputs & assumptions'!$X$84,DT36,IF('Key inputs & assumptions'!$D$83='Key inputs & assumptions'!$X$83,DT11)) -> 0 | DU61: =IF('Key inputs & assumptions'!$D$83='Key inputs & assumptions'!$X$84,DU36,IF('Key inputs & assumptions'!$D$83='Key inputs & assumptions'!$X$83,DU11)) -> 0 | DV61: =IF('Key inputs & assumptions'!$D$83='Key inputs & assumptions'!$X$84,DV36,IF('Key inputs & assumptions'!$D$83='Key inputs & assumptions'!$X$83,DV11)) -> 0 | DW61: =IF('Key inputs & assumptions'!$D$83='Key inputs & assumptions'!$X$84,DW36,IF('Key inputs & assumptions'!$D$83='Key inputs & assumptions'!$X$83,DW11)) -> 0 | DY61: =IF('Key inputs & assumptions'!$D$83='Key inputs & assumptions'!$X$84,DY36,IF('Key inputs & assumptions'!$D$83='Key inputs & assumptions'!$X$83,DY11)) -> 0 | DZ61: =IF('Key inputs & assumptions'!$D$83='Key inputs & assumptions'!$X$84,DZ36,IF('Key inputs & assumptions'!$D$83='Key inputs & assumptions'!$X$83,DZ11)) -> 0 | EA61: =IF('Key inputs & assumptions'!$D$83='Key inputs & assumptions'!$X$84,EA36,IF('Key inputs & assumptions'!$D$83='Key inputs & assumptions'!$X$83,EA11)) -> 0 | EB61: =IF('Key inputs & assumptions'!$D$83='Key inputs & assumptions'!$X$84,EB36,IF('Key inputs & assumptions'!$D$83='Key inputs & assumptions'!$X$83,EB11)) -> 0 | EC61: =IF('Key inputs & assumptions'!$D$83='Key inputs & assumptions'!$X$84,EC36,IF('Key inputs & assumptions'!$D$83='Key inputs & assumptions'!$X$83,EC11)) -> 0 | ED61: =IF('Key inputs & assumptions'!$D$83='Key inputs & assumptions'!$X$84,ED36,IF('Key inputs & assumptions'!$D$83='Key inputs & assumptions'!$X$83,ED11)) -> 0 | EE61: =IF('Key inputs & assumptions'!$D$83='Key inputs & assumptions'!$X$84,EE36,IF('Key inputs & assumptions'!$D$83='Key inputs & assumptions'!$X$83,EE11)) -> 0 | EF61: =IF('Key inputs & assumptions'!$D$83='Key inputs & assumptions'!$X$84,EF36,IF('Key inputs & assumptions'!$D$83='Key inputs & assumptions'!$X$83,EF11)) -> 0 | EG61: =IF('Key inputs & assumptions'!$D$83='Key inputs & assumptions'!$X$84,EG36,IF('Key inputs & assumptions'!$D$83='Key inputs & assumptions'!$X$83,EG11)) -> 0 | EH61: =IF('Key inputs & assumptions'!$D$83='Key inputs & assumptions'!$X$84,EH36,IF('Key inputs & assumptions'!$D$83='Key inputs & assumptions'!$X$83,EH11)) -> 0 | EI61: =IF('Key inputs & assumptions'!$D$83='Key inputs & assumptions'!$X$84,EI36,IF('Key inputs & assumptions'!$D$83='Key inputs & assumptions'!$X$83,EI11)) -> 0 | EJ61: =IF('Key inputs & assumptions'!$D$83='Key inputs & assumptions'!$X$84,EJ36,IF('Key inputs & assumptions'!$D$83='Key inputs & assumptions'!$X$83,EJ11)) -> 0 | EK61: =IF('Key inputs & assumptions'!$D$83='Key inputs & assumptions'!$X$84,EK36,IF('Key inputs & assumptions'!$D$83='Key inputs & assumptions'!$X$83,EK11)) -> 0 | EL61: =IF('Key inputs & assumptions'!$D$83='Key inputs & assumptions'!$X$84,EL36,IF('Key inputs & assumptions'!$D$83='Key inputs & assumptions'!$X$83,EL11)) -> 0 | EM61: =IF('Key inputs & assumptions'!$D$83='Key inputs & assumptions'!$X$84,EM36,IF('Key inputs & assumptions'!$D$83='Key inputs & assumptions'!$X$83,EM11)) -> 0 | EN61: =IF('Key inputs & assumptions'!$D$83='Key inputs & assumptions'!$X$84,EN36,IF('Key inputs & assumptions'!$D$83='Key inputs & assumptions'!$X$83,EN11)) -> 0 | EO61: =IF('Key inputs & assumptions'!$D$83='Key inputs & assumptions'!$X$84,EO36,IF('Key inputs & assumptions'!$D$83='Key inputs & assumptions'!$X$83,EO11)) -> 0 | EP61: =IF('Key inputs & assumptions'!$D$83='Key inputs & assumptions'!$X$84,EP36,IF('Key inputs & assumptions'!$D$83='Key inputs & assumptions'!$X$83,EP11)) -> 0 | EQ61: =IF('Key inputs & assumptions'!$D$83='Key inputs & assumptions'!$X$84,EQ36,IF('Key inputs & assumptions'!$D$83='Key inputs & assumptions'!$X$83,EQ11)) -> 0 | ER61: =IF('Key inputs & assumptions'!$D$83='Key inputs & assumptions'!$X$84,ER36,IF('Key inputs & assumptions'!$D$83='Key inputs & assumptions'!$X$83,ER11)) -> 0 | ES61: =IF('Key inputs & assumptions'!$D$83='Key inputs & assumptions'!$X$84,ES36,IF('Key inputs & assumptions'!$D$83='Key inputs & assumptions'!$X$83,ES11)) -> 0 | ET61: =IF('Key inputs & assumptions'!$D$83='Key inputs & assumptions'!$X$84,ET36,IF('Key inputs & assumptions'!$D$83='Key inputs & assumptions'!$X$83,ET11)) -> 0 | EU61: =IF('Key inputs & assumptions'!$D$83='Key inputs & assumptions'!$X$84,EU36,IF('Key inputs & assumptions'!$D$83='Key inputs & assumptions'!$X$83,EU11)) -> 0 | EV61: =IF('Key inputs & assumptions'!$D$83='Key inputs & assumptions'!$X$84,EV36,IF('Key inputs & assumptions'!$D$83='Key inputs & assumptions'!$X$83,EV11)) -> 0 | EX61: =IF('Key inputs & assumptions'!$D$83='Key inputs & assumptions'!$X$84,EX36,IF('Key inputs & assumptions'!$D$83='Key inputs & assumptions'!$X$83,EX11)) -> 0 | EY61: =IF('Key inputs & assumptions'!$D$83='Key inputs & assumptions'!$X$84,EY36,IF('Key inputs & assumptions'!$D$83='Key inputs & assumptions'!$X$83,EY11)) -> 0 | EZ61: =IF('Key inputs & assumptions'!$D$83='Key inputs & assumptions'!$X$84,EZ36,IF('Key inputs & assumptions'!$D$83='Key inputs & assumptions'!$X$83,EZ11)) -> 0 | FA61: =IF('Key inputs & assumptions'!$D$83='Key inputs & assumptions'!$X$84,FA36,IF('Key inputs & assumptions'!$D$83='Key inputs & assumptions'!$X$83,FA11)) -> 0 | FB61: =IF('Key inputs & assumptions'!$D$83='Key inputs & assumptions'!$X$84,FB36,IF('Key inputs & assumptions'!$D$83='Key inputs & assumptions'!$X$83,FB11)) -> 0 | FC61: =IF('Key inputs & assumptions'!$D$83='Key inputs & assumptions'!$X$84,FC36,IF('Key inputs & assumptions'!$D$83='Key inputs & assumptions'!$X$83,FC11)) -> 0 | FD61: =IF('Key inputs & assumptions'!$D$83='Key inputs & assumptions'!$X$84,FD36,IF('Key inputs & assumptions'!$D$83='Key inputs & assumptions'!$X$83,FD11)) -> 0 | FE61: =IF('Key inputs & assumptions'!$D$83='Key inputs & assumptions'!$X$84,FE36,IF('Key inputs & assumptions'!$D$83='Key inputs & assumptions'!$X$83,FE11)) -> 0 | FF61: =IF('Key inputs & assumptions'!$D$83='Key inputs & assumptions'!$X$84,FF36,IF('Key inputs & assumptions'!$D$83='Key inputs & assumptions'!$X$83,FF11)) -> 0 | FG61: =IF('Key inputs & assumptions'!$D$83='Key inputs & assumptions'!$X$84,FG36,IF('Key inputs & assumptions'!$D$83='Key inputs & assumptions'!$X$83,FG11)) -> 0 | FH61: =IF('Key inputs & assumptions'!$D$83='Key inputs & assumptions'!$X$84,FH36,IF('Key inputs & assumptions'!$D$83='Key inputs & assumptions'!$X$83,FH11)) -> 0 | FI61: =IF('Key inputs & assumptions'!$D$83='Key inputs & assumptions'!$X$84,FI36,IF('Key inputs & assumptions'!$D$83='Key inputs & assumptions'!$X$83,FI11)) -> 0 | FJ61: =IF('Key inputs & assumptions'!$D$83='Key inputs & assumptions'!$X$84,FJ36,IF('Key inputs & assumptions'!$D$83='Key inputs & assumptions'!$X$83,FJ11)) -> 0 | FK61: =IF('Key inputs & assumptions'!$D$83='Key inputs & assumptions'!$X$84,FK36,IF('Key inputs & assumptions'!$D$83='Key inputs & assumptions'!$X$83,FK11)) -> 0 | FL61: =IF('Key inputs & assumptions'!$D$83='Key inputs & assumptions'!$X$84,FL36,IF('Key inputs & assumptions'!$D$83='Key inputs & assumptions'!$X$83,FL11)) -> 0 | FM61: =IF('Key inputs & assumptions'!$D$83='Key inputs & assumptions'!$X$84,FM36,IF('Key inputs & assumptions'!$D$83='Key inputs & assumptions'!$X$83,FM11)) -> 0 | FN61: =IF('Key inputs & assumptions'!$D$83='Key inputs & assumptions'!$X$84,FN36,IF('Key inputs & assumptions'!$D$83='Key inputs & assumptions'!$X$83,FN11)) -> 0 | FO61: =IF('Key inputs & assumptions'!$D$83='Key inputs & assumptions'!$X$84,FO36,IF('Key inputs & assumptions'!$D$83='Key inputs & assumptions'!$X$83,FO11)) -> 0 | FP61: =IF('Key inputs & assumptions'!$D$83='Key inputs & assumptions'!$X$84,FP36,IF('Key inputs & assumptions'!$D$83='Key inputs & assumptions'!$X$83,FP11)) -> 0 | FQ61: =IF('Key inputs & assumptions'!$D$83='Key inputs & assumptions'!$X$84,FQ36,IF('Key inputs & assumptions'!$D$83='Key inputs & assumptions'!$X$83,FQ11)) -> 0 | FR61: =IF('Key inputs & assumptions'!$D$83='Key inputs & assumptions'!$X$84,FR36,IF('Key inputs & assumptions'!$D$83='Key inputs & assumptions'!$X$83,FR11)) -> 0 | FS61: =IF('Key inputs & assumptions'!$D$83='Key inputs & assumptions'!$X$84,FS36,IF('Key inputs & assumptions'!$D$83='Key inputs & assumptions'!$X$83,FS11)) -> 0 | FT61: =IF('Key inputs & assumptions'!$D$83='Key inputs & assumptions'!$X$84,FT36,IF('Key inputs & assumptions'!$D$83='Key inputs & assumptions'!$X$83,FT11)) -> 0 | FU61: =IF('Key inputs & assumptions'!$D$83='Key inputs & assumptions'!$X$84,FU36,IF('Key inputs & assumptions'!$D$83='Key inputs & assumptions'!$X$83,FU11)) -> 0 | FW61: =IF('Key inputs & assumptions'!$D$83='Key inputs & assumptions'!$X$84,FW36,IF('Key inputs & assumptions'!$D$83='Key inputs & assumptions'!$X$83,FW11)) -> 0 | FX61: =IF('Key inputs & assumptions'!$D$83='Key inputs & assumptions'!$X$84,FX36,IF('Key inputs & assumptions'!$D$83='Key inputs & assumptions'!$X$83,FX11)) -> 0 | FY61: =IF('Key inputs & assumptions'!$D$83='Key inputs & assumptions'!$X$84,FY36,IF('Key inputs & assumptions'!$D$83='Key inputs & assumptions'!$X$83,FY11)) -> 0 | FZ61: =IF('Key inputs & assumptions'!$D$83='Key inputs & assumptions'!$X$84,FZ36,IF('Key inputs & assumptions'!$D$83='Key inputs & assumptions'!$X$83,FZ11)) -> 0 | GA61: =IF('Key inputs & assumptions'!$D$83='Key inputs & assumptions'!$X$84,GA36,IF('Key inputs & assumptions'!$D$83='Key inputs & assumptions'!$X$83,GA11)) -> 0 | GB61: =IF('Key inputs & assumptions'!$D$83='Key inputs & assumptions'!$X$84,GB36,IF('Key inputs & assumptions'!$D$83='Key inputs & assumptions'!$X$83,GB11)) -> 0 | GC61: =IF('Key inputs & assumptions'!$D$83='Key inputs & assumptions'!$X$84,GC36,IF('Key inputs & assumptions'!$D$83='Key inputs & assumptions'!$X$83,GC11)) -> 0 | GD61: =IF('Key inputs & assumptions'!$D$83='Key inputs & assumptions'!$X$84,GD36,IF('Key inputs & assumptions'!$D$83='Key inputs & assumptions'!$X$83,GD11)) -> 0 | GE61: =IF('Key inputs & assumptions'!$D$83='Key inputs & assumptions'!$X$84,GE36,IF('Key inputs & assumptions'!$D$83='Key inputs & assumptions'!$X$83,GE11)) -> 0 | GF61: =IF('Key inputs & assumptions'!$D$83='Key inputs & assumptions'!$X$84,GF36,IF('Key inputs & assumptions'!$D$83='Key inputs & assumptions'!$X$83,GF11)) -> 0 | GG61: =IF('Key inputs & assumptions'!$D$83='Key inputs & assumptions'!$X$84,GG36,IF('Key inputs & assumptions'!$D$83='Key inputs & assumptions'!$X$83,GG11)) -> 0 | GH61: =IF('Key inputs & assumptions'!$D$83='Key inputs & assumptions'!$X$84,GH36,IF('Key inputs & assumptions'!$D$83='Key inputs & assumptions'!$X$83,GH11)) -> 0 | GI61: =IF('Key inputs & assumptions'!$D$83='Key inputs & assumptions'!$X$84,GI36,IF('Key inputs & assumptions'!$D$83='Key inputs & assumptions'!$X$83,GI11)) -> 0 | GJ61: =IF('Key inputs & assumptions'!$D$83='Key inputs & assumptions'!$X$84,GJ36,IF('Key inputs & assumptions'!$D$83='Key inputs & assumptions'!$X$83,GJ11)) -> 0 | GK61: =IF('Key inputs & assumptions'!$D$83='Key inputs & assumptions'!$X$84,GK36,IF('Key inputs & assumptions'!$D$83='Key inputs & assumptions'!$X$83,GK11)) -> 0 | GL61: =IF('Key inputs & assumptions'!$D$83='Key inputs & assumptions'!$X$84,GL36,IF('Key inputs & assumptions'!$D$83='Key inputs & assumptions'!$X$83,GL11)) -> 0 | GM61: =IF('Key inputs & assumptions'!$D$83='Key inputs & assumptions'!$X$84,GM36,IF('Key inputs & assumptions'!$D$83='Key inputs & assumptions'!$X$83,GM11)) -> 0 | GN61: =IF('Key inputs & assumptions'!$D$83='Key inputs & assumptions'!$X$84,GN36,IF('Key inputs & assumptions'!$D$83='Key inputs & assumptions'!$X$83,GN11)) -> 0 | GO61: =IF('Key inputs & assumptions'!$D$83='Key inputs & assumptions'!$X$84,GO36,IF('Key inputs & assumptions'!$D$83='Key inputs & assumptions'!$X$83,GO11)) -> 0 | GP61: =IF('Key inputs & assumptions'!$D$83='Key inputs & assumptions'!$X$84,GP36,IF('Key inputs & assumptions'!$D$83='Key inputs & assumptions'!$X$83,GP11)) -> 0 | GQ61: =IF('Key inputs & assumptions'!$D$83='Key inputs & assumptions'!$X$84,GQ36,IF('Key inputs & assumptions'!$D$83='Key inputs & assumptions'!$X$83,GQ11)) -> 0 | GR61: =IF('Key inputs & assumptions'!$D$83='Key inputs & assumptions'!$X$84,GR36,IF('Key inputs & assumptions'!$D$83='Key inputs & assumptions'!$X$83,GR11)) -> 0 | GS61: =IF('Key inputs & assumptions'!$D$83='Key inputs & assumptions'!$X$84,GS36,IF('Key inputs & assumptions'!$D$83='Key inputs & assumptions'!$X$83,GS11)) -> 0 | GT61: =IF('Key inputs & assumptions'!$D$83='Key inputs & assumptions'!$X$84,GT36,IF('Key inputs & assumptions'!$D$83='Key inputs & assumptions'!$X$83,GT11)) -> 0
C62: Large Business Network Tariffs | D62: =IF('Key inputs & assumptions'!$D$83='Key inputs & assumptions'!$X$84,D37,IF('Key inputs & assumptions'!$D$83='Key inputs & assumptions'!$X$83,D12)) -> 0 | E62: =IF('Key inputs & assumptions'!$D$83='Key inputs & assumptions'!$X$84,E37,IF('Key inputs & assumptions'!$D$83='Key inputs & assumptions'!$X$83,E12)) -> 0 | F62: =IF('Key inputs & assumptions'!$D$83='Key inputs & assumptions'!$X$84,F37,IF('Key inputs & assumptions'!$D$83='Key inputs & assumptions'!$X$83,F12)) -> 0 | G62: =IF('Key inputs & assumptions'!$D$83='Key inputs & assumptions'!$X$84,G37,IF('Key inputs & assumptions'!$D$83='Key inputs & assumptions'!$X$83,G12)) -> 0 | H62: =IF('Key inputs & assumptions'!$D$83='Key inputs & assumptions'!$X$84,H37,IF('Key inputs & assumptions'!$D$83='Key inputs & assumptions'!$X$83,H12)) -> 0 | I62: =IF('Key inputs & assumptions'!$D$83='Key inputs & assumptions'!$X$84,I37,IF('Key inputs & assumptions'!$D$83='Key inputs & assumptions'!$X$83,I12)) -> 0 | J62: =IF('Key inputs & assumptions'!$D$83='Key inputs & assumptions'!$X$84,J37,IF('Key inputs & assumptions'!$D$83='Key inputs & assumptions'!$X$83,J12)) -> 0 | K62: =IF('Key inputs & assumptions'!$D$83='Key inputs & assumptions'!$X$84,K37,IF('Key inputs & assumptions'!$D$83='Key inputs & assumptions'!$X$83,K12)) -> 0 | L62: =IF('Key inputs & assumptions'!$D$83='Key inputs & assumptions'!$X$84,L37,IF('Key inputs & assumptions'!$D$83='Key inputs & assumptions'!$X$83,L12)) -> 0 | M62: =IF('Key inputs & assumptions'!$D$83='Key inputs & assumptions'!$X$84,M37,IF('Key inputs & assumptions'!$D$83='Key inputs & assumptions'!$X$83,M12)) -> 0 | N62: =IF('Key inputs & assumptions'!$D$83='Key inputs & assumptions'!$X$84,N37,IF('Key inputs & assumptions'!$D$83='Key inputs & assumptions'!$X$83,N12)) -> 0 | O62: =IF('Key inputs & assumptions'!$D$83='Key inputs & assumptions'!$X$84,O37,IF('Key inputs & assumptions'!$D$83='Key inputs & assumptions'!$X$83,O12)) -> 0 | P62: =IF('Key inputs & assumptions'!$D$83='Key inputs & assumptions'!$X$84,P37,IF('Key inputs & assumptions'!$D$83='Key inputs & assumptions'!$X$83,P12)) -> 0 | Q62: =IF('Key inputs & assumptions'!$D$83='Key inputs & assumptions'!$X$84,Q37,IF('Key inputs & assumptions'!$D$83='Key inputs & assumptions'!$X$83,Q12)) -> 0 | R62: =IF('Key inputs & assumptions'!$D$83='Key inputs & assumptions'!$X$84,R37,IF('Key inputs & assumptions'!$D$83='Key inputs & assumptions'!$X$83,R12)) -> 0 | S62: =IF('Key inputs & assumptions'!$D$83='Key inputs & assumptions'!$X$84,S37,IF('Key inputs & assumptions'!$D$83='Key inputs & assumptions'!$X$83,S12)) -> 0 | T62: =IF('Key inputs & assumptions'!$D$83='Key inputs & assumptions'!$X$84,T37,IF('Key inputs & assumptions'!$D$83='Key inputs & assumptions'!$X$83,T12)) -> 0 | U62: =IF('Key inputs & assumptions'!$D$83='Key inputs & assumptions'!$X$84,U37,IF('Key inputs & assumptions'!$D$83='Key inputs & assumptions'!$X$83,U12)) -> 0 | V62: =IF('Key inputs & assumptions'!$D$83='Key inputs & assumptions'!$X$84,V37,IF('Key inputs & assumptions'!$D$83='Key inputs & assumptions'!$X$83,V12)) -> 0 | W62: =IF('Key inputs & assumptions'!$D$83='Key inputs & assumptions'!$X$84,W37,IF('Key inputs & assumptions'!$D$83='Key inputs & assumptions'!$X$83,W12)) -> 0 | X62: =IF('Key inputs & assumptions'!$D$83='Key inputs & assumptions'!$X$84,X37,IF('Key inputs & assumptions'!$D$83='Key inputs & assumptions'!$X$83,X12)) -> 0 | Y62: =IF('Key inputs & assumptions'!$D$83='Key inputs & assumptions'!$X$84,Y37,IF('Key inputs & assumptions'!$D$83='Key inputs & assumptions'!$X$83,Y12)) -> 0 | Z62: =IF('Key inputs & assumptions'!$D$83='Key inputs & assumptions'!$X$84,Z37,IF('Key inputs & assumptions'!$D$83='Key inputs & assumptions'!$X$83,Z12)) -> 0 | AA62: =IF('Key inputs & assumptions'!$D$83='Key inputs & assumptions'!$X$84,AA37,IF('Key inputs & assumptions'!$D$83='Key inputs & assumptions'!$X$83,AA12)) -> 0 | AB62: =IF('Key inputs & assumptions'!$D$83='Key inputs & assumptions'!$X$84,AB37,IF('Key inputs & assumptions'!$D$83='Key inputs & assumptions'!$X$83,AB12)) -> 0 | AC62: =IF('Key inputs & assumptions'!$D$83='Key inputs & assumptions'!$X$84,AC37,IF('Key inputs & assumptions'!$D$83='Key inputs & assumptions'!$X$83,AC12)) -> 0 | AD62: =IF('Key inputs & assumptions'!$D$83='Key inputs & assumptions'!$X$84,AD37,IF('Key inputs & assumptions'!$D$83='Key inputs & assumptions'!$X$83,AD12)) -> 0 | AE62: =IF('Key inputs & assumptions'!$D$83='Key inputs & assumptions'!$X$84,AE37,IF('Key inputs & assumptions'!$D$83='Key inputs & assumptions'!$X$83,AE12)) -> 0 | AF62: =IF('Key inputs & assumptions'!$D$83='Key inputs & assumptions'!$X$84,AF37,IF('Key inputs & assumptions'!$D$83='Key inputs & assumptions'!$X$83,AF12)) -> 0 | AG62: =IF('Key inputs & assumptions'!$D$83='Key inputs & assumptions'!$X$84,AG37,IF('Key inputs & assumptions'!$D$83='Key inputs & assumptions'!$X$83,AG12)) -> 0 | AH62: =IF('Key inputs & assumptions'!$D$83='Key inputs & assumptions'!$X$84,AH37,IF('Key inputs & assumptions'!$D$83='Key inputs & assumptions'!$X$83,AH12)) -> 0 | AI62: =IF('Key inputs & assumptions'!$D$83='Key inputs & assumptions'!$X$84,AI37,IF('Key inputs & assumptions'!$D$83='Key inputs & assumptions'!$X$83,AI12)) -> 0 | AJ62: =IF('Key inputs & assumptions'!$D$83='Key inputs & assumptions'!$X$84,AJ37,IF('Key inputs & assumptions'!$D$83='Key inputs & assumptions'!$X$83,AJ12)) -> 0 | AK62: =IF('Key inputs & assumptions'!$D$83='Key inputs & assumptions'!$X$84,AK37,IF('Key inputs & assumptions'!$D$83='Key inputs & assumptions'!$X$83,AK12)) -> 0 | AL62: =IF('Key inputs & assumptions'!$D$83='Key inputs & assumptions'!$X$84,AL37,IF('Key inputs & assumptions'!$D$83='Key inputs & assumptions'!$X$83,AL12)) -> 0 | AM62: =IF('Key inputs & assumptions'!$D$83='Key inputs & assumptions'!$X$84,AM37,IF('Key inputs & assumptions'!$D$83='Key inputs & assumptions'!$X$83,AM12)) -> 0 | AN62: =IF('Key inputs & assumptions'!$D$83='Key inputs & assumptions'!$X$84,AN37,IF('Key inputs & assumptions'!$D$83='Key inputs & assumptions'!$X$83,AN12)) -> 0 | AO62: =IF('Key inputs & assumptions'!$D$83='Key inputs & assumptions'!$X$84,AO37,IF('Key inputs & assumptions'!$D$83='Key inputs & assumptions'!$X$83,AO12)) -> 0 | AP62: =IF('Key inputs & assumptions'!$D$83='Key inputs & assumptions'!$X$84,AP37,IF('Key inputs & assumptions'!$D$83='Key inputs & assumptions'!$X$83,AP12)) -> 0 | AQ62: =IF('Key inputs & assumptions'!$D$83='Key inputs & assumptions'!$X$84,AQ37,IF('Key inputs & assumptions'!$D$83='Key inputs & assumptions'!$X$83,AQ12)) -> 0 | AR62: =IF('Key inputs & assumptions'!$D$83='Key inputs & assumptions'!$X$84,AR37,IF('Key inputs & assumptions'!$D$83='Key inputs & assumptions'!$X$83,AR12)) -> 0 | AS62: =IF('Key inputs & assumptions'!$D$83='Key inputs & assumptions'!$X$84,AS37,IF('Key inputs & assumptions'!$D$83='Key inputs & assumptions'!$X$83,AS12)) -> 0 | AT62: =IF('Key inputs & assumptions'!$D$83='Key inputs & assumptions'!$X$84,AT37,IF('Key inputs & assumptions'!$D$83='Key inputs & assumptions'!$X$83,AT12)) -> 0 | AU62: =IF('Key inputs & assumptions'!$D$83='Key inputs & assumptions'!$X$84,AU37,IF('Key inputs & assumptions'!$D$83='Key inputs & assumptions'!$X$83,AU12)) -> 0 | AV62: =IF('Key inputs & assumptions'!$D$83='Key inputs & assumptions'!$X$84,AV37,IF('Key inputs & assumptions'!$D$83='Key inputs & assumptions'!$X$83,AV12)) -> 0 | AW62: =IF('Key inputs & assumptions'!$D$83='Key inputs & assumptions'!$X$84,AW37,IF('Key inputs & assumptions'!$D$83='Key inputs & assumptions'!$X$83,AW12)) -> 0 | AX62: =IF('Key inputs & assumptions'!$D$83='Key inputs & assumptions'!$X$84,AX37,IF('Key inputs & assumptions'!$D$83='Key inputs & assumptions'!$X$83,AX12)) -> 0 | AY62: =IF('Key inputs & assumptions'!$D$83='Key inputs & assumptions'!$X$84,AY37,IF('Key inputs & assumptions'!$D$83='Key inputs & assumptions'!$X$83,AY12)) -> 0 | AZ62: =IF('Key inputs & assumptions'!$D$83='Key inputs & assumptions'!$X$84,AZ37,IF('Key inputs & assumptions'!$D$83='Key inputs & assumptions'!$X$83,AZ12)) -> 0 | BA62: =IF('Key inputs & assumptions'!$D$83='Key inputs & assumptions'!$X$84,BA37,IF('Key inputs & assumptions'!$D$83='Key inputs & assumptions'!$X$83,BA12)) -> 0 | BB62: =IF('Key inputs & assumptions'!$D$83='Key inputs & assumptions'!$X$84,BB37,IF('Key inputs & assumptions'!$D$83='Key inputs & assumptions'!$X$83,BB12)) -> 0 | BC62: =IF('Key inputs & assumptions'!$D$83='Key inputs & assumptions'!$X$84,BC37,IF('Key inputs & assumptions'!$D$83='Key inputs & assumptions'!$X$83,BC12)) -> 0 | BD62: =IF('Key inputs & assumptions'!$D$83='Key inputs & assumptions'!$X$84,BD37,IF('Key inputs & assumptions'!$D$83='Key inputs & assumptions'!$X$83,BD12)) -> 0 | BE62: =IF('Key inputs & assumptions'!$D$83='Key inputs & assumptions'!$X$84,BE37,IF('Key inputs & assumptions'!$D$83='Key inputs & assumptions'!$X$83,BE12)) -> 0 | BF62: =IF('Key inputs & assumptions'!$D$83='Key inputs & assumptions'!$X$84,BF37,IF('Key inputs & assumptions'!$D$83='Key inputs & assumptions'!$X$83,BF12)) -> 0 | BG62: =IF('Key inputs & assumptions'!$D$83='Key inputs & assumptions'!$X$84,BG37,IF('Key inputs & assumptions'!$D$83='Key inputs & assumptions'!$X$83,BG12)) -> 0 | BH62: =IF('Key inputs & assumptions'!$D$83='Key inputs & assumptions'!$X$84,BH37,IF('Key inputs & assumptions'!$D$83='Key inputs & assumptions'!$X$83,BH12)) -> 0 | BI62: =IF('Key inputs & assumptions'!$D$83='Key inputs & assumptions'!$X$84,BI37,IF('Key inputs & assumptions'!$D$83='Key inputs & assumptions'!$X$83,BI12)) -> 0 | BJ62: =IF('Key inputs & assumptions'!$D$83='Key inputs & assumptions'!$X$84,BJ37,IF('Key inputs & assumptions'!$D$83='Key inputs & assumptions'!$X$83,BJ12)) -> 0 | BK62: =IF('Key inputs & assumptions'!$D$83='Key inputs & assumptions'!$X$84,BK37,IF('Key inputs & assumptions'!$D$83='Key inputs & assumptions'!$X$83,BK12)) -> 0 | BL62: =IF('Key inputs & assumptions'!$D$83='Key inputs & assumptions'!$X$84,BL37,IF('Key inputs & assumptions'!$D$83='Key inputs & assumptions'!$X$83,BL12)) -> 0 | BM62: =IF('Key inputs & assumptions'!$D$83='Key inputs & assumptions'!$X$84,BM37,IF('Key inputs & assumptions'!$D$83='Key inputs & assumptions'!$X$83,BM12)) -> 0 | BN62: =IF('Key inputs & assumptions'!$D$83='Key inputs & assumptions'!$X$84,BN37,IF('Key inputs & assumptions'!$D$83='Key inputs & assumptions'!$X$83,BN12)) -> 0 | BO62: =IF('Key inputs & assumptions'!$D$83='Key inputs & assumptions'!$X$84,BO37,IF('Key inputs & assumptions'!$D$83='Key inputs & assumptions'!$X$83,BO12)) -> 0 | BP62: =IF('Key inputs & assumptions'!$D$83='Key inputs & assumptions'!$X$84,BP37,IF('Key inputs & assumptions'!$D$83='Key inputs & assumptions'!$X$83,BP12)) -> 0 | BQ62: =IF('Key inputs & assumptions'!$D$83='Key inputs & assumptions'!$X$84,BQ37,IF('Key inputs & assumptions'!$D$83='Key inputs & assumptions'!$X$83,BQ12)) -> 0 | BR62: =IF('Key inputs & assumptions'!$D$83='Key inputs & assumptions'!$X$84,BR37,IF('Key inputs & assumptions'!$D$83='Key inputs & assumptions'!$X$83,BR12)) -> 0 | BS62: =IF('Key inputs & assumptions'!$D$83='Key inputs & assumptions'!$X$84,BS37,IF('Key inputs & assumptions'!$D$83='Key inputs & assumptions'!$X$83,BS12)) -> 0 | BT62: =IF('Key inputs & assumptions'!$D$83='Key inputs & assumptions'!$X$84,BT37,IF('Key inputs & assumptions'!$D$83='Key inputs & assumptions'!$X$83,BT12)) -> 0 | BU62: =IF('Key inputs & assumptions'!$D$83='Key inputs & assumptions'!$X$84,BU37,IF('Key inputs & assumptions'!$D$83='Key inputs & assumptions'!$X$83,BU12)) -> 0 | BV62: =IF('Key inputs & assumptions'!$D$83='Key inputs & assumptions'!$X$84,BV37,IF('Key inputs & assumptions'!$D$83='Key inputs & assumptions'!$X$83,BV12)) -> 0 | BW62: =IF('Key inputs & assumptions'!$D$83='Key inputs & assumptions'!$X$84,BW37,IF('Key inputs & assumptions'!$D$83='Key inputs & assumptions'!$X$83,BW12)) -> 0 | BX62: =IF('Key inputs & assumptions'!$D$83='Key inputs & assumptions'!$X$84,BX37,IF('Key inputs & assumptions'!$D$83='Key inputs & assumptions'!$X$83,BX12)) -> 0 | BY62: =IF('Key inputs & assumptions'!$D$83='Key inputs & assumptions'!$X$84,BY37,IF('Key inputs & assumptions'!$D$83='Key inputs & assumptions'!$X$83,BY12)) -> 0 | BZ62: =IF('Key inputs & assumptions'!$D$83='Key inputs & assumptions'!$X$84,BZ37,IF('Key inputs & assumptions'!$D$83='Key inputs & assumptions'!$X$83,BZ12)) -> 0 | CA62: =IF('Key inputs & assumptions'!$D$83='Key inputs & assumptions'!$X$84,CA37,IF('Key inputs & assumptions'!$D$83='Key inputs & assumptions'!$X$83,CA12)) -> 0 | CB62: =IF('Key inputs & assumptions'!$D$83='Key inputs & assumptions'!$X$84,CB37,IF('Key inputs & assumptions'!$D$83='Key inputs & assumptions'!$X$83,CB12)) -> 0 | CC62: =IF('Key inputs & assumptions'!$D$83='Key inputs & assumptions'!$X$84,CC37,IF('Key inputs & assumptions'!$D$83='Key inputs & assumptions'!$X$83,CC12)) -> 0 | CD62: =IF('Key inputs & assumptions'!$D$83='Key inputs & assumptions'!$X$84,CD37,IF('Key inputs & assumptions'!$D$83='Key inputs & assumptions'!$X$83,CD12)) -> 0 | CE62: =IF('Key inputs & assumptions'!$D$83='Key inputs & assumptions'!$X$84,CE37,IF('Key inputs & assumptions'!$D$83='Key inputs & assumptions'!$X$83,CE12)) -> 0 | CF62: =IF('Key inputs & assumptions'!$D$83='Key inputs & assumptions'!$X$84,CF37,IF('Key inputs & assumptions'!$D$83='Key inputs & assumptions'!$X$83,CF12)) -> 0 | CG62: =IF('Key inputs & assumptions'!$D$83='Key inputs & assumptions'!$X$84,CG37,IF('Key inputs & assumptions'!$D$83='Key inputs & assumptions'!$X$83,CG12)) -> 0 | CH62: =IF('Key inputs & assumptions'!$D$83='Key inputs & assumptions'!$X$84,CH37,IF('Key inputs & assumptions'!$D$83='Key inputs & assumptions'!$X$83,CH12)) -> 0 | CI62: =IF('Key inputs & assumptions'!$D$83='Key inputs & assumptions'!$X$84,CI37,IF('Key inputs & assumptions'!$D$83='Key inputs & assumptions'!$X$83,CI12)) -> 0 | CJ62: =IF('Key inputs & assumptions'!$D$83='Key inputs & assumptions'!$X$84,CJ37,IF('Key inputs & assumptions'!$D$83='Key inputs & assumptions'!$X$83,CJ12)) -> 0 | CK62: =IF('Key inputs & assumptions'!$D$83='Key inputs & assumptions'!$X$84,CK37,IF('Key inputs & assumptions'!$D$83='Key inputs & assumptions'!$X$83,CK12)) -> 0 | CL62: =IF('Key inputs & assumptions'!$D$83='Key inputs & assumptions'!$X$84,CL37,IF('Key inputs & assumptions'!$D$83='Key inputs & assumptions'!$X$83,CL12)) -> 0 | CM62: =IF('Key inputs & assumptions'!$D$83='Key inputs & assumptions'!$X$84,CM37,IF('Key inputs & assumptions'!$D$83='Key inputs & assumptions'!$X$83,CM12)) -> 0 | CN62: =IF('Key inputs & assumptions'!$D$83='Key inputs & assumptions'!$X$84,CN37,IF('Key inputs & assumptions'!$D$83='Key inputs & assumptions'!$X$83,CN12)) -> 0 | CO62: =IF('Key inputs & assumptions'!$D$83='Key inputs & assumptions'!$X$84,CO37,IF('Key inputs & assumptions'!$D$83='Key inputs & assumptions'!$X$83,CO12)) -> 0 | CP62: =IF('Key inputs & assumptions'!$D$83='Key inputs & assumptions'!$X$84,CP37,IF('Key inputs & assumptions'!$D$83='Key inputs & assumptions'!$X$83,CP12)) -> 0 | CQ62: =IF('Key inputs & assumptions'!$D$83='Key inputs & assumptions'!$X$84,CQ37,IF('Key inputs & assumptions'!$D$83='Key inputs & assumptions'!$X$83,CQ12)) -> 0 | CR62: =IF('Key inputs & assumptions'!$D$83='Key inputs & assumptions'!$X$84,CR37,IF('Key inputs & assumptions'!$D$83='Key inputs & assumptions'!$X$83,CR12)) -> 0 | CS62: =IF('Key inputs & assumptions'!$D$83='Key inputs & assumptions'!$X$84,CS37,IF('Key inputs & assumptions'!$D$83='Key inputs & assumptions'!$X$83,CS12)) -> 0 | CT62: =IF('Key inputs & assumptions'!$D$83='Key inputs & assumptions'!$X$84,CT37,IF('Key inputs & assumptions'!$D$83='Key inputs & assumptions'!$X$83,CT12)) -> 0 | CU62: =IF('Key inputs & assumptions'!$D$83='Key inputs & assumptions'!$X$84,CU37,IF('Key inputs & assumptions'!$D$83='Key inputs & assumptions'!$X$83,CU12)) -> 0 | CV62: =IF('Key inputs & assumptions'!$D$83='Key inputs & assumptions'!$X$84,CV37,IF('Key inputs & assumptions'!$D$83='Key inputs & assumptions'!$X$83,CV12)) -> 0 | CW62: =IF('Key inputs & assumptions'!$D$83='Key inputs & assumptions'!$X$84,CW37,IF('Key inputs & assumptions'!$D$83='Key inputs & assumptions'!$X$83,CW12)) -> 0 | CX62: =IF('Key inputs & assumptions'!$D$83='Key inputs & assumptions'!$X$84,CX37,IF('Key inputs & assumptions'!$D$83='Key inputs & assumptions'!$X$83,CX12)) -> 0 | CZ62: =IF('Key inputs & assumptions'!$D$83='Key inputs & assumptions'!$X$84,CZ37,IF('Key inputs & assumptions'!$D$83='Key inputs & assumptions'!$X$83,CZ12)) -> 0 | DA62: =IF('Key inputs & assumptions'!$D$83='Key inputs & assumptions'!$X$84,DA37,IF('Key inputs & assumptions'!$D$83='Key inputs & assumptions'!$X$83,DA12)) -> 0 | DB62: =IF('Key inputs & assumptions'!$D$83='Key inputs & assumptions'!$X$84,DB37,IF('Key inputs & assumptions'!$D$83='Key inputs & assumptions'!$X$83,DB12)) -> 0 | DC62: =IF('Key inputs & assumptions'!$D$83='Key inputs & assumptions'!$X$84,DC37,IF('Key inputs & assumptions'!$D$83='Key inputs & assumptions'!$X$83,DC12)) -> 0 | DD62: =IF('Key inputs & assumptions'!$D$83='Key inputs & assumptions'!$X$84,DD37,IF('Key inputs & assumptions'!$D$83='Key inputs & assumptions'!$X$83,DD12)) -> 0 | DE62: =IF('Key inputs & assumptions'!$D$83='Key inputs & assumptions'!$X$84,DE37,IF('Key inputs & assumptions'!$D$83='Key inputs & assumptions'!$X$83,DE12)) -> 0 | DF62: =IF('Key inputs & assumptions'!$D$83='Key inputs & assumptions'!$X$84,DF37,IF('Key inputs & assumptions'!$D$83='Key inputs & assumptions'!$X$83,DF12)) -> 0 | DG62: =IF('Key inputs & assumptions'!$D$83='Key inputs & assumptions'!$X$84,DG37,IF('Key inputs & assumptions'!$D$83='Key inputs & assumptions'!$X$83,DG12)) -> 0 | DH62: =IF('Key inputs & assumptions'!$D$83='Key inputs & assumptions'!$X$84,DH37,IF('Key inputs & assumptions'!$D$83='Key inputs & assumptions'!$X$83,DH12)) -> 0 | DI62: =IF('Key inputs & assumptions'!$D$83='Key inputs & assumptions'!$X$84,DI37,IF('Key inputs & assumptions'!$D$83='Key inputs & assumptions'!$X$83,DI12)) -> 0 | DJ62: =IF('Key inputs & assumptions'!$D$83='Key inputs & assumptions'!$X$84,DJ37,IF('Key inputs & assumptions'!$D$83='Key inputs & assumptions'!$X$83,DJ12)) -> 0 | DK62: =IF('Key inputs & assumptions'!$D$83='Key inputs & assumptions'!$X$84,DK37,IF('Key inputs & assumptions'!$D$83='Key inputs & assumptions'!$X$83,DK12)) -> 0 | DL62: =IF('Key inputs & assumptions'!$D$83='Key inputs & assumptions'!$X$84,DL37,IF('Key inputs & assumptions'!$D$83='Key inputs & assumptions'!$X$83,DL12)) -> 0 | DM62: =IF('Key inputs & assumptions'!$D$83='Key inputs & assumptions'!$X$84,DM37,IF('Key inputs & assumptions'!$D$83='Key inputs & assumptions'!$X$83,DM12)) -> 0 | DN62: =IF('Key inputs & assumptions'!$D$83='Key inputs & assumptions'!$X$84,DN37,IF('Key inputs & assumptions'!$D$83='Key inputs & assumptions'!$X$83,DN12)) -> 0 | DO62: =IF('Key inputs & assumptions'!$D$83='Key inputs & assumptions'!$X$84,DO37,IF('Key inputs & assumptions'!$D$83='Key inputs & assumptions'!$X$83,DO12)) -> 0 | DP62: =IF('Key inputs & assumptions'!$D$83='Key inputs & assumptions'!$X$84,DP37,IF('Key inputs & assumptions'!$D$83='Key inputs & assumptions'!$X$83,DP12)) -> 0 | DQ62: =IF('Key inputs & assumptions'!$D$83='Key inputs & assumptions'!$X$84,DQ37,IF('Key inputs & assumptions'!$D$83='Key inputs & assumptions'!$X$83,DQ12)) -> 0 | DR62: =IF('Key inputs & assumptions'!$D$83='Key inputs & assumptions'!$X$84,DR37,IF('Key inputs & assumptions'!$D$83='Key inputs & assumptions'!$X$83,DR12)) -> 0 | DS62: =IF('Key inputs & assumptions'!$D$83='Key inputs & assumptions'!$X$84,DS37,IF('Key inputs & assumptions'!$D$83='Key inputs & assumptions'!$X$83,DS12)) -> 0 | DT62: =IF('Key inputs & assumptions'!$D$83='Key inputs & assumptions'!$X$84,DT37,IF('Key inputs & assumptions'!$D$83='Key inputs & assumptions'!$X$83,DT12)) -> 0 | DU62: =IF('Key inputs & assumptions'!$D$83='Key inputs & assumptions'!$X$84,DU37,IF('Key inputs & assumptions'!$D$83='Key inputs & assumptions'!$X$83,DU12)) -> 0 | DV62: =IF('Key inputs & assumptions'!$D$83='Key inputs & assumptions'!$X$84,DV37,IF('Key inputs & assumptions'!$D$83='Key inputs & assumptions'!$X$83,DV12)) -> 0 | DW62: =IF('Key inputs & assumptions'!$D$83='Key inputs & assumptions'!$X$84,DW37,IF('Key inputs & assumptions'!$D$83='Key inputs & assumptions'!$X$83,DW12)) -> 0 | DY62: =IF('Key inputs & assumptions'!$D$83='Key inputs & assumptions'!$X$84,DY37,IF('Key inputs & assumptions'!$D$83='Key inputs & assumptions'!$X$83,DY12)) -> 0 | DZ62: =IF('Key inputs & assumptions'!$D$83='Key inputs & assumptions'!$X$84,DZ37,IF('Key inputs & assumptions'!$D$83='Key inputs & assumptions'!$X$83,DZ12)) -> 0 | EA62: =IF('Key inputs & assumptions'!$D$83='Key inputs & assumptions'!$X$84,EA37,IF('Key inputs & assumptions'!$D$83='Key inputs & assumptions'!$X$83,EA12)) -> 0 | EB62: =IF('Key inputs & assumptions'!$D$83='Key inputs & assumptions'!$X$84,EB37,IF('Key inputs & assumptions'!$D$83='Key inputs & assumptions'!$X$83,EB12)) -> 0 | EC62: =IF('Key inputs & assumptions'!$D$83='Key inputs & assumptions'!$X$84,EC37,IF('Key inputs & assumptions'!$D$83='Key inputs & assumptions'!$X$83,EC12)) -> 0 | ED62: =IF('Key inputs & assumptions'!$D$83='Key inputs & assumptions'!$X$84,ED37,IF('Key inputs & assumptions'!$D$83='Key inputs & assumptions'!$X$83,ED12)) -> 0 | EE62: =IF('Key inputs & assumptions'!$D$83='Key inputs & assumptions'!$X$84,EE37,IF('Key inputs & assumptions'!$D$83='Key inputs & assumptions'!$X$83,EE12)) -> 0 | EF62: =IF('Key inputs & assumptions'!$D$83='Key inputs & assumptions'!$X$84,EF37,IF('Key inputs & assumptions'!$D$83='Key inputs & assumptions'!$X$83,EF12)) -> 0 | EG62: =IF('Key inputs & assumptions'!$D$83='Key inputs & assumptions'!$X$84,EG37,IF('Key inputs & assumptions'!$D$83='Key inputs & assumptions'!$X$83,EG12)) -> 0 | EH62: =IF('Key inputs & assumptions'!$D$83='Key inputs & assumptions'!$X$84,EH37,IF('Key inputs & assumptions'!$D$83='Key inputs & assumptions'!$X$83,EH12)) -> 0 | EI62: =IF('Key inputs & assumptions'!$D$83='Key inputs & assumptions'!$X$84,EI37,IF('Key inputs & assumptions'!$D$83='Key inputs & assumptions'!$X$83,EI12)) -> 0 | EJ62: =IF('Key inputs & assumptions'!$D$83='Key inputs & assumptions'!$X$84,EJ37,IF('Key inputs & assumptions'!$D$83='Key inputs & assumptions'!$X$83,EJ12)) -> 0 | EK62: =IF('Key inputs & assumptions'!$D$83='Key inputs & assumptions'!$X$84,EK37,IF('Key inputs & assumptions'!$D$83='Key inputs & assumptions'!$X$83,EK12)) -> 0 | EL62: =IF('Key inputs & assumptions'!$D$83='Key inputs & assumptions'!$X$84,EL37,IF('Key inputs & assumptions'!$D$83='Key inputs & assumptions'!$X$83,EL12)) -> 0 | EM62: =IF('Key inputs & assumptions'!$D$83='Key inputs & assumptions'!$X$84,EM37,IF('Key inputs & assumptions'!$D$83='Key inputs & assumptions'!$X$83,EM12)) -> 0 | EN62: =IF('Key inputs & assumptions'!$D$83='Key inputs & assumptions'!$X$84,EN37,IF('Key inputs & assumptions'!$D$83='Key inputs & assumptions'!$X$83,EN12)) -> 0 | EO62: =IF('Key inputs & assumptions'!$D$83='Key inputs & assumptions'!$X$84,EO37,IF('Key inputs & assumptions'!$D$83='Key inputs & assumptions'!$X$83,EO12)) -> 0 | EP62: =IF('Key inputs & assumptions'!$D$83='Key inputs & assumptions'!$X$84,EP37,IF('Key inputs & assumptions'!$D$83='Key inputs & assumptions'!$X$83,EP12)) -> 0 | EQ62: =IF('Key inputs & assumptions'!$D$83='Key inputs & assumptions'!$X$84,EQ37,IF('Key inputs & assumptions'!$D$83='Key inputs & assumptions'!$X$83,EQ12)) -> 0 | ER62: =IF('Key inputs & assumptions'!$D$83='Key inputs & assumptions'!$X$84,ER37,IF('Key inputs & assumptions'!$D$83='Key inputs & assumptions'!$X$83,ER12)) -> 0 | ES62: =IF('Key inputs & assumptions'!$D$83='Key inputs & assumptions'!$X$84,ES37,IF('Key inputs & assumptions'!$D$83='Key inputs & assumptions'!$X$83,ES12)) -> 0 | ET62: =IF('Key inputs & assumptions'!$D$83='Key inputs & assumptions'!$X$84,ET37,IF('Key inputs & assumptions'!$D$83='Key inputs & assumptions'!$X$83,ET12)) -> 0 | EU62: =IF('Key inputs & assumptions'!$D$83='Key inputs & assumptions'!$X$84,EU37,IF('Key inputs & assumptions'!$D$83='Key inputs & assumptions'!$X$83,EU12)) -> 0 | EV62: =IF('Key inputs & assumptions'!$D$83='Key inputs & assumptions'!$X$84,EV37,IF('Key inputs & assumptions'!$D$83='Key inputs & assumptions'!$X$83,EV12)) -> 0 | EX62: =IF('Key inputs & assumptions'!$D$83='Key inputs & assumptions'!$X$84,EX37,IF('Key inputs & assumptions'!$D$83='Key inputs & assumptions'!$X$83,EX12)) -> 0 | EY62: =IF('Key inputs & assumptions'!$D$83='Key inputs & assumptions'!$X$84,EY37,IF('Key inputs & assumptions'!$D$83='Key inputs & assumptions'!$X$83,EY12)) -> 0 | EZ62: =IF('Key inputs & assumptions'!$D$83='Key inputs & assumptions'!$X$84,EZ37,IF('Key inputs & assumptions'!$D$83='Key inputs & assumptions'!$X$83,EZ12)) -> 0 | FA62: =IF('Key inputs & assumptions'!$D$83='Key inputs & assumptions'!$X$84,FA37,IF('Key inputs & assumptions'!$D$83='Key inputs & assumptions'!$X$83,FA12)) -> 0 | FB62: =IF('Key inputs & assumptions'!$D$83='Key inputs & assumptions'!$X$84,FB37,IF('Key inputs & assumptions'!$D$83='Key inputs & assumptions'!$X$83,FB12)) -> 0 | FC62: =IF('Key inputs & assumptions'!$D$83='Key inputs & assumptions'!$X$84,FC37,IF('Key inputs & assumptions'!$D$83='Key inputs & assumptions'!$X$83,FC12)) -> 0 | FD62: =IF('Key inputs & assumptions'!$D$83='Key inputs & assumptions'!$X$84,FD37,IF('Key inputs & assumptions'!$D$83='Key inputs & assumptions'!$X$83,FD12)) -> 0 | FE62: =IF('Key inputs & assumptions'!$D$83='Key inputs & assumptions'!$X$84,FE37,IF('Key inputs & assumptions'!$D$83='Key inputs & assumptions'!$X$83,FE12)) -> 0 | FF62: =IF('Key inputs & assumptions'!$D$83='Key inputs & assumptions'!$X$84,FF37,IF('Key inputs & assumptions'!$D$83='Key inputs & assumptions'!$X$83,FF12)) -> 0 | FG62: =IF('Key inputs & assumptions'!$D$83='Key inputs & assumptions'!$X$84,FG37,IF('Key inputs & assumptions'!$D$83='Key inputs & assumptions'!$X$83,FG12)) -> 0 | FH62: =IF('Key inputs & assumptions'!$D$83='Key inputs & assumptions'!$X$84,FH37,IF('Key inputs & assumptions'!$D$83='Key inputs & assumptions'!$X$83,FH12)) -> 0 | FI62: =IF('Key inputs & assumptions'!$D$83='Key inputs & assumptions'!$X$84,FI37,IF('Key inputs & assumptions'!$D$83='Key inputs & assumptions'!$X$83,FI12)) -> 0 | FJ62: =IF('Key inputs & assumptions'!$D$83='Key inputs & assumptions'!$X$84,FJ37,IF('Key inputs & assumptions'!$D$83='Key inputs & assumptions'!$X$83,FJ12)) -> 0 | FK62: =IF('Key inputs & assumptions'!$D$83='Key inputs & assumptions'!$X$84,FK37,IF('Key inputs & assumptions'!$D$83='Key inputs & assumptions'!$X$83,FK12)) -> 0 | FL62: =IF('Key inputs & assumptions'!$D$83='Key inputs & assumptions'!$X$84,FL37,IF('Key inputs & assumptions'!$D$83='Key inputs & assumptions'!$X$83,FL12)) -> 0 | FM62: =IF('Key inputs & assumptions'!$D$83='Key inputs & assumptions'!$X$84,FM37,IF('Key inputs & assumptions'!$D$83='Key inputs & assumptions'!$X$83,FM12)) -> 0 | FN62: =IF('Key inputs & assumptions'!$D$83='Key inputs & assumptions'!$X$84,FN37,IF('Key inputs & assumptions'!$D$83='Key inputs & assumptions'!$X$83,FN12)) -> 0 | FO62: =IF('Key inputs & assumptions'!$D$83='Key inputs & assumptions'!$X$84,FO37,IF('Key inputs & assumptions'!$D$83='Key inputs & assumptions'!$X$83,FO12)) -> 0 | FP62: =IF('Key inputs & assumptions'!$D$83='Key inputs & assumptions'!$X$84,FP37,IF('Key inputs & assumptions'!$D$83='Key inputs & assumptions'!$X$83,FP12)) -> 0 | FQ62: =IF('Key inputs & assumptions'!$D$83='Key inputs & assumptions'!$X$84,FQ37,IF('Key inputs & assumptions'!$D$83='Key inputs & assumptions'!$X$83,FQ12)) -> 0 | FR62: =IF('Key inputs & assumptions'!$D$83='Key inputs & assumptions'!$X$84,FR37,IF('Key inputs & assumptions'!$D$83='Key inputs & assumptions'!$X$83,FR12)) -> 0 | FS62: =IF('Key inputs & assumptions'!$D$83='Key inputs & assumptions'!$X$84,FS37,IF('Key inputs & assumptions'!$D$83='Key inputs & assumptions'!$X$83,FS12)) -> 0 | FT62: =IF('Key inputs & assumptions'!$D$83='Key inputs & assumptions'!$X$84,FT37,IF('Key inputs & assumptions'!$D$83='Key inputs & assumptions'!$X$83,FT12)) -> 0 | FU62: =IF('Key inputs & assumptions'!$D$83='Key inputs & assumptions'!$X$84,FU37,IF('Key inputs & assumptions'!$D$83='Key inputs & assumptions'!$X$83,FU12)) -> 0 | FW62: =IF('Key inputs & assumptions'!$D$83='Key inputs & assumptions'!$X$84,FW37,IF('Key inputs & assumptions'!$D$83='Key inputs & assumptions'!$X$83,FW12)) -> 0 | FX62: =IF('Key inputs & assumptions'!$D$83='Key inputs & assumptions'!$X$84,FX37,IF('Key inputs & assumptions'!$D$83='Key inputs & assumptions'!$X$83,FX12)) -> 0 | FY62: =IF('Key inputs & assumptions'!$D$83='Key inputs & assumptions'!$X$84,FY37,IF('Key inputs & assumptions'!$D$83='Key inputs & assumptions'!$X$83,FY12)) -> 0 | FZ62: =IF('Key inputs & assumptions'!$D$83='Key inputs & assumptions'!$X$84,FZ37,IF('Key inputs & assumptions'!$D$83='Key inputs & assumptions'!$X$83,FZ12)) -> 0 | GA62: =IF('Key inputs & assumptions'!$D$83='Key inputs & assumptions'!$X$84,GA37,IF('Key inputs & assumptions'!$D$83='Key inputs & assumptions'!$X$83,GA12)) -> 0 | GB62: =IF('Key inputs & assumptions'!$D$83='Key inputs & assumptions'!$X$84,GB37,IF('Key inputs & assumptions'!$D$83='Key inputs & assumptions'!$X$83,GB12)) -> 0 | GC62: =IF('Key inputs & assumptions'!$D$83='Key inputs & assumptions'!$X$84,GC37,IF('Key inputs & assumptions'!$D$83='Key inputs & assumptions'!$X$83,GC12)) -> 0 | GD62: =IF('Key inputs & assumptions'!$D$83='Key inputs & assumptions'!$X$84,GD37,IF('Key inputs & assumptions'!$D$83='Key inputs & assumptions'!$X$83,GD12)) -> 0 | GE62: =IF('Key inputs & assumptions'!$D$83='Key inputs & assumptions'!$X$84,GE37,IF('Key inputs & assumptions'!$D$83='Key inputs & assumptions'!$X$83,GE12)) -> 0 | GF62: =IF('Key inputs & assumptions'!$D$83='Key inputs & assumptions'!$X$84,GF37,IF('Key inputs & assumptions'!$D$83='Key inputs & assumptions'!$X$83,GF12)) -> 0 | GG62: =IF('Key inputs & assumptions'!$D$83='Key inputs & assumptions'!$X$84,GG37,IF('Key inputs & assumptions'!$D$83='Key inputs & assumptions'!$X$83,GG12)) -> 0 | GH62: =IF('Key inputs & assumptions'!$D$83='Key inputs & assumptions'!$X$84,GH37,IF('Key inputs & assumptions'!$D$83='Key inputs & assumptions'!$X$83,GH12)) -> 0 | GI62: =IF('Key inputs & assumptions'!$D$83='Key inputs & assumptions'!$X$84,GI37,IF('Key inputs & assumptions'!$D$83='Key inputs & assumptions'!$X$83,GI12)) -> 0 | GJ62: =IF('Key inputs & assumptions'!$D$83='Key inputs & assumptions'!$X$84,GJ37,IF('Key inputs & assumptions'!$D$83='Key inputs & assumptions'!$X$83,GJ12)) -> 0 | GK62: =IF('Key inputs & assumptions'!$D$83='Key inputs & assumptions'!$X$84,GK37,IF('Key inputs & assumptions'!$D$83='Key inputs & assumptions'!$X$83,GK12)) -> 0 | GL62: =IF('Key inputs & assumptions'!$D$83='Key inputs & assumptions'!$X$84,GL37,IF('Key inputs & assumptions'!$D$83='Key inputs & assumptions'!$X$83,GL12)) -> 0 | GM62: =IF('Key inputs & assumptions'!$D$83='Key inputs & assumptions'!$X$84,GM37,IF('Key inputs & assumptions'!$D$83='Key inputs & assumptions'!$X$83,GM12)) -> 0 | GN62: =IF('Key inputs & assumptions'!$D$83='Key inputs & assumptions'!$X$84,GN37,IF('Key inputs & assumptions'!$D$83='Key inputs & assumptions'!$X$83,GN12)) -> 0 | GO62: =IF('Key inputs & assumptions'!$D$83='Key inputs & assumptions'!$X$84,GO37,IF('Key inputs & assumptions'!$D$83='Key inputs & assumptions'!$X$83,GO12)) -> 0 | GP62: =IF('Key inputs & assumptions'!$D$83='Key inputs & assumptions'!$X$84,GP37,IF('Key inputs & assumptions'!$D$83='Key inputs & assumptions'!$X$83,GP12)) -> 0 | GQ62: =IF('Key inputs & assumptions'!$D$83='Key inputs & assumptions'!$X$84,GQ37,IF('Key inputs & assumptions'!$D$83='Key inputs & assumptions'!$X$83,GQ12)) -> 0 | GR62: =IF('Key inputs & assumptions'!$D$83='Key inputs & assumptions'!$X$84,GR37,IF('Key inputs & assumptions'!$D$83='Key inputs & assumptions'!$X$83,GR12)) -> 0 | GS62: =IF('Key inputs & assumptions'!$D$83='Key inputs & assumptions'!$X$84,GS37,IF('Key inputs & assumptions'!$D$83='Key inputs & assumptions'!$X$83,GS12)) -> 0 | GT62: =IF('Key inputs & assumptions'!$D$83='Key inputs & assumptions'!$X$84,GT37,IF('Key inputs & assumptions'!$D$83='Key inputs & assumptions'!$X$83,GT12)) -> 0
